Workbook

Sheet READ ME
A1: New Hampshire Non-Energy Impacts Database
A8: Created for: Eversource, Unitil, Liberty and New Hampshire Electric Cooperative
A9: Last Updated: December, 2019
A12: Purpose
A13: Create a New Hampshire-specific NEI database derived from existing industry research. Use the database to estimate quantified values of NEIs for New Hampshire B/C model measures, and identify gaps for future NEI research in New Hampshire.
A15: Database Focus Area | B15: Worksheet Title | C15: Overview
A16: Overview | B16: Visual of database steps | C16: Visualization of the steps the database takes to connect measures and NEIs in the Jurisdictional Scan to the New Hampshire Measure List.
B17: Update Instructions | C17: Step by step update instructions for common changes to the database, such as updating Assumptions, adding a new measure, and adding a new NEI category.
A18: Inputs and Database Set-up | B18: Standard Measure Names (MapID) | C18: DNV GL created a standardized list of common measure descriptions to map measures from the Jurisdictional Scan (JS) to the New Hampshire Measure List (NHML). Each standard description consists of six parts: Detailed Measure Level (Level 6), Broad Measure Level (Level 5), End-Use Level (Level 4), Prescriptive/Custom (Level 3), Program Level (Level 2), Sector (Level 1). Each unique combination of these six levels was given a unique ID, called MapID. Additionally, a concatenation of these six levels are used as a unique identifier as well, called MapID_concat. The purpose of these MapIDs is to assign them to both the JS and the NHML measures so that NEI values can be connected between the two databases.
B19: Standard NEIs (SNEI) | C19: A standard list of 58 NEIs was created from the 41 studies in the JS. Each Standard NEI is assigned an Economic Factor to benchmark the NEI value to NH using the appropriate economic metrics. Additionally, each standard NEI is assigned a Perspective and Sector associated with that NEI. The calculated Economic Factors are located in "Econ Adjustment Factors" worksheet.
A20: Main Databases | B20: Jurisdictional Scan | C20: The Jurisdictional Scan is an aggregated database of all 41 studies from the literature review. It contains all of the unique measures identified in those studies and their assigned MapID, the Standard NEI category associated with each of those measures, and the NEI value/unit from that study. The JS sorts the studies from highest to lowest CF.
B21: NHML | C21: The New Hampshire Measure List (NHML) is a list of all the measures across all four PAs' B/C models. Each of these measures is assigned a MapID# so that NEI values can be connected between this database and the JS.
A22: Database Matching Engine | B22: NEI_Matching | C22: This is the main matching/calculation engine in the database. When the macro is run, each MapID# on the "Standard Measure Names (MapID)" worksheet is cycled through cell A2 on the "NEI_Matching" sheet, and all the calculations/look-up formulas are updated for each MapID#. These calculations are copied and hardcoded into the "Output" worksheet before moving on to the next MapID#. The worksheet is also set-up so that a user can use the drop-down in cell A2 to see how all the calculations change for different MapID#s one at a time. On the "NEI_Matching" worksheet, each MapID is paired with the Standard NEI categories, and the database searches for the most detailed match for that MapID-SNEI combination in the Jurisdictional Scan. After a match occurs, a PF and CF are applied based on the matching level, and the Economic Benchmark is applied to the unadjusted NEI value pulled from the JS.
A23: Database Outputs | B23: Output | C23: This is a worksheet that contains hardcoded outputs from the "NEI_Matching" engine that is run by the macro connected to the button on the "Assumptions" worksheet. The macro loops through every MapID listed on the "Standard Measure Names (MapID)" worksheet, and copy/pastes the results of the matching/look-up formulas in the "Output" worksheet.
B24: Output Filtered | C24: This sheet is a copy of the "Output" worksheet but formatted for usability. The formatting includes: (1) keep only instances of matched measures from the jurisdictional scan, (2) columns are reduced to only what is needed, (3) exclude measures with non-matching NEI categories (e.g. removes C&I NEI categories from residential measures), and (4) adds the full citation to the row. The user can then use filters to select desired measure combinations.
A25: Plausibility Factor Inputs | B25: Plausibility_Factor_scoring | C25: These sheets contain all of the inputs for the Plausibility Factor calculation. Additional detail about each of these factors can be found in the Methodology section of the final report.
B26: End_Use_UEC_delta_Score
B27: RECS_UEC
B28: CBECS_UEC
B29: Exclusion | C29: Matrix of binary values that will not be included in the formatted output.
A30: Confidence Factor Inputs | B30: Confidence_Factor_lookup | C30: Every study in the jurisdictional scan is identified on this worksheet and scored across six metrics to calculate a Confidence Factor (CF) score for that study.
A31: Economic Adjustment Inputs | B31: Econ Adjustment Factors | C31: These worksheets contain all the inputs and calculations for the Economic Factors used for benchmarking. Additional detail about each of these factors can be found in the detailed Methodology memo.
B32: Wage
B33: Property Value
B34: Revenue & Productivity
B35: Utility - C&I
B36: Health (Cost Based)
B37: Income & Health (Income Based)
B38: Age of Home
B39: Utility - Residential

Sheet Visual of database steps (hidden)

Sheet Update Instructions (hidden)
A1: Updates | B1: Steps | C1: Worksheets | D1: Cells | E1: Action | F1: Details
A2: Updating database Assumptions | B2: 1 | C2: Assumptions | D2: Confidence Factor weights: B3:B8 Confidence Factor minimum score: B9 Plausibility Factor: B13:B15 Plausibility Factor minimum score: B16 | E2: Select weights for CF and PF score | F2: Update orange cells that correspond to the weights each question for the Plausibility Factor and Confidence Factor receive. Also, adjust the minimum score each factor can receive.
B3: 2 | C3: Assumptions | D3: Economic Factor: B19 | E3: Select Economic adjustment scenario | F3: Select the Economic Factor scenario you want. The simplified, non-energy per capita weighted is the default setting
B4: 3 | C4: Assumptions | D4: A22:A26 | E4: Run macro | F4: Click macro button called "Rerun "NEI_Matching" and update "Output""
B5: 4 | C5: Output Pivot | D5: A14 | E5: Refresh pivot | F5: Refresh Output Pivot table by selecting a cell in Pivot Table, selecting "Analyze" on MS Excel command ribbon at top of screen, and click "Refresh"
B6: 5 | C6: Output Pivot | D6: Rows 1:11 | E6: Set slicers/filters | F6: Set slicer options for analysis. For example, if you only want participant NEIs brought over to New Hampshire Measure List, select this option on the "Perspective" slicer
B7: 6 | C7: NHML with NEIs | D7: R3:AH3 | E7: Pull-down formulas | F7: Drag row R3:AH3 with the active look-up formulas on this worksheet all the way to the bottom of the sheet and refresh the page by pressing Ctrl+Alt+F9.
A9: Adding new measure to New Hampshire Measure List | B9: =B1 -> Steps | C9: =C1 -> Worksheets | D9: Cells | E9: Action | F9: Details
B10: 1 | C10: NHML | D10: B1928:I1928 | E10: Enter descriptions for new measure | F10: Fill-in the following information for the new measure: PA, B/C Model Worksheet, Filename, Sector, Program, Subprogram, Measure, End Use
B11: 2 | C11: NHML | D11: J1928 (or first blank row at bottom of list) | E11: Select MapID# from drop-down list | F11: Assign a current MapID# that would be most appropriate for this measure. CAUTION*: If no MapID# currently fits the new measure you are adding, complete the instructions in the next gray box "Adding new Standard Measure Names (MapID) to the database *" before continuing.
B12: 3 | C12: NHML with NEIs | D12: L1928:Q1928 (or first blank row at bottom of list) | E12: Enter program information for measure | F12: Add the following program information associated with new measure: Quantity Installed; Participants/Households/Buildings; Measure life; Annual Savings (kWh); Annual Savings (therms); Annual Savings (tons emissions)
B13: 4 | C13: NHML with NEIs | D13: R3:AH3 | E13: Pull-down formulas | F13: Drag row R3:AH3 with the active look-up formulas on this worksheet all the way to the bottom of the sheet and refresh the page by pressing Ctrl+Alt+F9. It may take several seconds for the page to refresh due to the large quantity of look-up formulas.
A16: Adding new Standard Measure Names (MapID) to the database * | B16: =B9 -> Steps | C16: =C9 -> Worksheets | D16: =D9 -> Cells | E16: =E9 -> Action | F16: =F9 -> Details
B17: 1 | C17: Standard Measure Names (MapID) | D17: B270:G270 (or first blank row at bottom of list) | E17: Enter descriptions for new MapID | F17: Update the following information for the new MapID that you want to create: Detailed Measure Level (Level 6), Broad Measure Level (Level 5), End-Use Level (Level 4), Prescriptive/Custom (Level 3), Program Level (Level 2), Sector (Level 1).
B18: 2 | C18: Standard Measure Names (MapID) | D18: A270 (or first blank row at bottom of list) | E18: Create new MapID# | F18: Create a new MapID# that is a continuation of the numbering from the last MapID#
B19: 3 | C19: Assumptions | D19: A22:A26 | E19: Run macro | F19: Click macro button called "Rerun "NEI_Matching" and update "Output""
B20: 4 | C20: Output Pivot | D20: A14 | E20: Refresh | F20: Refresh Output Pivot table by selecting a cell in Pivot Table, selecting "Analyze" on MS Excel command ribbon at top of screen, and click "Refresh"
A23: Adding a new NEI to the database | B23: =B16 -> Steps | C23: =C16 -> Worksheets | D23: Cells | E23: Action | F23: Details
B24: 1 | C24: Standard NEIs (SNEI) | D24: A60:D60 (or first blank row at bottom of list) | E24: Classify NEI | F24: Identify the NEI type you'd like to add to the database, and enter it in cell A60. Then, for cells B60:D60 select from the drop-down menu the appropriate selection for Economic Factor for benchmarking, the NEI Perspective (i.e. who the impact affects), and the sector the NEI relates to.
B25: 2 | C25: Confidence_Factor_lookup | D25: A45:L45 (or first blank row at bottom of list) | E25: Input information about the study where the new NEI was taken from | F25: Enter information about the study from where the NEI is taken from, and answer all six Confidence Factor questions.
B26: 3 | C26: Confidence_Factor_lookup | D26: M45:U45 (or first blank row at bottom of list) | E26: Calculate CF for study by pulling-down formulas | F26: Pull down formulas in last row of the worksheet to create Confidence Factor calculation for new Study.
B27: 4 | C27: Jurisdictional Scan | D27: AC2844 (or first blank row at bottom of list) | E27: Select SNEI name from drop-down | F27: Select the SNEI name from the drop-down menu. This list is referencing the list on "Standard NEIs (SNEI)" worksheet.
B28: 5 | C28: Jurisdictional Scan | D28: AD2844:AE2844 (or first blank row at bottom of list) | E28: Enter new NEI value and unit | F28: Enter the quantified NEI value and unit for the value from the study.
B29: 6 | C29: Jurisdictional Scan | D29: Q2844:V2844 (or first blank row at bottom of list) | E29: Enter measure information | F29: Enter the following information for the measure associated with the NEI. It's ok if you are not able to enter all six levels of information. Just attempt to enter as many as the study provides: Detailed Measure Level (Level 6), Broad Measure Level (Level 5), End-Use Level (Level 4), Prescriptive/Custom (Level 3), Program Level (Level 2), Sector (Level 1).
B30: 7 | C30: Jurisdictional Scan | D30: N2844:O2844 (or first blank row at bottom of list) | E30: Select Study name from drop-down | F30: (no Dummy ID" necessary)
B31: 8 | C31: Jurisdictional Scan | D31: P2844 (or first blank row at bottom of list) | E31: Select MapID# from drop-down | F31: Select a current MapID# that would be most appropriate for this measure. CAUTION*: If no MapID# currently fits the new measure you are adding, complete the instructions in the next gray box "Adding new Standard Measure Names (MapID) to the database *" before continuing.
B32: 9 | C32: Jurisdictional Scan | D32: AF2 | E32: Sort CFs highest to lowest | F32: To ensure that the matching look-up formulas on the "NEI_Matching" shet select the best match from the sutdy with the highest CF, we need to sort this sheet from highest to lowest CF. From the drop-down filter, select "Sort from Largest to Smallest".
B33: 10 | C33: Assumptions | D33: A22:A26 | E33: Run macro | F33: Click macro button called "Rerun "NEI_Matching" and update "Output""
B34: 11 | C34: Output Pivot | D34: A14 | E34: Refresh pivot | F34: Refresh Output Pivot table by selecting a cell in Pivot Table, selecting "Analyze" on MS Excel command ribbon at top of screen, and click "Refresh"
B35: 12 | C35: Output Pivot | D35: Rows 1:11 | E35: Set slicers/filters | F35: Set slicer options for analysis. For example, if you only want participant NEIs brought over to New Hampshire Measure List, select this option on the "Perspective" slicer
B36: 13 | C36: NHML with NEIs | D36: R3:AH3 | E36: Pull-down formulas | F36: Drag row R3:AH3 with the active look-up formulas on this worksheet all the way to the bottom of the sheet and refresh the page by pressing Ctrl+Alt+F9. It may take several seconds for the page to refresh due to the large quantity of look-up formulas.

Sheet Inputs
A2: Confidence Factor Weighting | B2: Weighting | C2: TRUE
A3: 1. Is the study measure specific? | B3: 1
A4: 2. Is the study segmented by sector? | B4: 1
A5: 3. Was the sample drawn using statistical method? | B5: 1
A6: 4. Does the study incorporate identifiable economic factors? | B6: 1
A7: 5. Does the study not consider any of the following when appropriate: Open-ended questions, Additivity, Double Counting | B7: 1
A8: 6.What unit of measure does the study use for NEIs? | B8: 1
A9: Minimum Confidence Factor | B9: 0
A12: Plausibility Factor Weighting | B12: Weighting | C12: TRUE
A13: Age of Study Score | B13: 1
A14: Efficiency Change Score (UEC) | B14: 1
A15: Matching Level Score | B15: 1
A16: Minimum Plausibility Factor | B16: 0
A19: Economic Benchmark Scenario | B19: Simple Economic Weights | C19: =IF(B19="Energy Consumption Weighted",1,IF(B19="Simple Economic Weights",2,3)) -> 2
E23: =IF(B19="Energy Consumption Weighted", "NOTE: The Health (Cost Based) sheet is not currently ready to handle the energy-weighted scenario.","") -> 
A29: State Studied: | B29: New Hampshire

Sheet Standard Measure Names (MapID) (hidden)
A1: MappingID | B1: Detailed Measure Level (Level 6) | C1: Broad Measure Level (Level 5) | D1: End-Use Level (Level 4) | E1: Prescriptive/Custom (Level 3) | F1: Program Level (Level 2) | G1: Sector (Level 1) | H1: Fuel (Level 0) | I1: MapID_Concat
A2: MapID00001 | B2: LED Bulb | C2: LED | D2: Lighting | E2: Prescriptive | F2: New Construction (Non-Low Income) | G2: Residential | H2: Electricity | I2: =CONCATENATE(H2,"_",G2,"_",F2,"_",E2,"_",D2,"_",C2,"_",B2) -> Electricity_Residential_New Construction (Non-Low Income)_Prescriptive_Lighting_LED_LED Bulb
A3: MapID00002 | B3: LED Fixtures | C3: LED | D3: Lighting | E3: Prescriptive | F3: New Construction (Non-Low Income) | G3: Residential | H3: Electricity | I3: =CONCATENATE(H3,"_",G3,"_",F3,"_",E3,"_",D3,"_",C3,"_",B3) -> Electricity_Residential_New Construction (Non-Low Income)_Prescriptive_Lighting_LED_LED Fixtures
A4: MapID00003 | B4: Furnace | C4: Equipment | D4: HVAC | E4: Prescriptive | F4: New Construction (Non-Low Income) | G4: Residential | H4: Gas | I4: Gas_Residential_New Construction (Non-Low Income)_Prescriptive_HVAC_Equipment_Furnace
A5: MapID00004 | B5: Insulation | C5: Building Shell | D5: Weatherization | E5: Prescriptive | F5: Retrofit (Non-Low Income) | G5: Residential | H5: Both | I5: Both_Residential_Retrofit (Non-Low Income)_Prescriptive_Weatherization_Building Shell_Insulation
A6: MapID00005 | B6: SF Air Sealing | C6: Building Shell | D6: Weatherization | E6: Prescriptive | F6: Retrofit (Non-Low Income) | G6: Residential | H6: Both | I6: Both_Residential_Retrofit (Non-Low Income)_Prescriptive_Weatherization_Building Shell_SF Air Sealing
A7: MapID00006 | B7: Duct Sealing | C7: System | D7: HVAC | E7: Prescriptive | F7: Retrofit (Non-Low Income) | G7: Residential | H7: Both | I7: Both_Residential_Retrofit (Non-Low Income)_Prescriptive_HVAC_System_Duct Sealing
A8: MapID00007 | B8: SF Low-flow Showerhead | C8: System | D8: Hot Water | E8: Prescriptive | F8: Retrofit (Non-Low Income) | G8: Residential | H8: Gas | I8: Gas_Residential_Retrofit (Non-Low Income)_Prescriptive_Hot Water_System_SF Low-flow Showerhead
A9: MapID00008 | B9: Faucet Aerator | C9: System | D9: Hot Water | E9: Prescriptive | F9: Retrofit (Non-Low Income) | G9: Residential | H9: Both | I9: Both_Residential_Retrofit (Non-Low Income)_Prescriptive_Hot Water_System_Faucet Aerator
A10: MapID00009 | B10: SF Thermostat | C10: Controls | D10: HVAC | E10: Prescriptive | F10: Retrofit (Non-Low Income) | G10: Residential | H10: Gas | I10: Gas_Residential_Retrofit (Non-Low Income)_Prescriptive_HVAC_Controls_SF Thermostat
A11: MapID00010 | B11: Early Retirement (Retire) | C11: Equipment | D11: HVAC | E11: Prescriptive | F11: Retrofit (Non-Low Income) | G11: Residential | H11: Gas | I11: Gas_Residential_Retrofit (Non-Low Income)_Prescriptive_HVAC_Equipment_Early Retirement (Retire)
A12: MapID00011 | B12: Condensing DHW | C12: Equipment | D12: Hot Water | E12: Prescriptive | F12: Retrofit (Non-Low Income) | G12: Residential | H12: Gas | I12: Gas_Residential_Retrofit (Non-Low Income)_Prescriptive_Hot Water_Equipment_Condensing DHW
A13: MapID00012 | B13: Tankless DHW | C13: Equipment | D13: Hot Water | E13: Prescriptive | F13: Retrofit (Non-Low Income) | G13: Residential | H13: Gas | I13: Gas_Residential_Retrofit (Non-Low Income)_Prescriptive_Hot Water_Equipment_Tankless DHW
A14: MapID00013 | B14: Stand Alone DHW | C14: Equipment | D14: Hot Water | E14: Prescriptive | F14: Retrofit (Non-Low Income) | G14: Residential | H14: Gas | I14: Gas_Residential_Retrofit (Non-Low Income)_Prescriptive_Hot Water_Equipment_Stand Alone DHW
A15: MapID00014 | B15: Condensing Boiler | C15: Equipment | D15: Hot Water | E15: Prescriptive | F15: Retrofit (Non-Low Income) | G15: Residential | H15: Gas | I15: Gas_Residential_Retrofit (Non-Low Income)_Prescriptive_Hot Water_Equipment_Condensing Boiler
A16: MapID00015 | B16: Furnace | C16: Equipment | D16: HVAC | E16: Prescriptive | F16: Retrofit (Non-Low Income) | G16: Residential | H16: Gas | I16: Gas_Residential_Retrofit (Non-Low Income)_Prescriptive_HVAC_Equipment_Furnace
A17: MapID00016 | I17: ______
A18: MapID00017 | B18: Boiler | C18: Equipment | D18: Hot Water | E18: Prescriptive | F18: Retrofit (Non-Low Income) | G18: Residential | H18: Gas | I18: Gas_Residential_Retrofit (Non-Low Income)_Prescriptive_Hot Water_Equipment_Boiler
A19: MapID00018 | I19: ______
A20: MapID00019 | B20: Common Area Lighting | C20: LED | D20: Lighting | E20: Prescriptive | F20: New Construction (Non-Low Income) | G20: Residential | H20: Electricity | I20: Electricity_Residential_New Construction (Non-Low Income)_Prescriptive_Lighting_LED_Common Area Lighting
A21: MapID00020 | B21: SF Air Sealing | C21: Building Shell | D21: Weatherization | E21: Prescriptive | F21: Low Income | G21: Residential | H21: Gas | I21: Gas_Residential_Low Income_Prescriptive_Weatherization_Building Shell_SF Air Sealing
A22: MapID00021 | B22: SF Insulation | C22: Building Shell | D22: Weatherization | E22: Prescriptive | F22: Low Income | G22: Residential | H22: Gas | I22: Gas_Residential_Low Income_Prescriptive_Weatherization_Building Shell_SF Insulation
A23: MapID00022 | B23: Heating System Replacement | C23: Equipment | D23: HVAC | E23: Prescriptive | F23: Low Income | G23: Residential | H23: Gas | I23: Gas_Residential_Low Income_Prescriptive_HVAC_Equipment_Heating System Replacement
A24: MapID00023 | B24: SF Low-flow Showerhead | C24: System | D24: Hot Water | E24: Prescriptive | F24: Low Income | G24: Residential | H24: Gas | I24: Gas_Residential_Low Income_Prescriptive_Hot Water_System_SF Low-flow Showerhead
A25: MapID00024 | B25: Faucet Aerator | C25: System | D25: Hot Water | E25: Prescriptive | F25: Low Income | G25: Residential | H25: Gas | I25: Gas_Residential_Low Income_Prescriptive_Hot Water_System_Faucet Aerator
A26: MapID00025 | B26: Duct Insulation | C26: System | D26: HVAC | E26: Prescriptive | F26: Low Income | G26: Residential | H26: Gas | I26: Gas_Residential_Low Income_Prescriptive_HVAC_System_Duct Insulation
A27: MapID00026 | B27: SF Duct Sealing | C27: System | D27: HVAC | E27: Prescriptive | F27: Low Income | G27: Residential | H27: Gas | I27: Gas_Residential_Low Income_Prescriptive_HVAC_System_SF Duct Sealing
A28: MapID00027 | B28: SF Pipe Wrap | C28: System | D28: Hot Water | E28: Prescriptive | F28: Low Income | G28: Residential | H28: Gas | I28: Gas_Residential_Low Income_Prescriptive_Hot Water_System_SF Pipe Wrap
A29: MapID00028 | B29: SF Thermostat | C29: Controls | D29: HVAC | E29: Prescriptive | F29: Low Income | G29: Residential | H29: Gas | I29: Gas_Residential_Low Income_Prescriptive_HVAC_Controls_SF Thermostat
A30: MapID00029 | B30: MF Heating System Retrofit | C30: Equipment | D30: HVAC | E30: Prescriptive | F30: Low Income | G30: Residential | H30: Gas | I30: Gas_Residential_Low Income_Prescriptive_HVAC_Equipment_MF Heating System Retrofit
A31: MapID00030 | B31: Energy Star Water Heater | C31: Equipment | D31: Hot Water | E31: Prescriptive | F31: Low Income | G31: Residential | H31: Gas | I31: Gas_Residential_Low Income_Prescriptive_Hot Water_Equipment_Energy Star Water Heater
A32: MapID00031 | B32: Heating | C32: Equipment | D32: HVAC | E32: Prescriptive | F32: New Construction (Non-Low Income) | G32: Residential | H32: Electricity | I32: Electricity_Residential_New Construction (Non-Low Income)_Prescriptive_HVAC_Equipment_Heating
A33: MapID00032 | B33: Heating, High Rise | C33: Equipment | D33: HVAC | E33: Prescriptive | F33: New Construction (Non-Low Income) | G33: Residential | H33: Electricity | I33: Electricity_Residential_New Construction (Non-Low Income)_Prescriptive_HVAC_Equipment_Heating, High Rise
A34: MapID00033 | B34: Heating System Replacement | C34: Equipment | D34: HVAC | E34: Prescriptive | F34: Retrofit (Non-Low Income) | G34: Residential | H34: Electricity | I34: Electricity_Residential_Retrofit (Non-Low Income)_Prescriptive_HVAC_Equipment_Heating System Replacement
A35: MapID00034 | B35: Water Heater Replacement | C35: Equipment | D35: Hot Water | E35: Prescriptive | F35: Retrofit (Non-Low Income) | G35: Residential | H35: Electricity | I35: Electricity_Residential_Retrofit (Non-Low Income)_Prescriptive_Hot Water_Equipment_Water Heater Replacement
A36: MapID00035 | B36: Early Retirement Heating System (EE) | C36: Equipment | D36: HVAC | E36: Prescriptive | F36: Retrofit (Non-Low Income) | G36: Residential | H36: Electricity | I36: Electricity_Residential_Retrofit (Non-Low Income)_Prescriptive_HVAC_Equipment_Early Retirement Heating System (EE)
A37: MapID00036 | B37: Early Retirement Heating System (Retire) | C37: Equipment | D37: HVAC | E37: Prescriptive | F37: Retrofit (Non-Low Income) | G37: Residential | H37: Electricity | I37: Electricity_Residential_Retrofit (Non-Low Income)_Prescriptive_HVAC_Equipment_Early Retirement Heating System (Retire)
A38: MapID00037 | B38: SF Refrigerator | C38: Appliance | D38: Refrigeration | E38: Prescriptive | F38: Retrofit (Non-Low Income) | G38: Residential | H38: Electricity | I38: Electricity_Residential_Retrofit (Non-Low Income)_Prescriptive_Refrigeration_Appliance_SF Refrigerator
A39: MapID00038 | B39: Common Area Lighting | C39: LED | D39: Lighting | E39: Prescriptive | F39: Retrofit (Non-Low Income) | G39: Residential | H39: Electricity | I39: Electricity_Residential_Retrofit (Non-Low Income)_Prescriptive_Lighting_LED_Common Area Lighting
A40: MapID00039 | B40: MF Heat Pump | C40: Equipment | D40: HVAC | E40: Prescriptive | F40: Retrofit (Non-Low Income) | G40: Residential | H40: Electricity | I40: Electricity_Residential_Retrofit (Non-Low Income)_Prescriptive_HVAC_Equipment_MF Heat Pump
A41: MapID00040 | B41: SF Ductless Mini-split Heat Pump (DMSHP) | C41: Equipment | D41: HVAC | E41: Prescriptive | F41: Retrofit (Non-Low Income) | G41: Residential | H41: Electricity | I41: Electricity_Residential_Retrofit (Non-Low Income)_Prescriptive_HVAC_Equipment_SF Ductless Mini-split Heat Pump (DMSHP)
A42: MapID00041 | B42: Retail Air Conditioner | C42: Equipment | D42: HVAC | E42: Prescriptive | F42: Retrofit (Non-Low Income) | G42: Residential | H42: Electricity | I42: Electricity_Residential_Retrofit (Non-Low Income)_Prescriptive_HVAC_Equipment_Retail Air Conditioner
A43: MapID00042 | B43: Central Air | C43: Equipment | D43: HVAC | E43: Prescriptive | F43: Retrofit (Non-Low Income) | G43: Residential | H43: Electricity | I43: Electricity_Residential_Retrofit (Non-Low Income)_Prescriptive_HVAC_Equipment_Central Air
A44: MapID00043 | B44: Retail Heat Pump | C44: Equipment | D44: HVAC | E44: Prescriptive | F44: Retrofit (Non-Low Income) | G44: Residential | H44: Electricity | I44: Electricity_Residential_Retrofit (Non-Low Income)_Prescriptive_HVAC_Equipment_Retail Heat Pump
A45: MapID00044 | B45: Heat Pumps | C45: Equipment | D45: HVAC | E45: Prescriptive | F45: Retrofit (Non-Low Income) | G45: Residential | H45: Electricity | I45: Electricity_Residential_Retrofit (Non-Low Income)_Prescriptive_HVAC_Equipment_Heat Pumps
A46: MapID00045 | B46: Retail AC sizing | C46: Equipment | D46: HVAC | E46: Prescriptive | F46: Retrofit (Non-Low Income) | G46: Residential | H46: Electricity | I46: Electricity_Residential_Retrofit (Non-Low Income)_Prescriptive_HVAC_Equipment_Retail AC sizing
A47: MapID00046 | B47: AC sizing | C47: Equipment | D47: HVAC | E47: Prescriptive | F47: Retrofit (Non-Low Income) | G47: Residential | H47: Electricity | I47: Electricity_Residential_Retrofit (Non-Low Income)_Prescriptive_HVAC_Equipment_AC sizing
A48: MapID00047 | B48: Retail Digital Check up/tune up | C48: Maintenance | D48: HVAC | E48: Prescriptive | F48: Retrofit (Non-Low Income) | G48: Residential | H48: Electricity | I48: Electricity_Residential_Retrofit (Non-Low Income)_Prescriptive_HVAC_Maintenance_Retail Digital Check up/tune up
A49: MapID00048 | B49: Digital Check up/tune up | C49: Maintenance | D49: HVAC | E49: Prescriptive | F49: Retrofit (Non-Low Income) | G49: Residential | H49: Both | I49: Both_Residential_Retrofit (Non-Low Income)_Prescriptive_HVAC_Maintenance_Digital Check up/tune up
A50: MapID00049 | B50: Retail QIV | C50: Maintenance | D50: HVAC | E50: Prescriptive | F50: Retrofit (Non-Low Income) | G50: Residential | H50: Electricity | I50: Electricity_Residential_Retrofit (Non-Low Income)_Prescriptive_HVAC_Maintenance_Retail QIV
A51: MapID00050 | B51: QIV | C51: Maintenance | D51: HVAC | E51: Prescriptive | F51: Retrofit (Non-Low Income) | G51: Residential | H51: Electricity | I51: Electricity_Residential_Retrofit (Non-Low Income)_Prescriptive_HVAC_Maintenance_QIV
A52: MapID00051 | I52: ______
A53: MapID00052 | B53: Single Family | C53: Educational Measures | D53: Other | E53: Prescriptive | F53: Low Income | G53: Residential | H53: Electricity | I53: Electricity_Residential_Low Income_Prescriptive_Other_Educational Measures_Single Family
A54: MapID00053 | B54: SF Heating System Retrofit | C54: Equipment | D54: HVAC | E54: Prescriptive | F54: Low Income | G54: Residential | H54: Electricity | I54: Electricity_Residential_Low Income_Prescriptive_HVAC_Equipment_SF Heating System Retrofit
A55: MapID00054 | B55: SF Heat Pump | C55: Equipment | D55: HVAC | E55: Prescriptive | F55: Low Income | G55: Residential | H55: Electricity | I55: Electricity_Residential_Low Income_Prescriptive_HVAC_Equipment_SF Heat Pump
A56: MapID00055 | B56: Heat Pump Water Heater | C56: Equipment | D56: Hot Water | E56: Prescriptive | F56: Low Income | G56: Residential | H56: Electricity | I56: Electricity_Residential_Low Income_Prescriptive_Hot Water_Equipment_Heat Pump Water Heater
A57: MapID00056 | B57: SF Replacement Freezer | C57: Appliance | D57: Refrigeration | E57: Prescriptive | F57: Low Income | G57: Residential | H57: Electricity | I57: Electricity_Residential_Low Income_Prescriptive_Refrigeration_Appliance_SF Replacement Freezer
A58: MapID00057 | B58: SF Refrigerator | C58: Appliance | D58: Refrigeration | E58: Prescriptive | F58: Low Income | G58: Residential | H58: Electricity | I58: Electricity_Residential_Low Income_Prescriptive_Refrigeration_Appliance_SF Refrigerator
A59: MapID00058 | B59: SF Window AC | C59: Equipment | D59: HVAC | E59: Prescriptive | F59: Low Income | G59: Residential | H59: Electricity | I59: Electricity_Residential_Low Income_Prescriptive_HVAC_Equipment_SF Window AC
A60: MapID00059 | B60: Multi Family | C60: Educational Measures | D60: Other | E60: Prescriptive | F60: Low Income | G60: Residential | H60: Electricity | I60: Electricity_Residential_Low Income_Prescriptive_Other_Educational Measures_Multi Family
A61: MapID00060 | B61: MF Heat Pump | C61: Equipment | D61: HVAC | E61: Prescriptive | F61: Low Income | G61: Residential | H61: Electricity | I61: Electricity_Residential_Low Income_Prescriptive_HVAC_Equipment_MF Heat Pump
A62: MapID00061 | B62: Common Area Lighting | C62: LED | D62: Lighting | E62: Prescriptive | F62: Low Income | G62: Residential | H62: Electricity | I62: Electricity_Residential_Low Income_Prescriptive_Lighting_LED_Common Area Lighting
A63: MapID00062 | B63: MF Freezer | C63: Appliance | D63: Refrigeration | E63: Prescriptive | F63: Low Income | G63: Residential | H63: Electricity | I63: Electricity_Residential_Low Income_Prescriptive_Refrigeration_Appliance_MF Freezer
A64: MapID00063 | B64: MF Refrigerator | C64: Appliance | D64: Refrigeration | E64: Prescriptive | F64: Low Income | G64: Residential | H64: Electricity | I64: Electricity_Residential_Low Income_Prescriptive_Refrigeration_Appliance_MF Refrigerator
I65: ______
A66: MapID00065 | B66: MF Window AC Replacement | C66: Equipment | D66: HVAC | E66: Prescriptive | F66: Low Income | G66: Residential | H66: Electricity | I66: Electricity_Residential_Low Income_Prescriptive_HVAC_Equipment_MF Window AC Replacement
A67: MapID00066 | C67: Comprehensive Design | D67: Education | E67: Prescriptive | F67: New Construction | G67: C&I | H67: Both | I67: =CONCATENATE(H67,"_",G67,"_",F67,"_",E67,"_",D67,"_",C67,"_",B67) -> Both_C&I_New Construction_Prescriptive_Education_Comprehensive Design_
A68: MapID00067 | B68: Range Hood | C68: Commercial Kitchen | D68: Food Service | E68: Prescriptive | F68: New Construction | G68: C&I | H68: Electricity | I68: Electricity_C&I_New Construction_Prescriptive_Food Service_Commercial Kitchen_Range Hood
A69: MapID00068 | B69: Convection Oven | C69: Commercial Kitchen | D69: Food Service | E69: Prescriptive | F69: New Construction | G69: C&I | H69: Gas | I69: Gas_C&I_New Construction_Prescriptive_Food Service_Commercial Kitchen_Convection Oven
A70: MapID00069 | B70: Conveyer Oven | C70: Commercial Kitchen | D70: Food Service | E70: Prescriptive | F70: New Construction | G70: C&I | H70: Gas | I70: Gas_C&I_New Construction_Prescriptive_Food Service_Commercial Kitchen_Conveyer Oven
A71: MapID00070 | B71: Range | C71: Commercial Kitchen | D71: Food Service | E71: Prescriptive | F71: New Construction | G71: C&I | H71: Electricity | I71: Electricity_C&I_New Construction_Prescriptive_Food Service_Commercial Kitchen_Range
A72: MapID00071 | B72: Fryer | C72: Commercial Kitchen | D72: Food Service | E72: Prescriptive | F72: New Construction | G72: C&I | H72: Gas | I72: Gas_C&I_New Construction_Prescriptive_Food Service_Commercial Kitchen_Fryer
A73: MapID00072 | B73: Griddle | C73: Commercial Kitchen | D73: Food Service | E73: Prescriptive | F73: New Construction | G73: C&I | H73: Gas | I73: Gas_C&I_New Construction_Prescriptive_Food Service_Commercial Kitchen_Griddle
A74: MapID00073 | B74: Rack Oven | C74: Commercial Kitchen | D74: Food Service | E74: Prescriptive | F74: New Construction | G74: C&I | H74: Gas | I74: Gas_C&I_New Construction_Prescriptive_Food Service_Commercial Kitchen_Rack Oven
A75: MapID00074 | B75: Steamer | C75: Commercial Kitchen | D75: Food Service | E75: Prescriptive | F75: New Construction | G75: C&I | H75: Gas | I75: Gas_C&I_New Construction_Prescriptive_Food Service_Commercial Kitchen_Steamer
A76: MapID00075 | B76: Condensing Boiler | C76: Equipment | D76: HVAC | E76: Prescriptive | F76: New Construction | G76: C&I | H76: Gas | I76: Gas_C&I_New Construction_Prescriptive_HVAC_Equipment_Condensing Boiler
A77: MapID00076 | B77: Combination Boiler | C77: Equipment | D77: HVAC | E77: Prescriptive | F77: New Construction | G77: C&I | H77: Gas | I77: Gas_C&I_New Construction_Prescriptive_HVAC_Equipment_Combination Boiler
A78: MapID00077 | D78: Process | E78: Custom | F78: New Construction | G78: C&I | H78: Gas | I78: Gas_C&I_New Construction_Custom_Process__
A79: MapID00078 | B79: Fiber Laser Cutter Machine | C79: Manufacturing | D79: Process | E79: Custom | F79: New Construction | G79: C&I | H79: Electricity | I79: Electricity_C&I_New Construction_Custom_Process_Manufacturing_Fiber Laser Cutter Machine
A80: MapID00079 | B80: Injection Molding | C80: Manufacturing | D80: Process | E80: Prescriptive | F80: New Construction | G80: C&I | H80: Electricity | I80: Electricity_C&I_New Construction_Prescriptive_Process_Manufacturing_Injection Molding
A81: MapID00080 | B81: Injection Molding | C81: Manufacturing | D81: Process | E81: Custom | F81: New Construction | G81: C&I | H81: Electricity | I81: Electricity_C&I_New Construction_Custom_Process_Manufacturing_Injection Molding
A82: MapID00081 | B82: Submerged Mixer | C82: Manufacturing | D82: Process | E82: Custom | F82: New Construction | G82: C&I | H82: Electricity | I82: Electricity_C&I_New Construction_Custom_Process_Manufacturing_Submerged Mixer
A83: MapID00082 | B83: Effluent Pump | C83: Manufacturing | D83: Process | E83: Custom | F83: New Construction | G83: C&I | H83: Electricity | I83: Electricity_C&I_New Construction_Custom_Process_Manufacturing_Effluent Pump
A84: MapID00083 | B84: Aeration Hybrid Hollow Fiber Flat-Plate Membrane System | C84: Manufacturing | D84: Process | E84: Custom | F84: New Construction | G84: C&I | H84: Electricity | I84: Electricity_C&I_New Construction_Custom_Process_Manufacturing_Aeration Hybrid Hollow Fiber Flat-Plate Membrane System
A85: MapID00084 | B85: Aeration Blower | C85: Manufacturing | D85: Process | E85: Custom | F85: New Construction | G85: C&I | H85: Electricity | I85: Electricity_C&I_New Construction_Custom_Process_Manufacturing_Aeration Blower
A86: MapID00085 | B86: Variable Frequency Drive (VFD) | C86: Motors/Drives | D86: Process | E86: Custom | F86: New Construction | G86: C&I | H86: Electricity | I86: Electricity_C&I_New Construction_Custom_Process_Motors/Drives_Variable Frequency Drive (VFD)
A87: MapID00086 | B87: Air Dryer | C87: System | D87: Compressed Air | E87: Prescriptive | F87: New Construction | G87: C&I | H87: Electricity | I87: Electricity_C&I_New Construction_Prescriptive_Compressed Air_System_Air Dryer
A88: MapID00087 | B88: Variable Frequency Drive (VFD) | C88: Motors/Drives | D88: Process | E88: Prescriptive | F88: New Construction | G88: C&I | H88: Electricity | I88: Electricity_C&I_New Construction_Prescriptive_Process_Motors/Drives_Variable Frequency Drive (VFD)
A89: MapID00088 | B89: Custom Heat Recovery | C89: Heat Recovery | D89: HVAC | E89: Custom | F89: New Construction | G89: C&I | H89: Both | I89: Both_C&I_New Construction_Custom_HVAC_Heat Recovery_Custom Heat Recovery
A90: MapID00089 | B90: Heating System Replacement | C90: Equipment | D90: HVAC | E90: Custom | F90: New Construction | G90: C&I | H90: Electricity | I90: Electricity_C&I_New Construction_Custom_HVAC_Equipment_Heating System Replacement
A91: MapID00090 | B91: Boiler - prescriptive | C91: Equipment | D91: HVAC | E91: Prescriptive | F91: New Construction | G91: C&I | H91: Gas | I91: Gas_C&I_New Construction_Prescriptive_HVAC_Equipment_Boiler - prescriptive
A92: MapID00091 | B92: Oven | C92: Commercial Kitchen | D92: Food Service | E92: Prescriptive | F92: New Construction | G92: C&I | H92: Both | I92: Both_C&I_New Construction_Prescriptive_Food Service_Commercial Kitchen_Oven
A93: MapID00092 | B93: Ice Maker | C93: Commercial Kitchen | D93: Food Service | E93: Prescriptive | F93: New Construction | G93: C&I | H93: Electricity | I93: Electricity_C&I_New Construction_Prescriptive_Food Service_Commercial Kitchen_Ice Maker
A94: MapID00093 | D94: HVAC | E94: Prescriptive | F94: Retrofit | G94: C&I | H94: Electricity | I94: Electricity_C&I_Retrofit_Prescriptive_HVAC__
A95: MapID00094 | B95: Water Heater | C95: Equipment | D95: Hot Water | E95: Prescriptive | F95: Retrofit | G95: C&I | H95: Gas | I95: Gas_C&I_Retrofit_Prescriptive_Hot Water_Equipment_Water Heater
A96: MapID00095 | D96: Weatherization | E96: Prescriptive | F96: Retrofit | G96: C&I | H96: Gas | I96: Gas_C&I_Retrofit_Prescriptive_Weatherization__
A97: MapID00096 | B97: Cooling System Replacement | C97: Equipment | D97: HVAC | E97: Custom | F97: New Construction | G97: C&I | H97: Electricity | I97: Electricity_C&I_New Construction_Custom_HVAC_Equipment_Cooling System Replacement
A98: MapID00097 | D98: Weatherization | E98: Custom | F98: Retrofit | G98: C&I | H98: Gas | I98: Gas_C&I_Retrofit_Custom_Weatherization__
A99: MapID00098 | C99: LED | D99: Lighting | E99: Custom | F99: Retrofit | G99: C&I | H99: Electricity | I99: Electricity_C&I_Retrofit_Custom_Lighting_LED_
A100: MapID00099 | B100: Linear LED | C100: LED | D100: Lighting | E100: Prescriptive | F100: Retrofit | G100: C&I | H100: Electricity | I100: Electricity_C&I_Retrofit_Prescriptive_Lighting_LED_Linear LED
A101: MapID00100 | B101: Troffer LED | C101: LED | D101: Lighting | E101: Prescriptive | F101: Retrofit | G101: C&I | H101: Electricity | I101: Electricity_C&I_Retrofit_Prescriptive_Lighting_LED_Troffer LED
A102: MapID00101 | B102: Strip LED | C102: LED | D102: Lighting | E102: Prescriptive | F102: Retrofit | G102: C&I | H102: Electricity | I102: Electricity_C&I_Retrofit_Prescriptive_Lighting_LED_Strip LED
A103: MapID00102 | B103: Parking LED | C103: LED | D103: Lighting | E103: Prescriptive | F103: Retrofit | G103: C&I | H103: Electricity | I103: Electricity_C&I_Retrofit_Prescriptive_Lighting_LED_Parking LED
A104: MapID00103 | B104: Roadway LED | C104: LED | D104: Lighting | E104: Prescriptive | F104: Retrofit | G104: C&I | H104: Electricity | I104: Electricity_C&I_Retrofit_Prescriptive_Lighting_LED_Roadway LED
A105: MapID00104 | B105: T8 Fluorescent | C105: Fluorescent | D105: Lighting | E105: Prescriptive | F105: Retrofit | G105: C&I | H105: Electricity | I105: Electricity_C&I_Retrofit_Prescriptive_Lighting_Fluorescent_T8 Fluorescent
A106: MapID00105 | B106: Basic LED Fixture | C106: LED | D106: Lighting | E106: Prescriptive | F106: Retrofit | G106: C&I | H106: Electricity | I106: Electricity_C&I_Retrofit_Prescriptive_Lighting_LED_Basic LED Fixture
A107: MapID00106 | B107: Downlight LED | C107: LED | D107: Lighting | E107: Prescriptive | F107: Retrofit | G107: C&I | H107: Electricity | I107: Electricity_C&I_Retrofit_Prescriptive_Lighting_LED_Downlight LED
A108: MapID00107 | B108: High Bay LED | C108: LED | D108: Lighting | E108: Prescriptive | F108: Retrofit | G108: C&I | H108: Electricity | I108: Electricity_C&I_Retrofit_Prescriptive_Lighting_LED_High Bay LED
A109: MapID00108 | B109: Garage LED | C109: LED | D109: Lighting | E109: Prescriptive | F109: Retrofit | G109: C&I | H109: Electricity | I109: Electricity_C&I_Retrofit_Prescriptive_Lighting_LED_Garage LED
A110: MapID00109 | B110: Metal Halide Fixture | C110: Metal Halide | D110: Lighting | E110: Prescriptive | F110: Retrofit | G110: C&I | H110: Electricity | I110: Electricity_C&I_Retrofit_Prescriptive_Lighting_Metal Halide_Metal Halide Fixture
A111: MapID00110 | B111: Fluorescent Fixture | C111: Fluorescent | D111: Lighting | E111: Prescriptive | F111: Retrofit | G111: C&I | H111: Electricity | I111: Electricity_C&I_Retrofit_Prescriptive_Lighting_Fluorescent_Fluorescent Fixture
A112: MapID00111 | B112: Exit Sign | C112: LED | D112: Lighting | E112: Prescriptive | F112: Retrofit | G112: C&I | H112: Electricity | I112: Electricity_C&I_Retrofit_Prescriptive_Lighting_LED_Exit Sign
A113: MapID00112 | B113: Track LED | C113: LED | D113: Lighting | E113: Prescriptive | F113: Retrofit | G113: C&I | H113: Electricity | I113: Electricity_C&I_Retrofit_Prescriptive_Lighting_LED_Track LED
A114: MapID00113 | B114: Occupancy Sensor | C114: Controls | D114: Lighting | E114: Custom | F114: Retrofit | G114: C&I | H114: Electricity | I114: Electricity_C&I_Retrofit_Custom_Lighting_Controls_Occupancy Sensor
A115: MapID00114 | C115: Non-LED | D115: Lighting | E115: Custom | F115: Retrofit | G115: C&I | H115: Electricity | I115: Electricity_C&I_Retrofit_Custom_Lighting_Non-LED_
A116: MapID00115 | B116: Airport LED | C116: LED | D116: Lighting | E116: Custom | F116: Retrofit | G116: C&I | H116: Electricity | I116: Electricity_C&I_Retrofit_Custom_Lighting_LED_Airport LED
A117: MapID00116 | C117: Controls | D117: Compressed Air | E117: Custom | F117: New Construction | G117: C&I | H117: Electricity | I117: Electricity_C&I_New Construction_Custom_Compressed Air_Controls_
A118: MapID00117 | B118: VSD Air Compressor | C118: Equipment | D118: Compressed Air | E118: Prescriptive | F118: New Construction | G118: C&I | H118: Electricity | I118: Electricity_C&I_New Construction_Prescriptive_Compressed Air_Equipment_VSD Air Compressor
A119: MapID00118 | B119: Zero Loss Condensate Drain | C119: System | D119: Compressed Air | E119: Prescriptive | F119: New Construction | G119: C&I | H119: Electricity | I119: Electricity_C&I_New Construction_Prescriptive_Compressed Air_System_Zero Loss Condensate Drain
A120: MapID00119 | B120: Chiller | C120: Equipment | D120: HVAC | E120: Custom | F120: New Construction | G120: C&I | H120: Electricity | I120: Electricity_C&I_New Construction_Custom_HVAC_Equipment_Chiller
A121: MapID00120 | B121: Variable Volume Air Handler | C121: Equipment | D121: HVAC | E121: Custom | F121: New Construction | G121: C&I | H121: Electricity | I121: Electricity_C&I_New Construction_Custom_HVAC_Equipment_Variable Volume Air Handler
A122: MapID00121 | B122: Variable Refrigerant Flow (VRF) | C122: Equipment | D122: HVAC | E122: Custom | F122: New Construction | G122: C&I | H122: Electricity | I122: Electricity_C&I_New Construction_Custom_HVAC_Equipment_Variable Refrigerant Flow (VRF)
A123: MapID00122 | B123: Water Cooled Centrifugal Chiller | C123: Equipment | D123: HVAC | E123: Custom | F123: New Construction | G123: C&I | H123: Electricity | I123: Electricity_C&I_New Construction_Custom_HVAC_Equipment_Water Cooled Centrifugal Chiller
A124: MapID00123 | B124: Rooftop Air Conditioner | C124: Equipment | D124: HVAC | E124: Custom | F124: New Construction | G124: C&I | H124: Electricity | I124: Electricity_C&I_New Construction_Custom_HVAC_Equipment_Rooftop Air Conditioner
A125: MapID00124 | B125: Centrifugal Chiller | C125: Equipment | D125: HVAC | E125: Custom | F125: New Construction | G125: C&I | H125: Electricity | I125: Electricity_C&I_New Construction_Custom_HVAC_Equipment_Centrifugal Chiller
A126: MapID00125 | B126: DX Packaged Air Conditioner | C126: Equipment | D126: HVAC | E126: Custom | F126: New Construction | G126: C&I | H126: Electricity | I126: Electricity_C&I_New Construction_Custom_HVAC_Equipment_DX Packaged Air Conditioner
A127: MapID00126 | B127: Variable Refrigerant Air Conditioner | C127: Equipment | D127: HVAC | E127: Custom | F127: New Construction | G127: C&I | H127: Electricity | I127: Electricity_C&I_New Construction_Custom_HVAC_Equipment_Variable Refrigerant Air Conditioner
A128: MapID00127 | B128: Heat Pump | C128: Equipment | D128: HVAC | E128: Custom | F128: New Construction | G128: C&I | H128: Electricity | I128: Electricity_C&I_New Construction_Custom_HVAC_Equipment_Heat Pump
A129: MapID00128 | B129: Variable Volume Air Conditioner | C129: Equipment | D129: HVAC | E129: Custom | F129: New Construction | G129: C&I | H129: Electricity | I129: Electricity_C&I_New Construction_Custom_HVAC_Equipment_Variable Volume Air Conditioner
I130: ______
A131: MapID00130 | C131: LED | D131: Lighting | E131: Custom | F131: New Construction | G131: C&I | H131: Electricity | I131: =CONCATENATE(H131,"_",G131,"_",F131,"_",E131,"_",D131,"_",C131,"_",B131) -> Electricity_C&I_New Construction_Custom_Lighting_LED_
A132: MapID00131 | D132: Lighting | E132: Prescriptive | F132: New Construction | G132: C&I | H132: Electricity | I132: Electricity_C&I_New Construction_Prescriptive_Lighting__
A133: MapID00132 | B133: T5 Fluorescent | C133: Fluorescent | D133: Lighting | E133: Prescriptive | F133: New Construction | G133: C&I | H133: Electricity | I133: Electricity_C&I_New Construction_Prescriptive_Lighting_Fluorescent_T5 Fluorescent
A134: MapID00133 | B134: Basic LED Fixture | C134: LED | D134: Lighting | E134: Prescriptive | F134: New Construction | G134: C&I | H134: Electricity | I134: Electricity_C&I_New Construction_Prescriptive_Lighting_LED_Basic LED Fixture
A135: MapID00134 | B135: High Bay LED | C135: LED | D135: Lighting | E135: Prescriptive | F135: New Construction | G135: C&I | H135: Electricity | I135: Electricity_C&I_New Construction_Prescriptive_Lighting_LED_High Bay LED
A136: MapID00135 | D136: Refrigeration | E136: Custom | F136: New Construction | G136: C&I | H136: Electricity | I136: Electricity_C&I_New Construction_Custom_Refrigeration__
A137: MapID00136 | B137: ECM Refrigerated Case Door | C137: Door | D137: Refrigeration | E137: Custom | F137: New Construction | G137: C&I | H137: Electricity | I137: Electricity_C&I_New Construction_Custom_Refrigeration_Door_ECM Refrigerated Case Door
A138: MapID00137 | B138: Low Energy Door | C138: Door | D138: Refrigeration | E138: Custom | F138: New Construction | G138: C&I | H138: Electricity | I138: Electricity_C&I_New Construction_Custom_Refrigeration_Door_Low Energy Door
A139: MapID00138 | B139: Anti-Sweat Heat Contoller (ASH) | C139: Door | D139: Refrigeration | E139: Custom | F139: New Construction | G139: C&I | H139: Electricity | I139: Electricity_C&I_New Construction_Custom_Refrigeration_Door_Anti-Sweat Heat Contoller (ASH)
A140: MapID00139 | B140: Industrial Ammonia Refrigeration System | C140: Industrial | D140: Refrigeration | E140: Custom | F140: New Construction | G140: C&I | H140: Electricity | I140: Electricity_C&I_New Construction_Custom_Refrigeration_Industrial_Industrial Ammonia Refrigeration System
A141: MapID00140 | B141: VSD Air Compressor | C141: Equipment | D141: Compressed Air | E141: Prescriptive | F141: Retrofit | G141: C&I | H141: Electricity | I141: Electricity_C&I_Retrofit_Prescriptive_Compressed Air_Equipment_VSD Air Compressor
A142: MapID00141 | B142: VSD Air Compressor | C142: Equipment | D142: Compressed Air | E142: Custom | F142: Retrofit | G142: C&I | H142: Electricity | I142: Electricity_C&I_Retrofit_Custom_Compressed Air_Equipment_VSD Air Compressor
A143: MapID00142 | B143: Heating System Replacement | C143: Equipment | D143: HVAC | E143: Custom | F143: Retrofit | G143: C&I | H143: Electricity | I143: Electricity_C&I_Retrofit_Custom_HVAC_Equipment_Heating System Replacement
A144: MapID00143 | I144: ______
A145: MapID00144 | B145: Multi-zone control system | C145: Controls | D145: HVAC | E145: Prescriptive | F145: Retrofit | G145: C&I | H145: Both | I145: Both_C&I_Retrofit_Prescriptive_HVAC_Controls_Multi-zone control system
A146: MapID00145 | B146: Rooftop Air Conditioner | C146: Equipment | D146: HVAC | E146: Prescriptive | F146: Retrofit | G146: C&I | H146: Electricity | I146: Electricity_C&I_Retrofit_Prescriptive_HVAC_Equipment_Rooftop Air Conditioner
A147: MapID00146 | B147: DX Packaged Air Conditioner | C147: Equipment | D147: HVAC | E147: Prescriptive | F147: Retrofit | G147: C&I | H147: Electricity | I147: Electricity_C&I_Retrofit_Prescriptive_HVAC_Equipment_DX Packaged Air Conditioner
A148: MapID00147 | B148: Water Cooled Centrifugal Chiller | C148: Equipment | D148: HVAC | E148: Prescriptive | F148: Retrofit | G148: C&I | H148: Electricity | I148: Electricity_C&I_Retrofit_Prescriptive_HVAC_Equipment_Water Cooled Centrifugal Chiller
A149: MapID00148 | B149: Water Cooled Reciprocating Chiller | C149: Equipment | D149: HVAC | E149: Prescriptive | F149: Retrofit | G149: C&I | H149: Electricity | I149: Electricity_C&I_Retrofit_Prescriptive_HVAC_Equipment_Water Cooled Reciprocating Chiller
I150: ______
A151: MapID00150 | B151: Air Cooled Reciprocating Chiller | C151: Equipment | D151: HVAC | E151: Prescriptive | F151: Retrofit | G151: C&I | H151: Electricity | I151: Electricity_C&I_Retrofit_Prescriptive_HVAC_Equipment_Air Cooled Reciprocating Chiller
A152: MapID00151 | B152: Heat Pump | C152: Equipment | D152: HVAC | E152: Prescriptive | F152: Retrofit | G152: C&I | H152: Electricity | I152: Electricity_C&I_Retrofit_Prescriptive_HVAC_Equipment_Heat Pump
I153: ______
I154: ______
I155: ______
I156: ______
A157: MapID00156 | B157: Variable Volume Air Conditioner | C157: Equipment | D157: HVAC | E157: Prescriptive | F157: Retrofit | G157: C&I | H157: Electricity | I157: Electricity_C&I_Retrofit_Prescriptive_HVAC_Equipment_Variable Volume Air Conditioner
I158: ______
A159: MapID00158 | B159: Variable Refrigerant Air Conditioner | C159: Equipment | D159: HVAC | E159: Prescriptive | F159: Retrofit | G159: C&I | H159: Electricity | I159: Electricity_C&I_Retrofit_Prescriptive_HVAC_Equipment_Variable Refrigerant Air Conditioner
I160: ______
I161: ______
A162: MapID00161 | D162: Lighting | E162: Prescriptive | F162: Retrofit | G162: C&I | H162: Electricity | I162: Electricity_C&I_Retrofit_Prescriptive_Lighting__
A163: MapID00162 | B163: Premium Efficiency Motor Installation | C163: Motors/Drives | D163: Process | E163: Prescriptive | F163: Retrofit | G163: C&I | H163: Electricity | I163: Electricity_C&I_Retrofit_Prescriptive_Process_Motors/Drives_Premium Efficiency Motor Installation
A164: MapID00163 | B164: Premium Efficiency Motor Installation | C164: Motors/Drives | D164: Process | E164: Custom | F164: Retrofit | G164: C&I | H164: Electricity | I164: Electricity_C&I_Retrofit_Custom_Process_Motors/Drives_Premium Efficiency Motor Installation
A165: MapID00164 | B165: Variable Frequency Drive (VFD) | C165: Motors/Drives | D165: Process | E165: Prescriptive | F165: Retrofit | G165: C&I | H165: Electricity | I165: Electricity_C&I_Retrofit_Prescriptive_Process_Motors/Drives_Variable Frequency Drive (VFD)
A166: MapID00165 | B166: Air Dryer | C166: System | D166: Compressed Air | E166: Custom | F166: Retrofit | G166: C&I | H166: Electricity | I166: Electricity_C&I_Retrofit_Custom_Compressed Air_System_Air Dryer
A167: MapID00166 | B167: Low Pressure Drop Filter | C167: System | D167: Compressed Air | E167: Custom | F167: Retrofit | G167: C&I | H167: Electricity | I167: Electricity_C&I_Retrofit_Custom_Compressed Air_System_Low Pressure Drop Filter
A168: MapID00167 | D168: Refrigeration | E168: Custom | F168: Retrofit | G168: C&I | H168: Electricity | I168: Electricity_C&I_Retrofit_Custom_Refrigeration__
A169: MapID00168 | B169: Glass Door Refrigerator | C169: Case | D169: Refrigeration | E169: Prescriptive | F169: Retrofit | G169: C&I | H169: Electricity | I169: Electricity_C&I_Retrofit_Prescriptive_Refrigeration_Case_Glass Door Refrigerator
A170: MapID00169 | B170: Solid Door Refrigerator | C170: Case | D170: Refrigeration | E170: Prescriptive | F170: Retrofit | G170: C&I | H170: Electricity | I170: Electricity_C&I_Retrofit_Prescriptive_Refrigeration_Case_Solid Door Refrigerator
A171: MapID00170 | B171: Medium Temp Open Case | C171: Case | D171: Refrigeration | E171: Prescriptive | F171: Retrofit | G171: C&I | H171: Electricity | I171: Electricity_C&I_Retrofit_Prescriptive_Refrigeration_Case_Medium Temp Open Case
A172: MapID00171 | B172: Low Temp Open Case | C172: Case | D172: Refrigeration | E172: Prescriptive | F172: Retrofit | G172: C&I | H172: Electricity | I172: Electricity_C&I_Retrofit_Prescriptive_Refrigeration_Case_Low Temp Open Case
A173: MapID00172 | B173: CHP | C173: Generation | D173: Other | E173: Custom | F173: Retrofit | G173: C&I | H173: Electricity | I173: Electricity_C&I_Retrofit_Custom_Other_Generation_CHP
A174: MapID00173 | B174: Appliances | C174: Case | D174: Refrigeration | E174: Custom | F174: Retrofit | G174: C&I | H174: Electricity | I174: Electricity_C&I_Retrofit_Custom_Refrigeration_Case_Appliances
A175: MapID00174 | B175: Water Heater | C175: Equipment | D175: Hot Water | E175: Custom | F175: Retrofit | G175: C&I | H175: Gas | I175: Gas_C&I_Retrofit_Custom_Hot Water_Equipment_Water Heater
A176: MapID00175 | B176: Energy Management Systems (EMS) | C176: Controls | D176: HVAC | E176: Custom | F176: Retrofit | G176: C&I | H176: Both | I176: Both_C&I_Retrofit_Custom_HVAC_Controls_Energy Management Systems (EMS)
A177: MapID00176 | B177: Renewable Energy Generation Technology | C177: Generation | D177: Other | E177: Custom | F177: Retrofit | G177: C&I | H177: Electricity | I177: Electricity_C&I_Retrofit_Custom_Other_Generation_Renewable Energy Generation Technology
A178: MapID00177 | B178: Daylighting | C178: Controls | D178: Lighting | E178: Custom | F178: Retrofit | G178: C&I | H178: Electricity | I178: Electricity_C&I_Retrofit_Custom_Lighting_Controls_Daylighting
A179: MapID00178 | I179: ______
A180: MapID00179 | B180: Direct Install Water Measures | C180: System | D180: Hot Water | E180: Prescriptive | F180: Low Income | G180: Residential | H180: Both | I180: Both_Residential_Low Income_Prescriptive_Hot Water_System_Direct Install Water Measures
A181: MapID00180 | I181: ______
A182: MapID00181 | I182: ______
A183: MapID00182 | B183: Leak Repair | C183: System | D183: Compressed Air | E183: Prescriptive | F183: Retrofit | G183: C&I | H183: Electricity | I183: Electricity_C&I_Retrofit_Prescriptive_Compressed Air_System_Leak Repair
A184: MapID00183 | B184: Economizer Repair | C184: Maintenance | D184: HVAC | E184: Prescriptive | F184: Retrofit | G184: C&I | H184: Electricity | I184: Electricity_C&I_Retrofit_Prescriptive_HVAC_Maintenance_Economizer Repair
A185: MapID00184 | B185: Steam Trap Repair | C185: Maintenance | D185: HVAC | E185: Prescriptive | F185: Retrofit | G185: C&I | H185: Gas | I185: Gas_C&I_Retrofit_Prescriptive_HVAC_Maintenance_Steam Trap Repair
A186: MapID00185 | I186: ______
A187: MapID00186 | B187: Commercial Washer | C187: Appliance | D187: Other | E187: Prescriptive | F187: New Construction | G187: C&I | H187: Both | I187: Both_C&I_New Construction_Prescriptive_Other_Appliance_Commercial Washer
A188: MapID00187 | E188: Custom | F188: Low Income | G188: Residential | H188: Gas | I188: Gas_Residential_Low Income_Custom___
A189: MapID00188 | D189: Weatherization | E189: Custom | F189: New Construction | G189: C&I | H189: Both | I189: Both_C&I_New Construction_Custom_Weatherization__
A190: MapID00189 | B190: Condensing Boiler | C190: Equipment | D190: Hot Water | E190: Custom | F190: Retrofit (Non-Low Income) | G190: Residential | H190: Gas | I190: Gas_Residential_Retrofit (Non-Low Income)_Custom_Hot Water_Equipment_Condensing Boiler
A191: MapID00190 | B191: Condensing Boiler | C191: Equipment | D191: HVAC | E191: Custom | F191: New Construction | G191: C&I | H191: Gas | I191: Gas_C&I_New Construction_Custom_HVAC_Equipment_Condensing Boiler
A192: MapID00191 | B192: Combination Boiler | C192: Equipment | D192: HVAC | E192: Custom | F192: New Construction | G192: C&I | H192: Gas | I192: Gas_C&I_New Construction_Custom_HVAC_Equipment_Combination Boiler
A193: MapID00192 | B193: Combination Boiler | C193: Equipment | D193: HVAC | E193: Custom | F193: Retrofit | G193: C&I | H193: Gas | I193: Gas_C&I_Retrofit_Custom_HVAC_Equipment_Combination Boiler
A194: MapID00193 | B194: Water Heater Replacement | C194: Equipment | D194: Hot Water | E194: Custom | F194: New Construction | G194: C&I | H194: Both | I194: Both_C&I_New Construction_Custom_Hot Water_Equipment_Water Heater Replacement
A195: MapID00194 | B195: Furnace | C195: Equipment | D195: HVAC | E195: Custom | F195: New Construction | G195: C&I | H195: Gas | I195: =CONCATENATE(H195,"_",G195,"_",F195,"_",E195,"_",D195,"_",C195,"_",B195) -> Gas_C&I_New Construction_Custom_HVAC_Equipment_Furnace
A196: MapID00195 | B196: Infrared Heater | C196: Equipment | D196: HVAC | E196: Custom | F196: New Construction | G196: C&I | H196: Gas | I196: Gas_C&I_New Construction_Custom_HVAC_Equipment_Infrared Heater
A197: MapID00196 | B197: Geothermal Heat Pump | C197: Equipment | D197: HVAC | E197: Custom | F197: New Construction | G197: C&I | H197: Electricity | I197: Electricity_C&I_New Construction_Custom_HVAC_Equipment_Geothermal Heat Pump
A198: MapID00197 | B198: Chilled Beam | C198: Equipment | D198: HVAC | E198: Custom | F198: New Construction | G198: C&I | H198: Electricity | I198: Electricity_C&I_New Construction_Custom_HVAC_Equipment_Chilled Beam
A199: MapID00198 | B199: HVAC System Controls | C199: Controls | D199: HVAC | E199: Custom | F199: New Construction | G199: C&I | H199: Both | I199: Both_C&I_New Construction_Custom_HVAC_Controls_HVAC System Controls
A200: MapID00199 | C200: Comprehensive Design | D200: Education | E200: Custom | F200: New Construction | G200: C&I | H200: Both | I200: Both_C&I_New Construction_Custom_Education_Comprehensive Design_
... 342 more rows

Sheet Standard NEIs (SNEI) (hidden)
A1: Standard NEI Category | B1: Economic Benchmark | C1: Perspective | D1: Sector
A2: Ability to control bills - Participant - Residential | B2: Property Value Index | C2: Participant | D2: Residential
A3: Administrative costs - Participant - C&I | B3: Wage Index | C3: Participant | D3: C&I
A4: Aesthetics - Participant - Residential | B4: Property Value Index | C4: Participant | D4: Residential
A5: Avoided illness from pollution - Participant - Residential | B5: Health (Cost Based) Index | C5: Participant | D5: Residential
A6: Avoided pollution - Societal - C&I | B6: Income & Health (Income Based) Index | C6: Societal | D6: C&I
A7: Avoided pollution - Societal - Residential | B7: Income & Health (Income Based) Index | C7: Societal | D7: Residential
A8: Bad Debt Write-offs - Utility - Residential | B8: Utility - Residential Index | C8: Utility | D8: Residential
A9: Calls to utility - Utility - C&I | B9: Utility - C&I Index | C9: Utility | D9: C&I
A10: Calls to utility - Utility - Residential | B10: Utility - Residential Index | C10: Utility | D10: Residential
A11: Carrying cost on arrearages - Utility - Residential | B11: Utility - Residential Index | C11: Utility | D11: Residential
A12: Ease of Selling or Leasing - Participant - C&I | B12: Property Value Index | C12: Participant | D12: C&I
A13: Ease of Selling or Leasing - Participant - Residential | B13: Property Value Index | C13: Participant | D13: Residential
A14: Economic development - Societal - C&I | B14: Wage Index | C14: Societal | D14: C&I
A15: Economic development - Societal - Residential | B15: Income & Health (Income Based) Index | C15: Societal | D15: Residential
A16: Employment - Participant - Residential | B16: Income & Health (Income Based) Index | C16: Participant | D16: Residential
A17: Fewer moves - Participant - Residential | B17: Income & Health (Income Based) Index | C17: Participant | D17: Residential
A18: Fires/insurance damage - Participant - C&I | B18: Property Value Index | C18: Participant | D18: C&I
A19: Fires/insurance damage - Participant - Residential | B19: Age of Home Index | C19: Participant | D19: Residential
A20: Health and safety - Participant - Residential | B20: Health (Cost Based) Index | C20: Participant | D20: Residential
A21: Indoor Air Quality - Participant - C&I | B21: Revenue & Productivity Index | C21: Participant | D21: C&I
A22: Indoor Air Quality - Participant - Residential | B22: Property Value Index | C22: Participant | D22: Residential
A23: Lighting Quality and Lifetime - Participant - C&I | B23: Property Value Index | C23: Participant | D23: C&I
A24: Lighting Quality and Lifetime - Participant - Residential | B24: Property Value Index | C24: Participant | D24: Residential
A25: National Security - Societal - Residential | B25: Property Value Index | C25: Societal | D25: Residential
A26: Noise - Participant - C&I | B26: Revenue & Productivity Index | C26: Participant | D26: C&I
A27: Noise - Participant - Residential | B27: Property Value Index | C27: Participant | D27: Residential
A28: Notices - Utility - Residential | B28: Utility - Residential Index | C28: Utility | D28: Residential
A29: O&M - Participant - C&I | B29: Wage Index | C29: Participant | D29: C&I
A30: O&M - Participant - Residential | B30: Wage Index | C30: Participant | D30: Residential
A31: Other - Participant - Residential | B31: Health (Cost Based) Index | C31: Participant | D31: Residential
A32: Other - Societal - Residential | B32: Age of Home Index | C32: Societal | D32: Residential
A33: Other Impacts - Participant - C&I | B33: Wage Index | C33: Participant | D33: C&I
A34: Other Impacts - Utility - C&I | B34: Utility - C&I Index | C34: Utility | D34: C&I
A35: Other Impacts - Utility - Residential | B35: Utility - Residential Index | C35: Participant | D35: Residential
A36: Product Spoilage/Defects - Participant - C&I | B36: Revenue & Productivity Index | C36: Participant | D36: C&I
A37: Productivity - Participant - C&I | B37: Revenue & Productivity Index | C37: Participant | D37: C&I
A38: Productivity - Participant - Residential | B38: Income & Health (Income Based) Index | C38: Participant | D38: Residential
A39: Property Value - Participant - C&I | B39: Property Value Index | C39: Participant | D39: C&I
A40: Property Value - Participant - Residential | B40: Property Value Index | C40: Participant | D40: Residential
A41: Rent Revenue - Participant - Residential | B41: Property Value Index | C41: Participant | D41: Residential
A42: Sales Revenue - Participant - C&I | B42: Revenue & Productivity Index | C42: Participant | D42: C&I
A43: Shutoffs/Reconnects - Utility - Residential | B43: Utility - Residential Index | C43: Utility | D43: Residential
A44: Supplies and materials - Participant - C&I | B44: Wage Index | C44: Participant | D44: C&I
A45: Thermal Comfort - Participant - C&I | B45: Revenue & Productivity Index | C45: Participant | D45: C&I
A46: Thermal Comfort - Participant - Residential | B46: Property Value Index | C46: Participant | D46: Residential
A47: Transmission and distribution savings - Utility - Residential | B47: Utility - Residential Index | C47: Utility | D47: Residential
A48: Waste disposal - Participant - C&I | B48: Revenue & Productivity Index | C48: Participant | D48: C&I
A49: Waste disposal - Societal - C&I | B49: Revenue & Productivity Index | C49: Societal | D49: C&I
A50: Waste disposal - Societal - Residential | B50: Health (Cost Based) Index | C50: Societal | D50: Residential
A51: Water/Wastewater - Participant - C&I | B51: Revenue & Productivity Index | C51: Participant | D51: C&I
A52: Water/Wastewater - Participant - Residential | B52: Property Value Index | C52: Participant | D52: Residential
A53: Aesthetics - Participant - C&I | B53: Property Value Index | C53: Participant | D53: C&I

Sheet Jurisdictional Scan (hidden)
A1: Matching Concatenations | R1: JS Measure Names (hardcoded) | X1: Standard Measure Names (look-up formulas) | AE1: =IF(R3="","",INDEX('Standard Measure Names (MapID)'!$B$2:$G$1011,MATCH($P3,'Standard Measure Names (MapID)'!$A$2:$A$1011,FALSE),1)) -> 
A2: Level6_UniqueID | B2: 6 | C2: Level5_UniqueID | D2: 5 | E2: Level4_UniqueID | F2: 4 | G2: Level3_UniqueID | H2: 3 | I2: Level2_UniqueID | J2: 2 | K2: Study Name | L2: State | M2: Year | N2: StudyID | O2: Dummy_ID | P2: MapID | Q2: Fuel (Level 0) | R2: Detailed Measure Level (Level 6) | S2: Broad Measure Level (Level 5) | T2: End-Use Level (Level 4) | U2: Prescriptive/Custom (Level 3) | V2: Program Level (Level 2) | W2: Sector (Level 1) | X2: Detailed Measure Level (Level 6) | Y2: Broad Measure Level (Level 5) | Z2: End-Use Level (Level 4) | AA2: Prescriptive/Custom (Level 3) | AB2: Program Level (Level 2) | AC2: Sector (Level 1) | AD2: Fuel (Level 0) | AE2: Standard NEIs | AF2: Unadjusted NEI value | AG2: Unit | AH2: Inflation adjusted NEI value | AI2: Unit | AJ2: Confidence_Factor | AK2: QC
A3: =CONCATENATE(AD3,AC3,AB3,AA3,Z3,Y3,X3,AE3) -> BothC&IRetrofitCustom0O&M - Participant - C&I | B3: 6 | C3: =CONCATENATE(AD3,AC3,AB3,AA3,Z3,Y3,AE3) -> BothC&IRetrofitCustom0O&M - Participant - C&I | D3: 5 | E3: =CONCATENATE(AD3,AC3,AB3,AA3,Z3,AE3) -> BothC&IRetrofitCustom0O&M - Participant - C&I | F3: 4 | G3: =CONCATENATE(AD3,AC3,AB3,AA3,AE3) -> BothC&IRetrofitCustomO&M - Participant - C&I | H3: 3 | I3: =CONCATENATE(AD3,AC3,AB3,AE3) -> BothC&IRetrofitO&M - Participant - C&I | J3: 2 | K3: =VLOOKUP($N3,Confidence_Factor_lookup!$A$2:$F$49,2,FALSE) -> AEP Ohio Non-Energy Impact - Final Report | L3: =VLOOKUP($N3,Confidence_Factor_lookup!$A$2:$F$49,5,FALSE) -> OH | M3: =VLOOKUP($N3,Confidence_Factor_lookup!$A$2:$F$49,4,FALSE) -> 2018 | N3: Study0001 | O3: AEP10000 | P3: MapID00322 | Q3: Electricity | T3: Custom | U3: Custom | V3: Retrofit | W3: C&I | X3: =IF(R3="","",INDEX('Standard Measure Names (MapID)'!$B$2:$H$1011,MATCH($P3,'Standard Measure Names (MapID)'!$A$2:$A$1011,FALSE),1)) ->  | Y3: =IF(S3="","",INDEX('Standard Measure Names (MapID)'!$B$2:$H$1011,MATCH($P3,'Standard Measure Names (MapID)'!$A$2:$A$1011,FALSE),2)) ->  | Z3: =IF(T3="","",INDEX('Standard Measure Names (MapID)'!$B$2:$H$1011,MATCH($P3,'Standard Measure Names (MapID)'!$A$2:$A$1011,FALSE),3)) -> 0 | AA3: =IF(U3="","",INDEX('Standard Measure Names (MapID)'!$B$2:$H$1011,MATCH($P3,'Standard Measure Names (MapID)'!$A$2:$A$1011,FALSE),4)) -> Custom | AB3: =IF(V3="","",INDEX('Standard Measure Names (MapID)'!$B$2:$H$1011,MATCH($P3,'Standard Measure Names (MapID)'!$A$2:$A$1011,FALSE),5)) -> Retrofit | AC3: =IF(W3="","",INDEX('Standard Measure Names (MapID)'!$B$2:$H$1011,MATCH($P3,'Standard Measure Names (MapID)'!$A$2:$A$1011,FALSE),6)) -> C&I | AD3: =IF(Q3="","",INDEX('Standard Measure Names (MapID)'!$B$2:$H$1011,MATCH($P3,'Standard Measure Names (MapID)'!$A$2:$A$1011,FALSE),7)) -> Both | AE3: O&M - Participant - C&I | AF3: 0.0083 | AG3: $/kWh/yr | AH3: =IFERROR(CPI_Index!$B$30/VLOOKUP(M3,CPI_Index!$A$2:$B$50,2,FALSE),"No Match")*AF3 -> 0.0083 | AI3: =AG3 -> $/kWh/yr | AJ3: =IFERROR(VLOOKUP(N3,Confidence_Factor_lookup!$A$4:$Z$99,21,FALSE),0) -> 0.9444444444 | AK3: =COUNTBLANK(R3:W3)=COUNTBLANK(X3:AC3) -> TRUE
A4: ElectricityC&IRetrofitPrescriptiveHVACO&M - Participant - C&I | B4: 6 | C4: ElectricityC&IRetrofitPrescriptiveHVACO&M - Participant - C&I | D4: 5 | E4: ElectricityC&IRetrofitPrescriptiveHVACO&M - Participant - C&I | F4: 4 | G4: ElectricityC&IRetrofitPrescriptiveO&M - Participant - C&I | H4: 3 | I4: ElectricityC&IRetrofitO&M - Participant - C&I | J4: 2 | K4: =VLOOKUP($N4,Confidence_Factor_lookup!$A$2:$F$49,2,FALSE) -> AEP Ohio Non-Energy Impact - Final Report | L4: =VLOOKUP($N4,Confidence_Factor_lookup!$A$2:$F$49,5,FALSE) -> OH | M4: =VLOOKUP($N4,Confidence_Factor_lookup!$A$2:$F$49,4,FALSE) -> 2018 | N4: Study0001 | O4: AEP10001 | P4: MapID00093 | Q4: Electricity | T4: HVAC | U4: Prescriptive | V4: Retrofit | W4: C&I | X4: =IF(R4="","",INDEX('Standard Measure Names (MapID)'!$B$2:$H$1011,MATCH($P4,'Standard Measure Names (MapID)'!$A$2:$A$1011,FALSE),1)) ->  | Y4: =IF(S4="","",INDEX('Standard Measure Names (MapID)'!$B$2:$H$1011,MATCH($P4,'Standard Measure Names (MapID)'!$A$2:$A$1011,FALSE),2)) ->  | Z4: =IF(T4="","",INDEX('Standard Measure Names (MapID)'!$B$2:$H$1011,MATCH($P4,'Standard Measure Names (MapID)'!$A$2:$A$1011,FALSE),3)) -> HVAC | AA4: =IF(U4="","",INDEX('Standard Measure Names (MapID)'!$B$2:$H$1011,MATCH($P4,'Standard Measure Names (MapID)'!$A$2:$A$1011,FALSE),4)) -> Prescriptive | AB4: =IF(V4="","",INDEX('Standard Measure Names (MapID)'!$B$2:$H$1011,MATCH($P4,'Standard Measure Names (MapID)'!$A$2:$A$1011,FALSE),5)) -> Retrofit | AC4: =IF(W4="","",INDEX('Standard Measure Names (MapID)'!$B$2:$H$1011,MATCH($P4,'Standard Measure Names (MapID)'!$A$2:$A$1011,FALSE),6)) -> C&I | AD4: =IF(Q4="","",INDEX('Standard Measure Names (MapID)'!$B$2:$H$1011,MATCH($P4,'Standard Measure Names (MapID)'!$A$2:$A$1011,FALSE),7)) -> Electricity | AE4: O&M - Participant - C&I | AF4: -0.0029 | AG4: $/kWh/yr | AH4: =IFERROR(CPI_Index!$B$30/VLOOKUP(M4,CPI_Index!$A$2:$B$50,2,FALSE),"No Match")*AF4 -> -0.0029 | AI4: $/kWh/yr | AJ4: =IFERROR(VLOOKUP(N4,Confidence_Factor_lookup!$A$4:$Z$99,21,FALSE),0) -> 0.9444444444 | AK4: TRUE
A5: ElectricityC&INew ConstructionPrescriptiveFood ServiceCommercial KitchenIce MakerO&M - Participant - C&I | B5: 6 | C5: ElectricityC&INew ConstructionPrescriptiveFood ServiceCommercial KitchenO&M - Participant - C&I | D5: 5 | E5: ElectricityC&INew ConstructionPrescriptiveFood ServiceO&M - Participant - C&I | F5: 4 | G5: ElectricityC&INew ConstructionPrescriptiveO&M - Participant - C&I | H5: 3 | I5: ElectricityC&INew ConstructionO&M - Participant - C&I | J5: 2 | K5: =VLOOKUP($N5,Confidence_Factor_lookup!$A$2:$F$49,2,FALSE) -> AEP Ohio Non-Energy Impact - Final Report | L5: =VLOOKUP($N5,Confidence_Factor_lookup!$A$2:$F$49,5,FALSE) -> OH | M5: =VLOOKUP($N5,Confidence_Factor_lookup!$A$2:$F$49,4,FALSE) -> 2018 | N5: Study0001 | O5: AEP10002 | P5: MapID00092 | Q5: Electricity | R5: Ice Maker | S5: Commercial Kitchen | T5: Food Service | U5: Prescriptive | V5: New Construction | W5: C&I | X5: =IF(R5="","",INDEX('Standard Measure Names (MapID)'!$B$2:$H$1011,MATCH($P5,'Standard Measure Names (MapID)'!$A$2:$A$1011,FALSE),1)) -> Ice Maker | Y5: =IF(S5="","",INDEX('Standard Measure Names (MapID)'!$B$2:$H$1011,MATCH($P5,'Standard Measure Names (MapID)'!$A$2:$A$1011,FALSE),2)) -> Commercial Kitchen | Z5: =IF(T5="","",INDEX('Standard Measure Names (MapID)'!$B$2:$H$1011,MATCH($P5,'Standard Measure Names (MapID)'!$A$2:$A$1011,FALSE),3)) -> Food Service | AA5: =IF(U5="","",INDEX('Standard Measure Names (MapID)'!$B$2:$H$1011,MATCH($P5,'Standard Measure Names (MapID)'!$A$2:$A$1011,FALSE),4)) -> Prescriptive | AB5: =IF(V5="","",INDEX('Standard Measure Names (MapID)'!$B$2:$H$1011,MATCH($P5,'Standard Measure Names (MapID)'!$A$2:$A$1011,FALSE),5)) -> New Construction | AC5: =IF(W5="","",INDEX('Standard Measure Names (MapID)'!$B$2:$H$1011,MATCH($P5,'Standard Measure Names (MapID)'!$A$2:$A$1011,FALSE),6)) -> C&I | AD5: =IF(Q5="","",INDEX('Standard Measure Names (MapID)'!$B$2:$H$1011,MATCH($P5,'Standard Measure Names (MapID)'!$A$2:$A$1011,FALSE),7)) -> Electricity | AE5: O&M - Participant - C&I | AF5: 0 | AG5: $/kWh/yr | AH5: =IFERROR(CPI_Index!$B$30/VLOOKUP(M5,CPI_Index!$A$2:$B$50,2,FALSE),"No Match")*AF5 -> 0 | AI5: $/kWh/yr | AJ5: =IFERROR(VLOOKUP(N5,Confidence_Factor_lookup!$A$4:$Z$99,21,FALSE),0) -> 0.9444444444 | AK5: TRUE
A6: ElectricityC&IRetrofitPrescriptiveLightingO&M - Participant - C&I | B6: 6 | C6: ElectricityC&IRetrofitPrescriptiveLightingO&M - Participant - C&I | D6: 5 | E6: ElectricityC&IRetrofitPrescriptiveLightingO&M - Participant - C&I | F6: 4 | G6: ElectricityC&IRetrofitPrescriptiveO&M - Participant - C&I | H6: 3 | I6: ElectricityC&IRetrofitO&M - Participant - C&I | J6: 2 | K6: =VLOOKUP($N6,Confidence_Factor_lookup!$A$2:$F$49,2,FALSE) -> AEP Ohio Non-Energy Impact - Final Report | L6: =VLOOKUP($N6,Confidence_Factor_lookup!$A$2:$F$49,5,FALSE) -> OH | M6: =VLOOKUP($N6,Confidence_Factor_lookup!$A$2:$F$49,4,FALSE) -> 2018 | N6: Study0001 | O6: AEP10003 | P6: MapID00161 | Q6: Electricity | T6: Lighting | U6: Prescriptive | V6: Retrofit | W6: C&I | X6: =IF(R6="","",INDEX('Standard Measure Names (MapID)'!$B$2:$H$1011,MATCH($P6,'Standard Measure Names (MapID)'!$A$2:$A$1011,FALSE),1)) ->  | Y6: =IF(S6="","",INDEX('Standard Measure Names (MapID)'!$B$2:$H$1011,MATCH($P6,'Standard Measure Names (MapID)'!$A$2:$A$1011,FALSE),2)) ->  | Z6: =IF(T6="","",INDEX('Standard Measure Names (MapID)'!$B$2:$H$1011,MATCH($P6,'Standard Measure Names (MapID)'!$A$2:$A$1011,FALSE),3)) -> Lighting | AA6: =IF(U6="","",INDEX('Standard Measure Names (MapID)'!$B$2:$H$1011,MATCH($P6,'Standard Measure Names (MapID)'!$A$2:$A$1011,FALSE),4)) -> Prescriptive | AB6: =IF(V6="","",INDEX('Standard Measure Names (MapID)'!$B$2:$H$1011,MATCH($P6,'Standard Measure Names (MapID)'!$A$2:$A$1011,FALSE),5)) -> Retrofit | AC6: =IF(W6="","",INDEX('Standard Measure Names (MapID)'!$B$2:$H$1011,MATCH($P6,'Standard Measure Names (MapID)'!$A$2:$A$1011,FALSE),6)) -> C&I | AD6: =IF(Q6="","",INDEX('Standard Measure Names (MapID)'!$B$2:$H$1011,MATCH($P6,'Standard Measure Names (MapID)'!$A$2:$A$1011,FALSE),7)) -> Electricity | AE6: O&M - Participant - C&I | AF6: 0.0219 | AG6: $/kWh/yr | AH6: =IFERROR(CPI_Index!$B$30/VLOOKUP(M6,CPI_Index!$A$2:$B$50,2,FALSE),"No Match")*AF6 -> 0.0219 | AI6: $/kWh/yr | AJ6: =IFERROR(VLOOKUP(N6,Confidence_Factor_lookup!$A$4:$Z$99,21,FALSE),0) -> 0.9444444444 | AK6: TRUE
A7: ElectricityC&IRetrofitPrescriptiveProcessMotors/DrivesPremium Efficiency Motor InstallationO&M - Participant - C&I | B7: 6 | C7: ElectricityC&IRetrofitPrescriptiveProcessMotors/DrivesO&M - Participant - C&I | D7: 5 | E7: ElectricityC&IRetrofitPrescriptiveProcessO&M - Participant - C&I | F7: 4 | G7: ElectricityC&IRetrofitPrescriptiveO&M - Participant - C&I | H7: 3 | I7: ElectricityC&IRetrofitO&M - Participant - C&I | J7: 2 | K7: =VLOOKUP($N7,Confidence_Factor_lookup!$A$2:$F$49,2,FALSE) -> AEP Ohio Non-Energy Impact - Final Report | L7: =VLOOKUP($N7,Confidence_Factor_lookup!$A$2:$F$49,5,FALSE) -> OH | M7: =VLOOKUP($N7,Confidence_Factor_lookup!$A$2:$F$49,4,FALSE) -> 2018 | N7: Study0001 | O7: AEP10004 | P7: MapID00162 | Q7: Electricity | R7: Motor | S7: Motor/drive | T7: Process | U7: Prescriptive | V7: Retrofit | W7: C&I | X7: =IF(R7="","",INDEX('Standard Measure Names (MapID)'!$B$2:$H$1011,MATCH($P7,'Standard Measure Names (MapID)'!$A$2:$A$1011,FALSE),1)) -> Premium Efficiency Motor Installation | Y7: =IF(S7="","",INDEX('Standard Measure Names (MapID)'!$B$2:$H$1011,MATCH($P7,'Standard Measure Names (MapID)'!$A$2:$A$1011,FALSE),2)) -> Motors/Drives | Z7: =IF(T7="","",INDEX('Standard Measure Names (MapID)'!$B$2:$H$1011,MATCH($P7,'Standard Measure Names (MapID)'!$A$2:$A$1011,FALSE),3)) -> Process | AA7: =IF(U7="","",INDEX('Standard Measure Names (MapID)'!$B$2:$H$1011,MATCH($P7,'Standard Measure Names (MapID)'!$A$2:$A$1011,FALSE),4)) -> Prescriptive | AB7: =IF(V7="","",INDEX('Standard Measure Names (MapID)'!$B$2:$H$1011,MATCH($P7,'Standard Measure Names (MapID)'!$A$2:$A$1011,FALSE),5)) -> Retrofit | AC7: =IF(W7="","",INDEX('Standard Measure Names (MapID)'!$B$2:$H$1011,MATCH($P7,'Standard Measure Names (MapID)'!$A$2:$A$1011,FALSE),6)) -> C&I | AD7: =IF(Q7="","",INDEX('Standard Measure Names (MapID)'!$B$2:$H$1011,MATCH($P7,'Standard Measure Names (MapID)'!$A$2:$A$1011,FALSE),7)) -> Electricity | AE7: O&M - Participant - C&I | AF7: -0.0048 | AG7: $/kWh/yr | AH7: =IFERROR(CPI_Index!$B$30/VLOOKUP(M7,CPI_Index!$A$2:$B$50,2,FALSE),"No Match")*AF7 -> -0.0048 | AI7: $/kWh/yr | AJ7: =IFERROR(VLOOKUP(N7,Confidence_Factor_lookup!$A$4:$Z$99,21,FALSE),0) -> 0.9444444444 | AK7: TRUE
A8: ElectricityC&IRetrofitPrescriptiveOtherO&M - Participant - C&I | B8: 6 | C8: ElectricityC&IRetrofitPrescriptiveOtherO&M - Participant - C&I | D8: 5 | E8: ElectricityC&IRetrofitPrescriptiveOtherO&M - Participant - C&I | F8: 4 | G8: ElectricityC&IRetrofitPrescriptiveO&M - Participant - C&I | H8: 3 | I8: ElectricityC&IRetrofitO&M - Participant - C&I | J8: 2 | K8: =VLOOKUP($N8,Confidence_Factor_lookup!$A$2:$F$49,2,FALSE) -> AEP Ohio Non-Energy Impact - Final Report | L8: =VLOOKUP($N8,Confidence_Factor_lookup!$A$2:$F$49,5,FALSE) -> OH | M8: =VLOOKUP($N8,Confidence_Factor_lookup!$A$2:$F$49,4,FALSE) -> 2018 | N8: Study0001 | O8: AEP10005 | P8: MapID00283 | Q8: Electricity | T8: Other | U8: Prescriptive | V8: Retrofit | W8: C&I | X8: =IF(R8="","",INDEX('Standard Measure Names (MapID)'!$B$2:$H$1011,MATCH($P8,'Standard Measure Names (MapID)'!$A$2:$A$1011,FALSE),1)) ->  | Y8: =IF(S8="","",INDEX('Standard Measure Names (MapID)'!$B$2:$H$1011,MATCH($P8,'Standard Measure Names (MapID)'!$A$2:$A$1011,FALSE),2)) ->  | Z8: =IF(T8="","",INDEX('Standard Measure Names (MapID)'!$B$2:$H$1011,MATCH($P8,'Standard Measure Names (MapID)'!$A$2:$A$1011,FALSE),3)) -> Other | AA8: =IF(U8="","",INDEX('Standard Measure Names (MapID)'!$B$2:$H$1011,MATCH($P8,'Standard Measure Names (MapID)'!$A$2:$A$1011,FALSE),4)) -> Prescriptive | AB8: =IF(V8="","",INDEX('Standard Measure Names (MapID)'!$B$2:$H$1011,MATCH($P8,'Standard Measure Names (MapID)'!$A$2:$A$1011,FALSE),5)) -> Retrofit | AC8: =IF(W8="","",INDEX('Standard Measure Names (MapID)'!$B$2:$H$1011,MATCH($P8,'Standard Measure Names (MapID)'!$A$2:$A$1011,FALSE),6)) -> C&I | AD8: =IF(Q8="","",INDEX('Standard Measure Names (MapID)'!$B$2:$H$1011,MATCH($P8,'Standard Measure Names (MapID)'!$A$2:$A$1011,FALSE),7)) -> Electricity | AE8: O&M - Participant - C&I | AF8: -0.0001 | AG8: $/kWh/yr | AH8: =IFERROR(CPI_Index!$B$30/VLOOKUP(M8,CPI_Index!$A$2:$B$50,2,FALSE),"No Match")*AF8 -> -0.0001 | AI8: $/kWh/yr | AJ8: =IFERROR(VLOOKUP(N8,Confidence_Factor_lookup!$A$4:$Z$99,21,FALSE),0) -> 0.9444444444 | AK8: TRUE
A9: ElectricityC&IRetrofitCustomRefrigerationO&M - Participant - C&I | B9: 6 | C9: ElectricityC&IRetrofitCustomRefrigerationO&M - Participant - C&I | D9: 5 | E9: ElectricityC&IRetrofitCustomRefrigerationO&M - Participant - C&I | F9: 4 | G9: ElectricityC&IRetrofitCustomO&M - Participant - C&I | H9: 3 | I9: ElectricityC&IRetrofitO&M - Participant - C&I | J9: 2 | K9: =VLOOKUP($N9,Confidence_Factor_lookup!$A$2:$F$49,2,FALSE) -> AEP Ohio Non-Energy Impact - Final Report | L9: =VLOOKUP($N9,Confidence_Factor_lookup!$A$2:$F$49,5,FALSE) -> OH | M9: =VLOOKUP($N9,Confidence_Factor_lookup!$A$2:$F$49,4,FALSE) -> 2018 | N9: Study0001 | O9: AEP10006 | P9: MapID00167 | Q9: Electricity | T9: Refrigeration | U9: Custom | V9: Retrofit | W9: C&I | X9: =IF(R9="","",INDEX('Standard Measure Names (MapID)'!$B$2:$H$1011,MATCH($P9,'Standard Measure Names (MapID)'!$A$2:$A$1011,FALSE),1)) ->  | Y9: =IF(S9="","",INDEX('Standard Measure Names (MapID)'!$B$2:$H$1011,MATCH($P9,'Standard Measure Names (MapID)'!$A$2:$A$1011,FALSE),2)) ->  | Z9: =IF(T9="","",INDEX('Standard Measure Names (MapID)'!$B$2:$H$1011,MATCH($P9,'Standard Measure Names (MapID)'!$A$2:$A$1011,FALSE),3)) -> Refrigeration | AA9: =IF(U9="","",INDEX('Standard Measure Names (MapID)'!$B$2:$H$1011,MATCH($P9,'Standard Measure Names (MapID)'!$A$2:$A$1011,FALSE),4)) -> Custom | AB9: =IF(V9="","",INDEX('Standard Measure Names (MapID)'!$B$2:$H$1011,MATCH($P9,'Standard Measure Names (MapID)'!$A$2:$A$1011,FALSE),5)) -> Retrofit | AC9: =IF(W9="","",INDEX('Standard Measure Names (MapID)'!$B$2:$H$1011,MATCH($P9,'Standard Measure Names (MapID)'!$A$2:$A$1011,FALSE),6)) -> C&I | AD9: =IF(Q9="","",INDEX('Standard Measure Names (MapID)'!$B$2:$H$1011,MATCH($P9,'Standard Measure Names (MapID)'!$A$2:$A$1011,FALSE),7)) -> Electricity | AE9: O&M - Participant - C&I | AF9: -0.0027 | AG9: $/kWh/yr | AH9: =IFERROR(CPI_Index!$B$30/VLOOKUP(M9,CPI_Index!$A$2:$B$50,2,FALSE),"No Match")*AF9 -> -0.0027 | AI9: $/kWh/yr | AJ9: =IFERROR(VLOOKUP(N9,Confidence_Factor_lookup!$A$4:$Z$99,21,FALSE),0) -> 0.9444444444 | AK9: TRUE
A10: ElectricityC&IRetrofitPrescriptiveProcessMotors/DrivesVariable Frequency Drive (VFD)O&M - Participant - C&I | B10: 6 | C10: ElectricityC&IRetrofitPrescriptiveProcessMotors/DrivesO&M - Participant - C&I | D10: 5 | E10: ElectricityC&IRetrofitPrescriptiveProcessO&M - Participant - C&I | F10: 4 | G10: ElectricityC&IRetrofitPrescriptiveO&M - Participant - C&I | H10: 3 | I10: ElectricityC&IRetrofitO&M - Participant - C&I | J10: 2 | K10: =VLOOKUP($N10,Confidence_Factor_lookup!$A$2:$F$49,2,FALSE) -> AEP Ohio Non-Energy Impact - Final Report | L10: =VLOOKUP($N10,Confidence_Factor_lookup!$A$2:$F$49,5,FALSE) -> OH | M10: =VLOOKUP($N10,Confidence_Factor_lookup!$A$2:$F$49,4,FALSE) -> 2018 | N10: Study0001 | O10: AEP10007 | P10: MapID00164 | Q10: Electricity | R10: VSD | S10: Motor/drive | T10: Process | U10: Prescriptive | V10: Retrofit | W10: C&I | X10: =IF(R10="","",INDEX('Standard Measure Names (MapID)'!$B$2:$H$1011,MATCH($P10,'Standard Measure Names (MapID)'!$A$2:$A$1011,FALSE),1)) -> Variable Frequency Drive (VFD) | Y10: =IF(S10="","",INDEX('Standard Measure Names (MapID)'!$B$2:$H$1011,MATCH($P10,'Standard Measure Names (MapID)'!$A$2:$A$1011,FALSE),2)) -> Motors/Drives | Z10: =IF(T10="","",INDEX('Standard Measure Names (MapID)'!$B$2:$H$1011,MATCH($P10,'Standard Measure Names (MapID)'!$A$2:$A$1011,FALSE),3)) -> Process | AA10: =IF(U10="","",INDEX('Standard Measure Names (MapID)'!$B$2:$H$1011,MATCH($P10,'Standard Measure Names (MapID)'!$A$2:$A$1011,FALSE),4)) -> Prescriptive | AB10: =IF(V10="","",INDEX('Standard Measure Names (MapID)'!$B$2:$H$1011,MATCH($P10,'Standard Measure Names (MapID)'!$A$2:$A$1011,FALSE),5)) -> Retrofit | AC10: =IF(W10="","",INDEX('Standard Measure Names (MapID)'!$B$2:$H$1011,MATCH($P10,'Standard Measure Names (MapID)'!$A$2:$A$1011,FALSE),6)) -> C&I | AD10: =IF(Q10="","",INDEX('Standard Measure Names (MapID)'!$B$2:$H$1011,MATCH($P10,'Standard Measure Names (MapID)'!$A$2:$A$1011,FALSE),7)) -> Electricity | AE10: O&M - Participant - C&I | AF10: 0.0057 | AG10: $/kWh/yr | AH10: =IFERROR(CPI_Index!$B$30/VLOOKUP(M10,CPI_Index!$A$2:$B$50,2,FALSE),"No Match")*AF10 -> 0.0057 | AI10: $/kWh/yr | AJ10: =IFERROR(VLOOKUP(N10,Confidence_Factor_lookup!$A$4:$Z$99,21,FALSE),0) -> 0.9444444444 | AK10: TRUE
A11: ElectricityC&INew ConstructionCustomOtherO&M - Participant - C&I | B11: 6 | C11: ElectricityC&INew ConstructionCustomOtherO&M - Participant - C&I | D11: 5 | E11: ElectricityC&INew ConstructionCustomOtherO&M - Participant - C&I | F11: 4 | G11: ElectricityC&INew ConstructionCustomO&M - Participant - C&I | H11: 3 | I11: ElectricityC&INew ConstructionO&M - Participant - C&I | J11: 2 | K11: =VLOOKUP($N11,Confidence_Factor_lookup!$A$2:$F$49,2,FALSE) -> C&I New Construction NEI Stage 2 Final Report | L11: =VLOOKUP($N11,Confidence_Factor_lookup!$A$2:$F$49,5,FALSE) -> MA | M11: =VLOOKUP($N11,Confidence_Factor_lookup!$A$2:$F$49,4,FALSE) -> 2016 | N11: Study0003 | O11: NC2 | P11: MapID00206 | Q11: Electric | T11: Comprehensive Design | U11: Custom | V11: New Construction | W11: C&I | X11: =IF(R11="","",INDEX('Standard Measure Names (MapID)'!$B$2:$H$1011,MATCH($P11,'Standard Measure Names (MapID)'!$A$2:$A$1011,FALSE),1)) ->  | Y11: =IF(S11="","",INDEX('Standard Measure Names (MapID)'!$B$2:$H$1011,MATCH($P11,'Standard Measure Names (MapID)'!$A$2:$A$1011,FALSE),2)) ->  | Z11: =IF(T11="","",INDEX('Standard Measure Names (MapID)'!$B$2:$H$1011,MATCH($P11,'Standard Measure Names (MapID)'!$A$2:$A$1011,FALSE),3)) -> Other | AA11: =IF(U11="","",INDEX('Standard Measure Names (MapID)'!$B$2:$H$1011,MATCH($P11,'Standard Measure Names (MapID)'!$A$2:$A$1011,FALSE),4)) -> Custom | AB11: =IF(V11="","",INDEX('Standard Measure Names (MapID)'!$B$2:$H$1011,MATCH($P11,'Standard Measure Names (MapID)'!$A$2:$A$1011,FALSE),5)) -> New Construction | AC11: =IF(W11="","",INDEX('Standard Measure Names (MapID)'!$B$2:$H$1011,MATCH($P11,'Standard Measure Names (MapID)'!$A$2:$A$1011,FALSE),6)) -> C&I | AD11: =IF(Q11="","",INDEX('Standard Measure Names (MapID)'!$B$2:$H$1011,MATCH($P11,'Standard Measure Names (MapID)'!$A$2:$A$1011,FALSE),7)) -> Electricity | AE11: O&M - Participant - C&I | AF11: 0.001 | AG11: $/kWh/yr | AH11: =IFERROR(CPI_Index!$B$30/VLOOKUP(M11,CPI_Index!$A$2:$B$50,2,FALSE),"No Match")*AF11 -> 0.00104375 | AI11: $/kWh/yr | AJ11: =IFERROR(VLOOKUP(N11,Confidence_Factor_lookup!$A$4:$Z$99,21,FALSE),0) -> 0.9444444444 | AK11: TRUE
A12: ElectricityC&INew ConstructionCustomCompressed AirEquipmentAir CompressorO&M - Participant - C&I | B12: 6 | C12: ElectricityC&INew ConstructionCustomCompressed AirEquipmentO&M - Participant - C&I | D12: 5 | E12: ElectricityC&INew ConstructionCustomCompressed AirO&M - Participant - C&I | F12: 4 | G12: ElectricityC&INew ConstructionCustomO&M - Participant - C&I | H12: 3 | I12: ElectricityC&INew ConstructionO&M - Participant - C&I | J12: 2 | K12: =VLOOKUP($N12,Confidence_Factor_lookup!$A$2:$F$49,2,FALSE) -> C&I New Construction NEI Stage 2 Final Report | L12: =VLOOKUP($N12,Confidence_Factor_lookup!$A$2:$F$49,5,FALSE) -> MA | M12: =VLOOKUP($N12,Confidence_Factor_lookup!$A$2:$F$49,4,FALSE) -> 2016 | N12: Study0003 | O12: NC3 | P12: MapID00231 | Q12: Electric | R12: Compressed Air | S12: Compressed Air | T12: Compressed Air | U12: Custom | V12: New Construction | W12: C&I | X12: =IF(R12="","",INDEX('Standard Measure Names (MapID)'!$B$2:$H$1011,MATCH($P12,'Standard Measure Names (MapID)'!$A$2:$A$1011,FALSE),1)) -> Air Compressor | Y12: =IF(S12="","",INDEX('Standard Measure Names (MapID)'!$B$2:$H$1011,MATCH($P12,'Standard Measure Names (MapID)'!$A$2:$A$1011,FALSE),2)) -> Equipment | Z12: =IF(T12="","",INDEX('Standard Measure Names (MapID)'!$B$2:$H$1011,MATCH($P12,'Standard Measure Names (MapID)'!$A$2:$A$1011,FALSE),3)) -> Compressed Air | AA12: =IF(U12="","",INDEX('Standard Measure Names (MapID)'!$B$2:$H$1011,MATCH($P12,'Standard Measure Names (MapID)'!$A$2:$A$1011,FALSE),4)) -> Custom | AB12: =IF(V12="","",INDEX('Standard Measure Names (MapID)'!$B$2:$H$1011,MATCH($P12,'Standard Measure Names (MapID)'!$A$2:$A$1011,FALSE),5)) -> New Construction | AC12: =IF(W12="","",INDEX('Standard Measure Names (MapID)'!$B$2:$H$1011,MATCH($P12,'Standard Measure Names (MapID)'!$A$2:$A$1011,FALSE),6)) -> C&I | AD12: =IF(Q12="","",INDEX('Standard Measure Names (MapID)'!$B$2:$H$1011,MATCH($P12,'Standard Measure Names (MapID)'!$A$2:$A$1011,FALSE),7)) -> Electricity | AE12: O&M - Participant - C&I | AF12: 0.026 | AG12: $/kWh/yr | AH12: =IFERROR(CPI_Index!$B$30/VLOOKUP(M12,CPI_Index!$A$2:$B$50,2,FALSE),"No Match")*AF12 -> 0.0271375 | AI12: $/kWh/yr | AJ12: =IFERROR(VLOOKUP(N12,Confidence_Factor_lookup!$A$4:$Z$99,21,FALSE),0) -> 0.9444444444 | AK12: TRUE
A13: ElectricityC&INew ConstructionCustomHVACO&M - Participant - C&I | B13: 6 | C13: ElectricityC&INew ConstructionCustomHVACO&M - Participant - C&I | D13: 5 | E13: ElectricityC&INew ConstructionCustomHVACO&M - Participant - C&I | F13: 4 | G13: ElectricityC&INew ConstructionCustomO&M - Participant - C&I | H13: 3 | I13: ElectricityC&INew ConstructionO&M - Participant - C&I | J13: 2 | K13: =VLOOKUP($N13,Confidence_Factor_lookup!$A$2:$F$49,2,FALSE) -> C&I New Construction NEI Stage 2 Final Report | L13: =VLOOKUP($N13,Confidence_Factor_lookup!$A$2:$F$49,5,FALSE) -> MA | M13: =VLOOKUP($N13,Confidence_Factor_lookup!$A$2:$F$49,4,FALSE) -> 2016 | N13: Study0003 | O13: NC5 | P13: MapID00364 | Q13: Electric | T13: HVAC | U13: Custom | V13: New Construction | W13: C&I | X13: =IF(R13="","",INDEX('Standard Measure Names (MapID)'!$B$2:$H$1011,MATCH($P13,'Standard Measure Names (MapID)'!$A$2:$A$1011,FALSE),1)) ->  | Y13: =IF(S13="","",INDEX('Standard Measure Names (MapID)'!$B$2:$H$1011,MATCH($P13,'Standard Measure Names (MapID)'!$A$2:$A$1011,FALSE),2)) ->  | Z13: =IF(T13="","",INDEX('Standard Measure Names (MapID)'!$B$2:$H$1011,MATCH($P13,'Standard Measure Names (MapID)'!$A$2:$A$1011,FALSE),3)) -> HVAC | AA13: =IF(U13="","",INDEX('Standard Measure Names (MapID)'!$B$2:$H$1011,MATCH($P13,'Standard Measure Names (MapID)'!$A$2:$A$1011,FALSE),4)) -> Custom | AB13: =IF(V13="","",INDEX('Standard Measure Names (MapID)'!$B$2:$H$1011,MATCH($P13,'Standard Measure Names (MapID)'!$A$2:$A$1011,FALSE),5)) -> New Construction | AC13: =IF(W13="","",INDEX('Standard Measure Names (MapID)'!$B$2:$H$1011,MATCH($P13,'Standard Measure Names (MapID)'!$A$2:$A$1011,FALSE),6)) -> C&I | AD13: =IF(Q13="","",INDEX('Standard Measure Names (MapID)'!$B$2:$H$1011,MATCH($P13,'Standard Measure Names (MapID)'!$A$2:$A$1011,FALSE),7)) -> Electricity | AE13: O&M - Participant - C&I | AF13: 0.001 | AG13: $/kWh/yr | AH13: =IFERROR(CPI_Index!$B$30/VLOOKUP(M13,CPI_Index!$A$2:$B$50,2,FALSE),"No Match")*AF13 -> 0.00104375 | AI13: $/kWh/yr | AJ13: =IFERROR(VLOOKUP(N13,Confidence_Factor_lookup!$A$4:$Z$99,21,FALSE),0) -> 0.9444444444 | AK13: TRUE
A14: ElectricityC&INew ConstructionCustomLightingO&M - Participant - C&I | B14: 6 | C14: ElectricityC&INew ConstructionCustomLightingO&M - Participant - C&I | D14: 5 | E14: ElectricityC&INew ConstructionCustomLightingO&M - Participant - C&I | F14: 4 | G14: ElectricityC&INew ConstructionCustomO&M - Participant - C&I | H14: 3 | I14: ElectricityC&INew ConstructionO&M - Participant - C&I | J14: 2 | K14: =VLOOKUP($N14,Confidence_Factor_lookup!$A$2:$F$49,2,FALSE) -> C&I New Construction NEI Stage 2 Final Report | L14: =VLOOKUP($N14,Confidence_Factor_lookup!$A$2:$F$49,5,FALSE) -> MA | M14: =VLOOKUP($N14,Confidence_Factor_lookup!$A$2:$F$49,4,FALSE) -> 2016 | N14: Study0003 | O14: NC6 | P14: MapID00368 | Q14: Electric | T14: Lighting | U14: Custom | V14: New Construction | W14: C&I | X14: =IF(R14="","",INDEX('Standard Measure Names (MapID)'!$B$2:$H$1011,MATCH($P14,'Standard Measure Names (MapID)'!$A$2:$A$1011,FALSE),1)) ->  | Y14: =IF(S14="","",INDEX('Standard Measure Names (MapID)'!$B$2:$H$1011,MATCH($P14,'Standard Measure Names (MapID)'!$A$2:$A$1011,FALSE),2)) ->  | Z14: =IF(T14="","",INDEX('Standard Measure Names (MapID)'!$B$2:$H$1011,MATCH($P14,'Standard Measure Names (MapID)'!$A$2:$A$1011,FALSE),3)) -> Lighting | AA14: =IF(U14="","",INDEX('Standard Measure Names (MapID)'!$B$2:$H$1011,MATCH($P14,'Standard Measure Names (MapID)'!$A$2:$A$1011,FALSE),4)) -> Custom | AB14: =IF(V14="","",INDEX('Standard Measure Names (MapID)'!$B$2:$H$1011,MATCH($P14,'Standard Measure Names (MapID)'!$A$2:$A$1011,FALSE),5)) -> New Construction | AC14: =IF(W14="","",INDEX('Standard Measure Names (MapID)'!$B$2:$H$1011,MATCH($P14,'Standard Measure Names (MapID)'!$A$2:$A$1011,FALSE),6)) -> C&I | AD14: =IF(Q14="","",INDEX('Standard Measure Names (MapID)'!$B$2:$H$1011,MATCH($P14,'Standard Measure Names (MapID)'!$A$2:$A$1011,FALSE),7)) -> Electricity | AE14: O&M - Participant - C&I | AF14: 0.003 | AG14: $/kWh/yr | AH14: =IFERROR(CPI_Index!$B$30/VLOOKUP(M14,CPI_Index!$A$2:$B$50,2,FALSE),"No Match")*AF14 -> 0.00313125 | AI14: $/kWh/yr | AJ14: =IFERROR(VLOOKUP(N14,Confidence_Factor_lookup!$A$4:$Z$99,21,FALSE),0) -> 0.9444444444 | AK14: TRUE
A15: ElectricityC&INew ConstructionCustomProcessO&M - Participant - C&I | B15: 6 | C15: ElectricityC&INew ConstructionCustomProcessO&M - Participant - C&I | D15: 5 | E15: ElectricityC&INew ConstructionCustomProcessO&M - Participant - C&I | F15: 4 | G15: ElectricityC&INew ConstructionCustomO&M - Participant - C&I | H15: 3 | I15: ElectricityC&INew ConstructionO&M - Participant - C&I | J15: 2 | K15: =VLOOKUP($N15,Confidence_Factor_lookup!$A$2:$F$49,2,FALSE) -> C&I New Construction NEI Stage 2 Final Report | L15: =VLOOKUP($N15,Confidence_Factor_lookup!$A$2:$F$49,5,FALSE) -> MA | M15: =VLOOKUP($N15,Confidence_Factor_lookup!$A$2:$F$49,4,FALSE) -> 2016 | N15: Study0003 | O15: NC9 | P15: MapID00369 | Q15: Electric | T15: Industrial Process | U15: Custom | V15: New Construction | W15: C&I | X15: =IF(R15="","",INDEX('Standard Measure Names (MapID)'!$B$2:$H$1011,MATCH($P15,'Standard Measure Names (MapID)'!$A$2:$A$1011,FALSE),1)) ->  | Y15: =IF(S15="","",INDEX('Standard Measure Names (MapID)'!$B$2:$H$1011,MATCH($P15,'Standard Measure Names (MapID)'!$A$2:$A$1011,FALSE),2)) ->  | Z15: =IF(T15="","",INDEX('Standard Measure Names (MapID)'!$B$2:$H$1011,MATCH($P15,'Standard Measure Names (MapID)'!$A$2:$A$1011,FALSE),3)) -> Process | AA15: =IF(U15="","",INDEX('Standard Measure Names (MapID)'!$B$2:$H$1011,MATCH($P15,'Standard Measure Names (MapID)'!$A$2:$A$1011,FALSE),4)) -> Custom | AB15: =IF(V15="","",INDEX('Standard Measure Names (MapID)'!$B$2:$H$1011,MATCH($P15,'Standard Measure Names (MapID)'!$A$2:$A$1011,FALSE),5)) -> New Construction | AC15: =IF(W15="","",INDEX('Standard Measure Names (MapID)'!$B$2:$H$1011,MATCH($P15,'Standard Measure Names (MapID)'!$A$2:$A$1011,FALSE),6)) -> C&I | AD15: =IF(Q15="","",INDEX('Standard Measure Names (MapID)'!$B$2:$H$1011,MATCH($P15,'Standard Measure Names (MapID)'!$A$2:$A$1011,FALSE),7)) -> Electricity | AE15: O&M - Participant - C&I | AF15: 0.013 | AG15: $/kWh/yr | AH15: =IFERROR(CPI_Index!$B$30/VLOOKUP(M15,CPI_Index!$A$2:$B$50,2,FALSE),"No Match")*AF15 -> 0.01356875 | AI15: $/kWh/yr | AJ15: =IFERROR(VLOOKUP(N15,Confidence_Factor_lookup!$A$4:$Z$99,21,FALSE),0) -> 0.9444444444 | AK15: TRUE
A16: ElectricityC&INew ConstructionCustomRefrigerationO&M - Participant - C&I | B16: 6 | C16: ElectricityC&INew ConstructionCustomRefrigerationO&M - Participant - C&I | D16: 5 | E16: ElectricityC&INew ConstructionCustomRefrigerationO&M - Participant - C&I | F16: 4 | G16: ElectricityC&INew ConstructionCustomO&M - Participant - C&I | H16: 3 | I16: ElectricityC&INew ConstructionO&M - Participant - C&I | J16: 2 | K16: =VLOOKUP($N16,Confidence_Factor_lookup!$A$2:$F$49,2,FALSE) -> C&I New Construction NEI Stage 2 Final Report | L16: =VLOOKUP($N16,Confidence_Factor_lookup!$A$2:$F$49,5,FALSE) -> MA | M16: =VLOOKUP($N16,Confidence_Factor_lookup!$A$2:$F$49,4,FALSE) -> 2016 | N16: Study0003 | O16: NC10 | P16: MapID00135 | Q16: Electric | T16: Refrigeration | U16: Custom | V16: New Construction | W16: C&I | X16: =IF(R16="","",INDEX('Standard Measure Names (MapID)'!$B$2:$H$1011,MATCH($P16,'Standard Measure Names (MapID)'!$A$2:$A$1011,FALSE),1)) ->  | Y16: =IF(S16="","",INDEX('Standard Measure Names (MapID)'!$B$2:$H$1011,MATCH($P16,'Standard Measure Names (MapID)'!$A$2:$A$1011,FALSE),2)) ->  | Z16: =IF(T16="","",INDEX('Standard Measure Names (MapID)'!$B$2:$H$1011,MATCH($P16,'Standard Measure Names (MapID)'!$A$2:$A$1011,FALSE),3)) -> Refrigeration | AA16: =IF(U16="","",INDEX('Standard Measure Names (MapID)'!$B$2:$H$1011,MATCH($P16,'Standard Measure Names (MapID)'!$A$2:$A$1011,FALSE),4)) -> Custom | AB16: =IF(V16="","",INDEX('Standard Measure Names (MapID)'!$B$2:$H$1011,MATCH($P16,'Standard Measure Names (MapID)'!$A$2:$A$1011,FALSE),5)) -> New Construction | AC16: =IF(W16="","",INDEX('Standard Measure Names (MapID)'!$B$2:$H$1011,MATCH($P16,'Standard Measure Names (MapID)'!$A$2:$A$1011,FALSE),6)) -> C&I | AD16: =IF(Q16="","",INDEX('Standard Measure Names (MapID)'!$B$2:$H$1011,MATCH($P16,'Standard Measure Names (MapID)'!$A$2:$A$1011,FALSE),7)) -> Electricity | AE16: O&M - Participant - C&I | AF16: 0.012 | AG16: $/kWh/yr | AH16: =IFERROR(CPI_Index!$B$30/VLOOKUP(M16,CPI_Index!$A$2:$B$50,2,FALSE),"No Match")*AF16 -> 0.012525 | AI16: $/kWh/yr | AJ16: =IFERROR(VLOOKUP(N16,Confidence_Factor_lookup!$A$4:$Z$99,21,FALSE),0) -> 0.9444444444 | AK16: TRUE
A17: ElectricityC&INew ConstructionPrescriptiveCompressed AirO&M - Participant - C&I | B17: 6 | C17: ElectricityC&INew ConstructionPrescriptiveCompressed AirO&M - Participant - C&I | D17: 5 | E17: ElectricityC&INew ConstructionPrescriptiveCompressed AirO&M - Participant - C&I | F17: 4 | G17: ElectricityC&INew ConstructionPrescriptiveO&M - Participant - C&I | H17: 3 | I17: ElectricityC&INew ConstructionO&M - Participant - C&I | J17: 2 | K17: =VLOOKUP($N17,Confidence_Factor_lookup!$A$2:$F$49,2,FALSE) -> C&I New Construction NEI Stage 2 Final Report | L17: =VLOOKUP($N17,Confidence_Factor_lookup!$A$2:$F$49,5,FALSE) -> MA | M17: =VLOOKUP($N17,Confidence_Factor_lookup!$A$2:$F$49,4,FALSE) -> 2016 | N17: Study0003 | O17: NC11 | P17: MapID00289 | Q17: Electric | T17: Compressed Air | U17: Prescriptive | V17: New Construction | W17: C&I | X17: =IF(R17="","",INDEX('Standard Measure Names (MapID)'!$B$2:$H$1011,MATCH($P17,'Standard Measure Names (MapID)'!$A$2:$A$1011,FALSE),1)) ->  | Y17: =IF(S17="","",INDEX('Standard Measure Names (MapID)'!$B$2:$H$1011,MATCH($P17,'Standard Measure Names (MapID)'!$A$2:$A$1011,FALSE),2)) ->  | Z17: =IF(T17="","",INDEX('Standard Measure Names (MapID)'!$B$2:$H$1011,MATCH($P17,'Standard Measure Names (MapID)'!$A$2:$A$1011,FALSE),3)) -> Compressed Air | AA17: =IF(U17="","",INDEX('Standard Measure Names (MapID)'!$B$2:$H$1011,MATCH($P17,'Standard Measure Names (MapID)'!$A$2:$A$1011,FALSE),4)) -> Prescriptive | AB17: =IF(V17="","",INDEX('Standard Measure Names (MapID)'!$B$2:$H$1011,MATCH($P17,'Standard Measure Names (MapID)'!$A$2:$A$1011,FALSE),5)) -> New Construction | AC17: =IF(W17="","",INDEX('Standard Measure Names (MapID)'!$B$2:$H$1011,MATCH($P17,'Standard Measure Names (MapID)'!$A$2:$A$1011,FALSE),6)) -> C&I | AD17: =IF(Q17="","",INDEX('Standard Measure Names (MapID)'!$B$2:$H$1011,MATCH($P17,'Standard Measure Names (MapID)'!$A$2:$A$1011,FALSE),7)) -> Electricity | AE17: O&M - Participant - C&I | AF17: 0.038 | AG17: $/kWh/yr | AH17: =IFERROR(CPI_Index!$B$30/VLOOKUP(M17,CPI_Index!$A$2:$B$50,2,FALSE),"No Match")*AF17 -> 0.0396625 | AI17: $/kWh/yr | AJ17: =IFERROR(VLOOKUP(N17,Confidence_Factor_lookup!$A$4:$Z$99,21,FALSE),0) -> 0.9444444444 | AK17: TRUE
A18: ElectricityC&INew ConstructionPrescriptiveLightingO&M - Participant - C&I | B18: 6 | C18: ElectricityC&INew ConstructionPrescriptiveLightingO&M - Participant - C&I | D18: 5 | E18: ElectricityC&INew ConstructionPrescriptiveLightingO&M - Participant - C&I | F18: 4 | G18: ElectricityC&INew ConstructionPrescriptiveO&M - Participant - C&I | H18: 3 | I18: ElectricityC&INew ConstructionO&M - Participant - C&I | J18: 2 | K18: =VLOOKUP($N18,Confidence_Factor_lookup!$A$2:$F$49,2,FALSE) -> C&I New Construction NEI Stage 2 Final Report | L18: =VLOOKUP($N18,Confidence_Factor_lookup!$A$2:$F$49,5,FALSE) -> MA | M18: =VLOOKUP($N18,Confidence_Factor_lookup!$A$2:$F$49,4,FALSE) -> 2016 | N18: Study0003 | O18: NC14 | P18: MapID00131 | Q18: Electric | T18: Lighting | U18: Prescriptive | V18: New Construction | W18: C&I | X18: =IF(R18="","",INDEX('Standard Measure Names (MapID)'!$B$2:$H$1011,MATCH($P18,'Standard Measure Names (MapID)'!$A$2:$A$1011,FALSE),1)) ->  | Y18: =IF(S18="","",INDEX('Standard Measure Names (MapID)'!$B$2:$H$1011,MATCH($P18,'Standard Measure Names (MapID)'!$A$2:$A$1011,FALSE),2)) ->  | Z18: =IF(T18="","",INDEX('Standard Measure Names (MapID)'!$B$2:$H$1011,MATCH($P18,'Standard Measure Names (MapID)'!$A$2:$A$1011,FALSE),3)) -> Lighting | AA18: =IF(U18="","",INDEX('Standard Measure Names (MapID)'!$B$2:$H$1011,MATCH($P18,'Standard Measure Names (MapID)'!$A$2:$A$1011,FALSE),4)) -> Prescriptive | AB18: =IF(V18="","",INDEX('Standard Measure Names (MapID)'!$B$2:$H$1011,MATCH($P18,'Standard Measure Names (MapID)'!$A$2:$A$1011,FALSE),5)) -> New Construction | AC18: =IF(W18="","",INDEX('Standard Measure Names (MapID)'!$B$2:$H$1011,MATCH($P18,'Standard Measure Names (MapID)'!$A$2:$A$1011,FALSE),6)) -> C&I | AD18: =IF(Q18="","",INDEX('Standard Measure Names (MapID)'!$B$2:$H$1011,MATCH($P18,'Standard Measure Names (MapID)'!$A$2:$A$1011,FALSE),7)) -> Electricity | AE18: O&M - Participant - C&I | AF18: 0.02 | AG18: $/kWh/yr | AH18: =IFERROR(CPI_Index!$B$30/VLOOKUP(M18,CPI_Index!$A$2:$B$50,2,FALSE),"No Match")*AF18 -> 0.020875 | AI18: $/kWh/yr | AJ18: =IFERROR(VLOOKUP(N18,Confidence_Factor_lookup!$A$4:$Z$99,21,FALSE),0) -> 0.9444444444 | AK18: TRUE
A19: GasC&INew ConstructionCustomHVACEquipmentCondensing BoilerO&M - Participant - C&I | B19: 6 | C19: GasC&INew ConstructionCustomHVACEquipmentO&M - Participant - C&I | D19: 5 | E19: GasC&INew ConstructionCustomHVACO&M - Participant - C&I | F19: 4 | G19: GasC&INew ConstructionCustomO&M - Participant - C&I | H19: 3 | I19: GasC&INew ConstructionO&M - Participant - C&I | J19: 2 | K19: =VLOOKUP($N19,Confidence_Factor_lookup!$A$2:$F$49,2,FALSE) -> C&I New Construction NEI Stage 2 Final Report | L19: =VLOOKUP($N19,Confidence_Factor_lookup!$A$2:$F$49,5,FALSE) -> MA | M19: =VLOOKUP($N19,Confidence_Factor_lookup!$A$2:$F$49,4,FALSE) -> 2016 | N19: Study0003 | O19: NC18 | P19: MapID00190 | Q19: Gas | R19: Condensing Boiler | S19: Boilers | T19: Boilers | U19: Custom | V19: New Construction | W19: C&I | X19: =IF(R19="","",INDEX('Standard Measure Names (MapID)'!$B$2:$H$1011,MATCH($P19,'Standard Measure Names (MapID)'!$A$2:$A$1011,FALSE),1)) -> Condensing Boiler | Y19: =IF(S19="","",INDEX('Standard Measure Names (MapID)'!$B$2:$H$1011,MATCH($P19,'Standard Measure Names (MapID)'!$A$2:$A$1011,FALSE),2)) -> Equipment | Z19: =IF(T19="","",INDEX('Standard Measure Names (MapID)'!$B$2:$H$1011,MATCH($P19,'Standard Measure Names (MapID)'!$A$2:$A$1011,FALSE),3)) -> HVAC | AA19: =IF(U19="","",INDEX('Standard Measure Names (MapID)'!$B$2:$H$1011,MATCH($P19,'Standard Measure Names (MapID)'!$A$2:$A$1011,FALSE),4)) -> Custom | AB19: =IF(V19="","",INDEX('Standard Measure Names (MapID)'!$B$2:$H$1011,MATCH($P19,'Standard Measure Names (MapID)'!$A$2:$A$1011,FALSE),5)) -> New Construction | AC19: =IF(W19="","",INDEX('Standard Measure Names (MapID)'!$B$2:$H$1011,MATCH($P19,'Standard Measure Names (MapID)'!$A$2:$A$1011,FALSE),6)) -> C&I | AD19: =IF(Q19="","",INDEX('Standard Measure Names (MapID)'!$B$2:$H$1011,MATCH($P19,'Standard Measure Names (MapID)'!$A$2:$A$1011,FALSE),7)) -> Gas | AE19: O&M - Participant - C&I | AF19: -0.006 | AG19: $/therm/yr | AH19: =IFERROR(CPI_Index!$B$30/VLOOKUP(M19,CPI_Index!$A$2:$B$50,2,FALSE),"No Match")*AF19 -> -0.0062625 | AI19: $/therm/yr | AJ19: =IFERROR(VLOOKUP(N19,Confidence_Factor_lookup!$A$4:$Z$99,21,FALSE),0) -> 0.9444444444 | AK19: TRUE
A20: GasC&INew ConstructionCustomHVACEquipmentCombination BoilerO&M - Participant - C&I | B20: 6 | C20: GasC&INew ConstructionCustomHVACEquipmentO&M - Participant - C&I | D20: 5 | E20: GasC&INew ConstructionCustomHVACO&M - Participant - C&I | F20: 4 | G20: GasC&INew ConstructionCustomO&M - Participant - C&I | H20: 3 | I20: GasC&INew ConstructionO&M - Participant - C&I | J20: 2 | K20: =VLOOKUP($N20,Confidence_Factor_lookup!$A$2:$F$49,2,FALSE) -> C&I New Construction NEI Stage 2 Final Report | L20: =VLOOKUP($N20,Confidence_Factor_lookup!$A$2:$F$49,5,FALSE) -> MA | M20: =VLOOKUP($N20,Confidence_Factor_lookup!$A$2:$F$49,4,FALSE) -> 2016 | N20: Study0003 | O20: NC19 | P20: MapID00191 | Q20: Gas | R20: Combination Boiler/Hot Water Heater | S20: Boilers | T20: Boilers | U20: Custom | V20: New Construction | W20: C&I | X20: =IF(R20="","",INDEX('Standard Measure Names (MapID)'!$B$2:$H$1011,MATCH($P20,'Standard Measure Names (MapID)'!$A$2:$A$1011,FALSE),1)) -> Combination Boiler | Y20: =IF(S20="","",INDEX('Standard Measure Names (MapID)'!$B$2:$H$1011,MATCH($P20,'Standard Measure Names (MapID)'!$A$2:$A$1011,FALSE),2)) -> Equipment | Z20: =IF(T20="","",INDEX('Standard Measure Names (MapID)'!$B$2:$H$1011,MATCH($P20,'Standard Measure Names (MapID)'!$A$2:$A$1011,FALSE),3)) -> HVAC | AA20: =IF(U20="","",INDEX('Standard Measure Names (MapID)'!$B$2:$H$1011,MATCH($P20,'Standard Measure Names (MapID)'!$A$2:$A$1011,FALSE),4)) -> Custom | AB20: =IF(V20="","",INDEX('Standard Measure Names (MapID)'!$B$2:$H$1011,MATCH($P20,'Standard Measure Names (MapID)'!$A$2:$A$1011,FALSE),5)) -> New Construction | AC20: =IF(W20="","",INDEX('Standard Measure Names (MapID)'!$B$2:$H$1011,MATCH($P20,'Standard Measure Names (MapID)'!$A$2:$A$1011,FALSE),6)) -> C&I | AD20: =IF(Q20="","",INDEX('Standard Measure Names (MapID)'!$B$2:$H$1011,MATCH($P20,'Standard Measure Names (MapID)'!$A$2:$A$1011,FALSE),7)) -> Gas | AE20: O&M - Participant - C&I | AF20: -0.006 | AG20: $/therm/yr | AH20: =IFERROR(CPI_Index!$B$30/VLOOKUP(M20,CPI_Index!$A$2:$B$50,2,FALSE),"No Match")*AF20 -> -0.0062625 | AI20: $/therm/yr | AJ20: =IFERROR(VLOOKUP(N20,Confidence_Factor_lookup!$A$4:$Z$99,21,FALSE),0) -> 0.9444444444 | AK20: TRUE
A21: GasC&INew ConstructionCustomFood ServiceCommercial KitchenO&M - Participant - C&I | B21: 6 | C21: GasC&INew ConstructionCustomFood ServiceCommercial KitchenO&M - Participant - C&I | D21: 5 | E21: GasC&INew ConstructionCustomFood ServiceO&M - Participant - C&I | F21: 4 | G21: GasC&INew ConstructionCustomO&M - Participant - C&I | H21: 3 | I21: GasC&INew ConstructionO&M - Participant - C&I | J21: 2 | K21: =VLOOKUP($N21,Confidence_Factor_lookup!$A$2:$F$49,2,FALSE) -> C&I New Construction NEI Stage 2 Final Report | L21: =VLOOKUP($N21,Confidence_Factor_lookup!$A$2:$F$49,5,FALSE) -> MA | M21: =VLOOKUP($N21,Confidence_Factor_lookup!$A$2:$F$49,4,FALSE) -> 2016 | N21: Study0003 | O21: NC21 | P21: MapID00361 | Q21: Gas | S21: Commercial Kitchen | T21: Commercial Kitchen | U21: Custom | V21: New Construction | W21: C&I | X21: =IF(R21="","",INDEX('Standard Measure Names (MapID)'!$B$2:$H$1011,MATCH($P21,'Standard Measure Names (MapID)'!$A$2:$A$1011,FALSE),1)) ->  | Y21: =IF(S21="","",INDEX('Standard Measure Names (MapID)'!$B$2:$H$1011,MATCH($P21,'Standard Measure Names (MapID)'!$A$2:$A$1011,FALSE),2)) -> Commercial Kitchen | Z21: =IF(T21="","",INDEX('Standard Measure Names (MapID)'!$B$2:$H$1011,MATCH($P21,'Standard Measure Names (MapID)'!$A$2:$A$1011,FALSE),3)) -> Food Service | AA21: =IF(U21="","",INDEX('Standard Measure Names (MapID)'!$B$2:$H$1011,MATCH($P21,'Standard Measure Names (MapID)'!$A$2:$A$1011,FALSE),4)) -> Custom | AB21: =IF(V21="","",INDEX('Standard Measure Names (MapID)'!$B$2:$H$1011,MATCH($P21,'Standard Measure Names (MapID)'!$A$2:$A$1011,FALSE),5)) -> New Construction | AC21: =IF(W21="","",INDEX('Standard Measure Names (MapID)'!$B$2:$H$1011,MATCH($P21,'Standard Measure Names (MapID)'!$A$2:$A$1011,FALSE),6)) -> C&I | AD21: =IF(Q21="","",INDEX('Standard Measure Names (MapID)'!$B$2:$H$1011,MATCH($P21,'Standard Measure Names (MapID)'!$A$2:$A$1011,FALSE),7)) -> Gas | AE21: O&M - Participant - C&I | AF21: 3.399 | AG21: $/therm/yr | AH21: =IFERROR(CPI_Index!$B$30/VLOOKUP(M21,CPI_Index!$A$2:$B$50,2,FALSE),"No Match")*AF21 -> 3.54770625 | AI21: $/therm/yr | AJ21: =IFERROR(VLOOKUP(N21,Confidence_Factor_lookup!$A$4:$Z$99,21,FALSE),0) -> 0.9444444444 | AK21: TRUE
A22: GasC&INew ConstructionCustomOtherO&M - Participant - C&I | B22: 6 | C22: GasC&INew ConstructionCustomOtherO&M - Participant - C&I | D22: 5 | E22: GasC&INew ConstructionCustomOtherO&M - Participant - C&I | F22: 4 | G22: GasC&INew ConstructionCustomO&M - Participant - C&I | H22: 3 | I22: GasC&INew ConstructionO&M - Participant - C&I | J22: 2 | K22: =VLOOKUP($N22,Confidence_Factor_lookup!$A$2:$F$49,2,FALSE) -> C&I New Construction NEI Stage 2 Final Report | L22: =VLOOKUP($N22,Confidence_Factor_lookup!$A$2:$F$49,5,FALSE) -> MA | M22: =VLOOKUP($N22,Confidence_Factor_lookup!$A$2:$F$49,4,FALSE) -> 2016 | N22: Study0003 | O22: NC28 | P22: MapID00334 | Q22: Gas | T22: Other | U22: Custom | V22: New Construction | W22: C&I | X22: =IF(R22="","",INDEX('Standard Measure Names (MapID)'!$B$2:$H$1011,MATCH($P22,'Standard Measure Names (MapID)'!$A$2:$A$1011,FALSE),1)) ->  | Y22: =IF(S22="","",INDEX('Standard Measure Names (MapID)'!$B$2:$H$1011,MATCH($P22,'Standard Measure Names (MapID)'!$A$2:$A$1011,FALSE),2)) ->  | Z22: =IF(T22="","",INDEX('Standard Measure Names (MapID)'!$B$2:$H$1011,MATCH($P22,'Standard Measure Names (MapID)'!$A$2:$A$1011,FALSE),3)) -> Other | AA22: =IF(U22="","",INDEX('Standard Measure Names (MapID)'!$B$2:$H$1011,MATCH($P22,'Standard Measure Names (MapID)'!$A$2:$A$1011,FALSE),4)) -> Custom | AB22: =IF(V22="","",INDEX('Standard Measure Names (MapID)'!$B$2:$H$1011,MATCH($P22,'Standard Measure Names (MapID)'!$A$2:$A$1011,FALSE),5)) -> New Construction | AC22: =IF(W22="","",INDEX('Standard Measure Names (MapID)'!$B$2:$H$1011,MATCH($P22,'Standard Measure Names (MapID)'!$A$2:$A$1011,FALSE),6)) -> C&I | AD22: =IF(Q22="","",INDEX('Standard Measure Names (MapID)'!$B$2:$H$1011,MATCH($P22,'Standard Measure Names (MapID)'!$A$2:$A$1011,FALSE),7)) -> Gas | AE22: O&M - Participant - C&I | AF22: -0.032 | AG22: $/therm/yr | AH22: =IFERROR(CPI_Index!$B$30/VLOOKUP(M22,CPI_Index!$A$2:$B$50,2,FALSE),"No Match")*AF22 -> -0.0334 | AI22: $/therm/yr | AJ22: =IFERROR(VLOOKUP(N22,Confidence_Factor_lookup!$A$4:$Z$99,21,FALSE),0) -> 0.9444444444 | AK22: TRUE
A23: GasC&INew ConstructionCustomProcessO&M - Participant - C&I | B23: 6 | C23: GasC&INew ConstructionCustomProcessO&M - Participant - C&I | D23: 5 | E23: GasC&INew ConstructionCustomProcessO&M - Participant - C&I | F23: 4 | G23: GasC&INew ConstructionCustomO&M - Participant - C&I | H23: 3 | I23: GasC&INew ConstructionO&M - Participant - C&I | J23: 2 | K23: =VLOOKUP($N23,Confidence_Factor_lookup!$A$2:$F$49,2,FALSE) -> C&I New Construction NEI Stage 2 Final Report | L23: =VLOOKUP($N23,Confidence_Factor_lookup!$A$2:$F$49,5,FALSE) -> MA | M23: =VLOOKUP($N23,Confidence_Factor_lookup!$A$2:$F$49,4,FALSE) -> 2016 | N23: Study0003 | O23: NC29 | P23: MapID00077 | Q23: Gas | T23: Industrial Process | U23: Custom | V23: New Construction | W23: C&I | X23: =IF(R23="","",INDEX('Standard Measure Names (MapID)'!$B$2:$H$1011,MATCH($P23,'Standard Measure Names (MapID)'!$A$2:$A$1011,FALSE),1)) ->  | Y23: =IF(S23="","",INDEX('Standard Measure Names (MapID)'!$B$2:$H$1011,MATCH($P23,'Standard Measure Names (MapID)'!$A$2:$A$1011,FALSE),2)) ->  | Z23: =IF(T23="","",INDEX('Standard Measure Names (MapID)'!$B$2:$H$1011,MATCH($P23,'Standard Measure Names (MapID)'!$A$2:$A$1011,FALSE),3)) -> Process | AA23: =IF(U23="","",INDEX('Standard Measure Names (MapID)'!$B$2:$H$1011,MATCH($P23,'Standard Measure Names (MapID)'!$A$2:$A$1011,FALSE),4)) -> Custom | AB23: =IF(V23="","",INDEX('Standard Measure Names (MapID)'!$B$2:$H$1011,MATCH($P23,'Standard Measure Names (MapID)'!$A$2:$A$1011,FALSE),5)) -> New Construction | AC23: =IF(W23="","",INDEX('Standard Measure Names (MapID)'!$B$2:$H$1011,MATCH($P23,'Standard Measure Names (MapID)'!$A$2:$A$1011,FALSE),6)) -> C&I | AD23: =IF(Q23="","",INDEX('Standard Measure Names (MapID)'!$B$2:$H$1011,MATCH($P23,'Standard Measure Names (MapID)'!$A$2:$A$1011,FALSE),7)) -> Gas | AE23: O&M - Participant - C&I | AF23: 0.007 | AG23: $/therm/yr | AH23: =IFERROR(CPI_Index!$B$30/VLOOKUP(M23,CPI_Index!$A$2:$B$50,2,FALSE),"No Match")*AF23 -> 0.00730625 | AI23: $/therm/yr | AJ23: =IFERROR(VLOOKUP(N23,Confidence_Factor_lookup!$A$4:$Z$99,21,FALSE),0) -> 0.9444444444 | AK23: TRUE
A24: GasC&INew ConstructionPrescriptiveFood ServiceCommercial KitchenCombination OvenO&M - Participant - C&I | B24: 6 | C24: GasC&INew ConstructionPrescriptiveFood ServiceCommercial KitchenO&M - Participant - C&I | D24: 5 | E24: GasC&INew ConstructionPrescriptiveFood ServiceO&M - Participant - C&I | F24: 4 | G24: GasC&INew ConstructionPrescriptiveO&M - Participant - C&I | H24: 3 | I24: GasC&INew ConstructionO&M - Participant - C&I | J24: 2 | K24: =VLOOKUP($N24,Confidence_Factor_lookup!$A$2:$F$49,2,FALSE) -> C&I New Construction NEI Stage 2 Final Report | L24: =VLOOKUP($N24,Confidence_Factor_lookup!$A$2:$F$49,5,FALSE) -> MA | M24: =VLOOKUP($N24,Confidence_Factor_lookup!$A$2:$F$49,4,FALSE) -> 2016 | N24: Study0003 | O24: NC30 | P24: MapID00363 | Q24: Gas | R24: Combination Oven | S24: Commercial Kitchen | T24: Commercial Kitchen | U24: Prescriptive | V24: New Construction | W24: C&I | X24: =IF(R24="","",INDEX('Standard Measure Names (MapID)'!$B$2:$H$1011,MATCH($P24,'Standard Measure Names (MapID)'!$A$2:$A$1011,FALSE),1)) -> Combination Oven | Y24: =IF(S24="","",INDEX('Standard Measure Names (MapID)'!$B$2:$H$1011,MATCH($P24,'Standard Measure Names (MapID)'!$A$2:$A$1011,FALSE),2)) -> Commercial Kitchen | Z24: =IF(T24="","",INDEX('Standard Measure Names (MapID)'!$B$2:$H$1011,MATCH($P24,'Standard Measure Names (MapID)'!$A$2:$A$1011,FALSE),3)) -> Food Service | AA24: =IF(U24="","",INDEX('Standard Measure Names (MapID)'!$B$2:$H$1011,MATCH($P24,'Standard Measure Names (MapID)'!$A$2:$A$1011,FALSE),4)) -> Prescriptive | AB24: =IF(V24="","",INDEX('Standard Measure Names (MapID)'!$B$2:$H$1011,MATCH($P24,'Standard Measure Names (MapID)'!$A$2:$A$1011,FALSE),5)) -> New Construction | AC24: =IF(W24="","",INDEX('Standard Measure Names (MapID)'!$B$2:$H$1011,MATCH($P24,'Standard Measure Names (MapID)'!$A$2:$A$1011,FALSE),6)) -> C&I | AD24: =IF(Q24="","",INDEX('Standard Measure Names (MapID)'!$B$2:$H$1011,MATCH($P24,'Standard Measure Names (MapID)'!$A$2:$A$1011,FALSE),7)) -> Gas | AE24: O&M - Participant - C&I | AF24: 3.399 | AG24: $/therm/yr | AH24: =IFERROR(CPI_Index!$B$30/VLOOKUP(M24,CPI_Index!$A$2:$B$50,2,FALSE),"No Match")*AF24 -> 3.54770625 | AI24: $/therm/yr | AJ24: =IFERROR(VLOOKUP(N24,Confidence_Factor_lookup!$A$4:$Z$99,21,FALSE),0) -> 0.9444444444 | AK24: TRUE
A25: GasC&INew ConstructionPrescriptiveHVACEquipmentCondensing BoilerO&M - Participant - C&I | B25: 6 | C25: GasC&INew ConstructionPrescriptiveHVACEquipmentO&M - Participant - C&I | D25: 5 | E25: GasC&INew ConstructionPrescriptiveHVACO&M - Participant - C&I | F25: 4 | G25: GasC&INew ConstructionPrescriptiveO&M - Participant - C&I | H25: 3 | I25: GasC&INew ConstructionO&M - Participant - C&I | J25: 2 | K25: =VLOOKUP($N25,Confidence_Factor_lookup!$A$2:$F$49,2,FALSE) -> C&I New Construction NEI Stage 2 Final Report | L25: =VLOOKUP($N25,Confidence_Factor_lookup!$A$2:$F$49,5,FALSE) -> MA | M25: =VLOOKUP($N25,Confidence_Factor_lookup!$A$2:$F$49,4,FALSE) -> 2016 | N25: Study0003 | O25: NC31 | P25: MapID00075 | Q25: Gas | R25: Condensing Boiler | S25: Boilers | T25: Boilers | U25: Prescriptive | V25: New Construction | W25: C&I | X25: =IF(R25="","",INDEX('Standard Measure Names (MapID)'!$B$2:$H$1011,MATCH($P25,'Standard Measure Names (MapID)'!$A$2:$A$1011,FALSE),1)) -> Condensing Boiler | Y25: =IF(S25="","",INDEX('Standard Measure Names (MapID)'!$B$2:$H$1011,MATCH($P25,'Standard Measure Names (MapID)'!$A$2:$A$1011,FALSE),2)) -> Equipment | Z25: =IF(T25="","",INDEX('Standard Measure Names (MapID)'!$B$2:$H$1011,MATCH($P25,'Standard Measure Names (MapID)'!$A$2:$A$1011,FALSE),3)) -> HVAC | AA25: =IF(U25="","",INDEX('Standard Measure Names (MapID)'!$B$2:$H$1011,MATCH($P25,'Standard Measure Names (MapID)'!$A$2:$A$1011,FALSE),4)) -> Prescriptive | AB25: =IF(V25="","",INDEX('Standard Measure Names (MapID)'!$B$2:$H$1011,MATCH($P25,'Standard Measure Names (MapID)'!$A$2:$A$1011,FALSE),5)) -> New Construction | AC25: =IF(W25="","",INDEX('Standard Measure Names (MapID)'!$B$2:$H$1011,MATCH($P25,'Standard Measure Names (MapID)'!$A$2:$A$1011,FALSE),6)) -> C&I | AD25: =IF(Q25="","",INDEX('Standard Measure Names (MapID)'!$B$2:$H$1011,MATCH($P25,'Standard Measure Names (MapID)'!$A$2:$A$1011,FALSE),7)) -> Gas | AE25: O&M - Participant - C&I | AF25: -0.084 | AG25: $/therm/yr | AH25: =IFERROR(CPI_Index!$B$30/VLOOKUP(M25,CPI_Index!$A$2:$B$50,2,FALSE),"No Match")*AF25 -> -0.087675 | AI25: $/therm/yr | AJ25: =IFERROR(VLOOKUP(N25,Confidence_Factor_lookup!$A$4:$Z$99,21,FALSE),0) -> 0.9444444444 | AK25: TRUE
A26: GasC&INew ConstructionPrescriptiveHVACEquipmentCombination BoilerO&M - Participant - C&I | B26: 6 | C26: GasC&INew ConstructionPrescriptiveHVACEquipmentO&M - Participant - C&I | D26: 5 | E26: GasC&INew ConstructionPrescriptiveHVACO&M - Participant - C&I | F26: 4 | G26: GasC&INew ConstructionPrescriptiveO&M - Participant - C&I | H26: 3 | I26: GasC&INew ConstructionO&M - Participant - C&I | J26: 2 | K26: =VLOOKUP($N26,Confidence_Factor_lookup!$A$2:$F$49,2,FALSE) -> C&I New Construction NEI Stage 2 Final Report | L26: =VLOOKUP($N26,Confidence_Factor_lookup!$A$2:$F$49,5,FALSE) -> MA | M26: =VLOOKUP($N26,Confidence_Factor_lookup!$A$2:$F$49,4,FALSE) -> 2016 | N26: Study0003 | O26: NC32 | P26: MapID00076 | Q26: Gas | R26: Combination Boiler/Hot Water Heater | S26: Boilers | T26: Boilers | U26: Prescriptive | V26: New Construction | W26: C&I | X26: =IF(R26="","",INDEX('Standard Measure Names (MapID)'!$B$2:$H$1011,MATCH($P26,'Standard Measure Names (MapID)'!$A$2:$A$1011,FALSE),1)) -> Combination Boiler | Y26: =IF(S26="","",INDEX('Standard Measure Names (MapID)'!$B$2:$H$1011,MATCH($P26,'Standard Measure Names (MapID)'!$A$2:$A$1011,FALSE),2)) -> Equipment | Z26: =IF(T26="","",INDEX('Standard Measure Names (MapID)'!$B$2:$H$1011,MATCH($P26,'Standard Measure Names (MapID)'!$A$2:$A$1011,FALSE),3)) -> HVAC | AA26: =IF(U26="","",INDEX('Standard Measure Names (MapID)'!$B$2:$H$1011,MATCH($P26,'Standard Measure Names (MapID)'!$A$2:$A$1011,FALSE),4)) -> Prescriptive | AB26: =IF(V26="","",INDEX('Standard Measure Names (MapID)'!$B$2:$H$1011,MATCH($P26,'Standard Measure Names (MapID)'!$A$2:$A$1011,FALSE),5)) -> New Construction | AC26: =IF(W26="","",INDEX('Standard Measure Names (MapID)'!$B$2:$H$1011,MATCH($P26,'Standard Measure Names (MapID)'!$A$2:$A$1011,FALSE),6)) -> C&I | AD26: =IF(Q26="","",INDEX('Standard Measure Names (MapID)'!$B$2:$H$1011,MATCH($P26,'Standard Measure Names (MapID)'!$A$2:$A$1011,FALSE),7)) -> Gas | AE26: O&M - Participant - C&I | AF26: -0.084 | AG26: $/therm/yr | AH26: =IFERROR(CPI_Index!$B$30/VLOOKUP(M26,CPI_Index!$A$2:$B$50,2,FALSE),"No Match")*AF26 -> -0.087675 | AI26: $/therm/yr | AJ26: =IFERROR(VLOOKUP(N26,Confidence_Factor_lookup!$A$4:$Z$99,21,FALSE),0) -> 0.9444444444 | AK26: TRUE
A27: GasC&INew ConstructionPrescriptiveHVACEquipmentCondensing Unit HeaterO&M - Participant - C&I | B27: 6 | C27: GasC&INew ConstructionPrescriptiveHVACEquipmentO&M - Participant - C&I | D27: 5 | E27: GasC&INew ConstructionPrescriptiveHVACO&M - Participant - C&I | F27: 4 | G27: GasC&INew ConstructionPrescriptiveO&M - Participant - C&I | H27: 3 | I27: GasC&INew ConstructionO&M - Participant - C&I | J27: 2 | K27: =VLOOKUP($N27,Confidence_Factor_lookup!$A$2:$F$49,2,FALSE) -> C&I New Construction NEI Stage 2 Final Report | L27: =VLOOKUP($N27,Confidence_Factor_lookup!$A$2:$F$49,5,FALSE) -> MA | M27: =VLOOKUP($N27,Confidence_Factor_lookup!$A$2:$F$49,4,FALSE) -> 2016 | N27: Study0003 | O27: NC33 | P27: MapID00366 | Q27: Gas | R27: Condensing Unit Heater | S27: Other Gas Heating | T27: Other Gas Heating | U27: Prescriptive | V27: New Construction | W27: C&I | X27: =IF(R27="","",INDEX('Standard Measure Names (MapID)'!$B$2:$H$1011,MATCH($P27,'Standard Measure Names (MapID)'!$A$2:$A$1011,FALSE),1)) -> Condensing Unit Heater | Y27: =IF(S27="","",INDEX('Standard Measure Names (MapID)'!$B$2:$H$1011,MATCH($P27,'Standard Measure Names (MapID)'!$A$2:$A$1011,FALSE),2)) -> Equipment | Z27: =IF(T27="","",INDEX('Standard Measure Names (MapID)'!$B$2:$H$1011,MATCH($P27,'Standard Measure Names (MapID)'!$A$2:$A$1011,FALSE),3)) -> HVAC | AA27: =IF(U27="","",INDEX('Standard Measure Names (MapID)'!$B$2:$H$1011,MATCH($P27,'Standard Measure Names (MapID)'!$A$2:$A$1011,FALSE),4)) -> Prescriptive | AB27: =IF(V27="","",INDEX('Standard Measure Names (MapID)'!$B$2:$H$1011,MATCH($P27,'Standard Measure Names (MapID)'!$A$2:$A$1011,FALSE),5)) -> New Construction | AC27: =IF(W27="","",INDEX('Standard Measure Names (MapID)'!$B$2:$H$1011,MATCH($P27,'Standard Measure Names (MapID)'!$A$2:$A$1011,FALSE),6)) -> C&I | AD27: =IF(Q27="","",INDEX('Standard Measure Names (MapID)'!$B$2:$H$1011,MATCH($P27,'Standard Measure Names (MapID)'!$A$2:$A$1011,FALSE),7)) -> Gas | AE27: O&M - Participant - C&I | AF27: 0.053 | AG27: $/therm/yr | AH27: =IFERROR(CPI_Index!$B$30/VLOOKUP(M27,CPI_Index!$A$2:$B$50,2,FALSE),"No Match")*AF27 -> 0.05531875 | AI27: $/therm/yr | AJ27: =IFERROR(VLOOKUP(N27,Confidence_Factor_lookup!$A$4:$Z$99,21,FALSE),0) -> 0.9444444444 | AK27: TRUE
A28: GasC&INew ConstructionPrescriptiveFood ServiceCommercial KitchenConvection OvenO&M - Participant - C&I | B28: 6 | C28: GasC&INew ConstructionPrescriptiveFood ServiceCommercial KitchenO&M - Participant - C&I | D28: 5 | E28: GasC&INew ConstructionPrescriptiveFood ServiceO&M - Participant - C&I | F28: 4 | G28: GasC&INew ConstructionPrescriptiveO&M - Participant - C&I | H28: 3 | I28: GasC&INew ConstructionO&M - Participant - C&I | J28: 2 | K28: =VLOOKUP($N28,Confidence_Factor_lookup!$A$2:$F$49,2,FALSE) -> C&I New Construction NEI Stage 2 Final Report | L28: =VLOOKUP($N28,Confidence_Factor_lookup!$A$2:$F$49,5,FALSE) -> MA | M28: =VLOOKUP($N28,Confidence_Factor_lookup!$A$2:$F$49,4,FALSE) -> 2016 | N28: Study0003 | O28: NC34 | P28: MapID00068 | Q28: Gas | R28: Convection Oven | S28: Commercial Kitchen | T28: Commercial Kitchen | U28: Prescriptive | V28: New Construction | W28: C&I | X28: =IF(R28="","",INDEX('Standard Measure Names (MapID)'!$B$2:$H$1011,MATCH($P28,'Standard Measure Names (MapID)'!$A$2:$A$1011,FALSE),1)) -> Convection Oven | Y28: =IF(S28="","",INDEX('Standard Measure Names (MapID)'!$B$2:$H$1011,MATCH($P28,'Standard Measure Names (MapID)'!$A$2:$A$1011,FALSE),2)) -> Commercial Kitchen | Z28: =IF(T28="","",INDEX('Standard Measure Names (MapID)'!$B$2:$H$1011,MATCH($P28,'Standard Measure Names (MapID)'!$A$2:$A$1011,FALSE),3)) -> Food Service | AA28: =IF(U28="","",INDEX('Standard Measure Names (MapID)'!$B$2:$H$1011,MATCH($P28,'Standard Measure Names (MapID)'!$A$2:$A$1011,FALSE),4)) -> Prescriptive | AB28: =IF(V28="","",INDEX('Standard Measure Names (MapID)'!$B$2:$H$1011,MATCH($P28,'Standard Measure Names (MapID)'!$A$2:$A$1011,FALSE),5)) -> New Construction | AC28: =IF(W28="","",INDEX('Standard Measure Names (MapID)'!$B$2:$H$1011,MATCH($P28,'Standard Measure Names (MapID)'!$A$2:$A$1011,FALSE),6)) -> C&I | AD28: =IF(Q28="","",INDEX('Standard Measure Names (MapID)'!$B$2:$H$1011,MATCH($P28,'Standard Measure Names (MapID)'!$A$2:$A$1011,FALSE),7)) -> Gas | AE28: O&M - Participant - C&I | AF28: 3.399 | AG28: $/therm/yr | AH28: =IFERROR(CPI_Index!$B$30/VLOOKUP(M28,CPI_Index!$A$2:$B$50,2,FALSE),"No Match")*AF28 -> 3.54770625 | AI28: $/therm/yr | AJ28: =IFERROR(VLOOKUP(N28,Confidence_Factor_lookup!$A$4:$Z$99,21,FALSE),0) -> 0.9444444444 | AK28: TRUE
A29: GasC&INew ConstructionPrescriptiveFood ServiceCommercial KitchenConveyer OvenO&M - Participant - C&I | B29: 6 | C29: GasC&INew ConstructionPrescriptiveFood ServiceCommercial KitchenO&M - Participant - C&I | D29: 5 | E29: GasC&INew ConstructionPrescriptiveFood ServiceO&M - Participant - C&I | F29: 4 | G29: GasC&INew ConstructionPrescriptiveO&M - Participant - C&I | H29: 3 | I29: GasC&INew ConstructionO&M - Participant - C&I | J29: 2 | K29: =VLOOKUP($N29,Confidence_Factor_lookup!$A$2:$F$49,2,FALSE) -> C&I New Construction NEI Stage 2 Final Report | L29: =VLOOKUP($N29,Confidence_Factor_lookup!$A$2:$F$49,5,FALSE) -> MA | M29: =VLOOKUP($N29,Confidence_Factor_lookup!$A$2:$F$49,4,FALSE) -> 2016 | N29: Study0003 | O29: NC35 | P29: MapID00069 | Q29: Gas | R29: Conveyer Oven | S29: Commercial Kitchen | T29: Commercial Kitchen | U29: Prescriptive | V29: New Construction | W29: C&I | X29: =IF(R29="","",INDEX('Standard Measure Names (MapID)'!$B$2:$H$1011,MATCH($P29,'Standard Measure Names (MapID)'!$A$2:$A$1011,FALSE),1)) -> Conveyer Oven | Y29: =IF(S29="","",INDEX('Standard Measure Names (MapID)'!$B$2:$H$1011,MATCH($P29,'Standard Measure Names (MapID)'!$A$2:$A$1011,FALSE),2)) -> Commercial Kitchen | Z29: =IF(T29="","",INDEX('Standard Measure Names (MapID)'!$B$2:$H$1011,MATCH($P29,'Standard Measure Names (MapID)'!$A$2:$A$1011,FALSE),3)) -> Food Service | AA29: =IF(U29="","",INDEX('Standard Measure Names (MapID)'!$B$2:$H$1011,MATCH($P29,'Standard Measure Names (MapID)'!$A$2:$A$1011,FALSE),4)) -> Prescriptive | AB29: =IF(V29="","",INDEX('Standard Measure Names (MapID)'!$B$2:$H$1011,MATCH($P29,'Standard Measure Names (MapID)'!$A$2:$A$1011,FALSE),5)) -> New Construction | AC29: =IF(W29="","",INDEX('Standard Measure Names (MapID)'!$B$2:$H$1011,MATCH($P29,'Standard Measure Names (MapID)'!$A$2:$A$1011,FALSE),6)) -> C&I | AD29: =IF(Q29="","",INDEX('Standard Measure Names (MapID)'!$B$2:$H$1011,MATCH($P29,'Standard Measure Names (MapID)'!$A$2:$A$1011,FALSE),7)) -> Gas | AE29: O&M - Participant - C&I | AF29: 3.399 | AG29: $/therm/yr | AH29: =IFERROR(CPI_Index!$B$30/VLOOKUP(M29,CPI_Index!$A$2:$B$50,2,FALSE),"No Match")*AF29 -> 3.54770625 | AI29: $/therm/yr | AJ29: =IFERROR(VLOOKUP(N29,Confidence_Factor_lookup!$A$4:$Z$99,21,FALSE),0) -> 0.9444444444 | AK29: TRUE
A30: GasC&INew ConstructionPrescriptiveFood ServiceCommercial KitchenO&M - Participant - C&I | B30: 6 | C30: GasC&INew ConstructionPrescriptiveFood ServiceCommercial KitchenO&M - Participant - C&I | D30: 5 | E30: GasC&INew ConstructionPrescriptiveFood ServiceO&M - Participant - C&I | F30: 4 | G30: GasC&INew ConstructionPrescriptiveO&M - Participant - C&I | H30: 3 | I30: GasC&INew ConstructionO&M - Participant - C&I | J30: 2 | K30: =VLOOKUP($N30,Confidence_Factor_lookup!$A$2:$F$49,2,FALSE) -> C&I New Construction NEI Stage 2 Final Report | L30: =VLOOKUP($N30,Confidence_Factor_lookup!$A$2:$F$49,5,FALSE) -> MA | M30: =VLOOKUP($N30,Confidence_Factor_lookup!$A$2:$F$49,4,FALSE) -> 2016 | N30: Study0003 | O30: NC36 | P30: MapID00362 | Q30: Gas | S30: Commercial Kitchen | T30: Commercial Kitchen | U30: Prescriptive | V30: New Construction | W30: C&I | X30: =IF(R30="","",INDEX('Standard Measure Names (MapID)'!$B$2:$H$1011,MATCH($P30,'Standard Measure Names (MapID)'!$A$2:$A$1011,FALSE),1)) ->  | Y30: =IF(S30="","",INDEX('Standard Measure Names (MapID)'!$B$2:$H$1011,MATCH($P30,'Standard Measure Names (MapID)'!$A$2:$A$1011,FALSE),2)) -> Commercial Kitchen | Z30: =IF(T30="","",INDEX('Standard Measure Names (MapID)'!$B$2:$H$1011,MATCH($P30,'Standard Measure Names (MapID)'!$A$2:$A$1011,FALSE),3)) -> Food Service | AA30: =IF(U30="","",INDEX('Standard Measure Names (MapID)'!$B$2:$H$1011,MATCH($P30,'Standard Measure Names (MapID)'!$A$2:$A$1011,FALSE),4)) -> Prescriptive | AB30: =IF(V30="","",INDEX('Standard Measure Names (MapID)'!$B$2:$H$1011,MATCH($P30,'Standard Measure Names (MapID)'!$A$2:$A$1011,FALSE),5)) -> New Construction | AC30: =IF(W30="","",INDEX('Standard Measure Names (MapID)'!$B$2:$H$1011,MATCH($P30,'Standard Measure Names (MapID)'!$A$2:$A$1011,FALSE),6)) -> C&I | AD30: =IF(Q30="","",INDEX('Standard Measure Names (MapID)'!$B$2:$H$1011,MATCH($P30,'Standard Measure Names (MapID)'!$A$2:$A$1011,FALSE),7)) -> Gas | AE30: O&M - Participant - C&I | AF30: 3.399 | AG30: $/therm/yr | AH30: =IFERROR(CPI_Index!$B$30/VLOOKUP(M30,CPI_Index!$A$2:$B$50,2,FALSE),"No Match")*AF30 -> 3.54770625 | AI30: $/therm/yr | AJ30: =IFERROR(VLOOKUP(N30,Confidence_Factor_lookup!$A$4:$Z$99,21,FALSE),0) -> 0.9444444444 | AK30: TRUE
A31: GasC&INew ConstructionPrescriptiveFood ServiceCommercial KitchenFryerO&M - Participant - C&I | B31: 6 | C31: GasC&INew ConstructionPrescriptiveFood ServiceCommercial KitchenO&M - Participant - C&I | D31: 5 | E31: GasC&INew ConstructionPrescriptiveFood ServiceO&M - Participant - C&I | F31: 4 | G31: GasC&INew ConstructionPrescriptiveO&M - Participant - C&I | H31: 3 | I31: GasC&INew ConstructionO&M - Participant - C&I | J31: 2 | K31: =VLOOKUP($N31,Confidence_Factor_lookup!$A$2:$F$49,2,FALSE) -> C&I New Construction NEI Stage 2 Final Report | L31: =VLOOKUP($N31,Confidence_Factor_lookup!$A$2:$F$49,5,FALSE) -> MA | M31: =VLOOKUP($N31,Confidence_Factor_lookup!$A$2:$F$49,4,FALSE) -> 2016 | N31: Study0003 | O31: NC37 | P31: MapID00071 | Q31: Gas | R31: Fryer | S31: Commercial Kitchen | T31: Commercial Kitchen | U31: Prescriptive | V31: New Construction | W31: C&I | X31: =IF(R31="","",INDEX('Standard Measure Names (MapID)'!$B$2:$H$1011,MATCH($P31,'Standard Measure Names (MapID)'!$A$2:$A$1011,FALSE),1)) -> Fryer | Y31: =IF(S31="","",INDEX('Standard Measure Names (MapID)'!$B$2:$H$1011,MATCH($P31,'Standard Measure Names (MapID)'!$A$2:$A$1011,FALSE),2)) -> Commercial Kitchen | Z31: =IF(T31="","",INDEX('Standard Measure Names (MapID)'!$B$2:$H$1011,MATCH($P31,'Standard Measure Names (MapID)'!$A$2:$A$1011,FALSE),3)) -> Food Service | AA31: =IF(U31="","",INDEX('Standard Measure Names (MapID)'!$B$2:$H$1011,MATCH($P31,'Standard Measure Names (MapID)'!$A$2:$A$1011,FALSE),4)) -> Prescriptive | AB31: =IF(V31="","",INDEX('Standard Measure Names (MapID)'!$B$2:$H$1011,MATCH($P31,'Standard Measure Names (MapID)'!$A$2:$A$1011,FALSE),5)) -> New Construction | AC31: =IF(W31="","",INDEX('Standard Measure Names (MapID)'!$B$2:$H$1011,MATCH($P31,'Standard Measure Names (MapID)'!$A$2:$A$1011,FALSE),6)) -> C&I | AD31: =IF(Q31="","",INDEX('Standard Measure Names (MapID)'!$B$2:$H$1011,MATCH($P31,'Standard Measure Names (MapID)'!$A$2:$A$1011,FALSE),7)) -> Gas | AE31: O&M - Participant - C&I | AF31: 3.399 | AG31: $/therm/yr | AH31: =IFERROR(CPI_Index!$B$30/VLOOKUP(M31,CPI_Index!$A$2:$B$50,2,FALSE),"No Match")*AF31 -> 3.54770625 | AI31: $/therm/yr | AJ31: =IFERROR(VLOOKUP(N31,Confidence_Factor_lookup!$A$4:$Z$99,21,FALSE),0) -> 0.9444444444 | AK31: TRUE
A32: GasC&INew ConstructionPrescriptiveHVACEquipmentFurnaceO&M - Participant - C&I | B32: 6 | C32: GasC&INew ConstructionPrescriptiveHVACEquipmentO&M - Participant - C&I | D32: 5 | E32: GasC&INew ConstructionPrescriptiveHVACO&M - Participant - C&I | F32: 4 | G32: GasC&INew ConstructionPrescriptiveO&M - Participant - C&I | H32: 3 | I32: GasC&INew ConstructionO&M - Participant - C&I | J32: 2 | K32: =VLOOKUP($N32,Confidence_Factor_lookup!$A$2:$F$49,2,FALSE) -> C&I New Construction NEI Stage 2 Final Report | L32: =VLOOKUP($N32,Confidence_Factor_lookup!$A$2:$F$49,5,FALSE) -> MA | M32: =VLOOKUP($N32,Confidence_Factor_lookup!$A$2:$F$49,4,FALSE) -> 2016 | N32: Study0003 | O32: NC38 | P32: MapID00365 | Q32: Gas | R32: Furnace | S32: Other Gas Heating | T32: Other Gas Heating | U32: Prescriptive | V32: New Construction | W32: C&I | X32: =IF(R32="","",INDEX('Standard Measure Names (MapID)'!$B$2:$H$1011,MATCH($P32,'Standard Measure Names (MapID)'!$A$2:$A$1011,FALSE),1)) -> Furnace | Y32: =IF(S32="","",INDEX('Standard Measure Names (MapID)'!$B$2:$H$1011,MATCH($P32,'Standard Measure Names (MapID)'!$A$2:$A$1011,FALSE),2)) -> Equipment | Z32: =IF(T32="","",INDEX('Standard Measure Names (MapID)'!$B$2:$H$1011,MATCH($P32,'Standard Measure Names (MapID)'!$A$2:$A$1011,FALSE),3)) -> HVAC | AA32: =IF(U32="","",INDEX('Standard Measure Names (MapID)'!$B$2:$H$1011,MATCH($P32,'Standard Measure Names (MapID)'!$A$2:$A$1011,FALSE),4)) -> Prescriptive | AB32: =IF(V32="","",INDEX('Standard Measure Names (MapID)'!$B$2:$H$1011,MATCH($P32,'Standard Measure Names (MapID)'!$A$2:$A$1011,FALSE),5)) -> New Construction | AC32: =IF(W32="","",INDEX('Standard Measure Names (MapID)'!$B$2:$H$1011,MATCH($P32,'Standard Measure Names (MapID)'!$A$2:$A$1011,FALSE),6)) -> C&I | AD32: =IF(Q32="","",INDEX('Standard Measure Names (MapID)'!$B$2:$H$1011,MATCH($P32,'Standard Measure Names (MapID)'!$A$2:$A$1011,FALSE),7)) -> Gas | AE32: O&M - Participant - C&I | AF32: 0.053 | AG32: $/therm/yr | AH32: =IFERROR(CPI_Index!$B$30/VLOOKUP(M32,CPI_Index!$A$2:$B$50,2,FALSE),"No Match")*AF32 -> 0.05531875 | AI32: $/therm/yr | AJ32: =IFERROR(VLOOKUP(N32,Confidence_Factor_lookup!$A$4:$Z$99,21,FALSE),0) -> 0.9444444444 | AK32: TRUE
A33: GasC&INew ConstructionPrescriptiveFood ServiceCommercial KitchenGriddleO&M - Participant - C&I | B33: 6 | C33: GasC&INew ConstructionPrescriptiveFood ServiceCommercial KitchenO&M - Participant - C&I | D33: 5 | E33: GasC&INew ConstructionPrescriptiveFood ServiceO&M - Participant - C&I | F33: 4 | G33: GasC&INew ConstructionPrescriptiveO&M - Participant - C&I | H33: 3 | I33: GasC&INew ConstructionO&M - Participant - C&I | J33: 2 | K33: =VLOOKUP($N33,Confidence_Factor_lookup!$A$2:$F$49,2,FALSE) -> C&I New Construction NEI Stage 2 Final Report | L33: =VLOOKUP($N33,Confidence_Factor_lookup!$A$2:$F$49,5,FALSE) -> MA | M33: =VLOOKUP($N33,Confidence_Factor_lookup!$A$2:$F$49,4,FALSE) -> 2016 | N33: Study0003 | O33: NC39 | P33: MapID00072 | Q33: Gas | R33: Griddle | S33: Commercial Kitchen | T33: Commercial Kitchen | U33: Prescriptive | V33: New Construction | W33: C&I | X33: =IF(R33="","",INDEX('Standard Measure Names (MapID)'!$B$2:$H$1011,MATCH($P33,'Standard Measure Names (MapID)'!$A$2:$A$1011,FALSE),1)) -> Griddle | Y33: =IF(S33="","",INDEX('Standard Measure Names (MapID)'!$B$2:$H$1011,MATCH($P33,'Standard Measure Names (MapID)'!$A$2:$A$1011,FALSE),2)) -> Commercial Kitchen | Z33: =IF(T33="","",INDEX('Standard Measure Names (MapID)'!$B$2:$H$1011,MATCH($P33,'Standard Measure Names (MapID)'!$A$2:$A$1011,FALSE),3)) -> Food Service | AA33: =IF(U33="","",INDEX('Standard Measure Names (MapID)'!$B$2:$H$1011,MATCH($P33,'Standard Measure Names (MapID)'!$A$2:$A$1011,FALSE),4)) -> Prescriptive | AB33: =IF(V33="","",INDEX('Standard Measure Names (MapID)'!$B$2:$H$1011,MATCH($P33,'Standard Measure Names (MapID)'!$A$2:$A$1011,FALSE),5)) -> New Construction | AC33: =IF(W33="","",INDEX('Standard Measure Names (MapID)'!$B$2:$H$1011,MATCH($P33,'Standard Measure Names (MapID)'!$A$2:$A$1011,FALSE),6)) -> C&I | AD33: =IF(Q33="","",INDEX('Standard Measure Names (MapID)'!$B$2:$H$1011,MATCH($P33,'Standard Measure Names (MapID)'!$A$2:$A$1011,FALSE),7)) -> Gas | AE33: O&M - Participant - C&I | AF33: 3.399 | AG33: $/therm/yr | AH33: =IFERROR(CPI_Index!$B$30/VLOOKUP(M33,CPI_Index!$A$2:$B$50,2,FALSE),"No Match")*AF33 -> 3.54770625 | AI33: $/therm/yr | AJ33: =IFERROR(VLOOKUP(N33,Confidence_Factor_lookup!$A$4:$Z$99,21,FALSE),0) -> 0.9444444444 | AK33: TRUE
A34: GasC&INew ConstructionPrescriptiveHVACEquipmentHeating Equipment UpgradeO&M - Participant - C&I | B34: 6 | C34: GasC&INew ConstructionPrescriptiveHVACEquipmentO&M - Participant - C&I | D34: 5 | E34: GasC&INew ConstructionPrescriptiveHVACO&M - Participant - C&I | F34: 4 | G34: GasC&INew ConstructionPrescriptiveO&M - Participant - C&I | H34: 3 | I34: GasC&INew ConstructionO&M - Participant - C&I | J34: 2 | K34: =VLOOKUP($N34,Confidence_Factor_lookup!$A$2:$F$49,2,FALSE) -> C&I New Construction NEI Stage 2 Final Report | L34: =VLOOKUP($N34,Confidence_Factor_lookup!$A$2:$F$49,5,FALSE) -> MA | M34: =VLOOKUP($N34,Confidence_Factor_lookup!$A$2:$F$49,4,FALSE) -> 2016 | N34: Study0003 | O34: NC40 | P34: MapID00203 | Q34: Gas | R34: Heating | S34: Other Gas Heating | T34: Other Gas Heating | U34: Prescriptive | V34: New Construction | W34: C&I | X34: =IF(R34="","",INDEX('Standard Measure Names (MapID)'!$B$2:$H$1011,MATCH($P34,'Standard Measure Names (MapID)'!$A$2:$A$1011,FALSE),1)) -> Heating Equipment Upgrade | Y34: =IF(S34="","",INDEX('Standard Measure Names (MapID)'!$B$2:$H$1011,MATCH($P34,'Standard Measure Names (MapID)'!$A$2:$A$1011,FALSE),2)) -> Equipment | Z34: =IF(T34="","",INDEX('Standard Measure Names (MapID)'!$B$2:$H$1011,MATCH($P34,'Standard Measure Names (MapID)'!$A$2:$A$1011,FALSE),3)) -> HVAC | AA34: =IF(U34="","",INDEX('Standard Measure Names (MapID)'!$B$2:$H$1011,MATCH($P34,'Standard Measure Names (MapID)'!$A$2:$A$1011,FALSE),4)) -> Prescriptive | AB34: =IF(V34="","",INDEX('Standard Measure Names (MapID)'!$B$2:$H$1011,MATCH($P34,'Standard Measure Names (MapID)'!$A$2:$A$1011,FALSE),5)) -> New Construction | AC34: =IF(W34="","",INDEX('Standard Measure Names (MapID)'!$B$2:$H$1011,MATCH($P34,'Standard Measure Names (MapID)'!$A$2:$A$1011,FALSE),6)) -> C&I | AD34: =IF(Q34="","",INDEX('Standard Measure Names (MapID)'!$B$2:$H$1011,MATCH($P34,'Standard Measure Names (MapID)'!$A$2:$A$1011,FALSE),7)) -> Gas | AE34: O&M - Participant - C&I | AF34: 0.053 | AG34: $/therm/yr | AH34: =IFERROR(CPI_Index!$B$30/VLOOKUP(M34,CPI_Index!$A$2:$B$50,2,FALSE),"No Match")*AF34 -> 0.05531875 | AI34: $/therm/yr | AJ34: =IFERROR(VLOOKUP(N34,Confidence_Factor_lookup!$A$4:$Z$99,21,FALSE),0) -> 0.9444444444 | AK34: TRUE
A35: GasC&INew ConstructionPrescriptiveHVACHeat RecoveryHeat Recovery UpgradeO&M - Participant - C&I | B35: 6 | C35: GasC&INew ConstructionPrescriptiveHVACHeat RecoveryO&M - Participant - C&I | D35: 5 | E35: GasC&INew ConstructionPrescriptiveHVACO&M - Participant - C&I | F35: 4 | G35: GasC&INew ConstructionPrescriptiveO&M - Participant - C&I | H35: 3 | I35: GasC&INew ConstructionO&M - Participant - C&I | J35: 2 | K35: =VLOOKUP($N35,Confidence_Factor_lookup!$A$2:$F$49,2,FALSE) -> C&I New Construction NEI Stage 2 Final Report | L35: =VLOOKUP($N35,Confidence_Factor_lookup!$A$2:$F$49,5,FALSE) -> MA | M35: =VLOOKUP($N35,Confidence_Factor_lookup!$A$2:$F$49,4,FALSE) -> 2016 | N35: Study0003 | O35: NC42 | P35: MapID00202 | Q35: Gas | R35: HVAC/Heat Recovery | S35: HVAC/Heat Recovery | T35: HVAC/Heat Recovery | U35: Prescriptive | V35: New Construction | W35: C&I | X35: =IF(R35="","",INDEX('Standard Measure Names (MapID)'!$B$2:$H$1011,MATCH($P35,'Standard Measure Names (MapID)'!$A$2:$A$1011,FALSE),1)) -> Heat Recovery Upgrade | Y35: =IF(S35="","",INDEX('Standard Measure Names (MapID)'!$B$2:$H$1011,MATCH($P35,'Standard Measure Names (MapID)'!$A$2:$A$1011,FALSE),2)) -> Heat Recovery | Z35: =IF(T35="","",INDEX('Standard Measure Names (MapID)'!$B$2:$H$1011,MATCH($P35,'Standard Measure Names (MapID)'!$A$2:$A$1011,FALSE),3)) -> HVAC | AA35: =IF(U35="","",INDEX('Standard Measure Names (MapID)'!$B$2:$H$1011,MATCH($P35,'Standard Measure Names (MapID)'!$A$2:$A$1011,FALSE),4)) -> Prescriptive | AB35: =IF(V35="","",INDEX('Standard Measure Names (MapID)'!$B$2:$H$1011,MATCH($P35,'Standard Measure Names (MapID)'!$A$2:$A$1011,FALSE),5)) -> New Construction | AC35: =IF(W35="","",INDEX('Standard Measure Names (MapID)'!$B$2:$H$1011,MATCH($P35,'Standard Measure Names (MapID)'!$A$2:$A$1011,FALSE),6)) -> C&I | AD35: =IF(Q35="","",INDEX('Standard Measure Names (MapID)'!$B$2:$H$1011,MATCH($P35,'Standard Measure Names (MapID)'!$A$2:$A$1011,FALSE),7)) -> Gas | AE35: O&M - Participant - C&I | AF35: -0.085 | AG35: $/therm/yr | AH35: =IFERROR(CPI_Index!$B$30/VLOOKUP(M35,CPI_Index!$A$2:$B$50,2,FALSE),"No Match")*AF35 -> -0.08871875 | AI35: $/therm/yr | AJ35: =IFERROR(VLOOKUP(N35,Confidence_Factor_lookup!$A$4:$Z$99,21,FALSE),0) -> 0.9444444444 | AK35: TRUE
A36: GasC&INew ConstructionPrescriptiveHVACEquipmentInfrared HeaterO&M - Participant - C&I | B36: 6 | C36: GasC&INew ConstructionPrescriptiveHVACEquipmentO&M - Participant - C&I | D36: 5 | E36: GasC&INew ConstructionPrescriptiveHVACO&M - Participant - C&I | F36: 4 | G36: GasC&INew ConstructionPrescriptiveO&M - Participant - C&I | H36: 3 | I36: GasC&INew ConstructionO&M - Participant - C&I | J36: 2 | K36: =VLOOKUP($N36,Confidence_Factor_lookup!$A$2:$F$49,2,FALSE) -> C&I New Construction NEI Stage 2 Final Report | L36: =VLOOKUP($N36,Confidence_Factor_lookup!$A$2:$F$49,5,FALSE) -> MA | M36: =VLOOKUP($N36,Confidence_Factor_lookup!$A$2:$F$49,4,FALSE) -> 2016 | N36: Study0003 | O36: NC43 | P36: MapID00367 | Q36: Gas | R36: Infrared Heaters | S36: Other Gas Heating | T36: Other Gas Heating | U36: Prescriptive | V36: New Construction | W36: C&I | X36: =IF(R36="","",INDEX('Standard Measure Names (MapID)'!$B$2:$H$1011,MATCH($P36,'Standard Measure Names (MapID)'!$A$2:$A$1011,FALSE),1)) -> Infrared Heater | Y36: =IF(S36="","",INDEX('Standard Measure Names (MapID)'!$B$2:$H$1011,MATCH($P36,'Standard Measure Names (MapID)'!$A$2:$A$1011,FALSE),2)) -> Equipment | Z36: =IF(T36="","",INDEX('Standard Measure Names (MapID)'!$B$2:$H$1011,MATCH($P36,'Standard Measure Names (MapID)'!$A$2:$A$1011,FALSE),3)) -> HVAC | AA36: =IF(U36="","",INDEX('Standard Measure Names (MapID)'!$B$2:$H$1011,MATCH($P36,'Standard Measure Names (MapID)'!$A$2:$A$1011,FALSE),4)) -> Prescriptive | AB36: =IF(V36="","",INDEX('Standard Measure Names (MapID)'!$B$2:$H$1011,MATCH($P36,'Standard Measure Names (MapID)'!$A$2:$A$1011,FALSE),5)) -> New Construction | AC36: =IF(W36="","",INDEX('Standard Measure Names (MapID)'!$B$2:$H$1011,MATCH($P36,'Standard Measure Names (MapID)'!$A$2:$A$1011,FALSE),6)) -> C&I | AD36: =IF(Q36="","",INDEX('Standard Measure Names (MapID)'!$B$2:$H$1011,MATCH($P36,'Standard Measure Names (MapID)'!$A$2:$A$1011,FALSE),7)) -> Gas | AE36: O&M - Participant - C&I | AF36: 0.053 | AG36: $/therm/yr | AH36: =IFERROR(CPI_Index!$B$30/VLOOKUP(M36,CPI_Index!$A$2:$B$50,2,FALSE),"No Match")*AF36 -> 0.05531875 | AI36: $/therm/yr | AJ36: =IFERROR(VLOOKUP(N36,Confidence_Factor_lookup!$A$4:$Z$99,21,FALSE),0) -> 0.9444444444 | AK36: TRUE
A37: GasC&INew ConstructionPrescriptiveFood ServiceCommercial KitchenRack OvenO&M - Participant - C&I | B37: 6 | C37: GasC&INew ConstructionPrescriptiveFood ServiceCommercial KitchenO&M - Participant - C&I | D37: 5 | E37: GasC&INew ConstructionPrescriptiveFood ServiceO&M - Participant - C&I | F37: 4 | G37: GasC&INew ConstructionPrescriptiveO&M - Participant - C&I | H37: 3 | I37: GasC&INew ConstructionO&M - Participant - C&I | J37: 2 | K37: =VLOOKUP($N37,Confidence_Factor_lookup!$A$2:$F$49,2,FALSE) -> C&I New Construction NEI Stage 2 Final Report | L37: =VLOOKUP($N37,Confidence_Factor_lookup!$A$2:$F$49,5,FALSE) -> MA | M37: =VLOOKUP($N37,Confidence_Factor_lookup!$A$2:$F$49,4,FALSE) -> 2016 | N37: Study0003 | O37: NC44 | P37: MapID00073 | Q37: Gas | R37: Rack Oven | S37: Commercial Kitchen | T37: Commercial Kitchen | U37: Prescriptive | V37: New Construction | W37: C&I | X37: =IF(R37="","",INDEX('Standard Measure Names (MapID)'!$B$2:$H$1011,MATCH($P37,'Standard Measure Names (MapID)'!$A$2:$A$1011,FALSE),1)) -> Rack Oven | Y37: =IF(S37="","",INDEX('Standard Measure Names (MapID)'!$B$2:$H$1011,MATCH($P37,'Standard Measure Names (MapID)'!$A$2:$A$1011,FALSE),2)) -> Commercial Kitchen | Z37: =IF(T37="","",INDEX('Standard Measure Names (MapID)'!$B$2:$H$1011,MATCH($P37,'Standard Measure Names (MapID)'!$A$2:$A$1011,FALSE),3)) -> Food Service | AA37: =IF(U37="","",INDEX('Standard Measure Names (MapID)'!$B$2:$H$1011,MATCH($P37,'Standard Measure Names (MapID)'!$A$2:$A$1011,FALSE),4)) -> Prescriptive | AB37: =IF(V37="","",INDEX('Standard Measure Names (MapID)'!$B$2:$H$1011,MATCH($P37,'Standard Measure Names (MapID)'!$A$2:$A$1011,FALSE),5)) -> New Construction | AC37: =IF(W37="","",INDEX('Standard Measure Names (MapID)'!$B$2:$H$1011,MATCH($P37,'Standard Measure Names (MapID)'!$A$2:$A$1011,FALSE),6)) -> C&I | AD37: =IF(Q37="","",INDEX('Standard Measure Names (MapID)'!$B$2:$H$1011,MATCH($P37,'Standard Measure Names (MapID)'!$A$2:$A$1011,FALSE),7)) -> Gas | AE37: O&M - Participant - C&I | AF37: 3.399 | AG37: $/therm/yr | AH37: =IFERROR(CPI_Index!$B$30/VLOOKUP(M37,CPI_Index!$A$2:$B$50,2,FALSE),"No Match")*AF37 -> 3.54770625 | AI37: $/therm/yr | AJ37: =IFERROR(VLOOKUP(N37,Confidence_Factor_lookup!$A$4:$Z$99,21,FALSE),0) -> 0.9444444444 | AK37: TRUE
A38: GasC&INew ConstructionPrescriptiveFood ServiceCommercial KitchenSteamerO&M - Participant - C&I | B38: 6 | C38: GasC&INew ConstructionPrescriptiveFood ServiceCommercial KitchenO&M - Participant - C&I | D38: 5 | E38: GasC&INew ConstructionPrescriptiveFood ServiceO&M - Participant - C&I | F38: 4 | G38: GasC&INew ConstructionPrescriptiveO&M - Participant - C&I | H38: 3 | I38: GasC&INew ConstructionO&M - Participant - C&I | J38: 2 | K38: =VLOOKUP($N38,Confidence_Factor_lookup!$A$2:$F$49,2,FALSE) -> C&I New Construction NEI Stage 2 Final Report | L38: =VLOOKUP($N38,Confidence_Factor_lookup!$A$2:$F$49,5,FALSE) -> MA | M38: =VLOOKUP($N38,Confidence_Factor_lookup!$A$2:$F$49,4,FALSE) -> 2016 | N38: Study0003 | O38: NC45 | P38: MapID00074 | Q38: Gas | R38: Steamer | S38: Commercial Kitchen | T38: Commercial Kitchen | U38: Prescriptive | V38: New Construction | W38: C&I | X38: =IF(R38="","",INDEX('Standard Measure Names (MapID)'!$B$2:$H$1011,MATCH($P38,'Standard Measure Names (MapID)'!$A$2:$A$1011,FALSE),1)) -> Steamer | Y38: =IF(S38="","",INDEX('Standard Measure Names (MapID)'!$B$2:$H$1011,MATCH($P38,'Standard Measure Names (MapID)'!$A$2:$A$1011,FALSE),2)) -> Commercial Kitchen | Z38: =IF(T38="","",INDEX('Standard Measure Names (MapID)'!$B$2:$H$1011,MATCH($P38,'Standard Measure Names (MapID)'!$A$2:$A$1011,FALSE),3)) -> Food Service | AA38: =IF(U38="","",INDEX('Standard Measure Names (MapID)'!$B$2:$H$1011,MATCH($P38,'Standard Measure Names (MapID)'!$A$2:$A$1011,FALSE),4)) -> Prescriptive | AB38: =IF(V38="","",INDEX('Standard Measure Names (MapID)'!$B$2:$H$1011,MATCH($P38,'Standard Measure Names (MapID)'!$A$2:$A$1011,FALSE),5)) -> New Construction | AC38: =IF(W38="","",INDEX('Standard Measure Names (MapID)'!$B$2:$H$1011,MATCH($P38,'Standard Measure Names (MapID)'!$A$2:$A$1011,FALSE),6)) -> C&I | AD38: =IF(Q38="","",INDEX('Standard Measure Names (MapID)'!$B$2:$H$1011,MATCH($P38,'Standard Measure Names (MapID)'!$A$2:$A$1011,FALSE),7)) -> Gas | AE38: O&M - Participant - C&I | AF38: 3.399 | AG38: $/therm/yr | AH38: =IFERROR(CPI_Index!$B$30/VLOOKUP(M38,CPI_Index!$A$2:$B$50,2,FALSE),"No Match")*AF38 -> 3.54770625 | AI38: $/therm/yr | AJ38: =IFERROR(VLOOKUP(N38,Confidence_Factor_lookup!$A$4:$Z$99,21,FALSE),0) -> 0.9444444444 | AK38: TRUE
A39: ElectricityC&IRetrofitPrescriptiveHVACAdministrative costs - Participant - C&I | B39: 6 | C39: ElectricityC&IRetrofitPrescriptiveHVACAdministrative costs - Participant - C&I | D39: 5 | E39: ElectricityC&IRetrofitPrescriptiveHVACAdministrative costs - Participant - C&I | F39: 4 | G39: ElectricityC&IRetrofitPrescriptiveAdministrative costs - Participant - C&I | H39: 3 | I39: ElectricityC&IRetrofitAdministrative costs - Participant - C&I | J39: 2 | K39: =VLOOKUP($N39,Confidence_Factor_lookup!$A$2:$F$49,2,FALSE) -> Final Report – Commercial and Industrial Non-Energy Impacts Study | L39: =VLOOKUP($N39,Confidence_Factor_lookup!$A$2:$F$49,5,FALSE) -> MA | M39: =VLOOKUP($N39,Confidence_Factor_lookup!$A$2:$F$49,4,FALSE) -> 2012 | N39: Study0002 | O39: Retro1 | P39: MapID00093 | Q39: Electricity | T39: HVAC | U39: Prescriptive | V39: Retrofit | W39: C&I | X39: =IF(R39="","",INDEX('Standard Measure Names (MapID)'!$B$2:$H$1011,MATCH($P39,'Standard Measure Names (MapID)'!$A$2:$A$1011,FALSE),1)) ->  | Y39: =IF(S39="","",INDEX('Standard Measure Names (MapID)'!$B$2:$H$1011,MATCH($P39,'Standard Measure Names (MapID)'!$A$2:$A$1011,FALSE),2)) ->  | Z39: =IF(T39="","",INDEX('Standard Measure Names (MapID)'!$B$2:$H$1011,MATCH($P39,'Standard Measure Names (MapID)'!$A$2:$A$1011,FALSE),3)) -> HVAC | AA39: =IF(U39="","",INDEX('Standard Measure Names (MapID)'!$B$2:$H$1011,MATCH($P39,'Standard Measure Names (MapID)'!$A$2:$A$1011,FALSE),4)) -> Prescriptive | AB39: =IF(V39="","",INDEX('Standard Measure Names (MapID)'!$B$2:$H$1011,MATCH($P39,'Standard Measure Names (MapID)'!$A$2:$A$1011,FALSE),5)) -> Retrofit | AC39: =IF(W39="","",INDEX('Standard Measure Names (MapID)'!$B$2:$H$1011,MATCH($P39,'Standard Measure Names (MapID)'!$A$2:$A$1011,FALSE),6)) -> C&I | AD39: =IF(Q39="","",INDEX('Standard Measure Names (MapID)'!$B$2:$H$1011,MATCH($P39,'Standard Measure Names (MapID)'!$A$2:$A$1011,FALSE),7)) -> Electricity | AE39: Administrative costs - Participant - C&I | AF39: 0.0079212 | AG39: $/kWh/yr | AH39: =IFERROR(CPI_Index!$B$30/VLOOKUP(M39,CPI_Index!$A$2:$B$50,2,FALSE),"No Match")*AF39 -> 0.00864225 | AI39: $/kWh/yr | AJ39: =IFERROR(VLOOKUP(N39,Confidence_Factor_lookup!$A$4:$Z$99,21,FALSE),0) -> 0.8888888889 | AK39: TRUE
A40: ElectricityC&IRetrofitPrescriptiveHVACO&M - Participant - C&I | B40: 6 | C40: ElectricityC&IRetrofitPrescriptiveHVACO&M - Participant - C&I | D40: 5 | E40: ElectricityC&IRetrofitPrescriptiveHVACO&M - Participant - C&I | F40: 4 | G40: ElectricityC&IRetrofitPrescriptiveO&M - Participant - C&I | H40: 3 | I40: ElectricityC&IRetrofitO&M - Participant - C&I | J40: 2 | K40: =VLOOKUP($N40,Confidence_Factor_lookup!$A$2:$F$49,2,FALSE) -> Final Report – Commercial and Industrial Non-Energy Impacts Study | L40: =VLOOKUP($N40,Confidence_Factor_lookup!$A$2:$F$49,5,FALSE) -> MA | M40: =VLOOKUP($N40,Confidence_Factor_lookup!$A$2:$F$49,4,FALSE) -> 2012 | N40: Study0002 | O40: Retro1 | P40: MapID00093 | Q40: Electricity | T40: HVAC | U40: Prescriptive | V40: Retrofit | W40: C&I | X40: =IF(R40="","",INDEX('Standard Measure Names (MapID)'!$B$2:$H$1011,MATCH($P40,'Standard Measure Names (MapID)'!$A$2:$A$1011,FALSE),1)) ->  | Y40: =IF(S40="","",INDEX('Standard Measure Names (MapID)'!$B$2:$H$1011,MATCH($P40,'Standard Measure Names (MapID)'!$A$2:$A$1011,FALSE),2)) ->  | Z40: =IF(T40="","",INDEX('Standard Measure Names (MapID)'!$B$2:$H$1011,MATCH($P40,'Standard Measure Names (MapID)'!$A$2:$A$1011,FALSE),3)) -> HVAC | AA40: =IF(U40="","",INDEX('Standard Measure Names (MapID)'!$B$2:$H$1011,MATCH($P40,'Standard Measure Names (MapID)'!$A$2:$A$1011,FALSE),4)) -> Prescriptive | AB40: =IF(V40="","",INDEX('Standard Measure Names (MapID)'!$B$2:$H$1011,MATCH($P40,'Standard Measure Names (MapID)'!$A$2:$A$1011,FALSE),5)) -> Retrofit | AC40: =IF(W40="","",INDEX('Standard Measure Names (MapID)'!$B$2:$H$1011,MATCH($P40,'Standard Measure Names (MapID)'!$A$2:$A$1011,FALSE),6)) -> C&I | AD40: =IF(Q40="","",INDEX('Standard Measure Names (MapID)'!$B$2:$H$1011,MATCH($P40,'Standard Measure Names (MapID)'!$A$2:$A$1011,FALSE),7)) -> Electricity | AE40: O&M - Participant - C&I | AF40: 0.0674268 | AG40: $/kWh/yr | AH40: =IFERROR(CPI_Index!$B$30/VLOOKUP(M40,CPI_Index!$A$2:$B$50,2,FALSE),"No Match")*AF40 -> 0.07356451829 | AI40: $/kWh/yr | AJ40: =IFERROR(VLOOKUP(N40,Confidence_Factor_lookup!$A$4:$Z$99,21,FALSE),0) -> 0.8888888889 | AK40: TRUE
A41: ElectricityC&IRetrofitPrescriptiveHVACOther Impacts - Utility - C&I | B41: 6 | C41: ElectricityC&IRetrofitPrescriptiveHVACOther Impacts - Utility - C&I | D41: 5 | E41: ElectricityC&IRetrofitPrescriptiveHVACOther Impacts - Utility - C&I | F41: 4 | G41: ElectricityC&IRetrofitPrescriptiveOther Impacts - Utility - C&I | H41: 3 | I41: ElectricityC&IRetrofitOther Impacts - Utility - C&I | J41: 2 | K41: =VLOOKUP($N41,Confidence_Factor_lookup!$A$2:$F$49,2,FALSE) -> Final Report – Commercial and Industrial Non-Energy Impacts Study | L41: =VLOOKUP($N41,Confidence_Factor_lookup!$A$2:$F$49,5,FALSE) -> MA | M41: =VLOOKUP($N41,Confidence_Factor_lookup!$A$2:$F$49,4,FALSE) -> 2012 | N41: Study0002 | O41: Retro1 | P41: MapID00093 | Q41: Electricity | T41: HVAC | U41: Prescriptive | V41: Retrofit | W41: C&I | X41: =IF(R41="","",INDEX('Standard Measure Names (MapID)'!$B$2:$H$1011,MATCH($P41,'Standard Measure Names (MapID)'!$A$2:$A$1011,FALSE),1)) ->  | Y41: =IF(S41="","",INDEX('Standard Measure Names (MapID)'!$B$2:$H$1011,MATCH($P41,'Standard Measure Names (MapID)'!$A$2:$A$1011,FALSE),2)) ->  | Z41: =IF(T41="","",INDEX('Standard Measure Names (MapID)'!$B$2:$H$1011,MATCH($P41,'Standard Measure Names (MapID)'!$A$2:$A$1011,FALSE),3)) -> HVAC | AA41: =IF(U41="","",INDEX('Standard Measure Names (MapID)'!$B$2:$H$1011,MATCH($P41,'Standard Measure Names (MapID)'!$A$2:$A$1011,FALSE),4)) -> Prescriptive | AB41: =IF(V41="","",INDEX('Standard Measure Names (MapID)'!$B$2:$H$1011,MATCH($P41,'Standard Measure Names (MapID)'!$A$2:$A$1011,FALSE),5)) -> Retrofit | AC41: =IF(W41="","",INDEX('Standard Measure Names (MapID)'!$B$2:$H$1011,MATCH($P41,'Standard Measure Names (MapID)'!$A$2:$A$1011,FALSE),6)) -> C&I | AD41: =IF(Q41="","",INDEX('Standard Measure Names (MapID)'!$B$2:$H$1011,MATCH($P41,'Standard Measure Names (MapID)'!$A$2:$A$1011,FALSE),7)) -> Electricity | AE41: Other Impacts - Utility - C&I | AF41: -0.02898 | AG41: $/kWh/yr | AH41: =IFERROR(CPI_Index!$B$30/VLOOKUP(M41,CPI_Index!$A$2:$B$50,2,FALSE),"No Match")*AF41 -> -0.0316179878 | AI41: $/kWh/yr | AJ41: =IFERROR(VLOOKUP(N41,Confidence_Factor_lookup!$A$4:$Z$99,21,FALSE),0) -> 0.8888888889 | AK41: TRUE
A42: ElectricityC&IRetrofitPrescriptiveHVACOther Impacts - Participant - C&I | B42: 6 | C42: ElectricityC&IRetrofitPrescriptiveHVACOther Impacts - Participant - C&I | D42: 5 | E42: ElectricityC&IRetrofitPrescriptiveHVACOther Impacts - Participant - C&I | F42: 4 | G42: ElectricityC&IRetrofitPrescriptiveOther Impacts - Participant - C&I | H42: 3 | I42: ElectricityC&IRetrofitOther Impacts - Participant - C&I | J42: 2 | K42: =VLOOKUP($N42,Confidence_Factor_lookup!$A$2:$F$49,2,FALSE) -> Final Report – Commercial and Industrial Non-Energy Impacts Study | L42: =VLOOKUP($N42,Confidence_Factor_lookup!$A$2:$F$49,5,FALSE) -> MA | M42: =VLOOKUP($N42,Confidence_Factor_lookup!$A$2:$F$49,4,FALSE) -> 2012 | N42: Study0002 | O42: Retro1 | P42: MapID00093 | Q42: Electricity | T42: HVAC | U42: Prescriptive | V42: Retrofit | W42: C&I | X42: =IF(R42="","",INDEX('Standard Measure Names (MapID)'!$B$2:$H$1011,MATCH($P42,'Standard Measure Names (MapID)'!$A$2:$A$1011,FALSE),1)) ->  | Y42: =IF(S42="","",INDEX('Standard Measure Names (MapID)'!$B$2:$H$1011,MATCH($P42,'Standard Measure Names (MapID)'!$A$2:$A$1011,FALSE),2)) ->  | Z42: =IF(T42="","",INDEX('Standard Measure Names (MapID)'!$B$2:$H$1011,MATCH($P42,'Standard Measure Names (MapID)'!$A$2:$A$1011,FALSE),3)) -> HVAC | AA42: =IF(U42="","",INDEX('Standard Measure Names (MapID)'!$B$2:$H$1011,MATCH($P42,'Standard Measure Names (MapID)'!$A$2:$A$1011,FALSE),4)) -> Prescriptive | AB42: =IF(V42="","",INDEX('Standard Measure Names (MapID)'!$B$2:$H$1011,MATCH($P42,'Standard Measure Names (MapID)'!$A$2:$A$1011,FALSE),5)) -> Retrofit | AC42: =IF(W42="","",INDEX('Standard Measure Names (MapID)'!$B$2:$H$1011,MATCH($P42,'Standard Measure Names (MapID)'!$A$2:$A$1011,FALSE),6)) -> C&I | AD42: =IF(Q42="","",INDEX('Standard Measure Names (MapID)'!$B$2:$H$1011,MATCH($P42,'Standard Measure Names (MapID)'!$A$2:$A$1011,FALSE),7)) -> Electricity | AE42: Other Impacts - Participant - C&I | AF42: 0.0032844 | AG42: $/kWh/yr | AH42: =IFERROR(CPI_Index!$B$30/VLOOKUP(M42,CPI_Index!$A$2:$B$50,2,FALSE),"No Match")*AF42 -> 0.003583371951 | AI42: $/kWh/yr | AJ42: =IFERROR(VLOOKUP(N42,Confidence_Factor_lookup!$A$4:$Z$99,21,FALSE),0) -> 0.8888888889 | AK42: TRUE
A43: ElectricityC&IRetrofitPrescriptiveHVACRent Revenue - Participant - C&I | B43: 6 | C43: ElectricityC&IRetrofitPrescriptiveHVACRent Revenue - Participant - C&I | D43: 5 | E43: ElectricityC&IRetrofitPrescriptiveHVACRent Revenue - Participant - C&I | F43: 4 | G43: ElectricityC&IRetrofitPrescriptiveRent Revenue - Participant - C&I | H43: 3 | I43: ElectricityC&IRetrofitRent Revenue - Participant - C&I | J43: 2 | K43: =VLOOKUP($N43,Confidence_Factor_lookup!$A$2:$F$49,2,FALSE) -> Final Report – Commercial and Industrial Non-Energy Impacts Study | L43: =VLOOKUP($N43,Confidence_Factor_lookup!$A$2:$F$49,5,FALSE) -> MA | M43: =VLOOKUP($N43,Confidence_Factor_lookup!$A$2:$F$49,4,FALSE) -> 2012 | N43: Study0002 | O43: Retro1 | P43: MapID00093 | Q43: Electricity | T43: HVAC | U43: Prescriptive | V43: Retrofit | W43: C&I | X43: =IF(R43="","",INDEX('Standard Measure Names (MapID)'!$B$2:$H$1011,MATCH($P43,'Standard Measure Names (MapID)'!$A$2:$A$1011,FALSE),1)) ->  | Y43: =IF(S43="","",INDEX('Standard Measure Names (MapID)'!$B$2:$H$1011,MATCH($P43,'Standard Measure Names (MapID)'!$A$2:$A$1011,FALSE),2)) ->  | Z43: =IF(T43="","",INDEX('Standard Measure Names (MapID)'!$B$2:$H$1011,MATCH($P43,'Standard Measure Names (MapID)'!$A$2:$A$1011,FALSE),3)) -> HVAC | AA43: =IF(U43="","",INDEX('Standard Measure Names (MapID)'!$B$2:$H$1011,MATCH($P43,'Standard Measure Names (MapID)'!$A$2:$A$1011,FALSE),4)) -> Prescriptive | AB43: =IF(V43="","",INDEX('Standard Measure Names (MapID)'!$B$2:$H$1011,MATCH($P43,'Standard Measure Names (MapID)'!$A$2:$A$1011,FALSE),5)) -> Retrofit | AC43: =IF(W43="","",INDEX('Standard Measure Names (MapID)'!$B$2:$H$1011,MATCH($P43,'Standard Measure Names (MapID)'!$A$2:$A$1011,FALSE),6)) -> C&I | AD43: =IF(Q43="","",INDEX('Standard Measure Names (MapID)'!$B$2:$H$1011,MATCH($P43,'Standard Measure Names (MapID)'!$A$2:$A$1011,FALSE),7)) -> Electricity | AE43: Rent Revenue - Participant - C&I | AF43: 0.0182574 | AG43: $/kWh/yr | AH43: =IFERROR(CPI_Index!$B$30/VLOOKUP(M43,CPI_Index!$A$2:$B$50,2,FALSE),"No Match")*AF43 -> 0.01991933232 | AI43: $/kWh/yr | AJ43: =IFERROR(VLOOKUP(N43,Confidence_Factor_lookup!$A$4:$Z$99,21,FALSE),0) -> 0.8888888889 | AK43: TRUE
A44: ElectricityC&IRetrofitPrescriptiveLightingAdministrative costs - Participant - C&I | B44: 6 | C44: ElectricityC&IRetrofitPrescriptiveLightingAdministrative costs - Participant - C&I | D44: 5 | E44: ElectricityC&IRetrofitPrescriptiveLightingAdministrative costs - Participant - C&I | F44: 4 | G44: ElectricityC&IRetrofitPrescriptiveAdministrative costs - Participant - C&I | H44: 3 | I44: ElectricityC&IRetrofitAdministrative costs - Participant - C&I | J44: 2 | K44: =VLOOKUP($N44,Confidence_Factor_lookup!$A$2:$F$49,2,FALSE) -> Final Report – Commercial and Industrial Non-Energy Impacts Study | L44: =VLOOKUP($N44,Confidence_Factor_lookup!$A$2:$F$49,5,FALSE) -> MA | M44: =VLOOKUP($N44,Confidence_Factor_lookup!$A$2:$F$49,4,FALSE) -> 2012 | N44: Study0002 | O44: Retro2 | P44: MapID00161 | Q44: Electricity | T44: Lighting | U44: Prescriptive | V44: Retrofit | W44: C&I | X44: =IF(R44="","",INDEX('Standard Measure Names (MapID)'!$B$2:$H$1011,MATCH($P44,'Standard Measure Names (MapID)'!$A$2:$A$1011,FALSE),1)) ->  | Y44: =IF(S44="","",INDEX('Standard Measure Names (MapID)'!$B$2:$H$1011,MATCH($P44,'Standard Measure Names (MapID)'!$A$2:$A$1011,FALSE),2)) ->  | Z44: =IF(T44="","",INDEX('Standard Measure Names (MapID)'!$B$2:$H$1011,MATCH($P44,'Standard Measure Names (MapID)'!$A$2:$A$1011,FALSE),3)) -> Lighting | AA44: =IF(U44="","",INDEX('Standard Measure Names (MapID)'!$B$2:$H$1011,MATCH($P44,'Standard Measure Names (MapID)'!$A$2:$A$1011,FALSE),4)) -> Prescriptive | AB44: =IF(V44="","",INDEX('Standard Measure Names (MapID)'!$B$2:$H$1011,MATCH($P44,'Standard Measure Names (MapID)'!$A$2:$A$1011,FALSE),5)) -> Retrofit | AC44: =IF(W44="","",INDEX('Standard Measure Names (MapID)'!$B$2:$H$1011,MATCH($P44,'Standard Measure Names (MapID)'!$A$2:$A$1011,FALSE),6)) -> C&I | AD44: =IF(Q44="","",INDEX('Standard Measure Names (MapID)'!$B$2:$H$1011,MATCH($P44,'Standard Measure Names (MapID)'!$A$2:$A$1011,FALSE),7)) -> Electricity | AE44: Administrative costs - Participant - C&I | AF44: 0.00137 | AG44: $/kWh/yr | AH44: =IFERROR(CPI_Index!$B$30/VLOOKUP(M44,CPI_Index!$A$2:$B$50,2,FALSE),"No Match")*AF44 -> 0.001494708188 | AI44: $/kWh/yr | AJ44: =IFERROR(VLOOKUP(N44,Confidence_Factor_lookup!$A$4:$Z$99,21,FALSE),0) -> 0.8888888889 | AK44: TRUE
A45: ElectricityC&IRetrofitPrescriptiveLightingO&M - Participant - C&I | B45: 6 | C45: ElectricityC&IRetrofitPrescriptiveLightingO&M - Participant - C&I | D45: 5 | E45: ElectricityC&IRetrofitPrescriptiveLightingO&M - Participant - C&I | F45: 4 | G45: ElectricityC&IRetrofitPrescriptiveO&M - Participant - C&I | H45: 3 | I45: ElectricityC&IRetrofitO&M - Participant - C&I | J45: 2 | K45: =VLOOKUP($N45,Confidence_Factor_lookup!$A$2:$F$49,2,FALSE) -> Final Report – Commercial and Industrial Non-Energy Impacts Study | L45: =VLOOKUP($N45,Confidence_Factor_lookup!$A$2:$F$49,5,FALSE) -> MA | M45: =VLOOKUP($N45,Confidence_Factor_lookup!$A$2:$F$49,4,FALSE) -> 2012 | N45: Study0002 | O45: Retro2 | P45: MapID00161 | Q45: Electricity | T45: Lighting | U45: Prescriptive | V45: Retrofit | W45: C&I | X45: =IF(R45="","",INDEX('Standard Measure Names (MapID)'!$B$2:$H$1011,MATCH($P45,'Standard Measure Names (MapID)'!$A$2:$A$1011,FALSE),1)) ->  | Y45: =IF(S45="","",INDEX('Standard Measure Names (MapID)'!$B$2:$H$1011,MATCH($P45,'Standard Measure Names (MapID)'!$A$2:$A$1011,FALSE),2)) ->  | Z45: =IF(T45="","",INDEX('Standard Measure Names (MapID)'!$B$2:$H$1011,MATCH($P45,'Standard Measure Names (MapID)'!$A$2:$A$1011,FALSE),3)) -> Lighting | AA45: =IF(U45="","",INDEX('Standard Measure Names (MapID)'!$B$2:$H$1011,MATCH($P45,'Standard Measure Names (MapID)'!$A$2:$A$1011,FALSE),4)) -> Prescriptive | AB45: =IF(V45="","",INDEX('Standard Measure Names (MapID)'!$B$2:$H$1011,MATCH($P45,'Standard Measure Names (MapID)'!$A$2:$A$1011,FALSE),5)) -> Retrofit | AC45: =IF(W45="","",INDEX('Standard Measure Names (MapID)'!$B$2:$H$1011,MATCH($P45,'Standard Measure Names (MapID)'!$A$2:$A$1011,FALSE),6)) -> C&I | AD45: =IF(Q45="","",INDEX('Standard Measure Names (MapID)'!$B$2:$H$1011,MATCH($P45,'Standard Measure Names (MapID)'!$A$2:$A$1011,FALSE),7)) -> Electricity | AE45: O&M - Participant - C&I | AF45: 0.0201938 | AG45: $/kWh/yr | AH45: =IFERROR(CPI_Index!$B$30/VLOOKUP(M45,CPI_Index!$A$2:$B$50,2,FALSE),"No Match")*AF45 -> 0.02203199869 | AI45: $/kWh/yr | AJ45: =IFERROR(VLOOKUP(N45,Confidence_Factor_lookup!$A$4:$Z$99,21,FALSE),0) -> 0.8888888889 | AK45: TRUE
A46: ElectricityC&IRetrofitPrescriptiveLightingSupplies and materials - Participant - C&I | B46: 6 | C46: ElectricityC&IRetrofitPrescriptiveLightingSupplies and materials - Participant - C&I | D46: 5 | E46: ElectricityC&IRetrofitPrescriptiveLightingSupplies and materials - Participant - C&I | F46: 4 | G46: ElectricityC&IRetrofitPrescriptiveSupplies and materials - Participant - C&I | H46: 3 | I46: ElectricityC&IRetrofitSupplies and materials - Participant - C&I | J46: 2 | K46: =VLOOKUP($N46,Confidence_Factor_lookup!$A$2:$F$49,2,FALSE) -> Final Report – Commercial and Industrial Non-Energy Impacts Study | L46: =VLOOKUP($N46,Confidence_Factor_lookup!$A$2:$F$49,5,FALSE) -> MA | M46: =VLOOKUP($N46,Confidence_Factor_lookup!$A$2:$F$49,4,FALSE) -> 2012 | N46: Study0002 | O46: Retro2 | P46: MapID00161 | Q46: Electricity | T46: Lighting | U46: Prescriptive | V46: Retrofit | W46: C&I | X46: =IF(R46="","",INDEX('Standard Measure Names (MapID)'!$B$2:$H$1011,MATCH($P46,'Standard Measure Names (MapID)'!$A$2:$A$1011,FALSE),1)) ->  | Y46: =IF(S46="","",INDEX('Standard Measure Names (MapID)'!$B$2:$H$1011,MATCH($P46,'Standard Measure Names (MapID)'!$A$2:$A$1011,FALSE),2)) ->  | Z46: =IF(T46="","",INDEX('Standard Measure Names (MapID)'!$B$2:$H$1011,MATCH($P46,'Standard Measure Names (MapID)'!$A$2:$A$1011,FALSE),3)) -> Lighting | AA46: =IF(U46="","",INDEX('Standard Measure Names (MapID)'!$B$2:$H$1011,MATCH($P46,'Standard Measure Names (MapID)'!$A$2:$A$1011,FALSE),4)) -> Prescriptive | AB46: =IF(V46="","",INDEX('Standard Measure Names (MapID)'!$B$2:$H$1011,MATCH($P46,'Standard Measure Names (MapID)'!$A$2:$A$1011,FALSE),5)) -> Retrofit | AC46: =IF(W46="","",INDEX('Standard Measure Names (MapID)'!$B$2:$H$1011,MATCH($P46,'Standard Measure Names (MapID)'!$A$2:$A$1011,FALSE),6)) -> C&I | AD46: =IF(Q46="","",INDEX('Standard Measure Names (MapID)'!$B$2:$H$1011,MATCH($P46,'Standard Measure Names (MapID)'!$A$2:$A$1011,FALSE),7)) -> Electricity | AE46: Supplies and materials - Participant - C&I | AF46: 0.0117546 | AG46: $/kWh/yr | AH46: =IFERROR(CPI_Index!$B$30/VLOOKUP(M46,CPI_Index!$A$2:$B$50,2,FALSE),"No Match")*AF46 -> 0.01282459625 | AI46: $/kWh/yr | AJ46: =IFERROR(VLOOKUP(N46,Confidence_Factor_lookup!$A$4:$Z$99,21,FALSE),0) -> 0.8888888889 | AK46: TRUE
A47: ElectricityC&IRetrofitPrescriptiveLightingOther Impacts - Utility - C&I | B47: 6 | C47: ElectricityC&IRetrofitPrescriptiveLightingOther Impacts - Utility - C&I | D47: 5 | E47: ElectricityC&IRetrofitPrescriptiveLightingOther Impacts - Utility - C&I | F47: 4 | G47: ElectricityC&IRetrofitPrescriptiveOther Impacts - Utility - C&I | H47: 3 | I47: ElectricityC&IRetrofitOther Impacts - Utility - C&I | J47: 2 | K47: =VLOOKUP($N47,Confidence_Factor_lookup!$A$2:$F$49,2,FALSE) -> Final Report – Commercial and Industrial Non-Energy Impacts Study | L47: =VLOOKUP($N47,Confidence_Factor_lookup!$A$2:$F$49,5,FALSE) -> MA | M47: =VLOOKUP($N47,Confidence_Factor_lookup!$A$2:$F$49,4,FALSE) -> 2012 | N47: Study0002 | O47: Retro2 | P47: MapID00161 | Q47: Electricity | T47: Lighting | U47: Prescriptive | V47: Retrofit | W47: C&I | X47: =IF(R47="","",INDEX('Standard Measure Names (MapID)'!$B$2:$H$1011,MATCH($P47,'Standard Measure Names (MapID)'!$A$2:$A$1011,FALSE),1)) ->  | Y47: =IF(S47="","",INDEX('Standard Measure Names (MapID)'!$B$2:$H$1011,MATCH($P47,'Standard Measure Names (MapID)'!$A$2:$A$1011,FALSE),2)) ->  | Z47: =IF(T47="","",INDEX('Standard Measure Names (MapID)'!$B$2:$H$1011,MATCH($P47,'Standard Measure Names (MapID)'!$A$2:$A$1011,FALSE),3)) -> Lighting | AA47: =IF(U47="","",INDEX('Standard Measure Names (MapID)'!$B$2:$H$1011,MATCH($P47,'Standard Measure Names (MapID)'!$A$2:$A$1011,FALSE),4)) -> Prescriptive | AB47: =IF(V47="","",INDEX('Standard Measure Names (MapID)'!$B$2:$H$1011,MATCH($P47,'Standard Measure Names (MapID)'!$A$2:$A$1011,FALSE),5)) -> Retrofit | AC47: =IF(W47="","",INDEX('Standard Measure Names (MapID)'!$B$2:$H$1011,MATCH($P47,'Standard Measure Names (MapID)'!$A$2:$A$1011,FALSE),6)) -> C&I | AD47: =IF(Q47="","",INDEX('Standard Measure Names (MapID)'!$B$2:$H$1011,MATCH($P47,'Standard Measure Names (MapID)'!$A$2:$A$1011,FALSE),7)) -> Electricity | AE47: Other Impacts - Utility - C&I | AF47: 0.0020002 | AG47: $/kWh/yr | AH47: =IFERROR(CPI_Index!$B$30/VLOOKUP(M47,CPI_Index!$A$2:$B$50,2,FALSE),"No Match")*AF47 -> 0.002182273955 | AI47: $/kWh/yr | AJ47: =IFERROR(VLOOKUP(N47,Confidence_Factor_lookup!$A$4:$Z$99,21,FALSE),0) -> 0.8888888889 | AK47: TRUE
A48: ElectricityC&IRetrofitPrescriptiveLightingSales Revenue - Participant - C&I | B48: 6 | C48: ElectricityC&IRetrofitPrescriptiveLightingSales Revenue - Participant - C&I | D48: 5 | E48: ElectricityC&IRetrofitPrescriptiveLightingSales Revenue - Participant - C&I | F48: 4 | G48: ElectricityC&IRetrofitPrescriptiveSales Revenue - Participant - C&I | H48: 3 | I48: ElectricityC&IRetrofitSales Revenue - Participant - C&I | J48: 2 | K48: =VLOOKUP($N48,Confidence_Factor_lookup!$A$2:$F$49,2,FALSE) -> Final Report – Commercial and Industrial Non-Energy Impacts Study | L48: =VLOOKUP($N48,Confidence_Factor_lookup!$A$2:$F$49,5,FALSE) -> MA | M48: =VLOOKUP($N48,Confidence_Factor_lookup!$A$2:$F$49,4,FALSE) -> 2012 | N48: Study0002 | O48: Retro2 | P48: MapID00161 | Q48: Electricity | T48: Lighting | U48: Prescriptive | V48: Retrofit | W48: C&I | X48: =IF(R48="","",INDEX('Standard Measure Names (MapID)'!$B$2:$H$1011,MATCH($P48,'Standard Measure Names (MapID)'!$A$2:$A$1011,FALSE),1)) ->  | Y48: =IF(S48="","",INDEX('Standard Measure Names (MapID)'!$B$2:$H$1011,MATCH($P48,'Standard Measure Names (MapID)'!$A$2:$A$1011,FALSE),2)) ->  | Z48: =IF(T48="","",INDEX('Standard Measure Names (MapID)'!$B$2:$H$1011,MATCH($P48,'Standard Measure Names (MapID)'!$A$2:$A$1011,FALSE),3)) -> Lighting | AA48: =IF(U48="","",INDEX('Standard Measure Names (MapID)'!$B$2:$H$1011,MATCH($P48,'Standard Measure Names (MapID)'!$A$2:$A$1011,FALSE),4)) -> Prescriptive | AB48: =IF(V48="","",INDEX('Standard Measure Names (MapID)'!$B$2:$H$1011,MATCH($P48,'Standard Measure Names (MapID)'!$A$2:$A$1011,FALSE),5)) -> Retrofit | AC48: =IF(W48="","",INDEX('Standard Measure Names (MapID)'!$B$2:$H$1011,MATCH($P48,'Standard Measure Names (MapID)'!$A$2:$A$1011,FALSE),6)) -> C&I | AD48: =IF(Q48="","",INDEX('Standard Measure Names (MapID)'!$B$2:$H$1011,MATCH($P48,'Standard Measure Names (MapID)'!$A$2:$A$1011,FALSE),7)) -> Electricity | AE48: Sales Revenue - Participant - C&I | AF48: 0.0022742 | AG48: $/kWh/yr | AH48: =IFERROR(CPI_Index!$B$30/VLOOKUP(M48,CPI_Index!$A$2:$B$50,2,FALSE),"No Match")*AF48 -> 0.002481215592 | AI48: $/kWh/yr | AJ48: =IFERROR(VLOOKUP(N48,Confidence_Factor_lookup!$A$4:$Z$99,21,FALSE),0) -> 0.8888888889 | AK48: TRUE
A49: ElectricityC&IRetrofitPrescriptiveLightingWaste disposal - Participant - C&I | B49: 6 | C49: ElectricityC&IRetrofitPrescriptiveLightingWaste disposal - Participant - C&I | D49: 5 | E49: ElectricityC&IRetrofitPrescriptiveLightingWaste disposal - Participant - C&I | F49: 4 | G49: ElectricityC&IRetrofitPrescriptiveWaste disposal - Participant - C&I | H49: 3 | I49: ElectricityC&IRetrofitWaste disposal - Participant - C&I | J49: 2 | K49: =VLOOKUP($N49,Confidence_Factor_lookup!$A$2:$F$49,2,FALSE) -> Final Report – Commercial and Industrial Non-Energy Impacts Study | L49: =VLOOKUP($N49,Confidence_Factor_lookup!$A$2:$F$49,5,FALSE) -> MA | M49: =VLOOKUP($N49,Confidence_Factor_lookup!$A$2:$F$49,4,FALSE) -> 2012 | N49: Study0002 | O49: Retro2 | P49: MapID00161 | Q49: Electricity | T49: Lighting | U49: Prescriptive | V49: Retrofit | W49: C&I | X49: =IF(R49="","",INDEX('Standard Measure Names (MapID)'!$B$2:$H$1011,MATCH($P49,'Standard Measure Names (MapID)'!$A$2:$A$1011,FALSE),1)) ->  | Y49: =IF(S49="","",INDEX('Standard Measure Names (MapID)'!$B$2:$H$1011,MATCH($P49,'Standard Measure Names (MapID)'!$A$2:$A$1011,FALSE),2)) ->  | Z49: =IF(T49="","",INDEX('Standard Measure Names (MapID)'!$B$2:$H$1011,MATCH($P49,'Standard Measure Names (MapID)'!$A$2:$A$1011,FALSE),3)) -> Lighting | AA49: =IF(U49="","",INDEX('Standard Measure Names (MapID)'!$B$2:$H$1011,MATCH($P49,'Standard Measure Names (MapID)'!$A$2:$A$1011,FALSE),4)) -> Prescriptive | AB49: =IF(V49="","",INDEX('Standard Measure Names (MapID)'!$B$2:$H$1011,MATCH($P49,'Standard Measure Names (MapID)'!$A$2:$A$1011,FALSE),5)) -> Retrofit | AC49: =IF(W49="","",INDEX('Standard Measure Names (MapID)'!$B$2:$H$1011,MATCH($P49,'Standard Measure Names (MapID)'!$A$2:$A$1011,FALSE),6)) -> C&I | AD49: =IF(Q49="","",INDEX('Standard Measure Names (MapID)'!$B$2:$H$1011,MATCH($P49,'Standard Measure Names (MapID)'!$A$2:$A$1011,FALSE),7)) -> Electricity | AE49: Waste disposal - Participant - C&I | AF49: 0.0006302 | AG49: $/kWh/yr | AH49: =IFERROR(CPI_Index!$B$30/VLOOKUP(M49,CPI_Index!$A$2:$B$50,2,FALSE),"No Match")*AF49 -> 0.0006875657666 | AI49: $/kWh/yr | AJ49: =IFERROR(VLOOKUP(N49,Confidence_Factor_lookup!$A$4:$Z$99,21,FALSE),0) -> 0.8888888889 | AK49: TRUE
A50: ElectricityC&IRetrofitPrescriptiveProcessMotors/DrivesAdministrative costs - Participant - C&I | B50: 6 | C50: ElectricityC&IRetrofitPrescriptiveProcessMotors/DrivesAdministrative costs - Participant - C&I | D50: 5 | E50: ElectricityC&IRetrofitPrescriptiveProcessAdministrative costs - Participant - C&I | F50: 4 | G50: ElectricityC&IRetrofitPrescriptiveAdministrative costs - Participant - C&I | H50: 3 | I50: ElectricityC&IRetrofitAdministrative costs - Participant - C&I | J50: 2 | K50: =VLOOKUP($N50,Confidence_Factor_lookup!$A$2:$F$49,2,FALSE) -> Final Report – Commercial and Industrial Non-Energy Impacts Study | L50: =VLOOKUP($N50,Confidence_Factor_lookup!$A$2:$F$49,5,FALSE) -> MA | M50: =VLOOKUP($N50,Confidence_Factor_lookup!$A$2:$F$49,4,FALSE) -> 2012 | N50: Study0002 | O50: Retro3 | P50: MapID00296 | Q50: Electricity | S50: Motors and Drives | T50: Motors and Drives | U50: Prescriptive | V50: Retrofit | W50: C&I | X50: =IF(R50="","",INDEX('Standard Measure Names (MapID)'!$B$2:$H$1011,MATCH($P50,'Standard Measure Names (MapID)'!$A$2:$A$1011,FALSE),1)) ->  | Y50: =IF(S50="","",INDEX('Standard Measure Names (MapID)'!$B$2:$H$1011,MATCH($P50,'Standard Measure Names (MapID)'!$A$2:$A$1011,FALSE),2)) -> Motors/Drives | Z50: =IF(T50="","",INDEX('Standard Measure Names (MapID)'!$B$2:$H$1011,MATCH($P50,'Standard Measure Names (MapID)'!$A$2:$A$1011,FALSE),3)) -> Process | AA50: =IF(U50="","",INDEX('Standard Measure Names (MapID)'!$B$2:$H$1011,MATCH($P50,'Standard Measure Names (MapID)'!$A$2:$A$1011,FALSE),4)) -> Prescriptive | AB50: =IF(V50="","",INDEX('Standard Measure Names (MapID)'!$B$2:$H$1011,MATCH($P50,'Standard Measure Names (MapID)'!$A$2:$A$1011,FALSE),5)) -> Retrofit | AC50: =IF(W50="","",INDEX('Standard Measure Names (MapID)'!$B$2:$H$1011,MATCH($P50,'Standard Measure Names (MapID)'!$A$2:$A$1011,FALSE),6)) -> C&I | AD50: =IF(Q50="","",INDEX('Standard Measure Names (MapID)'!$B$2:$H$1011,MATCH($P50,'Standard Measure Names (MapID)'!$A$2:$A$1011,FALSE),7)) -> Electricity | AE50: Administrative costs - Participant - C&I | AF50: 2.58e-05 | AG50: $/kWh/yr | AH50: =IFERROR(CPI_Index!$B$30/VLOOKUP(M50,CPI_Index!$A$2:$B$50,2,FALSE),"No Match")*AF50 -> 2.814851916e-05 | AI50: $/kWh/yr | AJ50: =IFERROR(VLOOKUP(N50,Confidence_Factor_lookup!$A$4:$Z$99,21,FALSE),0) -> 0.8888888889 | AK50: TRUE
A51: ElectricityC&IRetrofitPrescriptiveProcessMotors/DrivesO&M - Participant - C&I | B51: 6 | C51: ElectricityC&IRetrofitPrescriptiveProcessMotors/DrivesO&M - Participant - C&I | D51: 5 | E51: ElectricityC&IRetrofitPrescriptiveProcessO&M - Participant - C&I | F51: 4 | G51: ElectricityC&IRetrofitPrescriptiveO&M - Participant - C&I | H51: 3 | I51: ElectricityC&IRetrofitO&M - Participant - C&I | J51: 2 | K51: =VLOOKUP($N51,Confidence_Factor_lookup!$A$2:$F$49,2,FALSE) -> Final Report – Commercial and Industrial Non-Energy Impacts Study | L51: =VLOOKUP($N51,Confidence_Factor_lookup!$A$2:$F$49,5,FALSE) -> MA | M51: =VLOOKUP($N51,Confidence_Factor_lookup!$A$2:$F$49,4,FALSE) -> 2012 | N51: Study0002 | O51: Retro3 | P51: MapID00296 | Q51: Electricity | S51: Motors and Drives | T51: Motors and Drives | U51: Prescriptive | V51: Retrofit | W51: C&I | X51: =IF(R51="","",INDEX('Standard Measure Names (MapID)'!$B$2:$H$1011,MATCH($P51,'Standard Measure Names (MapID)'!$A$2:$A$1011,FALSE),1)) ->  | Y51: =IF(S51="","",INDEX('Standard Measure Names (MapID)'!$B$2:$H$1011,MATCH($P51,'Standard Measure Names (MapID)'!$A$2:$A$1011,FALSE),2)) -> Motors/Drives | Z51: =IF(T51="","",INDEX('Standard Measure Names (MapID)'!$B$2:$H$1011,MATCH($P51,'Standard Measure Names (MapID)'!$A$2:$A$1011,FALSE),3)) -> Process | AA51: =IF(U51="","",INDEX('Standard Measure Names (MapID)'!$B$2:$H$1011,MATCH($P51,'Standard Measure Names (MapID)'!$A$2:$A$1011,FALSE),4)) -> Prescriptive | AB51: =IF(V51="","",INDEX('Standard Measure Names (MapID)'!$B$2:$H$1011,MATCH($P51,'Standard Measure Names (MapID)'!$A$2:$A$1011,FALSE),5)) -> Retrofit | AC51: =IF(W51="","",INDEX('Standard Measure Names (MapID)'!$B$2:$H$1011,MATCH($P51,'Standard Measure Names (MapID)'!$A$2:$A$1011,FALSE),6)) -> C&I | AD51: =IF(Q51="","",INDEX('Standard Measure Names (MapID)'!$B$2:$H$1011,MATCH($P51,'Standard Measure Names (MapID)'!$A$2:$A$1011,FALSE),7)) -> Electricity | AE51: O&M - Participant - C&I | AF51: 0.0040764 | AG51: $/kWh/yr | AH51: =IFERROR(CPI_Index!$B$30/VLOOKUP(M51,CPI_Index!$A$2:$B$50,2,FALSE),"No Match")*AF51 -> 0.004447466028 | AI51: $/kWh/yr | AJ51: =IFERROR(VLOOKUP(N51,Confidence_Factor_lookup!$A$4:$Z$99,21,FALSE),0) -> 0.8888888889 | AK51: TRUE
A52: ElectricityC&IRetrofitPrescriptiveProcessMotors/DrivesOther Impacts - Utility - C&I | B52: 6 | C52: ElectricityC&IRetrofitPrescriptiveProcessMotors/DrivesOther Impacts - Utility - C&I | D52: 5 | E52: ElectricityC&IRetrofitPrescriptiveProcessOther Impacts - Utility - C&I | F52: 4 | G52: ElectricityC&IRetrofitPrescriptiveOther Impacts - Utility - C&I | H52: 3 | I52: ElectricityC&IRetrofitOther Impacts - Utility - C&I | J52: 2 | K52: =VLOOKUP($N52,Confidence_Factor_lookup!$A$2:$F$49,2,FALSE) -> Final Report – Commercial and Industrial Non-Energy Impacts Study | L52: =VLOOKUP($N52,Confidence_Factor_lookup!$A$2:$F$49,5,FALSE) -> MA | M52: =VLOOKUP($N52,Confidence_Factor_lookup!$A$2:$F$49,4,FALSE) -> 2012 | N52: Study0002 | O52: Retro3 | P52: MapID00296 | Q52: Electricity | S52: Motors and Drives | T52: Motors and Drives | U52: Prescriptive | V52: Retrofit | W52: C&I | X52: =IF(R52="","",INDEX('Standard Measure Names (MapID)'!$B$2:$H$1011,MATCH($P52,'Standard Measure Names (MapID)'!$A$2:$A$1011,FALSE),1)) ->  | Y52: =IF(S52="","",INDEX('Standard Measure Names (MapID)'!$B$2:$H$1011,MATCH($P52,'Standard Measure Names (MapID)'!$A$2:$A$1011,FALSE),2)) -> Motors/Drives | Z52: =IF(T52="","",INDEX('Standard Measure Names (MapID)'!$B$2:$H$1011,MATCH($P52,'Standard Measure Names (MapID)'!$A$2:$A$1011,FALSE),3)) -> Process | AA52: =IF(U52="","",INDEX('Standard Measure Names (MapID)'!$B$2:$H$1011,MATCH($P52,'Standard Measure Names (MapID)'!$A$2:$A$1011,FALSE),4)) -> Prescriptive | AB52: =IF(V52="","",INDEX('Standard Measure Names (MapID)'!$B$2:$H$1011,MATCH($P52,'Standard Measure Names (MapID)'!$A$2:$A$1011,FALSE),5)) -> Retrofit | AC52: =IF(W52="","",INDEX('Standard Measure Names (MapID)'!$B$2:$H$1011,MATCH($P52,'Standard Measure Names (MapID)'!$A$2:$A$1011,FALSE),6)) -> C&I | AD52: =IF(Q52="","",INDEX('Standard Measure Names (MapID)'!$B$2:$H$1011,MATCH($P52,'Standard Measure Names (MapID)'!$A$2:$A$1011,FALSE),7)) -> Electricity | AE52: Other Impacts - Utility - C&I | AF52: 8.6e-06 | AG52: $/kWh/yr | AH52: =IFERROR(CPI_Index!$B$30/VLOOKUP(M52,CPI_Index!$A$2:$B$50,2,FALSE),"No Match")*AF52 -> 9.382839721e-06 | AI52: $/kWh/yr | AJ52: =IFERROR(VLOOKUP(N52,Confidence_Factor_lookup!$A$4:$Z$99,21,FALSE),0) -> 0.8888888889 | AK52: TRUE
A53: ElectricityC&IRetrofitPrescriptiveProcessMotors/DrivesOther Impacts - Participant - C&I | B53: 6 | C53: ElectricityC&IRetrofitPrescriptiveProcessMotors/DrivesOther Impacts - Participant - C&I | D53: 5 | E53: ElectricityC&IRetrofitPrescriptiveProcessOther Impacts - Participant - C&I | F53: 4 | G53: ElectricityC&IRetrofitPrescriptiveOther Impacts - Participant - C&I | H53: 3 | I53: ElectricityC&IRetrofitOther Impacts - Participant - C&I | J53: 2 | K53: =VLOOKUP($N53,Confidence_Factor_lookup!$A$2:$F$49,2,FALSE) -> Final Report – Commercial and Industrial Non-Energy Impacts Study | L53: =VLOOKUP($N53,Confidence_Factor_lookup!$A$2:$F$49,5,FALSE) -> MA | M53: =VLOOKUP($N53,Confidence_Factor_lookup!$A$2:$F$49,4,FALSE) -> 2012 | N53: Study0002 | O53: Retro3 | P53: MapID00296 | Q53: Electricity | S53: Motors and Drives | T53: Motors and Drives | U53: Prescriptive | V53: Retrofit | W53: C&I | X53: =IF(R53="","",INDEX('Standard Measure Names (MapID)'!$B$2:$H$1011,MATCH($P53,'Standard Measure Names (MapID)'!$A$2:$A$1011,FALSE),1)) ->  | Y53: =IF(S53="","",INDEX('Standard Measure Names (MapID)'!$B$2:$H$1011,MATCH($P53,'Standard Measure Names (MapID)'!$A$2:$A$1011,FALSE),2)) -> Motors/Drives | Z53: =IF(T53="","",INDEX('Standard Measure Names (MapID)'!$B$2:$H$1011,MATCH($P53,'Standard Measure Names (MapID)'!$A$2:$A$1011,FALSE),3)) -> Process | AA53: =IF(U53="","",INDEX('Standard Measure Names (MapID)'!$B$2:$H$1011,MATCH($P53,'Standard Measure Names (MapID)'!$A$2:$A$1011,FALSE),4)) -> Prescriptive | AB53: =IF(V53="","",INDEX('Standard Measure Names (MapID)'!$B$2:$H$1011,MATCH($P53,'Standard Measure Names (MapID)'!$A$2:$A$1011,FALSE),5)) -> Retrofit | AC53: =IF(W53="","",INDEX('Standard Measure Names (MapID)'!$B$2:$H$1011,MATCH($P53,'Standard Measure Names (MapID)'!$A$2:$A$1011,FALSE),6)) -> C&I | AD53: =IF(Q53="","",INDEX('Standard Measure Names (MapID)'!$B$2:$H$1011,MATCH($P53,'Standard Measure Names (MapID)'!$A$2:$A$1011,FALSE),7)) -> Electricity | AE53: Other Impacts - Participant - C&I | AF53: 0.0002107 | AG53: $/kWh/yr | AH53: =IFERROR(CPI_Index!$B$30/VLOOKUP(M53,CPI_Index!$A$2:$B$50,2,FALSE),"No Match")*AF53 -> 0.0002298795732 | AI53: $/kWh/yr | AJ53: =IFERROR(VLOOKUP(N53,Confidence_Factor_lookup!$A$4:$Z$99,21,FALSE),0) -> 0.8888888889 | AK53: TRUE
A54: ElectricityC&IRetrofitPrescriptiveProcessMotors/DrivesSales Revenue - Participant - C&I | B54: 6 | C54: ElectricityC&IRetrofitPrescriptiveProcessMotors/DrivesSales Revenue - Participant - C&I | D54: 5 | E54: ElectricityC&IRetrofitPrescriptiveProcessSales Revenue - Participant - C&I | F54: 4 | G54: ElectricityC&IRetrofitPrescriptiveSales Revenue - Participant - C&I | H54: 3 | I54: ElectricityC&IRetrofitSales Revenue - Participant - C&I | J54: 2 | K54: =VLOOKUP($N54,Confidence_Factor_lookup!$A$2:$F$49,2,FALSE) -> Final Report – Commercial and Industrial Non-Energy Impacts Study | L54: =VLOOKUP($N54,Confidence_Factor_lookup!$A$2:$F$49,5,FALSE) -> MA | M54: =VLOOKUP($N54,Confidence_Factor_lookup!$A$2:$F$49,4,FALSE) -> 2012 | N54: Study0002 | O54: Retro3 | P54: MapID00296 | Q54: Electricity | S54: Motors and Drives | T54: Motors and Drives | U54: Prescriptive | V54: Retrofit | W54: C&I | X54: =IF(R54="","",INDEX('Standard Measure Names (MapID)'!$B$2:$H$1011,MATCH($P54,'Standard Measure Names (MapID)'!$A$2:$A$1011,FALSE),1)) ->  | Y54: =IF(S54="","",INDEX('Standard Measure Names (MapID)'!$B$2:$H$1011,MATCH($P54,'Standard Measure Names (MapID)'!$A$2:$A$1011,FALSE),2)) -> Motors/Drives | Z54: =IF(T54="","",INDEX('Standard Measure Names (MapID)'!$B$2:$H$1011,MATCH($P54,'Standard Measure Names (MapID)'!$A$2:$A$1011,FALSE),3)) -> Process | AA54: =IF(U54="","",INDEX('Standard Measure Names (MapID)'!$B$2:$H$1011,MATCH($P54,'Standard Measure Names (MapID)'!$A$2:$A$1011,FALSE),4)) -> Prescriptive | AB54: =IF(V54="","",INDEX('Standard Measure Names (MapID)'!$B$2:$H$1011,MATCH($P54,'Standard Measure Names (MapID)'!$A$2:$A$1011,FALSE),5)) -> Retrofit | AC54: =IF(W54="","",INDEX('Standard Measure Names (MapID)'!$B$2:$H$1011,MATCH($P54,'Standard Measure Names (MapID)'!$A$2:$A$1011,FALSE),6)) -> C&I | AD54: =IF(Q54="","",INDEX('Standard Measure Names (MapID)'!$B$2:$H$1011,MATCH($P54,'Standard Measure Names (MapID)'!$A$2:$A$1011,FALSE),7)) -> Electricity | AE54: Sales Revenue - Participant - C&I | AF54: -2.15e-05 | AG54: $/kWh/yr | AH54: =IFERROR(CPI_Index!$B$30/VLOOKUP(M54,CPI_Index!$A$2:$B$50,2,FALSE),"No Match")*AF54 -> -2.34570993e-05 | AI54: $/kWh/yr | AJ54: =IFERROR(VLOOKUP(N54,Confidence_Factor_lookup!$A$4:$Z$99,21,FALSE),0) -> 0.8888888889 | AK54: TRUE
A55: ElectricityC&IRetrofitPrescriptiveRefrigerationApplianceO&M - Participant - C&I | B55: 6 | C55: ElectricityC&IRetrofitPrescriptiveRefrigerationApplianceO&M - Participant - C&I | D55: 5 | E55: ElectricityC&IRetrofitPrescriptiveRefrigerationO&M - Participant - C&I | F55: 4 | G55: ElectricityC&IRetrofitPrescriptiveO&M - Participant - C&I | H55: 3 | I55: ElectricityC&IRetrofitO&M - Participant - C&I | J55: 2 | K55: =VLOOKUP($N55,Confidence_Factor_lookup!$A$2:$F$49,2,FALSE) -> Final Report – Commercial and Industrial Non-Energy Impacts Study | L55: =VLOOKUP($N55,Confidence_Factor_lookup!$A$2:$F$49,5,FALSE) -> MA | M55: =VLOOKUP($N55,Confidence_Factor_lookup!$A$2:$F$49,4,FALSE) -> 2012 | N55: Study0002 | O55: Retro4 | P55: MapID00298 | Q55: Electricity | S55: Refrigeration | T55: Refrigeration | U55: Prescriptive | V55: Retrofit | W55: C&I | X55: =IF(R55="","",INDEX('Standard Measure Names (MapID)'!$B$2:$H$1011,MATCH($P55,'Standard Measure Names (MapID)'!$A$2:$A$1011,FALSE),1)) ->  | Y55: =IF(S55="","",INDEX('Standard Measure Names (MapID)'!$B$2:$H$1011,MATCH($P55,'Standard Measure Names (MapID)'!$A$2:$A$1011,FALSE),2)) -> Appliance | Z55: =IF(T55="","",INDEX('Standard Measure Names (MapID)'!$B$2:$H$1011,MATCH($P55,'Standard Measure Names (MapID)'!$A$2:$A$1011,FALSE),3)) -> Refrigeration | AA55: =IF(U55="","",INDEX('Standard Measure Names (MapID)'!$B$2:$H$1011,MATCH($P55,'Standard Measure Names (MapID)'!$A$2:$A$1011,FALSE),4)) -> Prescriptive | AB55: =IF(V55="","",INDEX('Standard Measure Names (MapID)'!$B$2:$H$1011,MATCH($P55,'Standard Measure Names (MapID)'!$A$2:$A$1011,FALSE),5)) -> Retrofit | AC55: =IF(W55="","",INDEX('Standard Measure Names (MapID)'!$B$2:$H$1011,MATCH($P55,'Standard Measure Names (MapID)'!$A$2:$A$1011,FALSE),6)) -> C&I | AD55: =IF(Q55="","",INDEX('Standard Measure Names (MapID)'!$B$2:$H$1011,MATCH($P55,'Standard Measure Names (MapID)'!$A$2:$A$1011,FALSE),7)) -> Electricity | AE55: O&M - Participant - C&I | AF55: 0.0013 | AG55: $/kWh/yr | AH55: =IFERROR(CPI_Index!$B$30/VLOOKUP(M55,CPI_Index!$A$2:$B$50,2,FALSE),"No Match")*AF55 -> 0.001418336237 | AI55: $/kWh/yr | AJ55: =IFERROR(VLOOKUP(N55,Confidence_Factor_lookup!$A$4:$Z$99,21,FALSE),0) -> 0.8888888889 | AK55: TRUE
A56: ElectricityC&IRetrofitPrescriptiveOtherAdministrative costs - Participant - C&I | B56: 6 | C56: ElectricityC&IRetrofitPrescriptiveOtherAdministrative costs - Participant - C&I | D56: 5 | E56: ElectricityC&IRetrofitPrescriptiveOtherAdministrative costs - Participant - C&I | F56: 4 | G56: ElectricityC&IRetrofitPrescriptiveAdministrative costs - Participant - C&I | H56: 3 | I56: ElectricityC&IRetrofitAdministrative costs - Participant - C&I | J56: 2 | K56: =VLOOKUP($N56,Confidence_Factor_lookup!$A$2:$F$49,2,FALSE) -> Final Report – Commercial and Industrial Non-Energy Impacts Study | L56: =VLOOKUP($N56,Confidence_Factor_lookup!$A$2:$F$49,5,FALSE) -> MA | M56: =VLOOKUP($N56,Confidence_Factor_lookup!$A$2:$F$49,4,FALSE) -> 2012 | N56: Study0002 | O56: Retro5 | P56: MapID00283 | Q56: Electricity | T56: Other | U56: Prescriptive | V56: Retrofit | W56: C&I | X56: =IF(R56="","",INDEX('Standard Measure Names (MapID)'!$B$2:$H$1011,MATCH($P56,'Standard Measure Names (MapID)'!$A$2:$A$1011,FALSE),1)) ->  | Y56: =IF(S56="","",INDEX('Standard Measure Names (MapID)'!$B$2:$H$1011,MATCH($P56,'Standard Measure Names (MapID)'!$A$2:$A$1011,FALSE),2)) ->  | Z56: =IF(T56="","",INDEX('Standard Measure Names (MapID)'!$B$2:$H$1011,MATCH($P56,'Standard Measure Names (MapID)'!$A$2:$A$1011,FALSE),3)) -> Other | AA56: =IF(U56="","",INDEX('Standard Measure Names (MapID)'!$B$2:$H$1011,MATCH($P56,'Standard Measure Names (MapID)'!$A$2:$A$1011,FALSE),4)) -> Prescriptive | AB56: =IF(V56="","",INDEX('Standard Measure Names (MapID)'!$B$2:$H$1011,MATCH($P56,'Standard Measure Names (MapID)'!$A$2:$A$1011,FALSE),5)) -> Retrofit | AC56: =IF(W56="","",INDEX('Standard Measure Names (MapID)'!$B$2:$H$1011,MATCH($P56,'Standard Measure Names (MapID)'!$A$2:$A$1011,FALSE),6)) -> C&I | AD56: =IF(Q56="","",INDEX('Standard Measure Names (MapID)'!$B$2:$H$1011,MATCH($P56,'Standard Measure Names (MapID)'!$A$2:$A$1011,FALSE),7)) -> Electricity | AE56: Administrative costs - Participant - C&I | AF56: 3.9e-05 | AG56: $/kWh/yr | AH56: =IFERROR(CPI_Index!$B$30/VLOOKUP(M56,CPI_Index!$A$2:$B$50,2,FALSE),"No Match")*AF56 -> 4.255008711e-05 | AI56: $/kWh/yr | AJ56: =IFERROR(VLOOKUP(N56,Confidence_Factor_lookup!$A$4:$Z$99,21,FALSE),0) -> 0.8888888889 | AK56: TRUE
A57: ElectricityC&IRetrofitPrescriptiveOtherO&M - Participant - C&I | B57: 6 | C57: ElectricityC&IRetrofitPrescriptiveOtherO&M - Participant - C&I | D57: 5 | E57: ElectricityC&IRetrofitPrescriptiveOtherO&M - Participant - C&I | F57: 4 | G57: ElectricityC&IRetrofitPrescriptiveO&M - Participant - C&I | H57: 3 | I57: ElectricityC&IRetrofitO&M - Participant - C&I | J57: 2 | K57: =VLOOKUP($N57,Confidence_Factor_lookup!$A$2:$F$49,2,FALSE) -> Final Report – Commercial and Industrial Non-Energy Impacts Study | L57: =VLOOKUP($N57,Confidence_Factor_lookup!$A$2:$F$49,5,FALSE) -> MA | M57: =VLOOKUP($N57,Confidence_Factor_lookup!$A$2:$F$49,4,FALSE) -> 2012 | N57: Study0002 | O57: Retro5 | P57: MapID00283 | Q57: Electricity | T57: Other | U57: Prescriptive | V57: Retrofit | W57: C&I | X57: =IF(R57="","",INDEX('Standard Measure Names (MapID)'!$B$2:$H$1011,MATCH($P57,'Standard Measure Names (MapID)'!$A$2:$A$1011,FALSE),1)) ->  | Y57: =IF(S57="","",INDEX('Standard Measure Names (MapID)'!$B$2:$H$1011,MATCH($P57,'Standard Measure Names (MapID)'!$A$2:$A$1011,FALSE),2)) ->  | Z57: =IF(T57="","",INDEX('Standard Measure Names (MapID)'!$B$2:$H$1011,MATCH($P57,'Standard Measure Names (MapID)'!$A$2:$A$1011,FALSE),3)) -> Other | AA57: =IF(U57="","",INDEX('Standard Measure Names (MapID)'!$B$2:$H$1011,MATCH($P57,'Standard Measure Names (MapID)'!$A$2:$A$1011,FALSE),4)) -> Prescriptive | AB57: =IF(V57="","",INDEX('Standard Measure Names (MapID)'!$B$2:$H$1011,MATCH($P57,'Standard Measure Names (MapID)'!$A$2:$A$1011,FALSE),5)) -> Retrofit | AC57: =IF(W57="","",INDEX('Standard Measure Names (MapID)'!$B$2:$H$1011,MATCH($P57,'Standard Measure Names (MapID)'!$A$2:$A$1011,FALSE),6)) -> C&I | AD57: =IF(Q57="","",INDEX('Standard Measure Names (MapID)'!$B$2:$H$1011,MATCH($P57,'Standard Measure Names (MapID)'!$A$2:$A$1011,FALSE),7)) -> Electricity | AE57: O&M - Participant - C&I | AF57: 0.003861 | AG57: $/kWh/yr | AH57: =IFERROR(CPI_Index!$B$30/VLOOKUP(M57,CPI_Index!$A$2:$B$50,2,FALSE),"No Match")*AF57 -> 0.004212458624 | AI57: $/kWh/yr | AJ57: =IFERROR(VLOOKUP(N57,Confidence_Factor_lookup!$A$4:$Z$99,21,FALSE),0) -> 0.8888888889 | AK57: TRUE
A58: GasC&IRetrofitPrescriptiveWeatherizationO&M - Participant - C&I | B58: 6 | C58: GasC&IRetrofitPrescriptiveWeatherizationO&M - Participant - C&I | D58: 5 | E58: GasC&IRetrofitPrescriptiveWeatherizationO&M - Participant - C&I | F58: 4 | G58: GasC&IRetrofitPrescriptiveO&M - Participant - C&I | H58: 3 | I58: GasC&IRetrofitO&M - Participant - C&I | J58: 2 | K58: =VLOOKUP($N58,Confidence_Factor_lookup!$A$2:$F$49,2,FALSE) -> Final Report – Commercial and Industrial Non-Energy Impacts Study | L58: =VLOOKUP($N58,Confidence_Factor_lookup!$A$2:$F$49,5,FALSE) -> MA | M58: =VLOOKUP($N58,Confidence_Factor_lookup!$A$2:$F$49,4,FALSE) -> 2012 | N58: Study0002 | O58: Retro6 | P58: MapID00095 | Q58: Gas | T58: Building Envelope | U58: Prescriptive | V58: Retrofit | W58: C&I | X58: =IF(R58="","",INDEX('Standard Measure Names (MapID)'!$B$2:$H$1011,MATCH($P58,'Standard Measure Names (MapID)'!$A$2:$A$1011,FALSE),1)) ->  | Y58: =IF(S58="","",INDEX('Standard Measure Names (MapID)'!$B$2:$H$1011,MATCH($P58,'Standard Measure Names (MapID)'!$A$2:$A$1011,FALSE),2)) ->  | Z58: =IF(T58="","",INDEX('Standard Measure Names (MapID)'!$B$2:$H$1011,MATCH($P58,'Standard Measure Names (MapID)'!$A$2:$A$1011,FALSE),3)) -> Weatherization | AA58: =IF(U58="","",INDEX('Standard Measure Names (MapID)'!$B$2:$H$1011,MATCH($P58,'Standard Measure Names (MapID)'!$A$2:$A$1011,FALSE),4)) -> Prescriptive | AB58: =IF(V58="","",INDEX('Standard Measure Names (MapID)'!$B$2:$H$1011,MATCH($P58,'Standard Measure Names (MapID)'!$A$2:$A$1011,FALSE),5)) -> Retrofit | AC58: =IF(W58="","",INDEX('Standard Measure Names (MapID)'!$B$2:$H$1011,MATCH($P58,'Standard Measure Names (MapID)'!$A$2:$A$1011,FALSE),6)) -> C&I | AD58: =IF(Q58="","",INDEX('Standard Measure Names (MapID)'!$B$2:$H$1011,MATCH($P58,'Standard Measure Names (MapID)'!$A$2:$A$1011,FALSE),7)) -> Gas | AE58: O&M - Participant - C&I | AF58: 3.6151 | AG58: $/therm/yr | AH58: =IFERROR(CPI_Index!$B$30/VLOOKUP(M58,CPI_Index!$A$2:$B$50,2,FALSE),"No Match")*AF58 -> 3.944174869 | AI58: $/therm/yr | AJ58: =IFERROR(VLOOKUP(N58,Confidence_Factor_lookup!$A$4:$Z$99,21,FALSE),0) -> 0.8888888889 | AK58: TRUE
A59: GasC&IRetrofitPrescriptiveHVACAdministrative costs - Participant - C&I | B59: 6 | C59: GasC&IRetrofitPrescriptiveHVACAdministrative costs - Participant - C&I | D59: 5 | E59: GasC&IRetrofitPrescriptiveHVACAdministrative costs - Participant - C&I | F59: 4 | G59: GasC&IRetrofitPrescriptiveAdministrative costs - Participant - C&I | H59: 3 | I59: GasC&IRetrofitAdministrative costs - Participant - C&I | J59: 2 | K59: =VLOOKUP($N59,Confidence_Factor_lookup!$A$2:$F$49,2,FALSE) -> Final Report – Commercial and Industrial Non-Energy Impacts Study | L59: =VLOOKUP($N59,Confidence_Factor_lookup!$A$2:$F$49,5,FALSE) -> MA | M59: =VLOOKUP($N59,Confidence_Factor_lookup!$A$2:$F$49,4,FALSE) -> 2012 | N59: Study0002 | O59: Retro7 | P59: MapID00331 | Q59: Gas | T59: HVAC | U59: Prescriptive | V59: Retrofit | W59: C&I | X59: =IF(R59="","",INDEX('Standard Measure Names (MapID)'!$B$2:$H$1011,MATCH($P59,'Standard Measure Names (MapID)'!$A$2:$A$1011,FALSE),1)) ->  | Y59: =IF(S59="","",INDEX('Standard Measure Names (MapID)'!$B$2:$H$1011,MATCH($P59,'Standard Measure Names (MapID)'!$A$2:$A$1011,FALSE),2)) ->  | Z59: =IF(T59="","",INDEX('Standard Measure Names (MapID)'!$B$2:$H$1011,MATCH($P59,'Standard Measure Names (MapID)'!$A$2:$A$1011,FALSE),3)) -> HVAC | AA59: =IF(U59="","",INDEX('Standard Measure Names (MapID)'!$B$2:$H$1011,MATCH($P59,'Standard Measure Names (MapID)'!$A$2:$A$1011,FALSE),4)) -> Prescriptive | AB59: =IF(V59="","",INDEX('Standard Measure Names (MapID)'!$B$2:$H$1011,MATCH($P59,'Standard Measure Names (MapID)'!$A$2:$A$1011,FALSE),5)) -> Retrofit | AC59: =IF(W59="","",INDEX('Standard Measure Names (MapID)'!$B$2:$H$1011,MATCH($P59,'Standard Measure Names (MapID)'!$A$2:$A$1011,FALSE),6)) -> C&I | AD59: =IF(Q59="","",INDEX('Standard Measure Names (MapID)'!$B$2:$H$1011,MATCH($P59,'Standard Measure Names (MapID)'!$A$2:$A$1011,FALSE),7)) -> Gas | AE59: Administrative costs - Participant - C&I | AF59: 0.1238688 | AG59: $/therm/yr | AH59: =IFERROR(CPI_Index!$B$30/VLOOKUP(M59,CPI_Index!$A$2:$B$50,2,FALSE),"No Match")*AF59 -> 0.1351443136 | AI59: $/therm/yr | AJ59: =IFERROR(VLOOKUP(N59,Confidence_Factor_lookup!$A$4:$Z$99,21,FALSE),0) -> 0.8888888889 | AK59: TRUE
A60: GasC&IRetrofitPrescriptiveHVACO&M - Participant - C&I | B60: 6 | C60: GasC&IRetrofitPrescriptiveHVACO&M - Participant - C&I | D60: 5 | E60: GasC&IRetrofitPrescriptiveHVACO&M - Participant - C&I | F60: 4 | G60: GasC&IRetrofitPrescriptiveO&M - Participant - C&I | H60: 3 | I60: GasC&IRetrofitO&M - Participant - C&I | J60: 2 | K60: =VLOOKUP($N60,Confidence_Factor_lookup!$A$2:$F$49,2,FALSE) -> Final Report – Commercial and Industrial Non-Energy Impacts Study | L60: =VLOOKUP($N60,Confidence_Factor_lookup!$A$2:$F$49,5,FALSE) -> MA | M60: =VLOOKUP($N60,Confidence_Factor_lookup!$A$2:$F$49,4,FALSE) -> 2012 | N60: Study0002 | O60: Retro7 | P60: MapID00331 | Q60: Gas | T60: HVAC | U60: Prescriptive | V60: Retrofit | W60: C&I | X60: =IF(R60="","",INDEX('Standard Measure Names (MapID)'!$B$2:$H$1011,MATCH($P60,'Standard Measure Names (MapID)'!$A$2:$A$1011,FALSE),1)) ->  | Y60: =IF(S60="","",INDEX('Standard Measure Names (MapID)'!$B$2:$H$1011,MATCH($P60,'Standard Measure Names (MapID)'!$A$2:$A$1011,FALSE),2)) ->  | Z60: =IF(T60="","",INDEX('Standard Measure Names (MapID)'!$B$2:$H$1011,MATCH($P60,'Standard Measure Names (MapID)'!$A$2:$A$1011,FALSE),3)) -> HVAC | AA60: =IF(U60="","",INDEX('Standard Measure Names (MapID)'!$B$2:$H$1011,MATCH($P60,'Standard Measure Names (MapID)'!$A$2:$A$1011,FALSE),4)) -> Prescriptive | AB60: =IF(V60="","",INDEX('Standard Measure Names (MapID)'!$B$2:$H$1011,MATCH($P60,'Standard Measure Names (MapID)'!$A$2:$A$1011,FALSE),5)) -> Retrofit | AC60: =IF(W60="","",INDEX('Standard Measure Names (MapID)'!$B$2:$H$1011,MATCH($P60,'Standard Measure Names (MapID)'!$A$2:$A$1011,FALSE),6)) -> C&I | AD60: =IF(Q60="","",INDEX('Standard Measure Names (MapID)'!$B$2:$H$1011,MATCH($P60,'Standard Measure Names (MapID)'!$A$2:$A$1011,FALSE),7)) -> Gas | AE60: O&M - Participant - C&I | AF60: 1.1457864 | AG60: $/therm/yr | AH60: =IFERROR(CPI_Index!$B$30/VLOOKUP(M60,CPI_Index!$A$2:$B$50,2,FALSE),"No Match")*AF60 -> 1.250084901 | AI60: $/therm/yr | AJ60: =IFERROR(VLOOKUP(N60,Confidence_Factor_lookup!$A$4:$Z$99,21,FALSE),0) -> 0.8888888889 | AK60: TRUE
A61: GasC&IRetrofitPrescriptiveHVACSupplies and materials - Participant - C&I | B61: 6 | C61: GasC&IRetrofitPrescriptiveHVACSupplies and materials - Participant - C&I | D61: 5 | E61: GasC&IRetrofitPrescriptiveHVACSupplies and materials - Participant - C&I | F61: 4 | G61: GasC&IRetrofitPrescriptiveSupplies and materials - Participant - C&I | H61: 3 | I61: GasC&IRetrofitSupplies and materials - Participant - C&I | J61: 2 | K61: =VLOOKUP($N61,Confidence_Factor_lookup!$A$2:$F$49,2,FALSE) -> Final Report – Commercial and Industrial Non-Energy Impacts Study | L61: =VLOOKUP($N61,Confidence_Factor_lookup!$A$2:$F$49,5,FALSE) -> MA | M61: =VLOOKUP($N61,Confidence_Factor_lookup!$A$2:$F$49,4,FALSE) -> 2012 | N61: Study0002 | O61: Retro7 | P61: MapID00331 | Q61: Gas | T61: HVAC | U61: Prescriptive | V61: Retrofit | W61: C&I | X61: =IF(R61="","",INDEX('Standard Measure Names (MapID)'!$B$2:$H$1011,MATCH($P61,'Standard Measure Names (MapID)'!$A$2:$A$1011,FALSE),1)) ->  | Y61: =IF(S61="","",INDEX('Standard Measure Names (MapID)'!$B$2:$H$1011,MATCH($P61,'Standard Measure Names (MapID)'!$A$2:$A$1011,FALSE),2)) ->  | Z61: =IF(T61="","",INDEX('Standard Measure Names (MapID)'!$B$2:$H$1011,MATCH($P61,'Standard Measure Names (MapID)'!$A$2:$A$1011,FALSE),3)) -> HVAC | AA61: =IF(U61="","",INDEX('Standard Measure Names (MapID)'!$B$2:$H$1011,MATCH($P61,'Standard Measure Names (MapID)'!$A$2:$A$1011,FALSE),4)) -> Prescriptive | AB61: =IF(V61="","",INDEX('Standard Measure Names (MapID)'!$B$2:$H$1011,MATCH($P61,'Standard Measure Names (MapID)'!$A$2:$A$1011,FALSE),5)) -> Retrofit | AC61: =IF(W61="","",INDEX('Standard Measure Names (MapID)'!$B$2:$H$1011,MATCH($P61,'Standard Measure Names (MapID)'!$A$2:$A$1011,FALSE),6)) -> C&I | AD61: =IF(Q61="","",INDEX('Standard Measure Names (MapID)'!$B$2:$H$1011,MATCH($P61,'Standard Measure Names (MapID)'!$A$2:$A$1011,FALSE),7)) -> Gas | AE61: Supplies and materials - Participant - C&I | AF61: 0.0053856 | AG61: $/therm/yr | AH61: =IFERROR(CPI_Index!$B$30/VLOOKUP(M61,CPI_Index!$A$2:$B$50,2,FALSE),"No Match")*AF61 -> 0.005875839721 | AI61: $/therm/yr | AJ61: =IFERROR(VLOOKUP(N61,Confidence_Factor_lookup!$A$4:$Z$99,21,FALSE),0) -> 0.8888888889 | AK61: TRUE
A62: GasC&IRetrofitPrescriptiveHVACOther Impacts - Participant - C&I | B62: 6 | C62: GasC&IRetrofitPrescriptiveHVACOther Impacts - Participant - C&I | D62: 5 | E62: GasC&IRetrofitPrescriptiveHVACOther Impacts - Participant - C&I | F62: 4 | G62: GasC&IRetrofitPrescriptiveOther Impacts - Participant - C&I | H62: 3 | I62: GasC&IRetrofitOther Impacts - Participant - C&I | J62: 2 | K62: =VLOOKUP($N62,Confidence_Factor_lookup!$A$2:$F$49,2,FALSE) -> Final Report – Commercial and Industrial Non-Energy Impacts Study | L62: =VLOOKUP($N62,Confidence_Factor_lookup!$A$2:$F$49,5,FALSE) -> MA | M62: =VLOOKUP($N62,Confidence_Factor_lookup!$A$2:$F$49,4,FALSE) -> 2012 | N62: Study0002 | O62: Retro7 | P62: MapID00331 | Q62: Gas | T62: HVAC | U62: Prescriptive | V62: Retrofit | W62: C&I | X62: =IF(R62="","",INDEX('Standard Measure Names (MapID)'!$B$2:$H$1011,MATCH($P62,'Standard Measure Names (MapID)'!$A$2:$A$1011,FALSE),1)) ->  | Y62: =IF(S62="","",INDEX('Standard Measure Names (MapID)'!$B$2:$H$1011,MATCH($P62,'Standard Measure Names (MapID)'!$A$2:$A$1011,FALSE),2)) ->  | Z62: =IF(T62="","",INDEX('Standard Measure Names (MapID)'!$B$2:$H$1011,MATCH($P62,'Standard Measure Names (MapID)'!$A$2:$A$1011,FALSE),3)) -> HVAC | AA62: =IF(U62="","",INDEX('Standard Measure Names (MapID)'!$B$2:$H$1011,MATCH($P62,'Standard Measure Names (MapID)'!$A$2:$A$1011,FALSE),4)) -> Prescriptive | AB62: =IF(V62="","",INDEX('Standard Measure Names (MapID)'!$B$2:$H$1011,MATCH($P62,'Standard Measure Names (MapID)'!$A$2:$A$1011,FALSE),5)) -> Retrofit | AC62: =IF(W62="","",INDEX('Standard Measure Names (MapID)'!$B$2:$H$1011,MATCH($P62,'Standard Measure Names (MapID)'!$A$2:$A$1011,FALSE),6)) -> C&I | AD62: =IF(Q62="","",INDEX('Standard Measure Names (MapID)'!$B$2:$H$1011,MATCH($P62,'Standard Measure Names (MapID)'!$A$2:$A$1011,FALSE),7)) -> Gas | AE62: Other Impacts - Participant - C&I | AF62: 0.013464 | AG62: $/therm/yr | AH62: =IFERROR(CPI_Index!$B$30/VLOOKUP(M62,CPI_Index!$A$2:$B$50,2,FALSE),"No Match")*AF62 -> 0.0146895993 | AI62: $/therm/yr | AJ62: =IFERROR(VLOOKUP(N62,Confidence_Factor_lookup!$A$4:$Z$99,21,FALSE),0) -> 0.8888888889 | AK62: TRUE
A63: GasC&IRetrofitPrescriptiveHVACProduct Spoilage/Defects - Participant - C&I | B63: 6 | C63: GasC&IRetrofitPrescriptiveHVACProduct Spoilage/Defects - Participant - C&I | D63: 5 | E63: GasC&IRetrofitPrescriptiveHVACProduct Spoilage/Defects - Participant - C&I | F63: 4 | G63: GasC&IRetrofitPrescriptiveProduct Spoilage/Defects - Participant - C&I | H63: 3 | I63: GasC&IRetrofitProduct Spoilage/Defects - Participant - C&I | J63: 2 | K63: =VLOOKUP($N63,Confidence_Factor_lookup!$A$2:$F$49,2,FALSE) -> Final Report – Commercial and Industrial Non-Energy Impacts Study | L63: =VLOOKUP($N63,Confidence_Factor_lookup!$A$2:$F$49,5,FALSE) -> MA | M63: =VLOOKUP($N63,Confidence_Factor_lookup!$A$2:$F$49,4,FALSE) -> 2012 | N63: Study0002 | O63: Retro7 | P63: MapID00331 | Q63: Gas | T63: HVAC | U63: Prescriptive | V63: Retrofit | W63: C&I | X63: =IF(R63="","",INDEX('Standard Measure Names (MapID)'!$B$2:$H$1011,MATCH($P63,'Standard Measure Names (MapID)'!$A$2:$A$1011,FALSE),1)) ->  | Y63: =IF(S63="","",INDEX('Standard Measure Names (MapID)'!$B$2:$H$1011,MATCH($P63,'Standard Measure Names (MapID)'!$A$2:$A$1011,FALSE),2)) ->  | Z63: =IF(T63="","",INDEX('Standard Measure Names (MapID)'!$B$2:$H$1011,MATCH($P63,'Standard Measure Names (MapID)'!$A$2:$A$1011,FALSE),3)) -> HVAC | AA63: =IF(U63="","",INDEX('Standard Measure Names (MapID)'!$B$2:$H$1011,MATCH($P63,'Standard Measure Names (MapID)'!$A$2:$A$1011,FALSE),4)) -> Prescriptive | AB63: =IF(V63="","",INDEX('Standard Measure Names (MapID)'!$B$2:$H$1011,MATCH($P63,'Standard Measure Names (MapID)'!$A$2:$A$1011,FALSE),5)) -> Retrofit | AC63: =IF(W63="","",INDEX('Standard Measure Names (MapID)'!$B$2:$H$1011,MATCH($P63,'Standard Measure Names (MapID)'!$A$2:$A$1011,FALSE),6)) -> C&I | AD63: =IF(Q63="","",INDEX('Standard Measure Names (MapID)'!$B$2:$H$1011,MATCH($P63,'Standard Measure Names (MapID)'!$A$2:$A$1011,FALSE),7)) -> Gas | AE63: Product Spoilage/Defects - Participant - C&I | AF63: 0.0013464 | AG63: $/therm/yr | AH63: =IFERROR(CPI_Index!$B$30/VLOOKUP(M63,CPI_Index!$A$2:$B$50,2,FALSE),"No Match")*AF63 -> 0.00146895993 | AI63: $/therm/yr | AJ63: =IFERROR(VLOOKUP(N63,Confidence_Factor_lookup!$A$4:$Z$99,21,FALSE),0) -> 0.8888888889 | AK63: TRUE
A64: GasC&IRetrofitPrescriptiveHVACRent Revenue - Participant - C&I | B64: 6 | C64: GasC&IRetrofitPrescriptiveHVACRent Revenue - Participant - C&I | D64: 5 | E64: GasC&IRetrofitPrescriptiveHVACRent Revenue - Participant - C&I | F64: 4 | G64: GasC&IRetrofitPrescriptiveRent Revenue - Participant - C&I | H64: 3 | I64: GasC&IRetrofitRent Revenue - Participant - C&I | J64: 2 | K64: =VLOOKUP($N64,Confidence_Factor_lookup!$A$2:$F$49,2,FALSE) -> Final Report – Commercial and Industrial Non-Energy Impacts Study | L64: =VLOOKUP($N64,Confidence_Factor_lookup!$A$2:$F$49,5,FALSE) -> MA | M64: =VLOOKUP($N64,Confidence_Factor_lookup!$A$2:$F$49,4,FALSE) -> 2012 | N64: Study0002 | O64: Retro7 | P64: MapID00331 | Q64: Gas | T64: HVAC | U64: Prescriptive | V64: Retrofit | W64: C&I | X64: =IF(R64="","",INDEX('Standard Measure Names (MapID)'!$B$2:$H$1011,MATCH($P64,'Standard Measure Names (MapID)'!$A$2:$A$1011,FALSE),1)) ->  | Y64: =IF(S64="","",INDEX('Standard Measure Names (MapID)'!$B$2:$H$1011,MATCH($P64,'Standard Measure Names (MapID)'!$A$2:$A$1011,FALSE),2)) ->  | Z64: =IF(T64="","",INDEX('Standard Measure Names (MapID)'!$B$2:$H$1011,MATCH($P64,'Standard Measure Names (MapID)'!$A$2:$A$1011,FALSE),3)) -> HVAC | AA64: =IF(U64="","",INDEX('Standard Measure Names (MapID)'!$B$2:$H$1011,MATCH($P64,'Standard Measure Names (MapID)'!$A$2:$A$1011,FALSE),4)) -> Prescriptive | AB64: =IF(V64="","",INDEX('Standard Measure Names (MapID)'!$B$2:$H$1011,MATCH($P64,'Standard Measure Names (MapID)'!$A$2:$A$1011,FALSE),5)) -> Retrofit | AC64: =IF(W64="","",INDEX('Standard Measure Names (MapID)'!$B$2:$H$1011,MATCH($P64,'Standard Measure Names (MapID)'!$A$2:$A$1011,FALSE),6)) -> C&I | AD64: =IF(Q64="","",INDEX('Standard Measure Names (MapID)'!$B$2:$H$1011,MATCH($P64,'Standard Measure Names (MapID)'!$A$2:$A$1011,FALSE),7)) -> Gas | AE64: Rent Revenue - Participant - C&I | AF64: 0.0552024 | AG64: $/therm/yr | AH64: =IFERROR(CPI_Index!$B$30/VLOOKUP(M64,CPI_Index!$A$2:$B$50,2,FALSE),"No Match")*AF64 -> 0.06022735714 | AI64: $/therm/yr | AJ64: =IFERROR(VLOOKUP(N64,Confidence_Factor_lookup!$A$4:$Z$99,21,FALSE),0) -> 0.8888888889 | AK64: TRUE
A65: GasC&IRetrofitPrescriptiveHot WaterEquipmentWater HeaterAdministrative costs - Participant - C&I | B65: 6 | C65: GasC&IRetrofitPrescriptiveHot WaterEquipmentAdministrative costs - Participant - C&I | D65: 5 | E65: GasC&IRetrofitPrescriptiveHot WaterAdministrative costs - Participant - C&I | F65: 4 | G65: GasC&IRetrofitPrescriptiveAdministrative costs - Participant - C&I | H65: 3 | I65: GasC&IRetrofitAdministrative costs - Participant - C&I | J65: 2 | K65: =VLOOKUP($N65,Confidence_Factor_lookup!$A$2:$F$49,2,FALSE) -> Final Report – Commercial and Industrial Non-Energy Impacts Study | L65: =VLOOKUP($N65,Confidence_Factor_lookup!$A$2:$F$49,5,FALSE) -> MA | M65: =VLOOKUP($N65,Confidence_Factor_lookup!$A$2:$F$49,4,FALSE) -> 2012 | N65: Study0002 | O65: Retro8 | P65: MapID00094 | Q65: Gas | R65: water heater | S65: Water Heater | T65: Water Heater | U65: Prescriptive | V65: Retrofit | W65: C&I | X65: =IF(R65="","",INDEX('Standard Measure Names (MapID)'!$B$2:$H$1011,MATCH($P65,'Standard Measure Names (MapID)'!$A$2:$A$1011,FALSE),1)) -> Water Heater | Y65: =IF(S65="","",INDEX('Standard Measure Names (MapID)'!$B$2:$H$1011,MATCH($P65,'Standard Measure Names (MapID)'!$A$2:$A$1011,FALSE),2)) -> Equipment | Z65: =IF(T65="","",INDEX('Standard Measure Names (MapID)'!$B$2:$H$1011,MATCH($P65,'Standard Measure Names (MapID)'!$A$2:$A$1011,FALSE),3)) -> Hot Water | AA65: =IF(U65="","",INDEX('Standard Measure Names (MapID)'!$B$2:$H$1011,MATCH($P65,'Standard Measure Names (MapID)'!$A$2:$A$1011,FALSE),4)) -> Prescriptive | AB65: =IF(V65="","",INDEX('Standard Measure Names (MapID)'!$B$2:$H$1011,MATCH($P65,'Standard Measure Names (MapID)'!$A$2:$A$1011,FALSE),5)) -> Retrofit | AC65: =IF(W65="","",INDEX('Standard Measure Names (MapID)'!$B$2:$H$1011,MATCH($P65,'Standard Measure Names (MapID)'!$A$2:$A$1011,FALSE),6)) -> C&I | AD65: =IF(Q65="","",INDEX('Standard Measure Names (MapID)'!$B$2:$H$1011,MATCH($P65,'Standard Measure Names (MapID)'!$A$2:$A$1011,FALSE),7)) -> Gas | AE65: Administrative costs - Participant - C&I | AF65: 0.0164052 | AG65: $/therm/yr | AH65: =IFERROR(CPI_Index!$B$30/VLOOKUP(M65,CPI_Index!$A$2:$B$50,2,FALSE),"No Match")*AF65 -> 0.01789853049 | AI65: $/therm/yr | AJ65: =IFERROR(VLOOKUP(N65,Confidence_Factor_lookup!$A$4:$Z$99,21,FALSE),0) -> 0.8888888889 | AK65: TRUE
A66: GasC&IRetrofitPrescriptiveHot WaterEquipmentWater HeaterO&M - Participant - C&I | B66: 6 | C66: GasC&IRetrofitPrescriptiveHot WaterEquipmentO&M - Participant - C&I | D66: 5 | E66: GasC&IRetrofitPrescriptiveHot WaterO&M - Participant - C&I | F66: 4 | G66: GasC&IRetrofitPrescriptiveO&M - Participant - C&I | H66: 3 | I66: GasC&IRetrofitO&M - Participant - C&I | J66: 2 | K66: =VLOOKUP($N66,Confidence_Factor_lookup!$A$2:$F$49,2,FALSE) -> Final Report – Commercial and Industrial Non-Energy Impacts Study | L66: =VLOOKUP($N66,Confidence_Factor_lookup!$A$2:$F$49,5,FALSE) -> MA | M66: =VLOOKUP($N66,Confidence_Factor_lookup!$A$2:$F$49,4,FALSE) -> 2012 | N66: Study0002 | O66: Retro8 | P66: MapID00094 | Q66: Gas | R66: water heater | S66: Water Heater | T66: Water Heater | U66: Prescriptive | V66: Retrofit | W66: C&I | X66: =IF(R66="","",INDEX('Standard Measure Names (MapID)'!$B$2:$H$1011,MATCH($P66,'Standard Measure Names (MapID)'!$A$2:$A$1011,FALSE),1)) -> Water Heater | Y66: =IF(S66="","",INDEX('Standard Measure Names (MapID)'!$B$2:$H$1011,MATCH($P66,'Standard Measure Names (MapID)'!$A$2:$A$1011,FALSE),2)) -> Equipment | Z66: =IF(T66="","",INDEX('Standard Measure Names (MapID)'!$B$2:$H$1011,MATCH($P66,'Standard Measure Names (MapID)'!$A$2:$A$1011,FALSE),3)) -> Hot Water | AA66: =IF(U66="","",INDEX('Standard Measure Names (MapID)'!$B$2:$H$1011,MATCH($P66,'Standard Measure Names (MapID)'!$A$2:$A$1011,FALSE),4)) -> Prescriptive | AB66: =IF(V66="","",INDEX('Standard Measure Names (MapID)'!$B$2:$H$1011,MATCH($P66,'Standard Measure Names (MapID)'!$A$2:$A$1011,FALSE),5)) -> Retrofit | AC66: =IF(W66="","",INDEX('Standard Measure Names (MapID)'!$B$2:$H$1011,MATCH($P66,'Standard Measure Names (MapID)'!$A$2:$A$1011,FALSE),6)) -> C&I | AD66: =IF(Q66="","",INDEX('Standard Measure Names (MapID)'!$B$2:$H$1011,MATCH($P66,'Standard Measure Names (MapID)'!$A$2:$A$1011,FALSE),7)) -> Gas | AE66: O&M - Participant - C&I | AF66: 0.2348808 | AG66: $/therm/yr | AH66: =IFERROR(CPI_Index!$B$30/VLOOKUP(M66,CPI_Index!$A$2:$B$50,2,FALSE),"No Match")*AF66 -> 0.2562615 | AI66: $/therm/yr | AJ66: =IFERROR(VLOOKUP(N66,Confidence_Factor_lookup!$A$4:$Z$99,21,FALSE),0) -> 0.8888888889 | AK66: TRUE
A67: =CONCATENATE(AD67,AC67,AB67,AA67,Z67,Y67,X67,AE67) -> GasC&IRetrofitPrescriptiveHot WaterEquipmentWater HeaterOther Impacts - Utility - C&I | B67: 6 | C67: =CONCATENATE(AD67,AC67,AB67,AA67,Z67,Y67,AE67) -> GasC&IRetrofitPrescriptiveHot WaterEquipmentOther Impacts - Utility - C&I | D67: 5 | E67: =CONCATENATE(AD67,AC67,AB67,AA67,Z67,AE67) -> GasC&IRetrofitPrescriptiveHot WaterOther Impacts - Utility - C&I | F67: 4 | G67: =CONCATENATE(AD67,AC67,AB67,AA67,AE67) -> GasC&IRetrofitPrescriptiveOther Impacts - Utility - C&I | H67: 3 | I67: =CONCATENATE(AD67,AC67,AB67,AE67) -> GasC&IRetrofitOther Impacts - Utility - C&I | J67: 2 | K67: =VLOOKUP($N67,Confidence_Factor_lookup!$A$2:$F$49,2,FALSE) -> Final Report – Commercial and Industrial Non-Energy Impacts Study | L67: =VLOOKUP($N67,Confidence_Factor_lookup!$A$2:$F$49,5,FALSE) -> MA | M67: =VLOOKUP($N67,Confidence_Factor_lookup!$A$2:$F$49,4,FALSE) -> 2012 | N67: Study0002 | O67: Retro8 | P67: MapID00094 | Q67: Gas | R67: water heater | S67: Water Heater | T67: Water Heater | U67: Prescriptive | V67: Retrofit | W67: C&I | X67: =IF(R67="","",INDEX('Standard Measure Names (MapID)'!$B$2:$H$1011,MATCH($P67,'Standard Measure Names (MapID)'!$A$2:$A$1011,FALSE),1)) -> Water Heater | Y67: =IF(S67="","",INDEX('Standard Measure Names (MapID)'!$B$2:$H$1011,MATCH($P67,'Standard Measure Names (MapID)'!$A$2:$A$1011,FALSE),2)) -> Equipment | Z67: =IF(T67="","",INDEX('Standard Measure Names (MapID)'!$B$2:$H$1011,MATCH($P67,'Standard Measure Names (MapID)'!$A$2:$A$1011,FALSE),3)) -> Hot Water | AA67: =IF(U67="","",INDEX('Standard Measure Names (MapID)'!$B$2:$H$1011,MATCH($P67,'Standard Measure Names (MapID)'!$A$2:$A$1011,FALSE),4)) -> Prescriptive | AB67: =IF(V67="","",INDEX('Standard Measure Names (MapID)'!$B$2:$H$1011,MATCH($P67,'Standard Measure Names (MapID)'!$A$2:$A$1011,FALSE),5)) -> Retrofit | AC67: =IF(W67="","",INDEX('Standard Measure Names (MapID)'!$B$2:$H$1011,MATCH($P67,'Standard Measure Names (MapID)'!$A$2:$A$1011,FALSE),6)) -> C&I | AD67: =IF(Q67="","",INDEX('Standard Measure Names (MapID)'!$B$2:$H$1011,MATCH($P67,'Standard Measure Names (MapID)'!$A$2:$A$1011,FALSE),7)) -> Gas | AE67: Other Impacts - Utility - C&I | AF67: 0.0088536 | AG67: $/kWh/yr | AH67: =IFERROR(CPI_Index!$B$30/VLOOKUP(M67,CPI_Index!$A$2:$B$50,2,FALSE),"No Match")*AF67 -> 0.00965952439 | AI67: =AG67 -> $/kWh/yr | AJ67: =IFERROR(VLOOKUP(N67,Confidence_Factor_lookup!$A$4:$Z$99,21,FALSE),0) -> 0.8888888889 | AK67: =COUNTBLANK(R67:W67)=COUNTBLANK(X67:AC67) -> TRUE
A68: ElectricityC&IRetrofitCustomOtherGenerationCHPAdministrative costs - Participant - C&I | B68: 6 | C68: ElectricityC&IRetrofitCustomOtherGenerationAdministrative costs - Participant - C&I | D68: 5 | E68: ElectricityC&IRetrofitCustomOtherAdministrative costs - Participant - C&I | F68: 4 | G68: ElectricityC&IRetrofitCustomAdministrative costs - Participant - C&I | H68: 3 | I68: ElectricityC&IRetrofitAdministrative costs - Participant - C&I | J68: 2 | K68: =VLOOKUP($N68,Confidence_Factor_lookup!$A$2:$F$49,2,FALSE) -> Final Report – Commercial and Industrial Non-Energy Impacts Study | L68: =VLOOKUP($N68,Confidence_Factor_lookup!$A$2:$F$49,5,FALSE) -> MA | M68: =VLOOKUP($N68,Confidence_Factor_lookup!$A$2:$F$49,4,FALSE) -> 2012 | N68: Study0002 | O68: Retro9 | P68: MapID00172 | Q68: Electricity | R68: CHP | S68: CHP/Cogen | T68: CHP/Cogen | U68: Custom | V68: Retrofit | W68: C&I | X68: =IF(R68="","",INDEX('Standard Measure Names (MapID)'!$B$2:$H$1011,MATCH($P68,'Standard Measure Names (MapID)'!$A$2:$A$1011,FALSE),1)) -> CHP | Y68: =IF(S68="","",INDEX('Standard Measure Names (MapID)'!$B$2:$H$1011,MATCH($P68,'Standard Measure Names (MapID)'!$A$2:$A$1011,FALSE),2)) -> Generation | Z68: =IF(T68="","",INDEX('Standard Measure Names (MapID)'!$B$2:$H$1011,MATCH($P68,'Standard Measure Names (MapID)'!$A$2:$A$1011,FALSE),3)) -> Other | AA68: =IF(U68="","",INDEX('Standard Measure Names (MapID)'!$B$2:$H$1011,MATCH($P68,'Standard Measure Names (MapID)'!$A$2:$A$1011,FALSE),4)) -> Custom | AB68: =IF(V68="","",INDEX('Standard Measure Names (MapID)'!$B$2:$H$1011,MATCH($P68,'Standard Measure Names (MapID)'!$A$2:$A$1011,FALSE),5)) -> Retrofit | AC68: =IF(W68="","",INDEX('Standard Measure Names (MapID)'!$B$2:$H$1011,MATCH($P68,'Standard Measure Names (MapID)'!$A$2:$A$1011,FALSE),6)) -> C&I | AD68: =IF(Q68="","",INDEX('Standard Measure Names (MapID)'!$B$2:$H$1011,MATCH($P68,'Standard Measure Names (MapID)'!$A$2:$A$1011,FALSE),7)) -> Electricity | AE68: Administrative costs - Participant - C&I | AF68: -0.0029841 | AG68: $/kWh/yr | AH68: =IFERROR(CPI_Index!$B$30/VLOOKUP(M68,CPI_Index!$A$2:$B$50,2,FALSE),"No Match")*AF68 -> -0.00325573628 | AI68: $/kWh/yr | AJ68: =IFERROR(VLOOKUP(N68,Confidence_Factor_lookup!$A$4:$Z$99,21,FALSE),0) -> 0.8888888889 | AK68: TRUE
A69: ElectricityC&IRetrofitCustomOtherGenerationCHPO&M - Participant - C&I | B69: 6 | C69: ElectricityC&IRetrofitCustomOtherGenerationO&M - Participant - C&I | D69: 5 | E69: ElectricityC&IRetrofitCustomOtherO&M - Participant - C&I | F69: 4 | G69: ElectricityC&IRetrofitCustomO&M - Participant - C&I | H69: 3 | I69: ElectricityC&IRetrofitO&M - Participant - C&I | J69: 2 | K69: =VLOOKUP($N69,Confidence_Factor_lookup!$A$2:$F$49,2,FALSE) -> Final Report – Commercial and Industrial Non-Energy Impacts Study | L69: =VLOOKUP($N69,Confidence_Factor_lookup!$A$2:$F$49,5,FALSE) -> MA | M69: =VLOOKUP($N69,Confidence_Factor_lookup!$A$2:$F$49,4,FALSE) -> 2012 | N69: Study0002 | O69: Retro9 | P69: MapID00172 | Q69: Electricity | R69: CHP | S69: CHP/Cogen | T69: CHP/Cogen | U69: Custom | V69: Retrofit | W69: C&I | X69: =IF(R69="","",INDEX('Standard Measure Names (MapID)'!$B$2:$H$1011,MATCH($P69,'Standard Measure Names (MapID)'!$A$2:$A$1011,FALSE),1)) -> CHP | Y69: =IF(S69="","",INDEX('Standard Measure Names (MapID)'!$B$2:$H$1011,MATCH($P69,'Standard Measure Names (MapID)'!$A$2:$A$1011,FALSE),2)) -> Generation | Z69: =IF(T69="","",INDEX('Standard Measure Names (MapID)'!$B$2:$H$1011,MATCH($P69,'Standard Measure Names (MapID)'!$A$2:$A$1011,FALSE),3)) -> Other | AA69: =IF(U69="","",INDEX('Standard Measure Names (MapID)'!$B$2:$H$1011,MATCH($P69,'Standard Measure Names (MapID)'!$A$2:$A$1011,FALSE),4)) -> Custom | AB69: =IF(V69="","",INDEX('Standard Measure Names (MapID)'!$B$2:$H$1011,MATCH($P69,'Standard Measure Names (MapID)'!$A$2:$A$1011,FALSE),5)) -> Retrofit | AC69: =IF(W69="","",INDEX('Standard Measure Names (MapID)'!$B$2:$H$1011,MATCH($P69,'Standard Measure Names (MapID)'!$A$2:$A$1011,FALSE),6)) -> C&I | AD69: =IF(Q69="","",INDEX('Standard Measure Names (MapID)'!$B$2:$H$1011,MATCH($P69,'Standard Measure Names (MapID)'!$A$2:$A$1011,FALSE),7)) -> Electricity | AE69: O&M - Participant - C&I | AF69: -0.0117159 | AG69: $/kWh/yr | AH69: =IFERROR(CPI_Index!$B$30/VLOOKUP(M69,CPI_Index!$A$2:$B$50,2,FALSE),"No Match")*AF69 -> -0.01278237348 | AI69: $/kWh/yr | AJ69: =IFERROR(VLOOKUP(N69,Confidence_Factor_lookup!$A$4:$Z$99,21,FALSE),0) -> 0.8888888889 | AK69: TRUE
A70: ElectricityC&IRetrofitCustomHVACAdministrative costs - Participant - C&I | B70: 6 | C70: ElectricityC&IRetrofitCustomHVACAdministrative costs - Participant - C&I | D70: 5 | E70: ElectricityC&IRetrofitCustomHVACAdministrative costs - Participant - C&I | F70: 4 | G70: ElectricityC&IRetrofitCustomAdministrative costs - Participant - C&I | H70: 3 | I70: ElectricityC&IRetrofitAdministrative costs - Participant - C&I | J70: 2 | K70: =VLOOKUP($N70,Confidence_Factor_lookup!$A$2:$F$49,2,FALSE) -> Final Report – Commercial and Industrial Non-Energy Impacts Study | L70: =VLOOKUP($N70,Confidence_Factor_lookup!$A$2:$F$49,5,FALSE) -> MA | M70: =VLOOKUP($N70,Confidence_Factor_lookup!$A$2:$F$49,4,FALSE) -> 2012 | N70: Study0002 | O70: Retro10 | P70: MapID00400 | Q70: Electricity | T70: HVAC | U70: Custom | V70: Retrofit | W70: C&I | X70: =IF(R70="","",INDEX('Standard Measure Names (MapID)'!$B$2:$H$1011,MATCH($P70,'Standard Measure Names (MapID)'!$A$2:$A$1011,FALSE),1)) ->  | Y70: =IF(S70="","",INDEX('Standard Measure Names (MapID)'!$B$2:$H$1011,MATCH($P70,'Standard Measure Names (MapID)'!$A$2:$A$1011,FALSE),2)) ->  | Z70: =IF(T70="","",INDEX('Standard Measure Names (MapID)'!$B$2:$H$1011,MATCH($P70,'Standard Measure Names (MapID)'!$A$2:$A$1011,FALSE),3)) -> HVAC | AA70: =IF(U70="","",INDEX('Standard Measure Names (MapID)'!$B$2:$H$1011,MATCH($P70,'Standard Measure Names (MapID)'!$A$2:$A$1011,FALSE),4)) -> Custom | AB70: =IF(V70="","",INDEX('Standard Measure Names (MapID)'!$B$2:$H$1011,MATCH($P70,'Standard Measure Names (MapID)'!$A$2:$A$1011,FALSE),5)) -> Retrofit | AC70: =IF(W70="","",INDEX('Standard Measure Names (MapID)'!$B$2:$H$1011,MATCH($P70,'Standard Measure Names (MapID)'!$A$2:$A$1011,FALSE),6)) -> C&I | AD70: =IF(Q70="","",INDEX('Standard Measure Names (MapID)'!$B$2:$H$1011,MATCH($P70,'Standard Measure Names (MapID)'!$A$2:$A$1011,FALSE),7)) -> Electricity | AE70: Administrative costs - Participant - C&I | AF70: 0.001464 | AG70: $/kWh/yr | AH70: =IFERROR(CPI_Index!$B$30/VLOOKUP(M70,CPI_Index!$A$2:$B$50,2,FALSE),"No Match")*AF70 -> 0.001597264808 | AI70: $/kWh/yr | AJ70: =IFERROR(VLOOKUP(N70,Confidence_Factor_lookup!$A$4:$Z$99,21,FALSE),0) -> 0.8888888889 | AK70: TRUE
A71: ElectricityC&IRetrofitCustomHVACO&M - Participant - C&I | B71: 6 | C71: ElectricityC&IRetrofitCustomHVACO&M - Participant - C&I | D71: 5 | E71: ElectricityC&IRetrofitCustomHVACO&M - Participant - C&I | F71: 4 | G71: ElectricityC&IRetrofitCustomO&M - Participant - C&I | H71: 3 | I71: ElectricityC&IRetrofitO&M - Participant - C&I | J71: 2 | K71: =VLOOKUP($N71,Confidence_Factor_lookup!$A$2:$F$49,2,FALSE) -> Final Report – Commercial and Industrial Non-Energy Impacts Study | L71: =VLOOKUP($N71,Confidence_Factor_lookup!$A$2:$F$49,5,FALSE) -> MA | M71: =VLOOKUP($N71,Confidence_Factor_lookup!$A$2:$F$49,4,FALSE) -> 2012 | N71: Study0002 | O71: Retro10 | P71: MapID00400 | Q71: Electricity | T71: HVAC | U71: Custom | V71: Retrofit | W71: C&I | X71: =IF(R71="","",INDEX('Standard Measure Names (MapID)'!$B$2:$H$1011,MATCH($P71,'Standard Measure Names (MapID)'!$A$2:$A$1011,FALSE),1)) ->  | Y71: =IF(S71="","",INDEX('Standard Measure Names (MapID)'!$B$2:$H$1011,MATCH($P71,'Standard Measure Names (MapID)'!$A$2:$A$1011,FALSE),2)) ->  | Z71: =IF(T71="","",INDEX('Standard Measure Names (MapID)'!$B$2:$H$1011,MATCH($P71,'Standard Measure Names (MapID)'!$A$2:$A$1011,FALSE),3)) -> HVAC | AA71: =IF(U71="","",INDEX('Standard Measure Names (MapID)'!$B$2:$H$1011,MATCH($P71,'Standard Measure Names (MapID)'!$A$2:$A$1011,FALSE),4)) -> Custom | AB71: =IF(V71="","",INDEX('Standard Measure Names (MapID)'!$B$2:$H$1011,MATCH($P71,'Standard Measure Names (MapID)'!$A$2:$A$1011,FALSE),5)) -> Retrofit | AC71: =IF(W71="","",INDEX('Standard Measure Names (MapID)'!$B$2:$H$1011,MATCH($P71,'Standard Measure Names (MapID)'!$A$2:$A$1011,FALSE),6)) -> C&I | AD71: =IF(Q71="","",INDEX('Standard Measure Names (MapID)'!$B$2:$H$1011,MATCH($P71,'Standard Measure Names (MapID)'!$A$2:$A$1011,FALSE),7)) -> Electricity | AE71: O&M - Participant - C&I | AF71: 0.016992 | AG71: $/kWh/yr | AH71: =IFERROR(CPI_Index!$B$30/VLOOKUP(M71,CPI_Index!$A$2:$B$50,2,FALSE),"No Match")*AF71 -> 0.01853874564 | AI71: $/kWh/yr | AJ71: =IFERROR(VLOOKUP(N71,Confidence_Factor_lookup!$A$4:$Z$99,21,FALSE),0) -> 0.8888888889 | AK71: TRUE
A72: ElectricityC&IRetrofitCustomHVACOther Impacts - Utility - C&I | B72: 6 | C72: ElectricityC&IRetrofitCustomHVACOther Impacts - Utility - C&I | D72: 5 | E72: ElectricityC&IRetrofitCustomHVACOther Impacts - Utility - C&I | F72: 4 | G72: ElectricityC&IRetrofitCustomOther Impacts - Utility - C&I | H72: 3 | I72: ElectricityC&IRetrofitOther Impacts - Utility - C&I | J72: 2 | K72: =VLOOKUP($N72,Confidence_Factor_lookup!$A$2:$F$49,2,FALSE) -> Final Report – Commercial and Industrial Non-Energy Impacts Study | L72: =VLOOKUP($N72,Confidence_Factor_lookup!$A$2:$F$49,5,FALSE) -> MA | M72: =VLOOKUP($N72,Confidence_Factor_lookup!$A$2:$F$49,4,FALSE) -> 2012 | N72: Study0002 | O72: Retro10 | P72: MapID00400 | Q72: Electricity | T72: HVAC | U72: Custom | V72: Retrofit | W72: C&I | X72: =IF(R72="","",INDEX('Standard Measure Names (MapID)'!$B$2:$H$1011,MATCH($P72,'Standard Measure Names (MapID)'!$A$2:$A$1011,FALSE),1)) ->  | Y72: =IF(S72="","",INDEX('Standard Measure Names (MapID)'!$B$2:$H$1011,MATCH($P72,'Standard Measure Names (MapID)'!$A$2:$A$1011,FALSE),2)) ->  | Z72: =IF(T72="","",INDEX('Standard Measure Names (MapID)'!$B$2:$H$1011,MATCH($P72,'Standard Measure Names (MapID)'!$A$2:$A$1011,FALSE),3)) -> HVAC | AA72: =IF(U72="","",INDEX('Standard Measure Names (MapID)'!$B$2:$H$1011,MATCH($P72,'Standard Measure Names (MapID)'!$A$2:$A$1011,FALSE),4)) -> Custom | AB72: =IF(V72="","",INDEX('Standard Measure Names (MapID)'!$B$2:$H$1011,MATCH($P72,'Standard Measure Names (MapID)'!$A$2:$A$1011,FALSE),5)) -> Retrofit | AC72: =IF(W72="","",INDEX('Standard Measure Names (MapID)'!$B$2:$H$1011,MATCH($P72,'Standard Measure Names (MapID)'!$A$2:$A$1011,FALSE),6)) -> C&I | AD72: =IF(Q72="","",INDEX('Standard Measure Names (MapID)'!$B$2:$H$1011,MATCH($P72,'Standard Measure Names (MapID)'!$A$2:$A$1011,FALSE),7)) -> Electricity | AE72: Other Impacts - Utility - C&I | AF72: 0.001848 | AG72: $/kWh/yr | AH72: =IFERROR(CPI_Index!$B$30/VLOOKUP(M72,CPI_Index!$A$2:$B$50,2,FALSE),"No Match")*AF72 -> 0.002016219512 | AI72: $/kWh/yr | AJ72: =IFERROR(VLOOKUP(N72,Confidence_Factor_lookup!$A$4:$Z$99,21,FALSE),0) -> 0.8888888889 | AK72: TRUE
A73: ElectricityC&IRetrofitCustomHVACOther Impacts - Participant - C&I | B73: 6 | C73: ElectricityC&IRetrofitCustomHVACOther Impacts - Participant - C&I | D73: 5 | E73: ElectricityC&IRetrofitCustomHVACOther Impacts - Participant - C&I | F73: 4 | G73: ElectricityC&IRetrofitCustomOther Impacts - Participant - C&I | H73: 3 | I73: ElectricityC&IRetrofitOther Impacts - Participant - C&I | J73: 2 | K73: =VLOOKUP($N73,Confidence_Factor_lookup!$A$2:$F$49,2,FALSE) -> Final Report – Commercial and Industrial Non-Energy Impacts Study | L73: =VLOOKUP($N73,Confidence_Factor_lookup!$A$2:$F$49,5,FALSE) -> MA | M73: =VLOOKUP($N73,Confidence_Factor_lookup!$A$2:$F$49,4,FALSE) -> 2012 | N73: Study0002 | O73: Retro10 | P73: MapID00400 | Q73: Electricity | T73: HVAC | U73: Custom | V73: Retrofit | W73: C&I | X73: =IF(R73="","",INDEX('Standard Measure Names (MapID)'!$B$2:$H$1011,MATCH($P73,'Standard Measure Names (MapID)'!$A$2:$A$1011,FALSE),1)) ->  | Y73: =IF(S73="","",INDEX('Standard Measure Names (MapID)'!$B$2:$H$1011,MATCH($P73,'Standard Measure Names (MapID)'!$A$2:$A$1011,FALSE),2)) ->  | Z73: =IF(T73="","",INDEX('Standard Measure Names (MapID)'!$B$2:$H$1011,MATCH($P73,'Standard Measure Names (MapID)'!$A$2:$A$1011,FALSE),3)) -> HVAC | AA73: =IF(U73="","",INDEX('Standard Measure Names (MapID)'!$B$2:$H$1011,MATCH($P73,'Standard Measure Names (MapID)'!$A$2:$A$1011,FALSE),4)) -> Custom | AB73: =IF(V73="","",INDEX('Standard Measure Names (MapID)'!$B$2:$H$1011,MATCH($P73,'Standard Measure Names (MapID)'!$A$2:$A$1011,FALSE),5)) -> Retrofit | AC73: =IF(W73="","",INDEX('Standard Measure Names (MapID)'!$B$2:$H$1011,MATCH($P73,'Standard Measure Names (MapID)'!$A$2:$A$1011,FALSE),6)) -> C&I | AD73: =IF(Q73="","",INDEX('Standard Measure Names (MapID)'!$B$2:$H$1011,MATCH($P73,'Standard Measure Names (MapID)'!$A$2:$A$1011,FALSE),7)) -> Electricity | AE73: Other Impacts - Participant - C&I | AF73: 0.002304 | AG73: $/kWh/yr | AH73: =IFERROR(CPI_Index!$B$30/VLOOKUP(M73,CPI_Index!$A$2:$B$50,2,FALSE),"No Match")*AF73 -> 0.002513728223 | AI73: $/kWh/yr | AJ73: =IFERROR(VLOOKUP(N73,Confidence_Factor_lookup!$A$4:$Z$99,21,FALSE),0) -> 0.8888888889 | AK73: TRUE
A74: ElectricityC&IRetrofitCustomHVACProduct Spoilage/Defects - Participant - C&I | B74: 6 | C74: ElectricityC&IRetrofitCustomHVACProduct Spoilage/Defects - Participant - C&I | D74: 5 | E74: ElectricityC&IRetrofitCustomHVACProduct Spoilage/Defects - Participant - C&I | F74: 4 | G74: ElectricityC&IRetrofitCustomProduct Spoilage/Defects - Participant - C&I | H74: 3 | I74: ElectricityC&IRetrofitProduct Spoilage/Defects - Participant - C&I | J74: 2 | K74: =VLOOKUP($N74,Confidence_Factor_lookup!$A$2:$F$49,2,FALSE) -> Final Report – Commercial and Industrial Non-Energy Impacts Study | L74: =VLOOKUP($N74,Confidence_Factor_lookup!$A$2:$F$49,5,FALSE) -> MA | M74: =VLOOKUP($N74,Confidence_Factor_lookup!$A$2:$F$49,4,FALSE) -> 2012 | N74: Study0002 | O74: Retro10 | P74: MapID00400 | Q74: Electricity | T74: HVAC | U74: Custom | V74: Retrofit | W74: C&I | X74: =IF(R74="","",INDEX('Standard Measure Names (MapID)'!$B$2:$H$1011,MATCH($P74,'Standard Measure Names (MapID)'!$A$2:$A$1011,FALSE),1)) ->  | Y74: =IF(S74="","",INDEX('Standard Measure Names (MapID)'!$B$2:$H$1011,MATCH($P74,'Standard Measure Names (MapID)'!$A$2:$A$1011,FALSE),2)) ->  | Z74: =IF(T74="","",INDEX('Standard Measure Names (MapID)'!$B$2:$H$1011,MATCH($P74,'Standard Measure Names (MapID)'!$A$2:$A$1011,FALSE),3)) -> HVAC | AA74: =IF(U74="","",INDEX('Standard Measure Names (MapID)'!$B$2:$H$1011,MATCH($P74,'Standard Measure Names (MapID)'!$A$2:$A$1011,FALSE),4)) -> Custom | AB74: =IF(V74="","",INDEX('Standard Measure Names (MapID)'!$B$2:$H$1011,MATCH($P74,'Standard Measure Names (MapID)'!$A$2:$A$1011,FALSE),5)) -> Retrofit | AC74: =IF(W74="","",INDEX('Standard Measure Names (MapID)'!$B$2:$H$1011,MATCH($P74,'Standard Measure Names (MapID)'!$A$2:$A$1011,FALSE),6)) -> C&I | AD74: =IF(Q74="","",INDEX('Standard Measure Names (MapID)'!$B$2:$H$1011,MATCH($P74,'Standard Measure Names (MapID)'!$A$2:$A$1011,FALSE),7)) -> Electricity | AE74: Product Spoilage/Defects - Participant - C&I | AF74: 0.00048 | AG74: $/kWh/yr | AH74: =IFERROR(CPI_Index!$B$30/VLOOKUP(M74,CPI_Index!$A$2:$B$50,2,FALSE),"No Match")*AF74 -> 0.0005236933798 | AI74: $/kWh/yr | AJ74: =IFERROR(VLOOKUP(N74,Confidence_Factor_lookup!$A$4:$Z$99,21,FALSE),0) -> 0.8888888889 | AK74: TRUE
A75: ElectricityC&IRetrofitCustomHVACRent Revenue - Participant - C&I | B75: 6 | C75: ElectricityC&IRetrofitCustomHVACRent Revenue - Participant - C&I | D75: 5 | E75: ElectricityC&IRetrofitCustomHVACRent Revenue - Participant - C&I | F75: 4 | G75: ElectricityC&IRetrofitCustomRent Revenue - Participant - C&I | H75: 3 | I75: ElectricityC&IRetrofitRent Revenue - Participant - C&I | J75: 2 | K75: =VLOOKUP($N75,Confidence_Factor_lookup!$A$2:$F$49,2,FALSE) -> Final Report – Commercial and Industrial Non-Energy Impacts Study | L75: =VLOOKUP($N75,Confidence_Factor_lookup!$A$2:$F$49,5,FALSE) -> MA | M75: =VLOOKUP($N75,Confidence_Factor_lookup!$A$2:$F$49,4,FALSE) -> 2012 | N75: Study0002 | O75: Retro10 | P75: MapID00400 | Q75: Electricity | T75: HVAC | U75: Custom | V75: Retrofit | W75: C&I | X75: =IF(R75="","",INDEX('Standard Measure Names (MapID)'!$B$2:$H$1011,MATCH($P75,'Standard Measure Names (MapID)'!$A$2:$A$1011,FALSE),1)) ->  | Y75: =IF(S75="","",INDEX('Standard Measure Names (MapID)'!$B$2:$H$1011,MATCH($P75,'Standard Measure Names (MapID)'!$A$2:$A$1011,FALSE),2)) ->  | Z75: =IF(T75="","",INDEX('Standard Measure Names (MapID)'!$B$2:$H$1011,MATCH($P75,'Standard Measure Names (MapID)'!$A$2:$A$1011,FALSE),3)) -> HVAC | AA75: =IF(U75="","",INDEX('Standard Measure Names (MapID)'!$B$2:$H$1011,MATCH($P75,'Standard Measure Names (MapID)'!$A$2:$A$1011,FALSE),4)) -> Custom | AB75: =IF(V75="","",INDEX('Standard Measure Names (MapID)'!$B$2:$H$1011,MATCH($P75,'Standard Measure Names (MapID)'!$A$2:$A$1011,FALSE),5)) -> Retrofit | AC75: =IF(W75="","",INDEX('Standard Measure Names (MapID)'!$B$2:$H$1011,MATCH($P75,'Standard Measure Names (MapID)'!$A$2:$A$1011,FALSE),6)) -> C&I | AD75: =IF(Q75="","",INDEX('Standard Measure Names (MapID)'!$B$2:$H$1011,MATCH($P75,'Standard Measure Names (MapID)'!$A$2:$A$1011,FALSE),7)) -> Electricity | AE75: Rent Revenue - Participant - C&I | AF75: 0.000912 | AG75: $/kWh/yr | AH75: =IFERROR(CPI_Index!$B$30/VLOOKUP(M75,CPI_Index!$A$2:$B$50,2,FALSE),"No Match")*AF75 -> 0.0009950174216 | AI75: $/kWh/yr | AJ75: =IFERROR(VLOOKUP(N75,Confidence_Factor_lookup!$A$4:$Z$99,21,FALSE),0) -> 0.8888888889 | AK75: TRUE
A76: ElectricityC&IRetrofitCustomLightingAdministrative costs - Participant - C&I | B76: 6 | C76: ElectricityC&IRetrofitCustomLightingAdministrative costs - Participant - C&I | D76: 5 | E76: ElectricityC&IRetrofitCustomLightingAdministrative costs - Participant - C&I | F76: 4 | G76: ElectricityC&IRetrofitCustomAdministrative costs - Participant - C&I | H76: 3 | I76: ElectricityC&IRetrofitAdministrative costs - Participant - C&I | J76: 2 | K76: =VLOOKUP($N76,Confidence_Factor_lookup!$A$2:$F$49,2,FALSE) -> Final Report – Commercial and Industrial Non-Energy Impacts Study | L76: =VLOOKUP($N76,Confidence_Factor_lookup!$A$2:$F$49,5,FALSE) -> MA | M76: =VLOOKUP($N76,Confidence_Factor_lookup!$A$2:$F$49,4,FALSE) -> 2012 | N76: Study0002 | O76: Retro11 | P76: MapID00353 | Q76: Electricity | T76: Lighting | U76: Custom | V76: Retrofit | W76: C&I | X76: =IF(R76="","",INDEX('Standard Measure Names (MapID)'!$B$2:$H$1011,MATCH($P76,'Standard Measure Names (MapID)'!$A$2:$A$1011,FALSE),1)) ->  | Y76: =IF(S76="","",INDEX('Standard Measure Names (MapID)'!$B$2:$H$1011,MATCH($P76,'Standard Measure Names (MapID)'!$A$2:$A$1011,FALSE),2)) ->  | Z76: =IF(T76="","",INDEX('Standard Measure Names (MapID)'!$B$2:$H$1011,MATCH($P76,'Standard Measure Names (MapID)'!$A$2:$A$1011,FALSE),3)) -> Lighting | AA76: =IF(U76="","",INDEX('Standard Measure Names (MapID)'!$B$2:$H$1011,MATCH($P76,'Standard Measure Names (MapID)'!$A$2:$A$1011,FALSE),4)) -> Custom | AB76: =IF(V76="","",INDEX('Standard Measure Names (MapID)'!$B$2:$H$1011,MATCH($P76,'Standard Measure Names (MapID)'!$A$2:$A$1011,FALSE),5)) -> Retrofit | AC76: =IF(W76="","",INDEX('Standard Measure Names (MapID)'!$B$2:$H$1011,MATCH($P76,'Standard Measure Names (MapID)'!$A$2:$A$1011,FALSE),6)) -> C&I | AD76: =IF(Q76="","",INDEX('Standard Measure Names (MapID)'!$B$2:$H$1011,MATCH($P76,'Standard Measure Names (MapID)'!$A$2:$A$1011,FALSE),7)) -> Electricity | AE76: Administrative costs - Participant - C&I | AF76: 0.0030888 | AG76: $/kWh/yr | AH76: =IFERROR(CPI_Index!$B$30/VLOOKUP(M76,CPI_Index!$A$2:$B$50,2,FALSE),"No Match")*AF76 -> 0.003369966899 | AI76: $/kWh/yr | AJ76: =IFERROR(VLOOKUP(N76,Confidence_Factor_lookup!$A$4:$Z$99,21,FALSE),0) -> 0.8888888889 | AK76: TRUE
A77: ElectricityC&IRetrofitCustomLightingO&M - Participant - C&I | B77: 6 | C77: ElectricityC&IRetrofitCustomLightingO&M - Participant - C&I | D77: 5 | E77: ElectricityC&IRetrofitCustomLightingO&M - Participant - C&I | F77: 4 | G77: ElectricityC&IRetrofitCustomO&M - Participant - C&I | H77: 3 | I77: ElectricityC&IRetrofitO&M - Participant - C&I | J77: 2 | K77: =VLOOKUP($N77,Confidence_Factor_lookup!$A$2:$F$49,2,FALSE) -> Final Report – Commercial and Industrial Non-Energy Impacts Study | L77: =VLOOKUP($N77,Confidence_Factor_lookup!$A$2:$F$49,5,FALSE) -> MA | M77: =VLOOKUP($N77,Confidence_Factor_lookup!$A$2:$F$49,4,FALSE) -> 2012 | N77: Study0002 | O77: Retro11 | P77: MapID00353 | Q77: Electricity | T77: Lighting | U77: Custom | V77: Retrofit | W77: C&I | X77: =IF(R77="","",INDEX('Standard Measure Names (MapID)'!$B$2:$H$1011,MATCH($P77,'Standard Measure Names (MapID)'!$A$2:$A$1011,FALSE),1)) ->  | Y77: =IF(S77="","",INDEX('Standard Measure Names (MapID)'!$B$2:$H$1011,MATCH($P77,'Standard Measure Names (MapID)'!$A$2:$A$1011,FALSE),2)) ->  | Z77: =IF(T77="","",INDEX('Standard Measure Names (MapID)'!$B$2:$H$1011,MATCH($P77,'Standard Measure Names (MapID)'!$A$2:$A$1011,FALSE),3)) -> Lighting | AA77: =IF(U77="","",INDEX('Standard Measure Names (MapID)'!$B$2:$H$1011,MATCH($P77,'Standard Measure Names (MapID)'!$A$2:$A$1011,FALSE),4)) -> Custom | AB77: =IF(V77="","",INDEX('Standard Measure Names (MapID)'!$B$2:$H$1011,MATCH($P77,'Standard Measure Names (MapID)'!$A$2:$A$1011,FALSE),5)) -> Retrofit | AC77: =IF(W77="","",INDEX('Standard Measure Names (MapID)'!$B$2:$H$1011,MATCH($P77,'Standard Measure Names (MapID)'!$A$2:$A$1011,FALSE),6)) -> C&I | AD77: =IF(Q77="","",INDEX('Standard Measure Names (MapID)'!$B$2:$H$1011,MATCH($P77,'Standard Measure Names (MapID)'!$A$2:$A$1011,FALSE),7)) -> Electricity | AE77: O&M - Participant - C&I | AF77: 0.0473418 | AG77: $/kWh/yr | AH77: =IFERROR(CPI_Index!$B$30/VLOOKUP(M77,CPI_Index!$A$2:$B$50,2,FALSE),"No Match")*AF77 -> 0.05165122343 | AI77: $/kWh/yr | AJ77: =IFERROR(VLOOKUP(N77,Confidence_Factor_lookup!$A$4:$Z$99,21,FALSE),0) -> 0.8888888889 | AK77: TRUE
A78: ElectricityC&IRetrofitCustomLightingSupplies and materials - Participant - C&I | B78: 6 | C78: ElectricityC&IRetrofitCustomLightingSupplies and materials - Participant - C&I | D78: 5 | E78: ElectricityC&IRetrofitCustomLightingSupplies and materials - Participant - C&I | F78: 4 | G78: ElectricityC&IRetrofitCustomSupplies and materials - Participant - C&I | H78: 3 | I78: ElectricityC&IRetrofitSupplies and materials - Participant - C&I | J78: 2 | K78: =VLOOKUP($N78,Confidence_Factor_lookup!$A$2:$F$49,2,FALSE) -> Final Report – Commercial and Industrial Non-Energy Impacts Study | L78: =VLOOKUP($N78,Confidence_Factor_lookup!$A$2:$F$49,5,FALSE) -> MA | M78: =VLOOKUP($N78,Confidence_Factor_lookup!$A$2:$F$49,4,FALSE) -> 2012 | N78: Study0002 | O78: Retro11 | P78: MapID00353 | Q78: Electricity | T78: Lighting | U78: Custom | V78: Retrofit | W78: C&I | X78: =IF(R78="","",INDEX('Standard Measure Names (MapID)'!$B$2:$H$1011,MATCH($P78,'Standard Measure Names (MapID)'!$A$2:$A$1011,FALSE),1)) ->  | Y78: =IF(S78="","",INDEX('Standard Measure Names (MapID)'!$B$2:$H$1011,MATCH($P78,'Standard Measure Names (MapID)'!$A$2:$A$1011,FALSE),2)) ->  | Z78: =IF(T78="","",INDEX('Standard Measure Names (MapID)'!$B$2:$H$1011,MATCH($P78,'Standard Measure Names (MapID)'!$A$2:$A$1011,FALSE),3)) -> Lighting | AA78: =IF(U78="","",INDEX('Standard Measure Names (MapID)'!$B$2:$H$1011,MATCH($P78,'Standard Measure Names (MapID)'!$A$2:$A$1011,FALSE),4)) -> Custom | AB78: =IF(V78="","",INDEX('Standard Measure Names (MapID)'!$B$2:$H$1011,MATCH($P78,'Standard Measure Names (MapID)'!$A$2:$A$1011,FALSE),5)) -> Retrofit | AC78: =IF(W78="","",INDEX('Standard Measure Names (MapID)'!$B$2:$H$1011,MATCH($P78,'Standard Measure Names (MapID)'!$A$2:$A$1011,FALSE),6)) -> C&I | AD78: =IF(Q78="","",INDEX('Standard Measure Names (MapID)'!$B$2:$H$1011,MATCH($P78,'Standard Measure Names (MapID)'!$A$2:$A$1011,FALSE),7)) -> Electricity | AE78: Supplies and materials - Participant - C&I | AF78: 0.0003564 | AG78: $/kWh/yr | AH78: =IFERROR(CPI_Index!$B$30/VLOOKUP(M78,CPI_Index!$A$2:$B$50,2,FALSE),"No Match")*AF78 -> 0.0003888423345 | AI78: $/kWh/yr | AJ78: =IFERROR(VLOOKUP(N78,Confidence_Factor_lookup!$A$4:$Z$99,21,FALSE),0) -> 0.8888888889 | AK78: TRUE
A79: ElectricityC&IRetrofitCustomLightingOther Impacts - Participant - C&I | B79: 6 | C79: ElectricityC&IRetrofitCustomLightingOther Impacts - Participant - C&I | D79: 5 | E79: ElectricityC&IRetrofitCustomLightingOther Impacts - Participant - C&I | F79: 4 | G79: ElectricityC&IRetrofitCustomOther Impacts - Participant - C&I | H79: 3 | I79: ElectricityC&IRetrofitOther Impacts - Participant - C&I | J79: 2 | K79: =VLOOKUP($N79,Confidence_Factor_lookup!$A$2:$F$49,2,FALSE) -> Final Report – Commercial and Industrial Non-Energy Impacts Study | L79: =VLOOKUP($N79,Confidence_Factor_lookup!$A$2:$F$49,5,FALSE) -> MA | M79: =VLOOKUP($N79,Confidence_Factor_lookup!$A$2:$F$49,4,FALSE) -> 2012 | N79: Study0002 | O79: Retro11 | P79: MapID00353 | Q79: Electricity | T79: Lighting | U79: Custom | V79: Retrofit | W79: C&I | X79: =IF(R79="","",INDEX('Standard Measure Names (MapID)'!$B$2:$H$1011,MATCH($P79,'Standard Measure Names (MapID)'!$A$2:$A$1011,FALSE),1)) ->  | Y79: =IF(S79="","",INDEX('Standard Measure Names (MapID)'!$B$2:$H$1011,MATCH($P79,'Standard Measure Names (MapID)'!$A$2:$A$1011,FALSE),2)) ->  | Z79: =IF(T79="","",INDEX('Standard Measure Names (MapID)'!$B$2:$H$1011,MATCH($P79,'Standard Measure Names (MapID)'!$A$2:$A$1011,FALSE),3)) -> Lighting | AA79: =IF(U79="","",INDEX('Standard Measure Names (MapID)'!$B$2:$H$1011,MATCH($P79,'Standard Measure Names (MapID)'!$A$2:$A$1011,FALSE),4)) -> Custom | AB79: =IF(V79="","",INDEX('Standard Measure Names (MapID)'!$B$2:$H$1011,MATCH($P79,'Standard Measure Names (MapID)'!$A$2:$A$1011,FALSE),5)) -> Retrofit | AC79: =IF(W79="","",INDEX('Standard Measure Names (MapID)'!$B$2:$H$1011,MATCH($P79,'Standard Measure Names (MapID)'!$A$2:$A$1011,FALSE),6)) -> C&I | AD79: =IF(Q79="","",INDEX('Standard Measure Names (MapID)'!$B$2:$H$1011,MATCH($P79,'Standard Measure Names (MapID)'!$A$2:$A$1011,FALSE),7)) -> Electricity | AE79: Other Impacts - Participant - C&I | AF79: 0.0002376 | AG79: $/kWh/yr | AH79: =IFERROR(CPI_Index!$B$30/VLOOKUP(M79,CPI_Index!$A$2:$B$50,2,FALSE),"No Match")*AF79 -> 0.000259228223 | AI79: $/kWh/yr | AJ79: =IFERROR(VLOOKUP(N79,Confidence_Factor_lookup!$A$4:$Z$99,21,FALSE),0) -> 0.8888888889 | AK79: TRUE
A80: ElectricityC&IRetrofitCustomLightingSales Revenue - Participant - C&I | B80: 6 | C80: ElectricityC&IRetrofitCustomLightingSales Revenue - Participant - C&I | D80: 5 | E80: ElectricityC&IRetrofitCustomLightingSales Revenue - Participant - C&I | F80: 4 | G80: ElectricityC&IRetrofitCustomSales Revenue - Participant - C&I | H80: 3 | I80: ElectricityC&IRetrofitSales Revenue - Participant - C&I | J80: 2 | K80: =VLOOKUP($N80,Confidence_Factor_lookup!$A$2:$F$49,2,FALSE) -> Final Report – Commercial and Industrial Non-Energy Impacts Study | L80: =VLOOKUP($N80,Confidence_Factor_lookup!$A$2:$F$49,5,FALSE) -> MA | M80: =VLOOKUP($N80,Confidence_Factor_lookup!$A$2:$F$49,4,FALSE) -> 2012 | N80: Study0002 | O80: Retro11 | P80: MapID00353 | Q80: Electricity | T80: Lighting | U80: Custom | V80: Retrofit | W80: C&I | X80: =IF(R80="","",INDEX('Standard Measure Names (MapID)'!$B$2:$H$1011,MATCH($P80,'Standard Measure Names (MapID)'!$A$2:$A$1011,FALSE),1)) ->  | Y80: =IF(S80="","",INDEX('Standard Measure Names (MapID)'!$B$2:$H$1011,MATCH($P80,'Standard Measure Names (MapID)'!$A$2:$A$1011,FALSE),2)) ->  | Z80: =IF(T80="","",INDEX('Standard Measure Names (MapID)'!$B$2:$H$1011,MATCH($P80,'Standard Measure Names (MapID)'!$A$2:$A$1011,FALSE),3)) -> Lighting | AA80: =IF(U80="","",INDEX('Standard Measure Names (MapID)'!$B$2:$H$1011,MATCH($P80,'Standard Measure Names (MapID)'!$A$2:$A$1011,FALSE),4)) -> Custom | AB80: =IF(V80="","",INDEX('Standard Measure Names (MapID)'!$B$2:$H$1011,MATCH($P80,'Standard Measure Names (MapID)'!$A$2:$A$1011,FALSE),5)) -> Retrofit | AC80: =IF(W80="","",INDEX('Standard Measure Names (MapID)'!$B$2:$H$1011,MATCH($P80,'Standard Measure Names (MapID)'!$A$2:$A$1011,FALSE),6)) -> C&I | AD80: =IF(Q80="","",INDEX('Standard Measure Names (MapID)'!$B$2:$H$1011,MATCH($P80,'Standard Measure Names (MapID)'!$A$2:$A$1011,FALSE),7)) -> Electricity | AE80: Sales Revenue - Participant - C&I | AF80: 5.94e-05 | AG80: $/kWh/yr | AH80: =IFERROR(CPI_Index!$B$30/VLOOKUP(M80,CPI_Index!$A$2:$B$50,2,FALSE),"No Match")*AF80 -> 6.480705575e-05 | AI80: $/kWh/yr | AJ80: =IFERROR(VLOOKUP(N80,Confidence_Factor_lookup!$A$4:$Z$99,21,FALSE),0) -> 0.8888888889 | AK80: TRUE
A81: ElectricityC&IRetrofitCustomLightingWaste disposal - Participant - C&I | B81: 6 | C81: ElectricityC&IRetrofitCustomLightingWaste disposal - Participant - C&I | D81: 5 | E81: ElectricityC&IRetrofitCustomLightingWaste disposal - Participant - C&I | F81: 4 | G81: ElectricityC&IRetrofitCustomWaste disposal - Participant - C&I | H81: 3 | I81: ElectricityC&IRetrofitWaste disposal - Participant - C&I | J81: 2 | K81: =VLOOKUP($N81,Confidence_Factor_lookup!$A$2:$F$49,2,FALSE) -> Final Report – Commercial and Industrial Non-Energy Impacts Study | L81: =VLOOKUP($N81,Confidence_Factor_lookup!$A$2:$F$49,5,FALSE) -> MA | M81: =VLOOKUP($N81,Confidence_Factor_lookup!$A$2:$F$49,4,FALSE) -> 2012 | N81: Study0002 | O81: Retro11 | P81: MapID00353 | Q81: Electricity | T81: Lighting | U81: Custom | V81: Retrofit | W81: C&I | X81: =IF(R81="","",INDEX('Standard Measure Names (MapID)'!$B$2:$H$1011,MATCH($P81,'Standard Measure Names (MapID)'!$A$2:$A$1011,FALSE),1)) ->  | Y81: =IF(S81="","",INDEX('Standard Measure Names (MapID)'!$B$2:$H$1011,MATCH($P81,'Standard Measure Names (MapID)'!$A$2:$A$1011,FALSE),2)) ->  | Z81: =IF(T81="","",INDEX('Standard Measure Names (MapID)'!$B$2:$H$1011,MATCH($P81,'Standard Measure Names (MapID)'!$A$2:$A$1011,FALSE),3)) -> Lighting | AA81: =IF(U81="","",INDEX('Standard Measure Names (MapID)'!$B$2:$H$1011,MATCH($P81,'Standard Measure Names (MapID)'!$A$2:$A$1011,FALSE),4)) -> Custom | AB81: =IF(V81="","",INDEX('Standard Measure Names (MapID)'!$B$2:$H$1011,MATCH($P81,'Standard Measure Names (MapID)'!$A$2:$A$1011,FALSE),5)) -> Retrofit | AC81: =IF(W81="","",INDEX('Standard Measure Names (MapID)'!$B$2:$H$1011,MATCH($P81,'Standard Measure Names (MapID)'!$A$2:$A$1011,FALSE),6)) -> C&I | AD81: =IF(Q81="","",INDEX('Standard Measure Names (MapID)'!$B$2:$H$1011,MATCH($P81,'Standard Measure Names (MapID)'!$A$2:$A$1011,FALSE),7)) -> Electricity | AE81: Waste disposal - Participant - C&I | AF81: 0.0007128 | AG81: $/kWh/yr | AH81: =IFERROR(CPI_Index!$B$30/VLOOKUP(M81,CPI_Index!$A$2:$B$50,2,FALSE),"No Match")*AF81 -> 0.000777684669 | AI81: $/kWh/yr | AJ81: =IFERROR(VLOOKUP(N81,Confidence_Factor_lookup!$A$4:$Z$99,21,FALSE),0) -> 0.8888888889 | AK81: TRUE
A82: ElectricityC&IRetrofitCustomProcessMotors/DrivesAdministrative costs - Participant - C&I | B82: 6 | C82: ElectricityC&IRetrofitCustomProcessMotors/DrivesAdministrative costs - Participant - C&I | D82: 5 | E82: ElectricityC&IRetrofitCustomProcessAdministrative costs - Participant - C&I | F82: 4 | G82: ElectricityC&IRetrofitCustomAdministrative costs - Participant - C&I | H82: 3 | I82: ElectricityC&IRetrofitAdministrative costs - Participant - C&I | J82: 2 | K82: =VLOOKUP($N82,Confidence_Factor_lookup!$A$2:$F$49,2,FALSE) -> Final Report – Commercial and Industrial Non-Energy Impacts Study | L82: =VLOOKUP($N82,Confidence_Factor_lookup!$A$2:$F$49,5,FALSE) -> MA | M82: =VLOOKUP($N82,Confidence_Factor_lookup!$A$2:$F$49,4,FALSE) -> 2012 | N82: Study0002 | O82: Retro12 | P82: MapID00292 | Q82: Electricity | S82: Motors and Drives | T82: Motors and Drives | U82: Custom | V82: Retrofit | W82: C&I | X82: =IF(R82="","",INDEX('Standard Measure Names (MapID)'!$B$2:$H$1011,MATCH($P82,'Standard Measure Names (MapID)'!$A$2:$A$1011,FALSE),1)) ->  | Y82: =IF(S82="","",INDEX('Standard Measure Names (MapID)'!$B$2:$H$1011,MATCH($P82,'Standard Measure Names (MapID)'!$A$2:$A$1011,FALSE),2)) -> Motors/Drives | Z82: =IF(T82="","",INDEX('Standard Measure Names (MapID)'!$B$2:$H$1011,MATCH($P82,'Standard Measure Names (MapID)'!$A$2:$A$1011,FALSE),3)) -> Process | AA82: =IF(U82="","",INDEX('Standard Measure Names (MapID)'!$B$2:$H$1011,MATCH($P82,'Standard Measure Names (MapID)'!$A$2:$A$1011,FALSE),4)) -> Custom | AB82: =IF(V82="","",INDEX('Standard Measure Names (MapID)'!$B$2:$H$1011,MATCH($P82,'Standard Measure Names (MapID)'!$A$2:$A$1011,FALSE),5)) -> Retrofit | AC82: =IF(W82="","",INDEX('Standard Measure Names (MapID)'!$B$2:$H$1011,MATCH($P82,'Standard Measure Names (MapID)'!$A$2:$A$1011,FALSE),6)) -> C&I | AD82: =IF(Q82="","",INDEX('Standard Measure Names (MapID)'!$B$2:$H$1011,MATCH($P82,'Standard Measure Names (MapID)'!$A$2:$A$1011,FALSE),7)) -> Electricity | AE82: Administrative costs - Participant - C&I | AF82: 0.0002128 | AG82: $/kWh/yr | AH82: =IFERROR(CPI_Index!$B$30/VLOOKUP(M82,CPI_Index!$A$2:$B$50,2,FALSE),"No Match")*AF82 -> 0.0002321707317 | AI82: $/kWh/yr | AJ82: =IFERROR(VLOOKUP(N82,Confidence_Factor_lookup!$A$4:$Z$99,21,FALSE),0) -> 0.8888888889 | AK82: TRUE
A83: ElectricityC&IRetrofitCustomProcessMotors/DrivesO&M - Participant - C&I | B83: 6 | C83: ElectricityC&IRetrofitCustomProcessMotors/DrivesO&M - Participant - C&I | D83: 5 | E83: ElectricityC&IRetrofitCustomProcessO&M - Participant - C&I | F83: 4 | G83: ElectricityC&IRetrofitCustomO&M - Participant - C&I | H83: 3 | I83: ElectricityC&IRetrofitO&M - Participant - C&I | J83: 2 | K83: =VLOOKUP($N83,Confidence_Factor_lookup!$A$2:$F$49,2,FALSE) -> Final Report – Commercial and Industrial Non-Energy Impacts Study | L83: =VLOOKUP($N83,Confidence_Factor_lookup!$A$2:$F$49,5,FALSE) -> MA | M83: =VLOOKUP($N83,Confidence_Factor_lookup!$A$2:$F$49,4,FALSE) -> 2012 | N83: Study0002 | O83: Retro12 | P83: MapID00292 | Q83: Electricity | S83: Motors and Drives | T83: Motors and Drives | U83: Custom | V83: Retrofit | W83: C&I | X83: =IF(R83="","",INDEX('Standard Measure Names (MapID)'!$B$2:$H$1011,MATCH($P83,'Standard Measure Names (MapID)'!$A$2:$A$1011,FALSE),1)) ->  | Y83: =IF(S83="","",INDEX('Standard Measure Names (MapID)'!$B$2:$H$1011,MATCH($P83,'Standard Measure Names (MapID)'!$A$2:$A$1011,FALSE),2)) -> Motors/Drives | Z83: =IF(T83="","",INDEX('Standard Measure Names (MapID)'!$B$2:$H$1011,MATCH($P83,'Standard Measure Names (MapID)'!$A$2:$A$1011,FALSE),3)) -> Process | AA83: =IF(U83="","",INDEX('Standard Measure Names (MapID)'!$B$2:$H$1011,MATCH($P83,'Standard Measure Names (MapID)'!$A$2:$A$1011,FALSE),4)) -> Custom | AB83: =IF(V83="","",INDEX('Standard Measure Names (MapID)'!$B$2:$H$1011,MATCH($P83,'Standard Measure Names (MapID)'!$A$2:$A$1011,FALSE),5)) -> Retrofit | AC83: =IF(W83="","",INDEX('Standard Measure Names (MapID)'!$B$2:$H$1011,MATCH($P83,'Standard Measure Names (MapID)'!$A$2:$A$1011,FALSE),6)) -> C&I | AD83: =IF(Q83="","",INDEX('Standard Measure Names (MapID)'!$B$2:$H$1011,MATCH($P83,'Standard Measure Names (MapID)'!$A$2:$A$1011,FALSE),7)) -> Electricity | AE83: O&M - Participant - C&I | AF83: 0.0104424 | AG83: $/kWh/yr | AH83: =IFERROR(CPI_Index!$B$30/VLOOKUP(M83,CPI_Index!$A$2:$B$50,2,FALSE),"No Match")*AF83 -> 0.01139294948 | AI83: $/kWh/yr | AJ83: =IFERROR(VLOOKUP(N83,Confidence_Factor_lookup!$A$4:$Z$99,21,FALSE),0) -> 0.8888888889 | AK83: TRUE
A84: ElectricityC&IRetrofitCustomProcessMotors/DrivesProduct Spoilage/Defects - Participant - C&I | B84: 6 | C84: ElectricityC&IRetrofitCustomProcessMotors/DrivesProduct Spoilage/Defects - Participant - C&I | D84: 5 | E84: ElectricityC&IRetrofitCustomProcessProduct Spoilage/Defects - Participant - C&I | F84: 4 | G84: ElectricityC&IRetrofitCustomProduct Spoilage/Defects - Participant - C&I | H84: 3 | I84: ElectricityC&IRetrofitProduct Spoilage/Defects - Participant - C&I | J84: 2 | K84: =VLOOKUP($N84,Confidence_Factor_lookup!$A$2:$F$49,2,FALSE) -> Final Report – Commercial and Industrial Non-Energy Impacts Study | L84: =VLOOKUP($N84,Confidence_Factor_lookup!$A$2:$F$49,5,FALSE) -> MA | M84: =VLOOKUP($N84,Confidence_Factor_lookup!$A$2:$F$49,4,FALSE) -> 2012 | N84: Study0002 | O84: Retro12 | P84: MapID00292 | Q84: Electricity | S84: Motors and Drives | T84: Motors and Drives | U84: Custom | V84: Retrofit | W84: C&I | X84: =IF(R84="","",INDEX('Standard Measure Names (MapID)'!$B$2:$H$1011,MATCH($P84,'Standard Measure Names (MapID)'!$A$2:$A$1011,FALSE),1)) ->  | Y84: =IF(S84="","",INDEX('Standard Measure Names (MapID)'!$B$2:$H$1011,MATCH($P84,'Standard Measure Names (MapID)'!$A$2:$A$1011,FALSE),2)) -> Motors/Drives | Z84: =IF(T84="","",INDEX('Standard Measure Names (MapID)'!$B$2:$H$1011,MATCH($P84,'Standard Measure Names (MapID)'!$A$2:$A$1011,FALSE),3)) -> Process | AA84: =IF(U84="","",INDEX('Standard Measure Names (MapID)'!$B$2:$H$1011,MATCH($P84,'Standard Measure Names (MapID)'!$A$2:$A$1011,FALSE),4)) -> Custom | AB84: =IF(V84="","",INDEX('Standard Measure Names (MapID)'!$B$2:$H$1011,MATCH($P84,'Standard Measure Names (MapID)'!$A$2:$A$1011,FALSE),5)) -> Retrofit | AC84: =IF(W84="","",INDEX('Standard Measure Names (MapID)'!$B$2:$H$1011,MATCH($P84,'Standard Measure Names (MapID)'!$A$2:$A$1011,FALSE),6)) -> C&I | AD84: =IF(Q84="","",INDEX('Standard Measure Names (MapID)'!$B$2:$H$1011,MATCH($P84,'Standard Measure Names (MapID)'!$A$2:$A$1011,FALSE),7)) -> Electricity | AE84: Product Spoilage/Defects - Participant - C&I | AF84: 0.0045448 | AG84: $/kWh/yr | AH84: =IFERROR(CPI_Index!$B$30/VLOOKUP(M84,CPI_Index!$A$2:$B$50,2,FALSE),"No Match")*AF84 -> 0.004958503484 | AI84: $/kWh/yr | AJ84: =IFERROR(VLOOKUP(N84,Confidence_Factor_lookup!$A$4:$Z$99,21,FALSE),0) -> 0.8888888889 | AK84: TRUE
A85: ElectricityC&IRetrofitCustomRefrigerationO&M - Participant - C&I | B85: 6 | C85: ElectricityC&IRetrofitCustomRefrigerationO&M - Participant - C&I | D85: 5 | E85: ElectricityC&IRetrofitCustomRefrigerationO&M - Participant - C&I | F85: 4 | G85: ElectricityC&IRetrofitCustomO&M - Participant - C&I | H85: 3 | I85: ElectricityC&IRetrofitO&M - Participant - C&I | J85: 2 | K85: =VLOOKUP($N85,Confidence_Factor_lookup!$A$2:$F$49,2,FALSE) -> Final Report – Commercial and Industrial Non-Energy Impacts Study | L85: =VLOOKUP($N85,Confidence_Factor_lookup!$A$2:$F$49,5,FALSE) -> MA | M85: =VLOOKUP($N85,Confidence_Factor_lookup!$A$2:$F$49,4,FALSE) -> 2012 | N85: Study0002 | O85: Retro13 | P85: MapID00167 | Q85: Electricity | T85: Refrigeration | U85: Custom | V85: Retrofit | W85: C&I | X85: =IF(R85="","",INDEX('Standard Measure Names (MapID)'!$B$2:$H$1011,MATCH($P85,'Standard Measure Names (MapID)'!$A$2:$A$1011,FALSE),1)) ->  | Y85: =IF(S85="","",INDEX('Standard Measure Names (MapID)'!$B$2:$H$1011,MATCH($P85,'Standard Measure Names (MapID)'!$A$2:$A$1011,FALSE),2)) ->  | Z85: =IF(T85="","",INDEX('Standard Measure Names (MapID)'!$B$2:$H$1011,MATCH($P85,'Standard Measure Names (MapID)'!$A$2:$A$1011,FALSE),3)) -> Refrigeration | AA85: =IF(U85="","",INDEX('Standard Measure Names (MapID)'!$B$2:$H$1011,MATCH($P85,'Standard Measure Names (MapID)'!$A$2:$A$1011,FALSE),4)) -> Custom | AB85: =IF(V85="","",INDEX('Standard Measure Names (MapID)'!$B$2:$H$1011,MATCH($P85,'Standard Measure Names (MapID)'!$A$2:$A$1011,FALSE),5)) -> Retrofit | AC85: =IF(W85="","",INDEX('Standard Measure Names (MapID)'!$B$2:$H$1011,MATCH($P85,'Standard Measure Names (MapID)'!$A$2:$A$1011,FALSE),6)) -> C&I | AD85: =IF(Q85="","",INDEX('Standard Measure Names (MapID)'!$B$2:$H$1011,MATCH($P85,'Standard Measure Names (MapID)'!$A$2:$A$1011,FALSE),7)) -> Electricity | AE85: O&M - Participant - C&I | AF85: 0.0264492 | AG85: $/kWh/yr | AH85: =IFERROR(CPI_Index!$B$30/VLOOKUP(M85,CPI_Index!$A$2:$B$50,2,FALSE),"No Match")*AF85 -> 0.02885681446 | AI85: $/kWh/yr | AJ85: =IFERROR(VLOOKUP(N85,Confidence_Factor_lookup!$A$4:$Z$99,21,FALSE),0) -> 0.8888888889 | AK85: TRUE
A86: ElectricityC&IRetrofitCustomRefrigerationSupplies and materials - Participant - C&I | B86: 6 | C86: ElectricityC&IRetrofitCustomRefrigerationSupplies and materials - Participant - C&I | D86: 5 | E86: ElectricityC&IRetrofitCustomRefrigerationSupplies and materials - Participant - C&I | F86: 4 | G86: ElectricityC&IRetrofitCustomSupplies and materials - Participant - C&I | H86: 3 | I86: ElectricityC&IRetrofitSupplies and materials - Participant - C&I | J86: 2 | K86: =VLOOKUP($N86,Confidence_Factor_lookup!$A$2:$F$49,2,FALSE) -> Final Report – Commercial and Industrial Non-Energy Impacts Study | L86: =VLOOKUP($N86,Confidence_Factor_lookup!$A$2:$F$49,5,FALSE) -> MA | M86: =VLOOKUP($N86,Confidence_Factor_lookup!$A$2:$F$49,4,FALSE) -> 2012 | N86: Study0002 | O86: Retro13 | P86: MapID00167 | Q86: Electricity | T86: Refrigeration | U86: Custom | V86: Retrofit | W86: C&I | X86: =IF(R86="","",INDEX('Standard Measure Names (MapID)'!$B$2:$H$1011,MATCH($P86,'Standard Measure Names (MapID)'!$A$2:$A$1011,FALSE),1)) ->  | Y86: =IF(S86="","",INDEX('Standard Measure Names (MapID)'!$B$2:$H$1011,MATCH($P86,'Standard Measure Names (MapID)'!$A$2:$A$1011,FALSE),2)) ->  | Z86: =IF(T86="","",INDEX('Standard Measure Names (MapID)'!$B$2:$H$1011,MATCH($P86,'Standard Measure Names (MapID)'!$A$2:$A$1011,FALSE),3)) -> Refrigeration | AA86: =IF(U86="","",INDEX('Standard Measure Names (MapID)'!$B$2:$H$1011,MATCH($P86,'Standard Measure Names (MapID)'!$A$2:$A$1011,FALSE),4)) -> Custom | AB86: =IF(V86="","",INDEX('Standard Measure Names (MapID)'!$B$2:$H$1011,MATCH($P86,'Standard Measure Names (MapID)'!$A$2:$A$1011,FALSE),5)) -> Retrofit | AC86: =IF(W86="","",INDEX('Standard Measure Names (MapID)'!$B$2:$H$1011,MATCH($P86,'Standard Measure Names (MapID)'!$A$2:$A$1011,FALSE),6)) -> C&I | AD86: =IF(Q86="","",INDEX('Standard Measure Names (MapID)'!$B$2:$H$1011,MATCH($P86,'Standard Measure Names (MapID)'!$A$2:$A$1011,FALSE),7)) -> Electricity | AE86: Supplies and materials - Participant - C&I | AF86: 0.0012324 | AG86: $/kWh/yr | AH86: =IFERROR(CPI_Index!$B$30/VLOOKUP(M86,CPI_Index!$A$2:$B$50,2,FALSE),"No Match")*AF86 -> 0.001344582753 | AI86: $/kWh/yr | AJ86: =IFERROR(VLOOKUP(N86,Confidence_Factor_lookup!$A$4:$Z$99,21,FALSE),0) -> 0.8888888889 | AK86: TRUE
A87: ElectricityC&IRetrofitCustomRefrigerationProduct Spoilage/Defects - Participant - C&I | B87: 6 | C87: ElectricityC&IRetrofitCustomRefrigerationProduct Spoilage/Defects - Participant - C&I | D87: 5 | E87: ElectricityC&IRetrofitCustomRefrigerationProduct Spoilage/Defects - Participant - C&I | F87: 4 | G87: ElectricityC&IRetrofitCustomProduct Spoilage/Defects - Participant - C&I | H87: 3 | I87: ElectricityC&IRetrofitProduct Spoilage/Defects - Participant - C&I | J87: 2 | K87: =VLOOKUP($N87,Confidence_Factor_lookup!$A$2:$F$49,2,FALSE) -> Final Report – Commercial and Industrial Non-Energy Impacts Study | L87: =VLOOKUP($N87,Confidence_Factor_lookup!$A$2:$F$49,5,FALSE) -> MA | M87: =VLOOKUP($N87,Confidence_Factor_lookup!$A$2:$F$49,4,FALSE) -> 2012 | N87: Study0002 | O87: Retro13 | P87: MapID00167 | Q87: Electricity | T87: Refrigeration | U87: Custom | V87: Retrofit | W87: C&I | X87: =IF(R87="","",INDEX('Standard Measure Names (MapID)'!$B$2:$H$1011,MATCH($P87,'Standard Measure Names (MapID)'!$A$2:$A$1011,FALSE),1)) ->  | Y87: =IF(S87="","",INDEX('Standard Measure Names (MapID)'!$B$2:$H$1011,MATCH($P87,'Standard Measure Names (MapID)'!$A$2:$A$1011,FALSE),2)) ->  | Z87: =IF(T87="","",INDEX('Standard Measure Names (MapID)'!$B$2:$H$1011,MATCH($P87,'Standard Measure Names (MapID)'!$A$2:$A$1011,FALSE),3)) -> Refrigeration | AA87: =IF(U87="","",INDEX('Standard Measure Names (MapID)'!$B$2:$H$1011,MATCH($P87,'Standard Measure Names (MapID)'!$A$2:$A$1011,FALSE),4)) -> Custom | AB87: =IF(V87="","",INDEX('Standard Measure Names (MapID)'!$B$2:$H$1011,MATCH($P87,'Standard Measure Names (MapID)'!$A$2:$A$1011,FALSE),5)) -> Retrofit | AC87: =IF(W87="","",INDEX('Standard Measure Names (MapID)'!$B$2:$H$1011,MATCH($P87,'Standard Measure Names (MapID)'!$A$2:$A$1011,FALSE),6)) -> C&I | AD87: =IF(Q87="","",INDEX('Standard Measure Names (MapID)'!$B$2:$H$1011,MATCH($P87,'Standard Measure Names (MapID)'!$A$2:$A$1011,FALSE),7)) -> Electricity | AE87: Product Spoilage/Defects - Participant - C&I | AF87: 0.0197184 | AG87: $/kWh/yr | AH87: =IFERROR(CPI_Index!$B$30/VLOOKUP(M87,CPI_Index!$A$2:$B$50,2,FALSE),"No Match")*AF87 -> 0.02151332404 | AI87: $/kWh/yr | AJ87: =IFERROR(VLOOKUP(N87,Confidence_Factor_lookup!$A$4:$Z$99,21,FALSE),0) -> 0.8888888889 | AK87: TRUE
A88: ElectricityC&IRetrofitCustomOtherO&M - Participant - C&I | B88: 6 | C88: ElectricityC&IRetrofitCustomOtherO&M - Participant - C&I | D88: 5 | E88: ElectricityC&IRetrofitCustomOtherO&M - Participant - C&I | F88: 4 | G88: ElectricityC&IRetrofitCustomO&M - Participant - C&I | H88: 3 | I88: ElectricityC&IRetrofitO&M - Participant - C&I | J88: 2 | K88: =VLOOKUP($N88,Confidence_Factor_lookup!$A$2:$F$49,2,FALSE) -> Final Report – Commercial and Industrial Non-Energy Impacts Study | L88: =VLOOKUP($N88,Confidence_Factor_lookup!$A$2:$F$49,5,FALSE) -> MA | M88: =VLOOKUP($N88,Confidence_Factor_lookup!$A$2:$F$49,4,FALSE) -> 2012 | N88: Study0002 | O88: Retro14 | P88: MapID00204 | Q88: Electricity | T88: Other | U88: Custom | V88: Retrofit | W88: C&I | X88: =IF(R88="","",INDEX('Standard Measure Names (MapID)'!$B$2:$H$1011,MATCH($P88,'Standard Measure Names (MapID)'!$A$2:$A$1011,FALSE),1)) ->  | Y88: =IF(S88="","",INDEX('Standard Measure Names (MapID)'!$B$2:$H$1011,MATCH($P88,'Standard Measure Names (MapID)'!$A$2:$A$1011,FALSE),2)) ->  | Z88: =IF(T88="","",INDEX('Standard Measure Names (MapID)'!$B$2:$H$1011,MATCH($P88,'Standard Measure Names (MapID)'!$A$2:$A$1011,FALSE),3)) -> Other | AA88: =IF(U88="","",INDEX('Standard Measure Names (MapID)'!$B$2:$H$1011,MATCH($P88,'Standard Measure Names (MapID)'!$A$2:$A$1011,FALSE),4)) -> Custom | AB88: =IF(V88="","",INDEX('Standard Measure Names (MapID)'!$B$2:$H$1011,MATCH($P88,'Standard Measure Names (MapID)'!$A$2:$A$1011,FALSE),5)) -> Retrofit | AC88: =IF(W88="","",INDEX('Standard Measure Names (MapID)'!$B$2:$H$1011,MATCH($P88,'Standard Measure Names (MapID)'!$A$2:$A$1011,FALSE),6)) -> C&I | AD88: =IF(Q88="","",INDEX('Standard Measure Names (MapID)'!$B$2:$H$1011,MATCH($P88,'Standard Measure Names (MapID)'!$A$2:$A$1011,FALSE),7)) -> Electricity | AE88: O&M - Participant - C&I | AF88: -0.0233792 | AG88: $/kWh/yr | AH88: =IFERROR(CPI_Index!$B$30/VLOOKUP(M88,CPI_Index!$A$2:$B$50,2,FALSE),"No Match")*AF88 -> -0.02550735889 | AI88: $/kWh/yr | AJ88: =IFERROR(VLOOKUP(N88,Confidence_Factor_lookup!$A$4:$Z$99,21,FALSE),0) -> 0.8888888889 | AK88: TRUE
A89: ElectricityC&IRetrofitCustomOtherOther Impacts - Utility - C&I | B89: 6 | C89: ElectricityC&IRetrofitCustomOtherOther Impacts - Utility - C&I | D89: 5 | E89: ElectricityC&IRetrofitCustomOtherOther Impacts - Utility - C&I | F89: 4 | G89: ElectricityC&IRetrofitCustomOther Impacts - Utility - C&I | H89: 3 | I89: ElectricityC&IRetrofitOther Impacts - Utility - C&I | J89: 2 | K89: =VLOOKUP($N89,Confidence_Factor_lookup!$A$2:$F$49,2,FALSE) -> Final Report – Commercial and Industrial Non-Energy Impacts Study | L89: =VLOOKUP($N89,Confidence_Factor_lookup!$A$2:$F$49,5,FALSE) -> MA | M89: =VLOOKUP($N89,Confidence_Factor_lookup!$A$2:$F$49,4,FALSE) -> 2012 | N89: Study0002 | O89: Retro14 | P89: MapID00204 | Q89: Electricity | T89: Other | U89: Custom | V89: Retrofit | W89: C&I | X89: =IF(R89="","",INDEX('Standard Measure Names (MapID)'!$B$2:$H$1011,MATCH($P89,'Standard Measure Names (MapID)'!$A$2:$A$1011,FALSE),1)) ->  | Y89: =IF(S89="","",INDEX('Standard Measure Names (MapID)'!$B$2:$H$1011,MATCH($P89,'Standard Measure Names (MapID)'!$A$2:$A$1011,FALSE),2)) ->  | Z89: =IF(T89="","",INDEX('Standard Measure Names (MapID)'!$B$2:$H$1011,MATCH($P89,'Standard Measure Names (MapID)'!$A$2:$A$1011,FALSE),3)) -> Other | AA89: =IF(U89="","",INDEX('Standard Measure Names (MapID)'!$B$2:$H$1011,MATCH($P89,'Standard Measure Names (MapID)'!$A$2:$A$1011,FALSE),4)) -> Custom | AB89: =IF(V89="","",INDEX('Standard Measure Names (MapID)'!$B$2:$H$1011,MATCH($P89,'Standard Measure Names (MapID)'!$A$2:$A$1011,FALSE),5)) -> Retrofit | AC89: =IF(W89="","",INDEX('Standard Measure Names (MapID)'!$B$2:$H$1011,MATCH($P89,'Standard Measure Names (MapID)'!$A$2:$A$1011,FALSE),6)) -> C&I | AD89: =IF(Q89="","",INDEX('Standard Measure Names (MapID)'!$B$2:$H$1011,MATCH($P89,'Standard Measure Names (MapID)'!$A$2:$A$1011,FALSE),7)) -> Electricity | AE89: Other Impacts - Utility - C&I | AF89: 0.0083176 | AG89: $/kWh/yr | AH89: =IFERROR(CPI_Index!$B$30/VLOOKUP(M89,CPI_Index!$A$2:$B$50,2,FALSE),"No Match")*AF89 -> 0.009074733449 | AI89: $/kWh/yr | AJ89: =IFERROR(VLOOKUP(N89,Confidence_Factor_lookup!$A$4:$Z$99,21,FALSE),0) -> 0.8888888889 | AK89: TRUE
A90: ElectricityC&IRetrofitCustomOtherProduct Spoilage/Defects - Participant - C&I | B90: 6 | C90: ElectricityC&IRetrofitCustomOtherProduct Spoilage/Defects - Participant - C&I | D90: 5 | E90: ElectricityC&IRetrofitCustomOtherProduct Spoilage/Defects - Participant - C&I | F90: 4 | G90: ElectricityC&IRetrofitCustomProduct Spoilage/Defects - Participant - C&I | H90: 3 | I90: ElectricityC&IRetrofitProduct Spoilage/Defects - Participant - C&I | J90: 2 | K90: =VLOOKUP($N90,Confidence_Factor_lookup!$A$2:$F$49,2,FALSE) -> Final Report – Commercial and Industrial Non-Energy Impacts Study | L90: =VLOOKUP($N90,Confidence_Factor_lookup!$A$2:$F$49,5,FALSE) -> MA | M90: =VLOOKUP($N90,Confidence_Factor_lookup!$A$2:$F$49,4,FALSE) -> 2012 | N90: Study0002 | O90: Retro14 | P90: MapID00204 | Q90: Electricity | T90: Other | U90: Custom | V90: Retrofit | W90: C&I | X90: =IF(R90="","",INDEX('Standard Measure Names (MapID)'!$B$2:$H$1011,MATCH($P90,'Standard Measure Names (MapID)'!$A$2:$A$1011,FALSE),1)) ->  | Y90: =IF(S90="","",INDEX('Standard Measure Names (MapID)'!$B$2:$H$1011,MATCH($P90,'Standard Measure Names (MapID)'!$A$2:$A$1011,FALSE),2)) ->  | Z90: =IF(T90="","",INDEX('Standard Measure Names (MapID)'!$B$2:$H$1011,MATCH($P90,'Standard Measure Names (MapID)'!$A$2:$A$1011,FALSE),3)) -> Other | AA90: =IF(U90="","",INDEX('Standard Measure Names (MapID)'!$B$2:$H$1011,MATCH($P90,'Standard Measure Names (MapID)'!$A$2:$A$1011,FALSE),4)) -> Custom | AB90: =IF(V90="","",INDEX('Standard Measure Names (MapID)'!$B$2:$H$1011,MATCH($P90,'Standard Measure Names (MapID)'!$A$2:$A$1011,FALSE),5)) -> Retrofit | AC90: =IF(W90="","",INDEX('Standard Measure Names (MapID)'!$B$2:$H$1011,MATCH($P90,'Standard Measure Names (MapID)'!$A$2:$A$1011,FALSE),6)) -> C&I | AD90: =IF(Q90="","",INDEX('Standard Measure Names (MapID)'!$B$2:$H$1011,MATCH($P90,'Standard Measure Names (MapID)'!$A$2:$A$1011,FALSE),7)) -> Electricity | AE90: Product Spoilage/Defects - Participant - C&I | AF90: 0.0034282 | AG90: $/kWh/yr | AH90: =IFERROR(CPI_Index!$B$30/VLOOKUP(M90,CPI_Index!$A$2:$B$50,2,FALSE),"No Match")*AF90 -> 0.00374026176 | AI90: $/kWh/yr | AJ90: =IFERROR(VLOOKUP(N90,Confidence_Factor_lookup!$A$4:$Z$99,21,FALSE),0) -> 0.8888888889 | AK90: TRUE
A91: ElectricityC&IRetrofitCustomOtherSales Revenue - Participant - C&I | B91: 6 | C91: ElectricityC&IRetrofitCustomOtherSales Revenue - Participant - C&I | D91: 5 | E91: ElectricityC&IRetrofitCustomOtherSales Revenue - Participant - C&I | F91: 4 | G91: ElectricityC&IRetrofitCustomSales Revenue - Participant - C&I | H91: 3 | I91: ElectricityC&IRetrofitSales Revenue - Participant - C&I | J91: 2 | K91: =VLOOKUP($N91,Confidence_Factor_lookup!$A$2:$F$49,2,FALSE) -> Final Report – Commercial and Industrial Non-Energy Impacts Study | L91: =VLOOKUP($N91,Confidence_Factor_lookup!$A$2:$F$49,5,FALSE) -> MA | M91: =VLOOKUP($N91,Confidence_Factor_lookup!$A$2:$F$49,4,FALSE) -> 2012 | N91: Study0002 | O91: Retro14 | P91: MapID00204 | Q91: Electricity | T91: Other | U91: Custom | V91: Retrofit | W91: C&I | X91: =IF(R91="","",INDEX('Standard Measure Names (MapID)'!$B$2:$H$1011,MATCH($P91,'Standard Measure Names (MapID)'!$A$2:$A$1011,FALSE),1)) ->  | Y91: =IF(S91="","",INDEX('Standard Measure Names (MapID)'!$B$2:$H$1011,MATCH($P91,'Standard Measure Names (MapID)'!$A$2:$A$1011,FALSE),2)) ->  | Z91: =IF(T91="","",INDEX('Standard Measure Names (MapID)'!$B$2:$H$1011,MATCH($P91,'Standard Measure Names (MapID)'!$A$2:$A$1011,FALSE),3)) -> Other | AA91: =IF(U91="","",INDEX('Standard Measure Names (MapID)'!$B$2:$H$1011,MATCH($P91,'Standard Measure Names (MapID)'!$A$2:$A$1011,FALSE),4)) -> Custom | AB91: =IF(V91="","",INDEX('Standard Measure Names (MapID)'!$B$2:$H$1011,MATCH($P91,'Standard Measure Names (MapID)'!$A$2:$A$1011,FALSE),5)) -> Retrofit | AC91: =IF(W91="","",INDEX('Standard Measure Names (MapID)'!$B$2:$H$1011,MATCH($P91,'Standard Measure Names (MapID)'!$A$2:$A$1011,FALSE),6)) -> C&I | AD91: =IF(Q91="","",INDEX('Standard Measure Names (MapID)'!$B$2:$H$1011,MATCH($P91,'Standard Measure Names (MapID)'!$A$2:$A$1011,FALSE),7)) -> Electricity | AE91: Sales Revenue - Participant - C&I | AF91: 0.0677772 | AG91: $/kWh/yr | AH91: =IFERROR(CPI_Index!$B$30/VLOOKUP(M91,CPI_Index!$A$2:$B$50,2,FALSE),"No Match")*AF91 -> 0.07394681446 | AI91: $/kWh/yr | AJ91: =IFERROR(VLOOKUP(N91,Confidence_Factor_lookup!$A$4:$Z$99,21,FALSE),0) -> 0.8888888889 | AK91: TRUE
A92: ElectricityC&IRetrofitCustomOtherWaste disposal - Participant - C&I | B92: 6 | C92: ElectricityC&IRetrofitCustomOtherWaste disposal - Participant - C&I | D92: 5 | E92: ElectricityC&IRetrofitCustomOtherWaste disposal - Participant - C&I | F92: 4 | G92: ElectricityC&IRetrofitCustomWaste disposal - Participant - C&I | H92: 3 | I92: ElectricityC&IRetrofitWaste disposal - Participant - C&I | J92: 2 | K92: =VLOOKUP($N92,Confidence_Factor_lookup!$A$2:$F$49,2,FALSE) -> Final Report – Commercial and Industrial Non-Energy Impacts Study | L92: =VLOOKUP($N92,Confidence_Factor_lookup!$A$2:$F$49,5,FALSE) -> MA | M92: =VLOOKUP($N92,Confidence_Factor_lookup!$A$2:$F$49,4,FALSE) -> 2012 | N92: Study0002 | O92: Retro14 | P92: MapID00204 | Q92: Electricity | T92: Other | U92: Custom | V92: Retrofit | W92: C&I | X92: =IF(R92="","",INDEX('Standard Measure Names (MapID)'!$B$2:$H$1011,MATCH($P92,'Standard Measure Names (MapID)'!$A$2:$A$1011,FALSE),1)) ->  | Y92: =IF(S92="","",INDEX('Standard Measure Names (MapID)'!$B$2:$H$1011,MATCH($P92,'Standard Measure Names (MapID)'!$A$2:$A$1011,FALSE),2)) ->  | Z92: =IF(T92="","",INDEX('Standard Measure Names (MapID)'!$B$2:$H$1011,MATCH($P92,'Standard Measure Names (MapID)'!$A$2:$A$1011,FALSE),3)) -> Other | AA92: =IF(U92="","",INDEX('Standard Measure Names (MapID)'!$B$2:$H$1011,MATCH($P92,'Standard Measure Names (MapID)'!$A$2:$A$1011,FALSE),4)) -> Custom | AB92: =IF(V92="","",INDEX('Standard Measure Names (MapID)'!$B$2:$H$1011,MATCH($P92,'Standard Measure Names (MapID)'!$A$2:$A$1011,FALSE),5)) -> Retrofit | AC92: =IF(W92="","",INDEX('Standard Measure Names (MapID)'!$B$2:$H$1011,MATCH($P92,'Standard Measure Names (MapID)'!$A$2:$A$1011,FALSE),6)) -> C&I | AD92: =IF(Q92="","",INDEX('Standard Measure Names (MapID)'!$B$2:$H$1011,MATCH($P92,'Standard Measure Names (MapID)'!$A$2:$A$1011,FALSE),7)) -> Electricity | AE92: Waste disposal - Participant - C&I | AF92: 5.62e-05 | AG92: $/kWh/yr | AH92: =IFERROR(CPI_Index!$B$30/VLOOKUP(M92,CPI_Index!$A$2:$B$50,2,FALSE),"No Match")*AF92 -> 6.131576655e-05 | AI92: $/kWh/yr | AJ92: =IFERROR(VLOOKUP(N92,Confidence_Factor_lookup!$A$4:$Z$99,21,FALSE),0) -> 0.8888888889 | AK92: TRUE
A93: GasC&IRetrofitCustomWeatherizationAdministrative costs - Participant - C&I | B93: 6 | C93: GasC&IRetrofitCustomWeatherizationAdministrative costs - Participant - C&I | D93: 5 | E93: GasC&IRetrofitCustomWeatherizationAdministrative costs - Participant - C&I | F93: 4 | G93: GasC&IRetrofitCustomAdministrative costs - Participant - C&I | H93: 3 | I93: GasC&IRetrofitAdministrative costs - Participant - C&I | J93: 2 | K93: =VLOOKUP($N93,Confidence_Factor_lookup!$A$2:$F$49,2,FALSE) -> Final Report – Commercial and Industrial Non-Energy Impacts Study | L93: =VLOOKUP($N93,Confidence_Factor_lookup!$A$2:$F$49,5,FALSE) -> MA | M93: =VLOOKUP($N93,Confidence_Factor_lookup!$A$2:$F$49,4,FALSE) -> 2012 | N93: Study0002 | O93: Retro15 | P93: MapID00097 | Q93: Gas | T93: Building Envelope | U93: Custom | V93: Retrofit | W93: C&I | X93: =IF(R93="","",INDEX('Standard Measure Names (MapID)'!$B$2:$H$1011,MATCH($P93,'Standard Measure Names (MapID)'!$A$2:$A$1011,FALSE),1)) ->  | Y93: =IF(S93="","",INDEX('Standard Measure Names (MapID)'!$B$2:$H$1011,MATCH($P93,'Standard Measure Names (MapID)'!$A$2:$A$1011,FALSE),2)) ->  | Z93: =IF(T93="","",INDEX('Standard Measure Names (MapID)'!$B$2:$H$1011,MATCH($P93,'Standard Measure Names (MapID)'!$A$2:$A$1011,FALSE),3)) -> Weatherization | AA93: =IF(U93="","",INDEX('Standard Measure Names (MapID)'!$B$2:$H$1011,MATCH($P93,'Standard Measure Names (MapID)'!$A$2:$A$1011,FALSE),4)) -> Custom | AB93: =IF(V93="","",INDEX('Standard Measure Names (MapID)'!$B$2:$H$1011,MATCH($P93,'Standard Measure Names (MapID)'!$A$2:$A$1011,FALSE),5)) -> Retrofit | AC93: =IF(W93="","",INDEX('Standard Measure Names (MapID)'!$B$2:$H$1011,MATCH($P93,'Standard Measure Names (MapID)'!$A$2:$A$1011,FALSE),6)) -> C&I | AD93: =IF(Q93="","",INDEX('Standard Measure Names (MapID)'!$B$2:$H$1011,MATCH($P93,'Standard Measure Names (MapID)'!$A$2:$A$1011,FALSE),7)) -> Gas | AE93: Administrative costs - Participant - C&I | AF93: 0.0577654 | AG93: $/therm/yr | AH93: =IFERROR(CPI_Index!$B$30/VLOOKUP(M93,CPI_Index!$A$2:$B$50,2,FALSE),"No Match")*AF93 -> 0.06302366159 | AI93: $/therm/yr | AJ93: =IFERROR(VLOOKUP(N93,Confidence_Factor_lookup!$A$4:$Z$99,21,FALSE),0) -> 0.8888888889 | AK93: TRUE
A94: GasC&IRetrofitCustomWeatherizationO&M - Participant - C&I | B94: 6 | C94: GasC&IRetrofitCustomWeatherizationO&M - Participant - C&I | D94: 5 | E94: GasC&IRetrofitCustomWeatherizationO&M - Participant - C&I | F94: 4 | G94: GasC&IRetrofitCustomO&M - Participant - C&I | H94: 3 | I94: GasC&IRetrofitO&M - Participant - C&I | J94: 2 | K94: =VLOOKUP($N94,Confidence_Factor_lookup!$A$2:$F$49,2,FALSE) -> Final Report – Commercial and Industrial Non-Energy Impacts Study | L94: =VLOOKUP($N94,Confidence_Factor_lookup!$A$2:$F$49,5,FALSE) -> MA | M94: =VLOOKUP($N94,Confidence_Factor_lookup!$A$2:$F$49,4,FALSE) -> 2012 | N94: Study0002 | O94: Retro15 | P94: MapID00097 | Q94: Gas | T94: Building Envelope | U94: Custom | V94: Retrofit | W94: C&I | X94: =IF(R94="","",INDEX('Standard Measure Names (MapID)'!$B$2:$H$1011,MATCH($P94,'Standard Measure Names (MapID)'!$A$2:$A$1011,FALSE),1)) ->  | Y94: =IF(S94="","",INDEX('Standard Measure Names (MapID)'!$B$2:$H$1011,MATCH($P94,'Standard Measure Names (MapID)'!$A$2:$A$1011,FALSE),2)) ->  | Z94: =IF(T94="","",INDEX('Standard Measure Names (MapID)'!$B$2:$H$1011,MATCH($P94,'Standard Measure Names (MapID)'!$A$2:$A$1011,FALSE),3)) -> Weatherization | AA94: =IF(U94="","",INDEX('Standard Measure Names (MapID)'!$B$2:$H$1011,MATCH($P94,'Standard Measure Names (MapID)'!$A$2:$A$1011,FALSE),4)) -> Custom | AB94: =IF(V94="","",INDEX('Standard Measure Names (MapID)'!$B$2:$H$1011,MATCH($P94,'Standard Measure Names (MapID)'!$A$2:$A$1011,FALSE),5)) -> Retrofit | AC94: =IF(W94="","",INDEX('Standard Measure Names (MapID)'!$B$2:$H$1011,MATCH($P94,'Standard Measure Names (MapID)'!$A$2:$A$1011,FALSE),6)) -> C&I | AD94: =IF(Q94="","",INDEX('Standard Measure Names (MapID)'!$B$2:$H$1011,MATCH($P94,'Standard Measure Names (MapID)'!$A$2:$A$1011,FALSE),7)) -> Gas | AE94: O&M - Participant - C&I | AF94: 0.3776234 | AG94: $/therm/yr | AH94: =IFERROR(CPI_Index!$B$30/VLOOKUP(M94,CPI_Index!$A$2:$B$50,2,FALSE),"No Match")*AF94 -> 0.4119976555 | AI94: $/therm/yr | AJ94: =IFERROR(VLOOKUP(N94,Confidence_Factor_lookup!$A$4:$Z$99,21,FALSE),0) -> 0.8888888889 | AK94: TRUE
A95: GasC&IRetrofitCustomWeatherizationSupplies and materials - Participant - C&I | B95: 6 | C95: GasC&IRetrofitCustomWeatherizationSupplies and materials - Participant - C&I | D95: 5 | E95: GasC&IRetrofitCustomWeatherizationSupplies and materials - Participant - C&I | F95: 4 | G95: GasC&IRetrofitCustomSupplies and materials - Participant - C&I | H95: 3 | I95: GasC&IRetrofitSupplies and materials - Participant - C&I | J95: 2 | K95: =VLOOKUP($N95,Confidence_Factor_lookup!$A$2:$F$49,2,FALSE) -> Final Report – Commercial and Industrial Non-Energy Impacts Study | L95: =VLOOKUP($N95,Confidence_Factor_lookup!$A$2:$F$49,5,FALSE) -> MA | M95: =VLOOKUP($N95,Confidence_Factor_lookup!$A$2:$F$49,4,FALSE) -> 2012 | N95: Study0002 | O95: Retro15 | P95: MapID00097 | Q95: Gas | T95: Building Envelope | U95: Custom | V95: Retrofit | W95: C&I | X95: =IF(R95="","",INDEX('Standard Measure Names (MapID)'!$B$2:$H$1011,MATCH($P95,'Standard Measure Names (MapID)'!$A$2:$A$1011,FALSE),1)) ->  | Y95: =IF(S95="","",INDEX('Standard Measure Names (MapID)'!$B$2:$H$1011,MATCH($P95,'Standard Measure Names (MapID)'!$A$2:$A$1011,FALSE),2)) ->  | Z95: =IF(T95="","",INDEX('Standard Measure Names (MapID)'!$B$2:$H$1011,MATCH($P95,'Standard Measure Names (MapID)'!$A$2:$A$1011,FALSE),3)) -> Weatherization | AA95: =IF(U95="","",INDEX('Standard Measure Names (MapID)'!$B$2:$H$1011,MATCH($P95,'Standard Measure Names (MapID)'!$A$2:$A$1011,FALSE),4)) -> Custom | AB95: =IF(V95="","",INDEX('Standard Measure Names (MapID)'!$B$2:$H$1011,MATCH($P95,'Standard Measure Names (MapID)'!$A$2:$A$1011,FALSE),5)) -> Retrofit | AC95: =IF(W95="","",INDEX('Standard Measure Names (MapID)'!$B$2:$H$1011,MATCH($P95,'Standard Measure Names (MapID)'!$A$2:$A$1011,FALSE),6)) -> C&I | AD95: =IF(Q95="","",INDEX('Standard Measure Names (MapID)'!$B$2:$H$1011,MATCH($P95,'Standard Measure Names (MapID)'!$A$2:$A$1011,FALSE),7)) -> Gas | AE95: Supplies and materials - Participant - C&I | AF95: 0.0396242 | AG95: $/therm/yr | AH95: =IFERROR(CPI_Index!$B$30/VLOOKUP(M95,CPI_Index!$A$2:$B$50,2,FALSE),"No Match")*AF95 -> 0.04323110671 | AI95: $/therm/yr | AJ95: =IFERROR(VLOOKUP(N95,Confidence_Factor_lookup!$A$4:$Z$99,21,FALSE),0) -> 0.8888888889 | AK95: TRUE
A96: GasC&IRetrofitCustomWeatherizationProduct Spoilage/Defects - Participant - C&I | B96: 6 | C96: GasC&IRetrofitCustomWeatherizationProduct Spoilage/Defects - Participant - C&I | D96: 5 | E96: GasC&IRetrofitCustomWeatherizationProduct Spoilage/Defects - Participant - C&I | F96: 4 | G96: GasC&IRetrofitCustomProduct Spoilage/Defects - Participant - C&I | H96: 3 | I96: GasC&IRetrofitProduct Spoilage/Defects - Participant - C&I | J96: 2 | K96: =VLOOKUP($N96,Confidence_Factor_lookup!$A$2:$F$49,2,FALSE) -> Final Report – Commercial and Industrial Non-Energy Impacts Study | L96: =VLOOKUP($N96,Confidence_Factor_lookup!$A$2:$F$49,5,FALSE) -> MA | M96: =VLOOKUP($N96,Confidence_Factor_lookup!$A$2:$F$49,4,FALSE) -> 2012 | N96: Study0002 | O96: Retro15 | P96: MapID00097 | Q96: Gas | T96: Building Envelope | U96: Custom | V96: Retrofit | W96: C&I | X96: =IF(R96="","",INDEX('Standard Measure Names (MapID)'!$B$2:$H$1011,MATCH($P96,'Standard Measure Names (MapID)'!$A$2:$A$1011,FALSE),1)) ->  | Y96: =IF(S96="","",INDEX('Standard Measure Names (MapID)'!$B$2:$H$1011,MATCH($P96,'Standard Measure Names (MapID)'!$A$2:$A$1011,FALSE),2)) ->  | Z96: =IF(T96="","",INDEX('Standard Measure Names (MapID)'!$B$2:$H$1011,MATCH($P96,'Standard Measure Names (MapID)'!$A$2:$A$1011,FALSE),3)) -> Weatherization | AA96: =IF(U96="","",INDEX('Standard Measure Names (MapID)'!$B$2:$H$1011,MATCH($P96,'Standard Measure Names (MapID)'!$A$2:$A$1011,FALSE),4)) -> Custom | AB96: =IF(V96="","",INDEX('Standard Measure Names (MapID)'!$B$2:$H$1011,MATCH($P96,'Standard Measure Names (MapID)'!$A$2:$A$1011,FALSE),5)) -> Retrofit | AC96: =IF(W96="","",INDEX('Standard Measure Names (MapID)'!$B$2:$H$1011,MATCH($P96,'Standard Measure Names (MapID)'!$A$2:$A$1011,FALSE),6)) -> C&I | AD96: =IF(Q96="","",INDEX('Standard Measure Names (MapID)'!$B$2:$H$1011,MATCH($P96,'Standard Measure Names (MapID)'!$A$2:$A$1011,FALSE),7)) -> Gas | AE96: Product Spoilage/Defects - Participant - C&I | AF96: 0.002387 | AG96: $/therm/yr | AH96: =IFERROR(CPI_Index!$B$30/VLOOKUP(M96,CPI_Index!$A$2:$B$50,2,FALSE),"No Match")*AF96 -> 0.002604283537 | AI96: $/therm/yr | AJ96: =IFERROR(VLOOKUP(N96,Confidence_Factor_lookup!$A$4:$Z$99,21,FALSE),0) -> 0.8888888889 | AK96: TRUE
A97: GasC&IRetrofitCustomHVACAdministrative costs - Participant - C&I | B97: 6 | C97: GasC&IRetrofitCustomHVACAdministrative costs - Participant - C&I | D97: 5 | E97: GasC&IRetrofitCustomHVACAdministrative costs - Participant - C&I | F97: 4 | G97: GasC&IRetrofitCustomAdministrative costs - Participant - C&I | H97: 3 | I97: GasC&IRetrofitAdministrative costs - Participant - C&I | J97: 2 | K97: =VLOOKUP($N97,Confidence_Factor_lookup!$A$2:$F$49,2,FALSE) -> Final Report – Commercial and Industrial Non-Energy Impacts Study | L97: =VLOOKUP($N97,Confidence_Factor_lookup!$A$2:$F$49,5,FALSE) -> MA | M97: =VLOOKUP($N97,Confidence_Factor_lookup!$A$2:$F$49,4,FALSE) -> 2012 | N97: Study0002 | O97: Retro16 | P97: MapID00401 | Q97: Gas | T97: HVAC | U97: Custom | V97: Retrofit | W97: C&I | X97: =IF(R97="","",INDEX('Standard Measure Names (MapID)'!$B$2:$H$1011,MATCH($P97,'Standard Measure Names (MapID)'!$A$2:$A$1011,FALSE),1)) ->  | Y97: =IF(S97="","",INDEX('Standard Measure Names (MapID)'!$B$2:$H$1011,MATCH($P97,'Standard Measure Names (MapID)'!$A$2:$A$1011,FALSE),2)) ->  | Z97: =IF(T97="","",INDEX('Standard Measure Names (MapID)'!$B$2:$H$1011,MATCH($P97,'Standard Measure Names (MapID)'!$A$2:$A$1011,FALSE),3)) -> HVAC | AA97: =IF(U97="","",INDEX('Standard Measure Names (MapID)'!$B$2:$H$1011,MATCH($P97,'Standard Measure Names (MapID)'!$A$2:$A$1011,FALSE),4)) -> Custom | AB97: =IF(V97="","",INDEX('Standard Measure Names (MapID)'!$B$2:$H$1011,MATCH($P97,'Standard Measure Names (MapID)'!$A$2:$A$1011,FALSE),5)) -> Retrofit | AC97: =IF(W97="","",INDEX('Standard Measure Names (MapID)'!$B$2:$H$1011,MATCH($P97,'Standard Measure Names (MapID)'!$A$2:$A$1011,FALSE),6)) -> C&I | AD97: =IF(Q97="","",INDEX('Standard Measure Names (MapID)'!$B$2:$H$1011,MATCH($P97,'Standard Measure Names (MapID)'!$A$2:$A$1011,FALSE),7)) -> Gas | AE97: Administrative costs - Participant - C&I | AF97: 0.006873 | AG97: $/therm/yr | AH97: =IFERROR(CPI_Index!$B$30/VLOOKUP(M97,CPI_Index!$A$2:$B$50,2,FALSE),"No Match")*AF97 -> 0.007498634582 | AI97: $/therm/yr | AJ97: =IFERROR(VLOOKUP(N97,Confidence_Factor_lookup!$A$4:$Z$99,21,FALSE),0) -> 0.8888888889 | AK97: TRUE
A98: GasC&IRetrofitCustomHVACO&M - Participant - C&I | B98: 6 | C98: GasC&IRetrofitCustomHVACO&M - Participant - C&I | D98: 5 | E98: GasC&IRetrofitCustomHVACO&M - Participant - C&I | F98: 4 | G98: GasC&IRetrofitCustomO&M - Participant - C&I | H98: 3 | I98: GasC&IRetrofitO&M - Participant - C&I | J98: 2 | K98: =VLOOKUP($N98,Confidence_Factor_lookup!$A$2:$F$49,2,FALSE) -> Final Report – Commercial and Industrial Non-Energy Impacts Study | L98: =VLOOKUP($N98,Confidence_Factor_lookup!$A$2:$F$49,5,FALSE) -> MA | M98: =VLOOKUP($N98,Confidence_Factor_lookup!$A$2:$F$49,4,FALSE) -> 2012 | N98: Study0002 | O98: Retro16 | P98: MapID00401 | Q98: Gas | T98: HVAC | U98: Custom | V98: Retrofit | W98: C&I | X98: =IF(R98="","",INDEX('Standard Measure Names (MapID)'!$B$2:$H$1011,MATCH($P98,'Standard Measure Names (MapID)'!$A$2:$A$1011,FALSE),1)) ->  | Y98: =IF(S98="","",INDEX('Standard Measure Names (MapID)'!$B$2:$H$1011,MATCH($P98,'Standard Measure Names (MapID)'!$A$2:$A$1011,FALSE),2)) ->  | Z98: =IF(T98="","",INDEX('Standard Measure Names (MapID)'!$B$2:$H$1011,MATCH($P98,'Standard Measure Names (MapID)'!$A$2:$A$1011,FALSE),3)) -> HVAC | AA98: =IF(U98="","",INDEX('Standard Measure Names (MapID)'!$B$2:$H$1011,MATCH($P98,'Standard Measure Names (MapID)'!$A$2:$A$1011,FALSE),4)) -> Custom | AB98: =IF(V98="","",INDEX('Standard Measure Names (MapID)'!$B$2:$H$1011,MATCH($P98,'Standard Measure Names (MapID)'!$A$2:$A$1011,FALSE),5)) -> Retrofit | AC98: =IF(W98="","",INDEX('Standard Measure Names (MapID)'!$B$2:$H$1011,MATCH($P98,'Standard Measure Names (MapID)'!$A$2:$A$1011,FALSE),6)) -> C&I | AD98: =IF(Q98="","",INDEX('Standard Measure Names (MapID)'!$B$2:$H$1011,MATCH($P98,'Standard Measure Names (MapID)'!$A$2:$A$1011,FALSE),7)) -> Gas | AE98: O&M - Participant - C&I | AF98: 0.2217688 | AG98: $/therm/yr | AH98: =IFERROR(CPI_Index!$B$30/VLOOKUP(M98,CPI_Index!$A$2:$B$50,2,FALSE),"No Match")*AF98 -> 0.2419559425 | AI98: $/therm/yr | AJ98: =IFERROR(VLOOKUP(N98,Confidence_Factor_lookup!$A$4:$Z$99,21,FALSE),0) -> 0.8888888889 | AK98: TRUE
A99: GasC&IRetrofitCustomHVACOther Impacts - Utility - C&I | B99: 6 | C99: GasC&IRetrofitCustomHVACOther Impacts - Utility - C&I | D99: 5 | E99: GasC&IRetrofitCustomHVACOther Impacts - Utility - C&I | F99: 4 | G99: GasC&IRetrofitCustomOther Impacts - Utility - C&I | H99: 3 | I99: GasC&IRetrofitOther Impacts - Utility - C&I | J99: 2 | K99: =VLOOKUP($N99,Confidence_Factor_lookup!$A$2:$F$49,2,FALSE) -> Final Report – Commercial and Industrial Non-Energy Impacts Study | L99: =VLOOKUP($N99,Confidence_Factor_lookup!$A$2:$F$49,5,FALSE) -> MA | M99: =VLOOKUP($N99,Confidence_Factor_lookup!$A$2:$F$49,4,FALSE) -> 2012 | N99: Study0002 | O99: Retro16 | P99: MapID00401 | Q99: Gas | T99: HVAC | U99: Custom | V99: Retrofit | W99: C&I | X99: =IF(R99="","",INDEX('Standard Measure Names (MapID)'!$B$2:$H$1011,MATCH($P99,'Standard Measure Names (MapID)'!$A$2:$A$1011,FALSE),1)) ->  | Y99: =IF(S99="","",INDEX('Standard Measure Names (MapID)'!$B$2:$H$1011,MATCH($P99,'Standard Measure Names (MapID)'!$A$2:$A$1011,FALSE),2)) ->  | Z99: =IF(T99="","",INDEX('Standard Measure Names (MapID)'!$B$2:$H$1011,MATCH($P99,'Standard Measure Names (MapID)'!$A$2:$A$1011,FALSE),3)) -> HVAC | AA99: =IF(U99="","",INDEX('Standard Measure Names (MapID)'!$B$2:$H$1011,MATCH($P99,'Standard Measure Names (MapID)'!$A$2:$A$1011,FALSE),4)) -> Custom | AB99: =IF(V99="","",INDEX('Standard Measure Names (MapID)'!$B$2:$H$1011,MATCH($P99,'Standard Measure Names (MapID)'!$A$2:$A$1011,FALSE),5)) -> Retrofit | AC99: =IF(W99="","",INDEX('Standard Measure Names (MapID)'!$B$2:$H$1011,MATCH($P99,'Standard Measure Names (MapID)'!$A$2:$A$1011,FALSE),6)) -> C&I | AD99: =IF(Q99="","",INDEX('Standard Measure Names (MapID)'!$B$2:$H$1011,MATCH($P99,'Standard Measure Names (MapID)'!$A$2:$A$1011,FALSE),7)) -> Gas | AE99: Other Impacts - Utility - C&I | AF99: 0.0018328 | AG99: $/therm/yr | AH99: =IFERROR(CPI_Index!$B$30/VLOOKUP(M99,CPI_Index!$A$2:$B$50,2,FALSE),"No Match")*AF99 -> 0.001999635889 | AI99: $/therm/yr | AJ99: =IFERROR(VLOOKUP(N99,Confidence_Factor_lookup!$A$4:$Z$99,21,FALSE),0) -> 0.8888888889 | AK99: TRUE
A100: GasC&IRetrofitCustomHVACOther Impacts - Participant - C&I | B100: 6 | C100: GasC&IRetrofitCustomHVACOther Impacts - Participant - C&I | D100: 5 | E100: GasC&IRetrofitCustomHVACOther Impacts - Participant - C&I | F100: 4 | G100: GasC&IRetrofitCustomOther Impacts - Participant - C&I | H100: 3 | I100: GasC&IRetrofitOther Impacts - Participant - C&I | J100: 2 | K100: =VLOOKUP($N100,Confidence_Factor_lookup!$A$2:$F$49,2,FALSE) -> Final Report – Commercial and Industrial Non-Energy Impacts Study | L100: =VLOOKUP($N100,Confidence_Factor_lookup!$A$2:$F$49,5,FALSE) -> MA | M100: =VLOOKUP($N100,Confidence_Factor_lookup!$A$2:$F$49,4,FALSE) -> 2012 | N100: Study0002 | O100: Retro16 | P100: MapID00401 | Q100: Gas | T100: HVAC | U100: Custom | V100: Retrofit | W100: C&I | X100: =IF(R100="","",INDEX('Standard Measure Names (MapID)'!$B$2:$H$1011,MATCH($P100,'Standard Measure Names (MapID)'!$A$2:$A$1011,FALSE),1)) ->  | Y100: =IF(S100="","",INDEX('Standard Measure Names (MapID)'!$B$2:$H$1011,MATCH($P100,'Standard Measure Names (MapID)'!$A$2:$A$1011,FALSE),2)) ->  | Z100: =IF(T100="","",INDEX('Standard Measure Names (MapID)'!$B$2:$H$1011,MATCH($P100,'Standard Measure Names (MapID)'!$A$2:$A$1011,FALSE),3)) -> HVAC | AA100: =IF(U100="","",INDEX('Standard Measure Names (MapID)'!$B$2:$H$1011,MATCH($P100,'Standard Measure Names (MapID)'!$A$2:$A$1011,FALSE),4)) -> Custom | AB100: =IF(V100="","",INDEX('Standard Measure Names (MapID)'!$B$2:$H$1011,MATCH($P100,'Standard Measure Names (MapID)'!$A$2:$A$1011,FALSE),5)) -> Retrofit | AC100: =IF(W100="","",INDEX('Standard Measure Names (MapID)'!$B$2:$H$1011,MATCH($P100,'Standard Measure Names (MapID)'!$A$2:$A$1011,FALSE),6)) -> C&I | AD100: =IF(Q100="","",INDEX('Standard Measure Names (MapID)'!$B$2:$H$1011,MATCH($P100,'Standard Measure Names (MapID)'!$A$2:$A$1011,FALSE),7)) -> Gas | AE100: Other Impacts - Participant - C&I | AF100: 0.0002291 | AG100: $/therm/yr | AH100: =IFERROR(CPI_Index!$B$30/VLOOKUP(M100,CPI_Index!$A$2:$B$50,2,FALSE),"No Match")*AF100 -> 0.0002499544861 | AI100: $/therm/yr | AJ100: =IFERROR(VLOOKUP(N100,Confidence_Factor_lookup!$A$4:$Z$99,21,FALSE),0) -> 0.8888888889 | AK100: TRUE
A101: GasC&IRetrofitCustomHVACWaste disposal - Participant - C&I | B101: 6 | C101: GasC&IRetrofitCustomHVACWaste disposal - Participant - C&I | D101: 5 | E101: GasC&IRetrofitCustomHVACWaste disposal - Participant - C&I | F101: 4 | G101: GasC&IRetrofitCustomWaste disposal - Participant - C&I | H101: 3 | I101: GasC&IRetrofitWaste disposal - Participant - C&I | J101: 2 | K101: =VLOOKUP($N101,Confidence_Factor_lookup!$A$2:$F$49,2,FALSE) -> Final Report – Commercial and Industrial Non-Energy Impacts Study | L101: =VLOOKUP($N101,Confidence_Factor_lookup!$A$2:$F$49,5,FALSE) -> MA | M101: =VLOOKUP($N101,Confidence_Factor_lookup!$A$2:$F$49,4,FALSE) -> 2012 | N101: Study0002 | O101: Retro16 | P101: MapID00401 | Q101: Gas | T101: HVAC | U101: Custom | V101: Retrofit | W101: C&I | X101: =IF(R101="","",INDEX('Standard Measure Names (MapID)'!$B$2:$H$1011,MATCH($P101,'Standard Measure Names (MapID)'!$A$2:$A$1011,FALSE),1)) ->  | Y101: =IF(S101="","",INDEX('Standard Measure Names (MapID)'!$B$2:$H$1011,MATCH($P101,'Standard Measure Names (MapID)'!$A$2:$A$1011,FALSE),2)) ->  | Z101: =IF(T101="","",INDEX('Standard Measure Names (MapID)'!$B$2:$H$1011,MATCH($P101,'Standard Measure Names (MapID)'!$A$2:$A$1011,FALSE),3)) -> HVAC | AA101: =IF(U101="","",INDEX('Standard Measure Names (MapID)'!$B$2:$H$1011,MATCH($P101,'Standard Measure Names (MapID)'!$A$2:$A$1011,FALSE),4)) -> Custom | AB101: =IF(V101="","",INDEX('Standard Measure Names (MapID)'!$B$2:$H$1011,MATCH($P101,'Standard Measure Names (MapID)'!$A$2:$A$1011,FALSE),5)) -> Retrofit | AC101: =IF(W101="","",INDEX('Standard Measure Names (MapID)'!$B$2:$H$1011,MATCH($P101,'Standard Measure Names (MapID)'!$A$2:$A$1011,FALSE),6)) -> C&I | AD101: =IF(Q101="","",INDEX('Standard Measure Names (MapID)'!$B$2:$H$1011,MATCH($P101,'Standard Measure Names (MapID)'!$A$2:$A$1011,FALSE),7)) -> Gas | AE101: Waste disposal - Participant - C&I | AF101: 0.0006873 | AG101: $/therm/yr | AH101: =IFERROR(CPI_Index!$B$30/VLOOKUP(M101,CPI_Index!$A$2:$B$50,2,FALSE),"No Match")*AF101 -> 0.0007498634582 | AI101: $/therm/yr | AJ101: =IFERROR(VLOOKUP(N101,Confidence_Factor_lookup!$A$4:$Z$99,21,FALSE),0) -> 0.8888888889 | AK101: TRUE
A102: GasC&IRetrofitCustomHot WaterEquipmentWater HeaterAdministrative costs - Participant - C&I | B102: 6 | C102: GasC&IRetrofitCustomHot WaterEquipmentAdministrative costs - Participant - C&I | D102: 5 | E102: GasC&IRetrofitCustomHot WaterAdministrative costs - Participant - C&I | F102: 4 | G102: GasC&IRetrofitCustomAdministrative costs - Participant - C&I | H102: 3 | I102: GasC&IRetrofitAdministrative costs - Participant - C&I | J102: 2 | K102: =VLOOKUP($N102,Confidence_Factor_lookup!$A$2:$F$49,2,FALSE) -> Final Report – Commercial and Industrial Non-Energy Impacts Study | L102: =VLOOKUP($N102,Confidence_Factor_lookup!$A$2:$F$49,5,FALSE) -> MA | M102: =VLOOKUP($N102,Confidence_Factor_lookup!$A$2:$F$49,4,FALSE) -> 2012 | N102: Study0002 | O102: Retro17 | P102: MapID00174 | Q102: Gas | R102: water heater | S102: Water Heater | T102: Water Heater | U102: Custom | V102: Retrofit | W102: C&I | X102: =IF(R102="","",INDEX('Standard Measure Names (MapID)'!$B$2:$H$1011,MATCH($P102,'Standard Measure Names (MapID)'!$A$2:$A$1011,FALSE),1)) -> Water Heater | Y102: =IF(S102="","",INDEX('Standard Measure Names (MapID)'!$B$2:$H$1011,MATCH($P102,'Standard Measure Names (MapID)'!$A$2:$A$1011,FALSE),2)) -> Equipment | Z102: =IF(T102="","",INDEX('Standard Measure Names (MapID)'!$B$2:$H$1011,MATCH($P102,'Standard Measure Names (MapID)'!$A$2:$A$1011,FALSE),3)) -> Hot Water | AA102: =IF(U102="","",INDEX('Standard Measure Names (MapID)'!$B$2:$H$1011,MATCH($P102,'Standard Measure Names (MapID)'!$A$2:$A$1011,FALSE),4)) -> Custom | AB102: =IF(V102="","",INDEX('Standard Measure Names (MapID)'!$B$2:$H$1011,MATCH($P102,'Standard Measure Names (MapID)'!$A$2:$A$1011,FALSE),5)) -> Retrofit | AC102: =IF(W102="","",INDEX('Standard Measure Names (MapID)'!$B$2:$H$1011,MATCH($P102,'Standard Measure Names (MapID)'!$A$2:$A$1011,FALSE),6)) -> C&I | AD102: =IF(Q102="","",INDEX('Standard Measure Names (MapID)'!$B$2:$H$1011,MATCH($P102,'Standard Measure Names (MapID)'!$A$2:$A$1011,FALSE),7)) -> Gas | AE102: Administrative costs - Participant - C&I | AF102: 0.1056096 | AG102: $/therm/yr | AH102: =IFERROR(CPI_Index!$B$30/VLOOKUP(M102,CPI_Index!$A$2:$B$50,2,FALSE),"No Match")*AF102 -> 0.1152230174 | AI102: $/therm/yr | AJ102: =IFERROR(VLOOKUP(N102,Confidence_Factor_lookup!$A$4:$Z$99,21,FALSE),0) -> 0.8888888889 | AK102: TRUE
A103: GasC&IRetrofitCustomHot WaterEquipmentWater HeaterO&M - Participant - C&I | B103: 6 | C103: GasC&IRetrofitCustomHot WaterEquipmentO&M - Participant - C&I | D103: 5 | E103: GasC&IRetrofitCustomHot WaterO&M - Participant - C&I | F103: 4 | G103: GasC&IRetrofitCustomO&M - Participant - C&I | H103: 3 | I103: GasC&IRetrofitO&M - Participant - C&I | J103: 2 | K103: =VLOOKUP($N103,Confidence_Factor_lookup!$A$2:$F$49,2,FALSE) -> Final Report – Commercial and Industrial Non-Energy Impacts Study | L103: =VLOOKUP($N103,Confidence_Factor_lookup!$A$2:$F$49,5,FALSE) -> MA | M103: =VLOOKUP($N103,Confidence_Factor_lookup!$A$2:$F$49,4,FALSE) -> 2012 | N103: Study0002 | O103: Retro17 | P103: MapID00174 | Q103: Gas | R103: water heater | S103: Water Heater | T103: Water Heater | U103: Custom | V103: Retrofit | W103: C&I | X103: =IF(R103="","",INDEX('Standard Measure Names (MapID)'!$B$2:$H$1011,MATCH($P103,'Standard Measure Names (MapID)'!$A$2:$A$1011,FALSE),1)) -> Water Heater | Y103: =IF(S103="","",INDEX('Standard Measure Names (MapID)'!$B$2:$H$1011,MATCH($P103,'Standard Measure Names (MapID)'!$A$2:$A$1011,FALSE),2)) -> Equipment | Z103: =IF(T103="","",INDEX('Standard Measure Names (MapID)'!$B$2:$H$1011,MATCH($P103,'Standard Measure Names (MapID)'!$A$2:$A$1011,FALSE),3)) -> Hot Water | AA103: =IF(U103="","",INDEX('Standard Measure Names (MapID)'!$B$2:$H$1011,MATCH($P103,'Standard Measure Names (MapID)'!$A$2:$A$1011,FALSE),4)) -> Custom | AB103: =IF(V103="","",INDEX('Standard Measure Names (MapID)'!$B$2:$H$1011,MATCH($P103,'Standard Measure Names (MapID)'!$A$2:$A$1011,FALSE),5)) -> Retrofit | AC103: =IF(W103="","",INDEX('Standard Measure Names (MapID)'!$B$2:$H$1011,MATCH($P103,'Standard Measure Names (MapID)'!$A$2:$A$1011,FALSE),6)) -> C&I | AD103: =IF(Q103="","",INDEX('Standard Measure Names (MapID)'!$B$2:$H$1011,MATCH($P103,'Standard Measure Names (MapID)'!$A$2:$A$1011,FALSE),7)) -> Gas | AE103: O&M - Participant - C&I | AF103: 0.0767904 | AG103: $/therm/yr | AH103: =IFERROR(CPI_Index!$B$30/VLOOKUP(M103,CPI_Index!$A$2:$B$50,2,FALSE),"No Match")*AF103 -> 0.0837804669 | AI103: $/therm/yr | AJ103: =IFERROR(VLOOKUP(N103,Confidence_Factor_lookup!$A$4:$Z$99,21,FALSE),0) -> 0.8888888889 | AK103: TRUE
A104: GasC&IRetrofitCustomOtherO&M - Participant - C&I | B104: 6 | C104: GasC&IRetrofitCustomOtherO&M - Participant - C&I | D104: 5 | E104: GasC&IRetrofitCustomOtherO&M - Participant - C&I | F104: 4 | G104: GasC&IRetrofitCustomO&M - Participant - C&I | H104: 3 | I104: GasC&IRetrofitO&M - Participant - C&I | J104: 2 | K104: =VLOOKUP($N104,Confidence_Factor_lookup!$A$2:$F$49,2,FALSE) -> Final Report – Commercial and Industrial Non-Energy Impacts Study | L104: =VLOOKUP($N104,Confidence_Factor_lookup!$A$2:$F$49,5,FALSE) -> MA | M104: =VLOOKUP($N104,Confidence_Factor_lookup!$A$2:$F$49,4,FALSE) -> 2012 | N104: Study0002 | O104: Retro18 | P104: MapID00333 | Q104: Gas | T104: Other | U104: Custom | V104: Retrofit | W104: C&I | X104: =IF(R104="","",INDEX('Standard Measure Names (MapID)'!$B$2:$H$1011,MATCH($P104,'Standard Measure Names (MapID)'!$A$2:$A$1011,FALSE),1)) ->  | Y104: =IF(S104="","",INDEX('Standard Measure Names (MapID)'!$B$2:$H$1011,MATCH($P104,'Standard Measure Names (MapID)'!$A$2:$A$1011,FALSE),2)) ->  | Z104: =IF(T104="","",INDEX('Standard Measure Names (MapID)'!$B$2:$H$1011,MATCH($P104,'Standard Measure Names (MapID)'!$A$2:$A$1011,FALSE),3)) -> Other | AA104: =IF(U104="","",INDEX('Standard Measure Names (MapID)'!$B$2:$H$1011,MATCH($P104,'Standard Measure Names (MapID)'!$A$2:$A$1011,FALSE),4)) -> Custom | AB104: =IF(V104="","",INDEX('Standard Measure Names (MapID)'!$B$2:$H$1011,MATCH($P104,'Standard Measure Names (MapID)'!$A$2:$A$1011,FALSE),5)) -> Retrofit | AC104: =IF(W104="","",INDEX('Standard Measure Names (MapID)'!$B$2:$H$1011,MATCH($P104,'Standard Measure Names (MapID)'!$A$2:$A$1011,FALSE),6)) -> C&I | AD104: =IF(Q104="","",INDEX('Standard Measure Names (MapID)'!$B$2:$H$1011,MATCH($P104,'Standard Measure Names (MapID)'!$A$2:$A$1011,FALSE),7)) -> Gas | AE104: O&M - Participant - C&I | AF104: 0.5253 | AG104: $/therm/yr | AH104: =IFERROR(CPI_Index!$B$30/VLOOKUP(M104,CPI_Index!$A$2:$B$50,2,FALSE),"No Match")*AF104 -> 0.5731169425 | AI104: $/therm/yr | AJ104: =IFERROR(VLOOKUP(N104,Confidence_Factor_lookup!$A$4:$Z$99,21,FALSE),0) -> 0.8888888889 | AK104: TRUE
A105: ElectricityResidentialNew Construction (Non-Low Income)PrescriptiveLightingLEDLED BulbLighting Quality and Lifetime - Participant - Residential | B105: 6 | C105: ElectricityResidentialNew Construction (Non-Low Income)PrescriptiveLightingLEDLighting Quality and Lifetime - Participant - Residential | D105: 5 | E105: ElectricityResidentialNew Construction (Non-Low Income)PrescriptiveLightingLighting Quality and Lifetime - Participant - Residential | F105: 4 | G105: ElectricityResidentialNew Construction (Non-Low Income)PrescriptiveLighting Quality and Lifetime - Participant - Residential | H105: 3 | I105: ElectricityResidentialNew Construction (Non-Low Income)Lighting Quality and Lifetime - Participant - Residential | J105: 2 | K105: =VLOOKUP($N105,Confidence_Factor_lookup!$A$2:$F$49,2,FALSE) -> Non-Energy Impact Framework Study Report | L105: =VLOOKUP($N105,Confidence_Factor_lookup!$A$2:$F$49,5,FALSE) -> MA | M105: =VLOOKUP($N105,Confidence_Factor_lookup!$A$2:$F$49,4,FALSE) -> 2018 | N105: Study0004 | O105: MA1 | P105: MapID00001 | Q105: Electricity | R105: Residential Light Bulb | S105: LED | T105: Lighting | U105: Prescriptive | V105: A1 - Residential New Buildings | W105: A - Residential | X105: =IF(R105="","",INDEX('Standard Measure Names (MapID)'!$B$2:$H$1011,MATCH($P105,'Standard Measure Names (MapID)'!$A$2:$A$1011,FALSE),1)) -> LED Bulb | Y105: =IF(S105="","",INDEX('Standard Measure Names (MapID)'!$B$2:$H$1011,MATCH($P105,'Standard Measure Names (MapID)'!$A$2:$A$1011,FALSE),2)) -> LED | Z105: =IF(T105="","",INDEX('Standard Measure Names (MapID)'!$B$2:$H$1011,MATCH($P105,'Standard Measure Names (MapID)'!$A$2:$A$1011,FALSE),3)) -> Lighting | AA105: =IF(U105="","",INDEX('Standard Measure Names (MapID)'!$B$2:$H$1011,MATCH($P105,'Standard Measure Names (MapID)'!$A$2:$A$1011,FALSE),4)) -> Prescriptive | AB105: =IF(V105="","",INDEX('Standard Measure Names (MapID)'!$B$2:$H$1011,MATCH($P105,'Standard Measure Names (MapID)'!$A$2:$A$1011,FALSE),5)) -> New Construction (Non-Low Income) | AC105: =IF(W105="","",INDEX('Standard Measure Names (MapID)'!$B$2:$H$1011,MATCH($P105,'Standard Measure Names (MapID)'!$A$2:$A$1011,FALSE),6)) -> Residential | AD105: =IF(Q105="","",INDEX('Standard Measure Names (MapID)'!$B$2:$H$1011,MATCH($P105,'Standard Measure Names (MapID)'!$A$2:$A$1011,FALSE),7)) -> Electricity | AE105: Lighting Quality and Lifetime - Participant - Residential | AF105: 3 | AG105: $/installed measure/lifetime | AH105: =IFERROR(CPI_Index!$B$30/VLOOKUP(M105,CPI_Index!$A$2:$B$50,2,FALSE),"No Match")*AF105 -> 3 | AI105: $/installed measure/lifetime | AJ105: =IFERROR(VLOOKUP(N105,Confidence_Factor_lookup!$A$4:$Z$99,21,FALSE),0) -> 0.7777777778 | AK105: TRUE
A106: ElectricityResidentialNew Construction (Non-Low Income)PrescriptiveLightingLEDLED FixturesLighting Quality and Lifetime - Participant - Residential | B106: 6 | C106: ElectricityResidentialNew Construction (Non-Low Income)PrescriptiveLightingLEDLighting Quality and Lifetime - Participant - Residential | D106: 5 | E106: ElectricityResidentialNew Construction (Non-Low Income)PrescriptiveLightingLighting Quality and Lifetime - Participant - Residential | F106: 4 | G106: ElectricityResidentialNew Construction (Non-Low Income)PrescriptiveLighting Quality and Lifetime - Participant - Residential | H106: 3 | I106: ElectricityResidentialNew Construction (Non-Low Income)Lighting Quality and Lifetime - Participant - Residential | J106: 2 | K106: =VLOOKUP($N106,Confidence_Factor_lookup!$A$2:$F$49,2,FALSE) -> Non-Energy Impact Framework Study Report | L106: =VLOOKUP($N106,Confidence_Factor_lookup!$A$2:$F$49,5,FALSE) -> MA | M106: =VLOOKUP($N106,Confidence_Factor_lookup!$A$2:$F$49,4,FALSE) -> 2018 | N106: Study0004 | O106: MA2 | P106: MapID00002 | Q106: Electricity | R106: Residential Fixtures | S106: LED | T106: Lighting | U106: Prescriptive | V106: A1 - Residential New Buildings | W106: A - Residential | X106: =IF(R106="","",INDEX('Standard Measure Names (MapID)'!$B$2:$H$1011,MATCH($P106,'Standard Measure Names (MapID)'!$A$2:$A$1011,FALSE),1)) -> LED Fixtures | Y106: =IF(S106="","",INDEX('Standard Measure Names (MapID)'!$B$2:$H$1011,MATCH($P106,'Standard Measure Names (MapID)'!$A$2:$A$1011,FALSE),2)) -> LED | Z106: =IF(T106="","",INDEX('Standard Measure Names (MapID)'!$B$2:$H$1011,MATCH($P106,'Standard Measure Names (MapID)'!$A$2:$A$1011,FALSE),3)) -> Lighting | AA106: =IF(U106="","",INDEX('Standard Measure Names (MapID)'!$B$2:$H$1011,MATCH($P106,'Standard Measure Names (MapID)'!$A$2:$A$1011,FALSE),4)) -> Prescriptive | AB106: =IF(V106="","",INDEX('Standard Measure Names (MapID)'!$B$2:$H$1011,MATCH($P106,'Standard Measure Names (MapID)'!$A$2:$A$1011,FALSE),5)) -> New Construction (Non-Low Income) | AC106: =IF(W106="","",INDEX('Standard Measure Names (MapID)'!$B$2:$H$1011,MATCH($P106,'Standard Measure Names (MapID)'!$A$2:$A$1011,FALSE),6)) -> Residential | AD106: =IF(Q106="","",INDEX('Standard Measure Names (MapID)'!$B$2:$H$1011,MATCH($P106,'Standard Measure Names (MapID)'!$A$2:$A$1011,FALSE),7)) -> Electricity | AE106: Lighting Quality and Lifetime - Participant - Residential | AF106: 3.5 | AG106: $/installed measure/lifetime | AH106: =IFERROR(CPI_Index!$B$30/VLOOKUP(M106,CPI_Index!$A$2:$B$50,2,FALSE),"No Match")*AF106 -> 3.5 | AI106: $/installed measure/lifetime | AJ106: =IFERROR(VLOOKUP(N106,Confidence_Factor_lookup!$A$4:$Z$99,21,FALSE),0) -> 0.7777777778 | AK106: TRUE
A107: GasResidentialNew Construction (Non-Low Income)PrescriptiveHVACEquipmentFurnaceNoise - Participant - Residential | B107: 6 | C107: GasResidentialNew Construction (Non-Low Income)PrescriptiveHVACEquipmentNoise - Participant - Residential | D107: 5 | E107: GasResidentialNew Construction (Non-Low Income)PrescriptiveHVACNoise - Participant - Residential | F107: 4 | G107: GasResidentialNew Construction (Non-Low Income)PrescriptiveNoise - Participant - Residential | H107: 3 | I107: GasResidentialNew Construction (Non-Low Income)Noise - Participant - Residential | J107: 2 | K107: =VLOOKUP($N107,Confidence_Factor_lookup!$A$2:$F$49,2,FALSE) -> Non-Energy Impact Framework Study Report | L107: =VLOOKUP($N107,Confidence_Factor_lookup!$A$2:$F$49,5,FALSE) -> MA | M107: =VLOOKUP($N107,Confidence_Factor_lookup!$A$2:$F$49,4,FALSE) -> 2018 | N107: Study0004 | O107: MA3 | P107: MapID00003 | Q107: Gas | R107: Residential NC Heating | S107: Furnace | T107: HVAC | U107: Prescriptive | V107: A1 - Residential New Buildings | W107: A - Residential | X107: =IF(R107="","",INDEX('Standard Measure Names (MapID)'!$B$2:$H$1011,MATCH($P107,'Standard Measure Names (MapID)'!$A$2:$A$1011,FALSE),1)) -> Furnace | Y107: =IF(S107="","",INDEX('Standard Measure Names (MapID)'!$B$2:$H$1011,MATCH($P107,'Standard Measure Names (MapID)'!$A$2:$A$1011,FALSE),2)) -> Equipment | Z107: =IF(T107="","",INDEX('Standard Measure Names (MapID)'!$B$2:$H$1011,MATCH($P107,'Standard Measure Names (MapID)'!$A$2:$A$1011,FALSE),3)) -> HVAC | AA107: =IF(U107="","",INDEX('Standard Measure Names (MapID)'!$B$2:$H$1011,MATCH($P107,'Standard Measure Names (MapID)'!$A$2:$A$1011,FALSE),4)) -> Prescriptive | AB107: =IF(V107="","",INDEX('Standard Measure Names (MapID)'!$B$2:$H$1011,MATCH($P107,'Standard Measure Names (MapID)'!$A$2:$A$1011,FALSE),5)) -> New Construction (Non-Low Income) | AC107: =IF(W107="","",INDEX('Standard Measure Names (MapID)'!$B$2:$H$1011,MATCH($P107,'Standard Measure Names (MapID)'!$A$2:$A$1011,FALSE),6)) -> Residential | AD107: =IF(Q107="","",INDEX('Standard Measure Names (MapID)'!$B$2:$H$1011,MATCH($P107,'Standard Measure Names (MapID)'!$A$2:$A$1011,FALSE),7)) -> Gas | AE107: Noise - Participant - Residential | AF107: 40 | AG107: $/installed measure/yr | AH107: =IFERROR(CPI_Index!$B$30/VLOOKUP(M107,CPI_Index!$A$2:$B$50,2,FALSE),"No Match")*AF107 -> 40 | AI107: $/installed measure/yr | AJ107: =IFERROR(VLOOKUP(N107,Confidence_Factor_lookup!$A$4:$Z$99,21,FALSE),0) -> 0.7777777778 | AK107: TRUE
A108: GasResidentialNew Construction (Non-Low Income)PrescriptiveHVACEquipmentFurnaceThermal Comfort - Participant - Residential | B108: 6 | C108: GasResidentialNew Construction (Non-Low Income)PrescriptiveHVACEquipmentThermal Comfort - Participant - Residential | D108: 5 | E108: GasResidentialNew Construction (Non-Low Income)PrescriptiveHVACThermal Comfort - Participant - Residential | F108: 4 | G108: GasResidentialNew Construction (Non-Low Income)PrescriptiveThermal Comfort - Participant - Residential | H108: 3 | I108: GasResidentialNew Construction (Non-Low Income)Thermal Comfort - Participant - Residential | J108: 2 | K108: =VLOOKUP($N108,Confidence_Factor_lookup!$A$2:$F$49,2,FALSE) -> Non-Energy Impact Framework Study Report | L108: =VLOOKUP($N108,Confidence_Factor_lookup!$A$2:$F$49,5,FALSE) -> MA | M108: =VLOOKUP($N108,Confidence_Factor_lookup!$A$2:$F$49,4,FALSE) -> 2018 | N108: Study0004 | O108: MA3 | P108: MapID00003 | Q108: Gas | R108: Residential NC Heating | S108: Furnace | T108: HVAC | U108: Prescriptive | V108: A1 - Residential New Buildings | W108: A - Residential | X108: =IF(R108="","",INDEX('Standard Measure Names (MapID)'!$B$2:$H$1011,MATCH($P108,'Standard Measure Names (MapID)'!$A$2:$A$1011,FALSE),1)) -> Furnace | Y108: =IF(S108="","",INDEX('Standard Measure Names (MapID)'!$B$2:$H$1011,MATCH($P108,'Standard Measure Names (MapID)'!$A$2:$A$1011,FALSE),2)) -> Equipment | Z108: =IF(T108="","",INDEX('Standard Measure Names (MapID)'!$B$2:$H$1011,MATCH($P108,'Standard Measure Names (MapID)'!$A$2:$A$1011,FALSE),3)) -> HVAC | AA108: =IF(U108="","",INDEX('Standard Measure Names (MapID)'!$B$2:$H$1011,MATCH($P108,'Standard Measure Names (MapID)'!$A$2:$A$1011,FALSE),4)) -> Prescriptive | AB108: =IF(V108="","",INDEX('Standard Measure Names (MapID)'!$B$2:$H$1011,MATCH($P108,'Standard Measure Names (MapID)'!$A$2:$A$1011,FALSE),5)) -> New Construction (Non-Low Income) | AC108: =IF(W108="","",INDEX('Standard Measure Names (MapID)'!$B$2:$H$1011,MATCH($P108,'Standard Measure Names (MapID)'!$A$2:$A$1011,FALSE),6)) -> Residential | AD108: =IF(Q108="","",INDEX('Standard Measure Names (MapID)'!$B$2:$H$1011,MATCH($P108,'Standard Measure Names (MapID)'!$A$2:$A$1011,FALSE),7)) -> Gas | AE108: Thermal Comfort - Participant - Residential | AF108: 77 | AG108: $/installed measure/yr | AH108: =IFERROR(CPI_Index!$B$30/VLOOKUP(M108,CPI_Index!$A$2:$B$50,2,FALSE),"No Match")*AF108 -> 77 | AI108: $/installed measure/yr | AJ108: =IFERROR(VLOOKUP(N108,Confidence_Factor_lookup!$A$4:$Z$99,21,FALSE),0) -> 0.7777777778 | AK108: TRUE
